Workbook

Sheet Design Converter
A1: LM5177x DC/DC Controller Design Tool
A3: About | C3: xx | F3: = Input Box | J3: http://www.ti.com/product/lm5177 | N3: TERMS OF USE
A5: Step 1: Operating Specifications
D6: Input Voltage - Min, VIN(min) | E6: 8 | F6: V
D7: Input Voltage - Nom, VIN(nom) | E7: 48 | F7: V
D8: Input Voltage - Max, VIN(max) | E8: 55 | F8: V
D9: Output Voltage, VOUT | E9: 12 | F9: V
D10: Full Load Output Current, IOUT(max) | E10: 25 | F10: A
D11: Switching Frequency | E11: 200 | F11: kHz
D12: Frequency Set Resistor, RT | E12: =IF('Standard Value Calculator'!O4/1000>288, "N/A",'Standard Value Calculator'!O4/1000) -> 150 | F12: kΩ
A14: Step 2: Filter Inductor
D15: Recommended Filter Inductance | E15: =Lopt*1000000 -> 2.575308642 | F15: µH
D16: Inductance, LF | E16: 3.3 | F16: µH
D17: Inductor DCR | E17: 3.2 | F17: mΩ
D18: Pk-to-Pk Ripple Current at VIN(min), DIL1 | E18: ='Variable Management'!B84 -> 4.181751508 | F18: Apk-pk
D19: Pk-to-Pk Ripple Current at VIN(nom), DIL2 | E19: ='Variable Management'!B85 -> 13.74852113 | F19: Apk-pk
D20: Pk-to-Pk Ripple Current at VIN(max), DIL3 | E20: ='Variable Management'!B86 -> 14.33274132 | F20: Apk-pk
D21: DIL as a % at VIN(min) | E21: ='Variable Management'!B96*100 -> 10.59377049 | F21: %
D22: DIL as a % at VIN(nom) | E22: ='Variable Management'!B97*100 -> 54.99408452 | F22: %
D23: DIL as a % at VIN(max) | E23: ='Variable Management'!B98*100 -> 57.33096526 | F23: %
A25: Step 3: OCP, Sense Resistors, Slope Comp
D26: Required IOCP(MIN) Setpoint at VIN(nom) | E26: 25 | F26: A
D27: Recommended Sense Resistance | E27: =Rs_ideal*1000 -> 1.241973925 | F27: mΩ
D28: Sense Resistance, RS | E28: 1 | F28: mΩ
D29: Peak Inductor Current, ILPK | E29: ='Variable Management'!B141 -> 64.33274132 | F29: A
D30: =IF('Variable Management'!B91>'Variable Management'!B89, "Power Loss in Rs at Full Load (Max VIN)", "Power Loss in Rs at Full Load (Min VIN)") -> Power Loss in Rs at Full Load (Min VIN) | E30: ='Variable Management'!B92 -> 0.5380634258 | F30: W
D31: =IF(Device<>"LM51772","Recommended SLOPE Resistor","Recommended SLOPE Factor") -> Recommended SLOPE Resistor | E31: =IF(Device<>"LM51772",'Variable Management'!B146/1000,) -> 165 | F31: =IF(Device<>"LM51772","kΩ","") -> kΩ
D32: SLOPE Resistor, RSLOPE | E32: 165 | F32: kΩ
D33: VIN(min) | E33: ='Variable Management'!B133 -> 31.38073991 | F33: A
C34: IOUT(typ) at OCP Inception: | D34: VIN(nom) | E34: ='Variable Management'!B134 -> 56.87426057 | F34: A
D35: VIN(max) | E35: ='Variable Management'!B135 -> 57.16637066 | F35: A
A37: Step 4: Output Capacitor
D38: Output Voltage Ripple Spec | E38: =12000*0.03 -> 360 | F38: mVpk-pk
D39: Minimum Output Capacitance | E39: ='Variable Management'!B178 -> 119.7897568 | F39: µF
D40: Output Capacitance, COUT | E40: =270*2+10 -> 550 | F40: µF
D41: Maximum Permitted ESR | E41: ='Variable Management'!B182 -> 11.26368637 | F41: mΩ
D42: Output Capacitor ESR | E42: 1.875 | F42: mΩ
D43: Resulting Output Voltage Ripple (max) | E43: =Vripple2*1000 -> 125.2828408 | F43: mVpk-pk
D44: Output Capacitor RMS Current (max) | E44: ='Variable Management'!B173 -> 17.67766953 | F44: A (rms)
A46: Step 5: Input Capacitor
D47: Input Voltage Ripple Spec | E47: =48000*0.03 -> 1440 | F47: mVpk-pk
D48: Minimum Input Capacitance | E48: ='Variable Management'!B198 -> 21.70138889 | F48: µF
D49: Input Capacitance, CIN | E49: =4.7*6 -> 28.2 | F49: µF
D50: Maximum Permitted ESR | E50: ='Variable Management'!B203 -> 10.31648784 | F50: mΩ
D51: Input Capacitor ESR | E51: 2 | F51: mΩ
D52: Resulting Input Voltage Ripple (max) | E52: =Vinripple2*1000 -> 1172.48877 | F52: mVpk-pk
D53: Input Capacitor RMS Current (max) | E53: ='Variable Management'!B191 -> 10.85483424 | F53: A (rms)
A55: Step 6: Soft-start, UVLO, CFG
D56: recommended Soft-Start Time, tSS for ISCP(MIN) | E56: =E40*0.000001*E9/(E26-E10)*1000 ->  | F56: ms | M56: VIN(nom) | N56: =VIN_nom&"V" -> 48V
D57: Soft-Start Time, tSS | E57: 1.5 | F57: ms
D58: Soft-Start Capacitance, CSS | E58: =IF(Tss>1.28/1000,Css_u*1000000000,"N/A") -> 15 | F58: nF
D60: Configuration Setting | E60: =CFG -> 11
D61: Configuration Resistor on CFG: RCFG | E61: =INDEX('CFG Setting'!B4:B19,CFG,0) -> 13.3 | F61: kΩ
D62: Required Input Voltage UVLO On | E62: 7.8 | F62: V
D63: Input Voltage UVLO Off | E63: 7.4 | F63: V
D64: Upper UVLO Resistor, RUV1 | E64: =Ruvlo1 -> 80 | F64: kΩ
D65: Lower UVLO Resistor, RUV2 | E65: ='Variable Management'!E223 -> 15 | F65: kΩ
D66: Current Monitor/Limiter
D67: =CHOOSE(IMONLIM_select+1,"","Maximum Current to Monitor","Average Current Limit","Average Current Limit") -> Maximum Current to Monitor | E67: 25 | F67: A
D68: =CHOOSE(IMONLIM_select+1,"","Maximum Voltage at IMONOUT","", "") -> Maximum Voltage at IMONOUT | E68: 3.3 | F68: V
D69: Current Sense Shunt Resistance, RCS(out/in) | E69: =Rshunt -> 2 | F69: mΩ
D70: =CHOOSE(IMONLIM_select+1,"","IMONOUT Resistance, RIMON","SYNC pin during startup", "SYNC pin during startup") -> IMONOUT Resistance, RIMON | E70: =CHOOSE(IMONLIM_select+1,"",'Variable Management'!B255/1000,"High", "Low") -> 66 | F70: kΩ
D71: IMONOUT Filter , CIMON | E71: 3 | F71: nF
D72: IMONOUT Filter , RIMON | E72: 1 | F72: kΩ
A74: Step 7: Compensation Design
D75: Load Pole Frequency | E75: =Fp_dominant -> 602.8596329 | F75: Hz
D76: COUT ESR Zero Frequency | E76: =Fesr/1000 -> 154.332066 | F76: kHz
D77: Boost RHP Zero Frequency @ VIN(MIN) | E77: =IF(E6<E9,Frhp_Vinmin/1000,"---") -> 9.932014006 | F77: kHz
D78: Boost RHP Zero Frequency @ VIN(NOM) | E78: =IF(E7<E9,Frhp/1000,"---") -> --- | F78: kHz
D79: Desired Crossover Frequency | E79: 1 | F79: =" kHz " -> kHz
D80: Error Amp Pole Frequency | E80: =Fp1_u -> 0.07956155923 | F80: Hz
D81: Upper Feedback Resistor, RFBT | E81: 51 | F81: kΩ
D82: Lower Feedback Resistor, RFBB | E82: =IF(Vout=Vref,"OPEN",Rfb2_u/1000) -> 4.64 | F82: =IF(Vout=Vref,"","kΩ") -> kΩ
A84: Compensation Components
B85: Calculated / | C85: Std Values | E85: =" Selected" -> Selected | G85: Actual P/Z Frequencies
A86: RC | B86: =Rcea1/1000 -> 0.6911503838 | C86: ='Standard Value Calculator'!O27 -> 0.698 | E86: 2 | F86: kΩ | G86: =Fp1_u -> 0.07956155923 | H86: Hz (FPEA)
A87: CC1 | B87: =Cc1ea*1000000000 -> 254.6479089 | C87: ='Standard Value Calculator'!O28 -> 270 | E87: 200 | F87: nF | G87: =Fz1_u/1000 -> 0.3978873577 | H87: kHz (FZCOMP)
A88: CC2 | B88: =IF(Cc2ea*1000000000000<0, 0, Cc2ea*1000000000000) -> 23020.19612 | C88: ='Standard Value Calculator'!O29 -> 22000 | E88: 2200 | F88: pF | G88: =Fp2_u/1000 -> 36.05120607 | H88: kHz (FPCOMP)
A90: Efficiency / Power Loss Analyzer
A92: Step 8: Efficiency | M92: VIN(nom) | N92: =VIN_nom&"V" -> 48V
D93: Buck-Leg Power MOSFETs (Q1, Q2) | E93: PSMQC040N10NS2
E94: Hi-side | F94: Low-side
D95: On-State Resistance, RDS(on) | E95: 4.9 | F95: 4.9 | G95: mΩ
D96: Total Gate Charge, QG | E96: 40.5 | F96: 40.5 | G96: nC
D97: Gate-Drain Charge, QGD | E97: 6 | F97: 6 | G97: nC
D98: Gate-Source Charge, QGS | E98: 15 | F98: 15 | G98: nC
D99: Gate Resistance, RG | E99: 0.8 | F99: 0.8 | G99: Ω
D100: Transconductance, gFS | E100: 105 | F100: 105 | G100: S
D101: Gate-Source Threshold Voltage, VTH | E101: 2.8 | F101: 2.8 | G101: V
D102: Body Diode Forward Voltage, VBD | E102: 0.9 | F102: 0.9 | G102: V
D103: Body Diode Rev Recovery Charge, QRR | F103: 85 | G103: nC
D104: Thermal Resistance, θJA | E104: 50 | F104: 50 | G104: °C/W
D106: Boost-Leg Power MOSFETs (Q3, Q4) | E106: NTMFS4C06NBT1G
E107: Hi-side | F107: Low-side
D108: On-State Resistance, RDS(on) | E108: 3.8 | F108: 3.8 | G108: mΩ
D109: Total Gate Charge, QG | E109: 11.6 | F109: 11.6 | G109: nC
D110: Gate-Drain Charge, QGD | E110: 4 | F110: 4 | G110: nC
D111: Gate-Source Charge, QGS | E111: 4.7 | F111: 4.7 | G111: nC
D112: Gate Resistance, RG | E112: 1 | F112: 1 | G112: Ω
D113: Transconductance, gFS | E113: 58 | F113: 58 | G113: S
D114: Gate-Source Threshold Voltage, VTH | E114: 2.1 | F114: 2.1 | G114: V
D115: Body Diode Forward Voltage, VBD | E115: 0.8 | F115: 0.8 | G115: V
D116: Body Diode Rev Recovery Charge, QRR | E116: 22 | G116: nC
D117: Thermal Resistance, θJA | E117: 49 | F117: 65 | G117: °C/W
A119: External Schottky Diode (if applicable) | E119: Buck Leg | F119: Boost Leg
D120: Schottky Fwd Voltage, VFWDsch | E120: 0 | F120: 0 | G120: V
D121: Schottky Rev Recovery Charge, QRRsch | E121: 0 | F121: 0 | G121: nC

Sheet Licenses
A5: Version Number | B5: 1.0.5
A35: Version History
A36: Version | B36: Change List Description
A37: 1.0.0 | B37: Initial Release
A38: 1.0.1 | B38: updated calculation of High Frequency pole in compensation
A39: 1.0.2 | B39: fixed Rshunt issue blocking efficiency calculation
B40: fixed Rgate Boost side was fixed to 1Ohm, fixed A_CS value to 10, updated EA gm to 600 (from 500)
A41: 1.0.3 | B41: Fixed calculation of UVLO
A42: 1.0.4 | B42: Added support for IMONLIM, fixed error in Efficiency calculation graph of Vin
B43: Fixed minor error in RT
B44: updated Inductor limits
A45: 1.0.5 | B45: fixed calculation of R_CFG

Sheet BOM & Schematic (hidden)
B45: ** Tie MODE to VCC (or voltage > 2.4V) for No Hiccup **
A46: ="VIN = "&VIN_min&" V to "&VIN_max&" V, VOUT = "& Vout &" V, IOUT = " &Iout & " A, Fsw = " & Fsw/1000 &" kHz, Current Limit = "&ROUNDUP(Ilimit_DC,0)&" A" -> VIN = 8 V to 55 V, VOUT = 12 V, IOUT = 25 A, Fsw = 200 kHz, Current Limit = 25 A
A47: High Efficiency Synchronous Buck-Boost Regulator BOM
A48: Count | B48: Ref Des | C48: Value | D48: Description | H48: Size | I48: Part Number | J48: MFR
A49: 2 | B49: CBOOT1, CBOOT2 | C49: 0.1 | D49: =C49 -> 0.1 | H49: 0603 | I49: Std | J49: Std
A50: 1 | B50: CC1 | C50: ='Design Converter'!E87 -> 200 | D50: 200 | H50: 0603 | I50: Std | J50: Std
A51: 1 | B51: CC2 | C51: ='Design Converter'!E88 -> 2200 | D51: 2200 | H51: 0603 | I51: Std | J51: Std
A52: 1 | B52: RSLOPE | C52: =Rslope/1000 -> 165 | H52: 0603 | I52: Std | J52: Std
A53: 1 | B53: CCS | C53: 100 | D53: =C53 -> 100 | H53: 0603 | I53: Std | J53: Std
A54: 1 | B54: CDITH | C54: =Cdither*1000000000 -> 0 | D54: =C54 -> 0 | H54: 0603 | I54: Std | J54: Std
A55: =ROUNDUP('Design Converter'!E49/10,0) -> 3 | B55: CIN | C55: 10 | D55: =C55 -> 10 | H55: 1210 | I55: Std | J55: Std
A56: =ROUNDUP('Design Converter'!E40/22,0) -> 25 | B56: COUT | C56: 22 | D56: =C56 -> 22 | H56: 1210 | I56: Std | J56: Std
A57: 1 | B57: CSS | C57: ='Design Converter'!E58 -> 15 | D57: =C57 -> 15 | H57: 0603 | I57: Std | J57: Std
A58: 1 | B58: CVCC | C58: 1 | D58: 1 | H58: 0603 | I58: Std | J58: Std
A59: 1 | B59: CVIN | C59: 0.1 | D59: 0.1 | H59: 0603 | I59: Std | J59: Std
A60: 3 | B60: DBOOT1, DBOOT2, DVIN | C60: See description | D60: Schottky Diode, 200mA | H60: - | I60: - | J60: Various
A61: 1 | B61: LF | C61: ='Design Converter'!E16 -> 3.3 | D61: ="Inductor, "&Lf*1000000&"µH, "&Rdcr*1000&"mΩ, >"&ROUNDUP(IL_peak_OCP*1.1,0)&"A" -> Inductor, 3.3µH, 3.2mΩ, >71A | H61: - | I61: - | J61: Various
A62: 2 | B62: Q1, Q2 | C62: See description | D62: ='Design Converter'!E95 -> 4.9 | H62: Std | I62: ='Design Converter'!E93 -> PSMQC040N10NS2 | J62: -
A63: 2 | B63: Q3, Q4 | C63: See description | D63: ='Design Converter'!E108 -> 3.8 | H63: Std | I63: ='Design Converter'!E106 -> NTMFS4C06NBT1G | J63: -
A64: 1 | B64: RC1 | C64: ='Design Converter'!E86 -> 2 | D64: =C64 -> 2 | H64: 0603 | I64: Std | J64: Std
A65: 1 | B65: RS | C65: =Rs*1000 -> 1 | D65: 1 | H65: 2512 | I65: Std | J65: Std
A66: 1 | B66: RCS(out) | C66: ='Standard Value Calculator'!O21 -> 2 | D66: =C66 -> 2 | H66: 2512 | I66: Std | J66: Std
A67: 1 | B67: RT | C67: ='Design Converter'!E12 -> 150 | D67: 150 | H67: 0603 | I67: Std | J67: Std
A68: 1 | B68: RFB1 | C68: ='Design Converter'!E81 -> 51 | D68: 51 | H68: 0603 | I68: Std | J68: Std
A69: 1 | B69: RFB2 | C69: ='Design Converter'!E82 -> 4.64 | D69: 4.64 | H69: 0603 | I69: Std | J69: Std
A70: 1 | B70: RPGOOD | C70: 20 | D70: 20 | H70: 0603 | I70: Std | J70: Std
A71: 2 | B71: RCS, RCSG | C71: 100 | D71: 100 | H71: 0603 | I71: Std | J71: Std
A72: 1 | B72: RUV1 | C72: ='Design Converter'!E64 -> 80 | D72: 80 | H72: 0603 | I72: Std | J72: Std
A73: 1 | B73: RUV2 | C73: ='Design Converter'!E65 -> 15 | D73: 15 | H73: 0603 | I73: Std | J73: Std
A74: 1 | B74: RVIN | C74: 2.2 | D74: 2.2 | H74: 0603 | I74: Std | J74: Std
A75: 1 | B75: U1 | C75: LM5177 | D75: IC, LM5177, Buck-Boost PWM Controller | H75: TSSOP-38 | I75: LM5177HTSSOP | J75: TI
A78: NOTES:
A79: ** For information on TI NexFETTM MOSFETs, see ** | D79: http://www.ti.com/nexfet | E79: **
A80: ** Inductor saturation current should be higher than the peak inductor current at the OCP setpoint for all input voltages and operating temperatures **
A81: ** Effective input and output capacitances should be appropriately derated for applied voltage and temperature, particularly with ceramics **

Sheet EVMs (hidden)
A1: LM5175 Quickstart Design Tool
B6: LM5175EVM-HD PCB Layout | M6: LM5175EVM-HP PCB Layout | W6: LM5175EVM PCB Layout

Sheet Variable Management (hidden)
A1: EXCEL Variables Names/Calculations
B2: Input from user = | F2: to check
B3: Output =
B4: Constant
A5: Variable Name | B5: Value | C5: STD Units | E5: Notes | I5: Iteration
A6: Step 1: Operational Specs
A7: VIN_min | B7: ='Design Converter'!E6 -> 8 | C7: V | D7: Minimum input voltage | I7: 1
B8: ='Design Converter'!E7 -> 48 | C8: V | D8: Nominal input voltage | K8: Efficiency vs IOUT Plot | L8: 1
A9: VIN_max | B9: ='Design Converter'!E8 -> 55 | C9: V | D9: Maximum input voltage | K9: Efficiency vs VIN Plot | L9: 2
A10: VIN_edgebuckboost | B10: =B44 -> 10.07142152 | C10: V | K10: PLOT_TYPE | L10: 1 | M10: CFG | O10: ='CFG Setting'!G28 -> 11 | P10: 1 = Yes, 2 = No
K11: BODEPLOT_TYPE | L11: FALSE
A12: Vout | B12: ='Design Converter'!E9 -> 12 | C12: V | D12: Output Voltage | I12: 1
A13: Iout | B13: ='Design Converter'!E10 -> 25 | C13: A | D13: Maximum Output Current | I13: 1
A14: Rout | B14: =Vout/Iout -> 0.48 | C14: W | D14: Load resistance
A15: Pout | B15: =Vout*Iout -> 300 | C15: W | D15: Output power
A16: Efficiency | B16: 0.95 | D16: Edited by Vijay from 96% to 90% to match datasheet calculations.
A17: Pin | B17: =Pout/Efficiency -> 315.7894737 | C17: W | D17: Calculate input power assuming 90% efficiency
A18: Iin_Vinmin | B18: =Pin/VIN_min -> 39.47368421 | C18: A
A19: Iin_Vinnom | B19: =Pin/VIN_nom -> 6.578947368 | C19: A | D19: Input currents at min, nom, max Vin
A20: Iin_Vinmax | B20: =Pin/VIN_max -> 5.741626794 | C20: A
A22: Fsw | B22: ='Design Converter'!E11*1000 -> 200000 | C22: Hz | D22: Nominal Switching Frequency | I22: 1
A23: Ts | B23: =1/Fsw -> 5e-06 | C23: sec | D23: Period
A24: Vref | B24: 1 | C24: V | D24: Reference Voltage
A25: Vref_eff | B25: =Vref -> 1 | C25: V | D25: effective Vref with Tracking
A26: Rt | B26: =IF(Device<>"LM51772",(1/Fsw -0.00000002)*30300000000,(1/Fsw -0.000000018)*31700000000) -> 150894 | C26: W | D26: Frequency Set Resistor | F26: edited based on LM5177 curve fit.
A27: Ifb | B27: 6e-08 | C27: A
A29: Device | B29: =CHOOSE(C29,L29,L30) -> LM5177 | C29: 1 | K29: Device | L29: LM5177
A30: Mode | B30: 1 | D30: 0: PSM 1: FPWM | L30: LM51772
A32: Toff_min_buck | B32: =MinToffBuck -> 4.485743674e-07 | C32: sec | D32: 200ns | E32: buck min timer
A33: Ton_min_boost | B33: =MinTonBoost -> 4.085743674e-07 | C33: sec | D33: 300ns | E33: boost min timer
A34: T_max_BB | B34: =TonBubo -> 4.196425633e-06 | C34: sec | E34: max timer before transition from BB
A36: D_min_boost | B36: =MinTonBoost*Fsw -> 0.08171487347
A37: D_max_exitBB_to_boost | B37: =TBubo*Fsw -> 0.1607148735 | C37: =MinTonBoost*Fsw -> 0.08171487347
A38: D_max_buck_BB | B38: 1 | C38: =MaxTonBuck*Fsw -> 0.9102851265
A40: D_min_boost_exitBB_to_buck | B40: =TBubo*Fsw -> 0.1607148735
A41: D_max_exitBB_to_buck | B41: =MaxTonBuck*Fsw -> 0.9102851265
A42: D_max_buck_enterBB | B42: =MaxTonBoost*Fsw -> 0.921
A44: VIN_BB_to_boost | B44: =Vout*(1-B40) -> 10.07142152 | C44: V
A45: VIN_boost_to_BB | B45: =IF(B30=0,Vout,Vout*(1-B36)) -> 11.01942152 | C45: V
A46: VIN_buck_to_BB | B46: =IF(B30=0,Vout,Vout/B42) -> 13.02931596 | C46: V
A47: VIN_BB_to_buck | B47: =IF(B30=0,Vout,Vout/B41) -> 13.18268271 | C47: V
A51: Step 2: Filter Inductor
A52: Don1 | B52: =Vout/VIN_nom -> 0.25 | C52: =(Vout-VIN_nom)/Vout -> -3 | E52: Ideal Duty Cycle at VIN(nom) | I52: 1
A53: Doff1 | B53: =1-_Don1 -> 0.75 | E53: Ideal 1- Duty Cycle at VIN(nom) | I53: 1
A55: Don_Vinmin | B55: =IF(VIN_min>Vout, Vout/VIN_min, (Vout-VIN_min)/Vout) -> 0.3333333333 | C55: =IF(VIN_min>Vout, "BUCK", "BOOST") -> BOOST
A56: Don_Vinnom | B56: =IF(VIN_nom>Vout, Vout/VIN_nom, (Vout-VIN_nom)/Vout) -> 0.25 | C56: =IF(VIN_nom>Vout, "BUCK", "BOOST") -> BUCK
A57: Don_Vinmax | B57: =IF(VIN_max>Vout, Vout/VIN_max, (Vout-VIN_max)/Vout) -> 0.2181818182 | C57: =IF(VIN_max>Vout, "BUCK", "BOOST") -> BUCK
A58: Don_buckboost | B58: =B37 -> 0.1607148735 | C58: lower edge of BUCK-BOOST
B59: BUCK | C59: BOOST
A60: Lf_Vinmin | B60: =(VIN_min-Vout)*Don_Vinmin/(Fsw*Iout*0.3) -> -8.888888889e-07 | C60: =VIN_min/(Iin_Vinmin*0.3*Fsw)*(1-VIN_min/Vout) -> 1.125925926e-06 | D60: H | E60: Calculated inductance for 30% ripple at VIN(min)
A61: Lf_Vinnom | B61: =(VIN_nom-Vout)*Don_Vinnom/(Fsw*Iout*0.4) -> 4.5e-06 | C61: =VIN_nom/(Iin_Vinnom*0.4*Fsw)*(1-VIN_nom/Vout) -> -0.0002736 | D61: H | E61: Calculated inductance for 40% ripple at VIN(nom) | I61: 1
A62: Lf_Vinmax | B62: =(VIN_max-Vout)*Don_Vinmax/(Fsw*Iout*0.6) -> 3.127272727e-06 | C62: =VIN_max/(Iin_Vinmax*0.6*Fsw)*(1-VIN_max/Vout) -> -0.0002860445602 | D62: H | E62: Calculated inductance for 60% ripple at VIN(max) | K62: Joerg's Calculation | R62: LM5177
K63: Labsmin | L63: =IF(Device<>"LM51772",Rs/8000*1000000,Rs*125/Fsw*1000000) -> 0.125 | M63: uH | N63: Labsmax | O63: =IF(Device<>"LM51772",Rs/100*1000000,Rs*5000/Fsw*1000000) -> 10 | P63: uH
A64: L_Vinmin | B64: =MAX(IF(VIN_min>Vout,B60,C60),O64*0.000001) -> 1.125925926e-06 | C64: H | D64: =IF(VIN_min>Vout, "BUCK", "BOOST") -> BOOST | E64: Calculated inductance for 30% ripple at VIN(min) | K64: Lbuck | L64: =(VIN_max-Vout)*Vout/(0.4*Iout*Fsw*VIN_max)*1000000 -> 4.690909091 | M64: uH | N64: Lmin | O64: =MAX(10*Vout*Rs/Fsw*1000000,Labsmin) -> 0.6 | P64: uH
A65: L_Vinnom | B65: =IF(VIN_nom>Vout, B61,C61) -> 4.5e-06 | C65: H | D65: =IF(VIN_nom>Vout, "BUCK", "BOOST") -> BUCK | E65: Calculated inductance for 40% ripple at VIN(nom) | K65: Lboost | L65: =(Vout-VIN_min)*VIN_min^2/(0.3*Iout*Fsw*Vout^2)*1000000 -> 1.185185185 | M65: uH | N65: Lmax | O65: =MIN(Rs*35*Vout/(Fsw*1)*1000000,Labsmax) -> 2.1 | P65: uH
A66: L_Vinmax | B66: =MIN(IF(VIN_max>Vout,B62,C62),O65*0.000001) -> 2.1e-06 | C66: H | D66: =IF(VIN_max>Vout, "BUCK", "BOOST") -> BUCK | E66: Calculated inductance for 60% ripple at VIN(max)
K67: L_avg | L67: =(MAX(MIN(AVERAGE(L64:L65),O65),O64)) -> 2.1
A68: Lopt | B68: =AVERAGE(B64,B65,B66) -> 2.575308642e-06 | C68: H | D68: average of calculated inductances at VIN(min), VIN(max) and VIN(nom) | K68: L_min | L68: =(MAX(MIN(MIN(L64:L65),O65),O64)) -> 1.185185185
A69: Lmin | B69: =O64 -> 0.6 | C69: µH
A70: Lmax | B70: =O65 -> 2.1 | C70: µH
A72: Lf | B72: ='Design Converter'!E16/1000000 -> 3.3e-06 | C72: H | E72: Chosen inductance | I72: 2
A73: Rdcr | B73: ='Design Converter'!E17/1000 -> 0.0032 | C73: W | E73: Chosen inductor DCR | I73: 1
A75: Don2 | B75: =(Vout+Iout*(Rdcr+Rs))/(Vin+Iout*Rs) -> 0.2520562207 | I75: 2
A76: Doff2 | B76: =1-_Don2 -> 0.7479437793 | I76: 2
A78: Don_Vinmin_2 | B78: =IF(VIN_min>Vout, (Vout+Iout*(Rdcr+Rs))/(VIN_min+Iout*Rs), (Vout-VIN_min+Iin_Vinmin*(Rdcr))/(Vout-Iin_Vinmin*Rs)) -> 0.3449944994 | C78: =IF(VIN_min>Vout, "BUCK", "BOOST") -> BOOST | E78: Duty cycles adjusted for DCR and shunt voltage drops | I78: 2 | J78: Vijay's simplification | L78: =(1-VIN_min*90%/Vout) -> 0.4
A79: Don_Vinnom_2 | B79: =IF(VIN_nom>Vout, (Vout+Iout*(Rdcr+Rs))/(VIN_nom+Iout*Rs), (Vout-VIN_nom+Iin_Vinnom*(Rdcr))/(Vout-Iin_Vinnom*Rs)) -> 0.2520562207 | C79: =IF(VIN_nom>Vout, "BUCK", "BOOST") -> BUCK | E79: need to include RDS(on) later | R79: LM51772
A80: Don_Vinmax_2 | B80: =IF(VIN_max>Vout, (Vout+Iout*(Rdcr+Rs))/(VIN_max+Iout*Rs), (Vout-VIN_max+Iin_Vinmax*(Rdcr))/(Vout-Iin_Vinmax*Rs)) -> 0.2199909132 | C80: =IF(VIN_max>Vout, "BUCK", "BOOST") -> BUCK
A82: Vripple1 | B82: ='Design Converter'!E38/1000 -> 0.36 | C82: V | E82: Output voltage ripple spec(pk-pk) | I82: 1
A84: Iripple_Vinmin | B84: =IF(VIN_min>Vout, (VIN_min-Vout)*Don_Vinmin_2/(Fsw*Lf),VIN_min*Don_Vinmin_2/(Lf*Fsw)) -> 4.181751508 | C84: =(VIN_min-Vout)*Don_Vinmin_2/(Fsw*Lf) -> -2.090875754 | D84: A | E84: =IF(VIN_min>Vout, "BUCK", "BOOST") -> BOOST | H84: =VIN_min*Don_Vinmin_2/(Lopt*Fsw) -> 5.358495581
A85: Iripple_Vinnom | B85: =IF(VIN_nom>Vout, (VIN_nom-Vout)*Don_Vinnom_2/(Fsw*Lf),VIN_nom*Don_Vinnom_2/(Lf*Fsw)) -> 13.74852113 | C85: =(VIN_nom-Vout)*Don_Vinnom_2/(Fsw*Lf) -> 13.74852113 | D85: A | E85: =IF(VIN_nom>Vout, "BUCK", "BOOST") -> BUCK
A86: Iripple_Vinmax | B86: =IF(VIN_max>Vout, (VIN_max-Vout)*Don_Vinmax_2/(Fsw*Lf),VIN_max*Don_Vinmax_2/(Lf*Fsw)) -> 14.33274132 | C86: =(VIN_max-Vout)*Don_Vinmax_2/(Fsw*Lf) -> 14.33274132 | D86: A | E86: =IF(VIN_max>Vout, "BUCK", "BOOST") -> BUCK
A87: Iripple_edgebuckboost | B87: =VIN_edgebuckboost*Don_buckboost/(Lf*Fsw) -> 2.452465508 | D87: A | E87: BUCK-BOOST
A89: Ishunt_rms_Vinmin | B89: =IF(VIN_min>Vout, SQRT(1-Don_Vinmin_2)*SQRT(Iout^2+(Iripple_Vinmin^2)/12), SQRT(Don_Vinmin_2)*SQRT(Iin_Vinmin^2+(Iripple_Vinmin^2)/12)) -> 23.19619421 | C89: A | E89: =SQRT(1-Don_Vinmin_2)*SQRT(Iout^2+(Iripple_Vinmin^2)/12) -> 20.25667661 | F89: =SQRT(Don_Vinmin_2)*SQRT(Iout^2+(Iripple_Vinmin^2)/12) -> 14.70116685
A90: Ishunt_rms_Vinnom | B90: =IF(VIN_nom>Vout, SQRT(1-Don_Vinnom_2)*SQRT(Iout^2+(Iripple_Vinnom^2)/12), SQRT(Don_Vinnom_2)*SQRT(Iin_Vinnom^2+(Iripple_Vinnom^2)/12)) -> 21.89169563 | C90: A | E90: =SQRT(1-Don_Vinnom_2)*SQRT(Iout^2+(Iripple_Vinnom^2)/12) -> 21.89169563 | F90: =SQRT(Don_Vinnom_2)*SQRT(Iout^2+(Iripple_Vinnom^2)/12) -> 12.70848071
A91: Ishunt_rms_Vinmax | B91: =IF(VIN_max>Vout, SQRT(1-Don_Vinmax_2)*SQRT(Iout^2+(Iripple_Vinmax^2)/12), SQRT(Don_Vinmax_2)*SQRT(Iin_Vinmax^2+(Iripple_Vinmax^2)/12)) -> 22.37987088 | C91: A | E91: =SQRT(1-Don_Vinmax_2)*SQRT(Iout^2+(Iripple_Vinmax^2)/12) -> 22.37987088 | F91: =SQRT(Don_Vinmax_2)*SQRT(Iout^2+(Iripple_Vinmax^2)/12) -> 11.88529914
A92: Max shunt power loss at full load | B92: =MAX(B89,B91)^2*Rs -> 0.5380634258 | C92: W | D92: =IF(B91>B89, "BUCK", "BOOST") -> BOOST
A94: Max inductor ripple current | B94: =MAX(B84:B86) -> 14.33274132 | C94: A
F95: Ripple I | G95: Iin
A96: % Ripple Current | B96: =IF(VIN_min>Vout, B84/Iout, B84/Iin_Vinmin) -> 0.1059377049 | C96: =IF(VIN_min>Vout, "BUCK", "BOOST") -> BOOST | F96: =B84 -> 4.181751508 | G96: =Iin_Vinmin -> 39.47368421
B97: =IF(VIN_nom>Vout, B85/Iout, B85/Iin_Vinnom) -> 0.5499408452 | C97: =IF(VIN_nom>Vout, "BUCK", "BOOST") -> BUCK | F97: =B85 -> 13.74852113 | G97: =Iin_Vinnom -> 6.578947368
B98: =IF(VIN_max>Vout, B86/Iout, B86/Iin_Vinmax) -> 0.5733096526 | C98: =IF(VIN_max>Vout, "BUCK", "BOOST") -> BUCK | F98: =B86 -> 14.33274132 | G98: =Iin_Vinmax -> 5.741626794
A100: Temp | B100: 100
A101: DCR at hot | B101: =Rdcr*(1+0.0039*(B100-25)) -> 0.004136 | C101: W
A104: Step 3: Sense Resistors, Slope Comp, Current Limit
A106: Ilimit_DC | B106: ='Design Converter'!E26 -> 25 | C106: A | E106: Chosen OCP level - based on output current | K106: At Iout = Ilimit_DC: | N106: Shunt
K107: I_valley BUCK | L107: I_peak BOOST
A108: Ilimit_inductor_Vinmin | B108: =IF(VIN_min>Vout, Ilimit_DC-Iripple_Vinmin/2, Ilimit_DC/(1-Don_Vinmin_2)+Iripple_Vinmin/2) -> 40.25849416 | C108: A | D108: =IF(VIN_min>Vout, "BUCK", "BOOST") -> BOOST | E108: Vijay's simplication to match datasheet calculation. | K108: =Ilimit_DC-Iripple_Vinmin/2 -> 22.90912425 | L108: =Ilimit_DC/(1-Don_Vinmin_2)+Iripple_Vinmin/2 -> 40.25849416 | M108: =IF(VIN_min>Vout, "BUCK", "BOOST") -> BOOST | N108: =IF(VIN_min>Vout, Buck_CS_threshold/K108, Boost_CS_Threshold/L108) -> 0.001241973925 | P108: =Boost_CS_Threshold/L108 -> 0.001241973925
A109: Ilimit_inductor_Vinnom | B109: =IF(VIN_nom>Vout, Ilimit_DC-Iripple_Vinnom/2, Ilimit_DC/(1-Don_Vinnom_2)+Iripple_Vinnom/2) -> 18.12573943 | C109: A | D109: =IF(VIN_nom>Vout, "BUCK", "BOOST") -> BUCK | E109: or | K109: =Ilimit_DC-Iripple_Vinnom/2 -> 18.12573943 | L109: =Ilimit_DC/(1-Don_Vinnom_2)+Iripple_Vinnom/2 -> 40.29923273 | M109: =IF(VIN_nom>Vout, "BUCK", "BOOST") -> BUCK | N109: =IF(VIN_nom>Vout, Buck_CS_threshold/K109, Boost_CS_Threshold/L109) -> 0.002758508152 | P109: =Boost_CS_Threshold/L109 -> 0.001240718411
A110: Ilimit_inductor_Vinmax | B110: =IF(VIN_max>Vout, Ilimit_DC-Iripple_Vinmax/2, Ilimit_DC/(1-Don_Vinmax_2)+Iripple_Vinmax/2) -> 17.83362934 | C110: A | D110: =IF(VIN_max>Vout, "BUCK", "BOOST") -> BUCK | E110: Peak inductor current at current limit inception (if operating in boost) | K110: =Ilimit_DC-Iripple_Vinmax/2 -> 17.83362934 | L110: =Ilimit_DC/(1-Don_Vinmax_2)+Iripple_Vinmax/2 -> 39.21727933 | M110: =IF(VIN_max>Vout, "BUCK", "BOOST") -> BUCK | N110: =IF(VIN_max>Vout, Buck_CS_threshold/K110, Boost_CS_Threshold/L110) -> 0.00280369178 | P110: =Boost_CS_Threshold/L110 -> 0.001274948208
A111: Ilimit_inductor_buckboost | B111: =Ilimit_DC/(1-Don_buckboost)+Iripple_edgebuckboost/2 -> 31.01348766 | C111: A | D111: edge of buck-boost
A113: Buck CS threshold_min | B113: 0.045 | C113: V
A114: Buck CS threshold | B114: 0.05 | C114: V | E114: Pos and neg. is identical - otherwise take lower value
A115: Buck CS threshold_max | B115: 0.055 | C115: V | E115: Identical for Buck and Boost
A117: Boost CS Threshold_min | B117: 0.045 | C117: V
A118: Boost CS Threshold | B118: 0.05 | C118: V | E118: Pos and neg. is identical - otherwise take lower value
A119: Boost CS Threshold_max | B119: 0.055 | C119: V | E119: Identical for Buck and Boost
A121: Assume we'd like to achieve current limit particularly at VIN(min) and boost side of buck-boost region; accept inevitable variation over line thereafter
A122: Shunt required to get OCP at VIN(min) | B122: =IF(VIN_min>Vout,Buck_CS_threshold/B108, Boost_CS_Threshold/B108) -> 0.001241973925 | C122: W | D122: =IF(VIN_min>Vout, "BUCK", "BOOST") -> BOOST
A123: Shunt required to get OCP at VIN(nom) | B123: =IF(VIN_nom>Vout,Buck_CS_threshold/B109, Boost_CS_Threshold/B109) -> 0.002758508152 | C123: W | D123: =IF(VIN_nom>Vout, "BUCK", "BOOST") -> BUCK
A124: Shunt required to get OCP at VIN(max) | B124: =IF(VIN_max>Vout,Buck_CS_threshold/B110, Boost_CS_Threshold/B110) -> 0.00280369178 | C124: W | D124: =IF(VIN_max>Vout, "BUCK", "BOOST") -> BUCK
A125: Shunt required to get OCP at VIN(edge-bb) | B125: =IF(VIN_min<VIN_edgebuckboost,Buck_CS_threshold/B111, 10) -> 0.00161220178 | C125: W | D125: Edge of B-B
A127: Rs_ideal | B127: =MIN(B122:B124) -> 0.001241973925 | C127: W | E127: Ideal Rs for the required OCP -- based on 80mV or 160mV CL threshold
A128: Rs | B128: ='Design Converter'!E28/1000 -> 0.001 | C128: W | E128: Selected (starndard value) current limit sense resistor
A130: BOOST current limit - peak | B130: =Boost_CS_Threshold/Rs -> 50 | C130: A | E130: Peak inductor current limit in BOOST
A131: BUCK current limit - valley | B131: =Buck_CS_threshold/Rs -> 50 | C131: A | E131: Valley inductor current limit in BUCK
A133: Iout_OCP_Vinmin | B133: =IF(VIN_min>Vout,Buck_CS_threshold/Rs+Iripple_Vinmin/2, (Boost_CS_Threshold/Rs-Iripple_Vinmin/2)*(1-Don_Vinmin_2)) -> 31.38073991 | C133: A | D133: =IF(VIN_min>Vout, "BUCK", "BOOST") -> BOOST | E133: Current limit setpoints (i.e. IOUT) after standard components are selected
A134: Iout_OCP_Vinnom | B134: =IF(VIN_nom>Vout,Buck_CS_threshold/Rs+Iripple_Vinnom/2, IF(VIN_nom<VIN_edgebuckboost,(Boost_CS_Threshold/Rs-Iripple_Vinnom/2)*(1-Don_Vinnom_2),(Buck_CS_threshold/Rs-Iripple_Vinnom/2)*(1-Don_Vinnom_2))) -> 56.87426057 | C134: A | D134: =IF(VIN_nom>Vout,"BUCK",IF(VIN_nom<VIN_edgebuckboost,"BOOST","BUCK-BOOST")) -> BUCK
A135: Iout_OCP_Vinmax | B135: =IF(VIN_max>Vout, Buck_CS_threshold/Rs+Iripple_Vinmax/2, (Boost_CS_Threshold/Rs-Iripple_Vinmax/2)*(1-Don_Vinmax_2)) -> 57.16637066 | C135: A | D135: =IF(VIN_max>Vout, "BUCK", "BOOST") -> BUCK
A136: Iout_edgebuckboost | B136: =(Buck_CS_threshold/Rs-Iripple_edgebuckboost/2)*(1-Don_buckboost) -> 40.93509741 | C136: A | D136: lower edge of buck-boost window | K136: RMS current in Rs | M136: Power diss in Rs
A138: ILpeak_OCP_Vinmin | B138: =IF(VIN_min>Vout, Buck_CS_threshold/Rs+Iripple_Vinmin, Boost_CS_Threshold/Rs) -> 50 | C138: A | D138: =IF(VIN_min>Vout, "BUCK", "BOOST") -> BOOST | E138: Peak inductor currents in OCP | H138: =SQRT(Don_Vinmin_2)*SQRT(Iin_Vinmin^2+(Iripple_Vinmin^2)/12) -> 23.19619421 | K138: =IF(VIN_min>Vout, SQRT(1-Don_Vinmin_2)*SQRT(Iout_OCP_Vinmin^2+(Iripple_Vinmin^2)/12), SQRT(Don_Vinmin_2)*SQRT(Iin_Vinmin^2+(Iripple_Vinmin^2)/12)) -> 23.19619421 | L138: A | M138: =K138^2*Rs -> 0.5380634258 | N138: W
A139: ILpeak_OCP_Vinnom | B139: =IF(VIN_nom>Vout, Buck_CS_threshold/Rs+Iripple_Vinnom, IF(VIN_nom<VIN_edgebuckboost, Boost_CS_Threshold/Rs, Buck_CS_threshold/Rs)) -> 63.74852113 | C139: A | D139: =IF(VIN_nom>Vout,"BUCK",IF(VIN_nom<VIN_edgebuckboost,"BOOST","BUCK-BOOST")) -> BUCK | H139: =SQRT(1-Don_Vinnom_2)*SQRT(Iout_OCP_Vinnom^2+(Iripple_Vinnom^2)/12) -> 49.30660597 | K139: =IF(VIN_nom>Vout, SQRT(1-Don_Vinnom_2)*SQRT(Iout_OCP_Vinnom^2+(Iripple_Vinnom^2)/12), SQRT(Don_Vinnom_2)*SQRT(Iin_Vinnom^2+(Iripple_Vinnom^2)/12)) -> 49.30660597 | L139: A | M139: =K139^2*Rs -> 2.431141392 | N139: W
A140: ILpeak_OCP_Vinmax | B140: =IF(VIN_max>Vout, Buck_CS_threshold/Rs+Iripple_Vinmax, Boost_CS_Threshold/Rs) -> 64.33274132 | C140: A | D140: =IF(VIN_max>Vout, "BUCK", "BOOST") -> BUCK | H140: =SQRT(1-Don_Vinmax_2)*SQRT(Iout_OCP_Vinmax^2+(Iripple_Vinmax^2)/12) -> 50.62033095 | K140: =IF(VIN_max>Vout, SQRT(1-Don_Vinmax_2)*SQRT(Iout_OCP_Vinmax^2+(Iripple_Vinmax^2)/12), SQRT(Don_Vinmax_2)*SQRT(Iin_Vinmax^2+(Iripple_Vinmax^2)/12)) -> 50.62033095 | L140: A | M140: =K140^2*Rs -> 2.562417906 | N140: W
A141: Worst case peak inductor current | B141: =MAX(B138:B140) -> 64.33274132 | C141: A | K141: Vijay verified that this calculation (Vinmax) are correct for OCP.
A143: IL_peak_OCP | B143: =MAX(B138:B140) -> 64.33274132 | C143: A | E143: Peak inductor current over the full input range
A145: Rslope_ideal | B145: =Lf/Rs*50*10^6 -> 165000 | C145: W | E145: using 50MV/As from Datasheet
A146: Rslope_recommended | B146: ='Standard Value Calculator'!O15 -> 165000 | C146: W | E146: Standard size based on Rsideal slope Resistor
A147: Rslope_selected | B147: ='Design Converter'!E32*1000 -> 165000 | C147: W | E147: Selected SLOPE Resistor
A149: Rslope calc LM51772 | B149: =Rs/Lf/Fsw*625 -> 0.946969697
A150: Rslope select LM51772 | B150: =INDEX(P155:P170,MATCH(B149,P155:P170,1)+1) -> 1
A151: Rslope setting for CFG1 in LM51772 | B151: =INDEX(O155:O170,MATCH(B149,P155:P170)+1)+1 -> 8
A152: Rslope_equ_772 | B152: =625*50000000/(Fsw*B150) -> 156250 | C152: W
A153: Islope_fixed | B153: =Isc_const -> 0 | C153: A | K153: BUCK | L153: BOOST | O153: LM51772 Slope table
A154: Rslope | B154: =IF(Device="LM51772",B152,B147) -> 165000 | C154: W | K154: =B155*(1-Don_Vinmin_2)/Fsw -> 0.0595459546 | L154: =B155*Don_Vinmin_2/Fsw -> 0.03136313631 | M154: =IF(VIN_min>Vout, "BUCK", "BOOST") -> BOOST | O154: SEL_SLOPE | P154: Factor
A155: SLOPE comp dv/dt = I_slope_total/Cslope | B155: =(ABS((VIN_min-Vout))*gm_slopecomp/Cslope + Islope_fixed)/(Rslope) -> 18181.81818 | C155: V/s | E155: at VIN_min | K155: =B156*(1-Don_Vinnom_2)/Fsw -> 0.6119540012 | L155: =B156*Don_Vinnom_2/Fsw -> 0.206227817 | M155: =IF(VIN_nom>Vout, "BUCK", "BOOST") -> BUCK | O155: 0 | P155: =0.125 + 0.125 *O155 -> 0.125
A156: SLOPE comp dv/dt = I_slope_total/Cslope | B156: =(ABS((VIN_nom-Vout))*gm_slopecomp/Cslope + Islope_fixed)/(Rslope) -> 163636.3636 | C156: V/s | E156: at VIN_nom | K156: =B157*(1-Don_Vinmax_2)/Fsw -> 0.7622816075 | L156: =B157*Don_Vinmax_2/Fsw -> 0.2149911197 | M156: =IF(VIN_max>Vout, "BUCK", "BOOST") -> BUCK | O156: 1 | P156: =0.125 + 0.125 *O156 -> 0.25
A157: SLOPE comp dv/dt = I_slope_total/Cslope | B157: =(ABS((VIN_max-Vout))*gm_slopecomp/Cslope + Islope_fixed)/(Rslope) -> 195454.5455 | C157: V/s | E157: at VIN_max | O157: 2 | P157: =0.125 + 0.125 *O157 -> 0.375
O158: 3 | P158: 0.5
A159: DV_SLOPEcomp at Vinmin | B159: =IF(D159="BUCK", K154,L154) -> 0.03136313631 | C159: V | D159: =IF(VIN_min>Vout, "BUCK", "BOOST") -> BOOST | E159: at VIN_min | O159: 4 | P159: 0.625
A160: DV_SLOPEcomp at Vinnom | B160: =IF(D160="BUCK", K155,L155) -> 0.6119540012 | C160: V | D160: =IF(VIN_nom>Vout,"BUCK",IF(VIN_nom<VIN_edgebuckboost,"BOOST","BUCK-BOOST")) -> BUCK | E160: at VIN_nom | O160: 5 | P160: 0.75
A161: DV_SLOPEcomp at Vinmax | B161: =IF(D161="BUCK", K156,L156) -> 0.7622816075 | C161: V | D161: =IF(VIN_max>Vout, "BUCK", "BOOST") -> BUCK | E161: at VIN_max | O161: 6 | P161: 0.875
O162: 7 | P162: 1
O163: 8 | P163: =1 + 4 *P155 -> 1.5
O164: 9 | P164: =1 + 4 *P156 -> 2
O165: 10 | P165: 2.5
O166: 11 | P166: 3
O167: 12 | P167: 3.5
O168: 13 | P168: 4
A169: Step 4: Output Capacitor | O169: 14 | P169: 4.5
A170: Icoutrms_VINmin | B170: =IF(D170="BUCK", Iripple_Vinmin/SQRT(12), Iout*SQRT((Vout-VIN_min)/VIN_min)) -> 17.67766953 | C170: A | D170: =IF(VIN_min>Vout, "BUCK", "BOOST") -> BOOST | E170: Output Cap RMS current | O170: 15 | P170: 5
A171: Icoutrms_VINnom | B171: =IF(D171="BUCK", Iripple_Vinnom/SQRT(12), Iout*SQRT((Vout-VIN_nom)/VIN_nom)) -> 3.968856188 | C171: A | D171: =IF(VIN_nom>Vout,"BUCK",IF(VIN_nom<VIN_edgebuckboost,"BOOST","BUCK-BOOST")) -> BUCK
A172: Icoutrms_VINmax | B172: =IF(D172="BUCK", Iripple_Vinmax/SQRT(12), Iout*SQRT((Vout-VIN_max)/VIN_max)) -> 4.137506028 | C172: A | D172: =IF(VIN_max>Vout, "BUCK", "BOOST") -> BUCK
A173: Max Cout rms current | B173: =MAX(B170:B172) -> 17.67766953 | C173: A
A175: Output Ripple Spec (pk-pk) | B175: =Vripple1*1000 -> 360 | C175: mV | E175: Vout ripple spec at Vin(nom)
A177: Coutmin | B177: =IF(VIN_min>Vout, Iripple_Vinmin/(Fsw*8*Vripple1), Iout*Don_Vinmin_2/(Vripple1*Fsw)) -> 0.0001197897568 | C177: F | E177: Minimum Output Capacitnace | H177: =Vripple2 -> 0.1252828408 | I177: 1 | K177: =Coutmin -> 0.0001197897568
A178: Reported Coutmin | B178: =IF(Coutmin*1000000<H178, H178,Coutmin*1000000) -> 119.7897568 | C178: uF | E178: Limit Min. output Cap | H178: 0.1 | K178: =Coutmin*1000000 -> 119.7897568
A179: Cout | B179: ='Design Converter'!E40/1000000 -> 0.00055 | C179: F | E179: Chosen Output Capacitance | I179: 1
A180: Resrmax | B180: =IF(VIN_min>Vout, SQRT((Vripple1/Iripple_Vinmin)^2-(1/(Fsw*Cout*8))^2), (Vripple1-Iout*Don_Vinmin_2/(Fsw*Cout))/Iout) -> 0.01126368637 | C180: W | E180: Max ESR before ripple exceeds Vripple1 | I180: 1
A182: Reported Cout ESR max | B182: =IF(OR(CoutEsrMax>0.3, CoutEsrMax<0, (ISERROR(CoutEsrMax))), "N/A", CoutEsrMax*1000) -> 11.26368637 | C182: mΩ
A183: CoutEsr | B183: ='Design Converter'!E42/1000 -> 0.001875 | C183: W | E183: Chosen ESR | I183: 1 | K183: =ISERROR(CoutEsrMax) -> FALSE | L183: =ISERROR(B182) -> FALSE
A184: Vripple | B184: =IF(VIN_min>Vout, Iripple_Vinmax*SQRT(CoutEsr^2+(1/(8*Fsw*Cout))^2), CoutEsr*Iout+Iout*Don_Vinmin_2/(Fsw*Cout)) -> 0.1252828408 | C184: Vp-p | L184: =OR(CoutEsrMax>0.3,CoutEsrMax<0) -> FALSE
K185: =OR(TRUE, FALSE, TRUE) -> TRUE
A186: Step 5: Input Capacitor
A188: Icinrms_VINmin | B188: =IF(D188="BUCK", Iout*SQRT(Don_Vinmin_2*(1-Don_Vinmax_2)), Iripple_Vinmin/SQRT(12)) -> 1.20716768 | C188: A | D188: =IF(VIN_min>Vout, "BUCK", "BOOST") -> BOOST | F188: =Iripple_Vinmin/SQRT(12) -> 1.20716768 | G188: =Iout*SQRT(Don_Vinmax_2*(1-Don_Vinmax_2)) -> 10.35600404 | H188: =Iout*0.25 -> 6.25
A189: Icinrms_VINnom | B189: =IF(D189="BUCK", Iout*SQRT(Don_Vinnom_2*(1-Don_Vinnom_2)), Iripple_Vinnom/SQRT(12)) -> 10.85483424 | C189: A | D189: =IF(VIN_nom>Vout,"BUCK",IF(VIN_nom<VIN_edgebuckboost,"BOOST","BUCK-BOOST")) -> BUCK
A190: Icinrms_VINmiax | B190: =IF(D190="BUCK", Iout*SQRT(Don_Vinmax_2*(1-Don_Vinmax_2)), Iripple_Vinmax/SQRT(12)) -> 10.35600404 | C190: A | D190: =IF(VIN_max>Vout, "BUCK", "BOOST") -> BUCK
A191: Max Cin rms current | B191: =MAX(B188:B190) -> 10.85483424 | C191: A | D191: …report this
A193: Vinripple1 | B193: ='Design Converter'!E47/1000 -> 1.44 | C193: Vp-p | D193: Input voltage ripple spec (pk-pk)
A195: Cinmin_Vinmax | B195: =IF(VIN_max>Vout, Iout*Don_Vinmax_2*(1-Don_Vinmax_2)/(Vinripple1*Fsw), Iripple_Vinmax/(Fsw*8*Vinripple1)) -> 1.489539161e-05 | C195: F | D195: Calculate cap at Vinmax and 50% duty cycle (Vin = 2*Vout) | K195: =Iripple_Vinnom/(Fsw*8*Vinripple1) -> 5.967240074e-06
A196: Cinmin_50%D | B196: =IF(VIN_max>Vout, Iout*0.5*(1-0.5)/(Vinripple1*Fsw), Iripple_Vinmax/(Fsw*8*Vinripple1)) -> 2.170138889e-05 | D196: Buck 50% typically worst case
A197: Cinmin | B197: =IF(VIN_max<2*Vout, B195,B196) -> 2.170138889e-05
A198: Reported Cinmin | B198: =IF(Cinmin*1000000<10, 10,Cinmin*1000000) -> 21.70138889 | C198: uF | D198: …report this
A199: Cin | B199: ='Design Converter'!E49/1000000 -> 2.82e-05 | C199: F | D199: Input capacitance
A200: CinEsrMax_Vinmax | B200: =IF(VIN_max>Vout, -(Iout*Don_Vinmax_2*(1-Don_Vinmax_2)/(Cin*Fsw)-Vinripple1)/(Iout+Iripple_Vinmax/2), SQRT((Vinripple1/Iripple_Vinmax)^2-(1/(Fsw*Cin*8))^2)) -> 0.02112094851 | C200: W
A201: CinEsrMax_50%D | B201: =IF(VIN_max>Vout, -(Iout*0.5*(1-0.5)/(Cin*Fsw)-Vinripple1)/(Iout+Iripple_Vinmax/2), SQRT((Vinripple1/Iripple_Vinmax)^2-(1/(Fsw*Cin*8))^2)) -> 0.01031648784 | C201: W | D201: Calculate ESR at Vinmax and 50% duty cycle (Vin = 2*Vout)
A202: CinEsrMax | B202: =IF(VIN_max<2*Vout, B200,B201) -> 0.01031648784 | C202: W
A203: Reported Cin ESR max | B203: =IF(OR(CinEsrMax>0.3, CinEsrMax<0), "N/A",CinEsrMax*1000) -> 10.31648784 | C203: mΩ | D203: …report this
A204: RCinEsr | B204: ='Design Converter'!E51/1000 -> 0.002 | C204: W | D204: Input capacitance series resistance (ESR)
K205: =CinEsrMax -> 0.01031648784
A206: Vinripple2_Vinmax | B206: =IF(VIN_max>Vout, Iout*Don_Vinmax_2*(1-Don_Vinmax_2)/(Cin*Fsw)+(Iout +Iripple_Vinmax/2)*RCinEsr, Iripple_Vinmax*SQRT(RCinEsr^2+(1/(8*Fsw*Cin))^2)) -> 0.824948483 | C206: Vp-p
A207: Vinripple2_50%D | B207: =IF(VIN_max>Vout, Iout*0.5*(1-0.5)/(Cin*Fsw)+(Iout +Iripple_Vinmax/2)*RCinEsr, Iripple_Vinmax*SQRT(RCinEsr^2+(1/(8*Fsw*Cin))^2)) -> 1.17248877 | C207: Vp-p | D207: Calculate ripple at Vinmax and 50% duty cycle (Vin = 2*Vout)
A208: Vinripple2 | B208: =IF(VIN_max<2*Vout, B206,B207) -> 1.17248877 | C208: Vp-p | D208: …report highest of these
B210: =Iout*Don_Vinmax_2*(1-Don_Vinmax_2)/(Cin*Fsw) -> 0.7606157417 | C210: Vp-p
A212: Step 6a: Soft Start
A213: Tss | B213: ='Design Converter'!E57/1000 -> 0.0015 | C213: s | D213: Soft-start time
A214: Iss | B214: 1e-05 | C214: A | D214: Load cap current during soft start
A215: Css | B215: =Iss*Tss/Vref -> 1.5e-08 | C215: F
A216: Css_u | B216: ='Standard Value Calculator'!B4 -> 1.5e-08 | C216: F
A218: Step 6b: Other Components - UVLO, Dither, MODE
A220: VINUVLO_ON | B220: ='Design Converter'!E62 -> 7.8 | C220: V
A221: VINUVLO_OFF | B221: ='Design Converter'!E63 -> 7.4 | C221: V
A222: RUV1 | B222: =(VINuvlo_on-VINuvlo_off)/Iuvlo1 -> 80 | C222: kΩ | E222: ='Standard Value Calculator'!O16 -> 80.6 | F222: kΩ | G222: =IF(Ruvlo1<0,"N/A",E222) -> 80.6 | H222: =IF(Ruvlo1<0,"N/A",E222&"kΩ") -> 80.6kΩ
A223: RUV2 | B223: =Ruvlo1/(('Design Converter'!E62-Vuvlo_hys)/Vuvlo_off-1) -> 15.09202454 | C223: kΩ | E223: ='Standard Value Calculator'!O17 -> 15 | F223: kΩ | G223: =IF(G222="N/A","N/A",E223) -> 15 | H223: =IF(H222="N/A","N/A",E223&"kΩ") -> 15kΩ
A225: VINUVLO_ON_ACTUAL | B225: =(E222+E223)/E223*Vuvlo_on+Iuvlo1*E222 -> 8.560866667
A226: VINUVLO_OFF_ACTUAL | B226: =(E222+E223)/E223*Vuvlo_off -> 7.8392
A228: Rising UVLO/EN Threshold | B228: 1.28 | C228: V
A229: Falling UVLO/EN Threshold | B229: 1.23 | C229: V
A230: Voltage Hysteresis | B230: =B228-B229 -> 0.05 | C230: V
A231: Rising UVLO/EN Current | B231: 0.005 | C231: mA
A232: Falling UVLO/EN Current | C232: mA
A233: UVLO/EN Current Hysteresis | C233: mA
A235: RPG | B235: 20 | C235: kΩ
A236: RSB | C236: W
A237: Rh | B237: 0 | C237: W
A238: Rmode | C238: W | D238: TBD | E238: Tie to GND or VCC for DCM/CCM, respectively. Use 93.1k or 200k for hiccup in DCM, CCM, respectively.
A245: Step 6c: Current Monitor / Current Limiter
A246: Monitor
A247: IMONLIM_select | B247: ='CFG Setting'!F27-1 -> 1 | E247: 0:off / 1:IMON / 2: ILIM
A248: Imonitor,Max
A249: Required Constant Current Loop Setpoint | B249: ='Design Converter'!E67 -> 25 | C249: A
A250: Current Limit Threshold | B250: 50 | C250: mV | E250: Restored to 50mV as ICTRL went away and the 25mV centering also went away.
... 233 more rows

Sheet Timings (hidden)
A1: DeadTime | B1: 2e-08 | D1: fsw | E1: =Fsw -> 200000
A2: GdrvDelay | B2: 2e-08 | D2: Tsw | E2: =1/E1 -> 5e-06
A3: IL | B3: 1
A4: IlPos | B4: =IF(B3>0,1,0) -> 1
A5: IlNeg | B5: =IF(B3<0,1,0) -> 0
A6: IlDir | B6: =B4-B5 -> 1
A8: Ifsw_2M | B8: 1e-06
A9: Iconst | B9: 1e-06
A10: T12_min | B10: 7.5e-08
A11: T23_min | B11: 7.5e-08
A12: I_T12_max | B12: =0.75/T12_min*Ifsw_2M/2000000*0.2 -> 1e-06
A13: I_T23_max | B13: =0.75/T23_min*Ifsw_2M/2000000*0.2 -> 1e-06
A14: Kgain_12 | B14: =1+4*0.25 -> 2
A15: Kratio_23 | B15: =1-2*0.041666 -> 0.916668
A17: I_T12(FSW) | B17: =MIN(Ifsw_2M/2000000*Fsw*Kgain_12,I_T12_max) -> 2e-07
A18: I_T23(FSW) | B18: =MIN(Ifsw_2M/2000000*Fsw*Kratio_23+Iconst*(1-Kratio_23),I_T23_max) -> 1.749988e-07 | E18: D
A20: T1_to_T2(Fsw) | B20: =0.000000075/I_T12_FSW*0.000001 -> 3.75e-07 | E20: =T1_to_T2_Fsw*Fsw -> 0.075
A21: T2_to_T3(Fsw) | B21: =0.000000075/I_T23_FSW*0.000001 -> 4.285743674e-07 | E21: =T2_to_T3_Fsw*Fsw -> 0.08571487347
A22: T3_to_T4(Fsw) | B22: =T2_to_T3_Fsw -> 4.285743674e-07 | E22: =T3_to_T4_Fsw*Fsw -> 0.08571487347
A23: T1_to_T3(Fsw) | B23: =T1_to_T2_Fsw+T2_to_T3_Fsw -> 8.035743674e-07 | E23: =B23*Fsw -> 0.1607148735
A25: MinT1FallCtrl(Fsw) | B25: =0.2*T1_to_T2_Fsw -> 7.5e-08
A26: MinT1RiseCtrl(Fsw) | B26: =0.2*T1_to_T2_Fsw -> 7.5e-08 | G26: Vin
A28: MinTonBuck(Fsw) | B28: =T3_to_T4_Fsw-IlDir*DeadTime -> 4.085743674e-07 | E28: =MinTonBuck*Fsw -> 0.08171487347 | G28: =Vout/E28 -> 146.8520906
A29: MinToffBuck(Fsw) | B29: =T2_to_T3_Fsw+IlDir*DeadTime -> 4.485743674e-07 | E29: =(E2-MinToffBuck)*Fsw -> 0.9102851265 | G29: =Vout/E29 -> 13.18268271
A30: MaxTonBuck(Fsw) | B30: =1/Fsw-MinToffBuck -> 4.551425633e-06 | E30: =MaxTonBuck*Fsw -> 0.9102851265 | G30: =Vout/E30 -> 13.18268271
A32: MinTonBoost(Fsw) | B32: =T2_to_T3_Fsw-IlDir*DeadTime -> 4.085743674e-07 | E32: =MinTonBoost*Fsw -> 0.08171487347 | G32: =Vout*(1-E32) -> 11.01942152
A33: MinToffBoost(Fsw) | B33: =T1_to_T2_Fsw+IlDir*DeadTime -> 3.95e-07 | E33: =(E2-MinToffBoost)*Fsw -> 0.921 | G33: =Vout*(1-E33) -> 0.948
A34: MaxTonBoost(Fsw) | B34: =1/Fsw-MinToffBoost -> 4.605e-06 | E34: =MaxTonBoost*Fsw -> 0.921 | G34: =Vout*(1-E34) -> 0.948
A35: MaxToffBoost(Fsw) | B35: =1/Fsw-MaxTonBoost -> 3.95e-07 | E35: =MaxToffBoost*Fsw -> 0.079
A36: MinTlRise(Fsw) | B36: =MAX(MAX(MinT1RiseCtrl,IlNeg*GdrvDelay)-IlDir*DeadTime,0) -> 5.5e-08 | E36: =MinTlRise*Fsw -> 0.011
A37: MinTlFall(Fsw) | B37: =MAX(MinT1FallCtrl,IlPos*GdrvDelay) -> 7.5e-08 | E37: =MinTlFall*Fsw -> 0.015
A39: TBubo(Fsw) | B39: =T1_to_T2_Fsw+T2_to_T3_Fsw -> 8.035743674e-07 | E39: =TBubo*Fsw -> 0.1607148735 | G39: =Vout*(1-E39) -> 10.07142152
A40: TonBubo(Fsw) | B40: =1/Fsw-TBubo+0*DeadTime -> 4.196425633e-06 | E40: =TonBubo*Fsw -> 0.8392851265 | G40: =Vout*(1-E40) -> 1.928578482
A41: MaxTlRise(Fsw) | B41: =MAX(TBubo-MinTlFall-IlDir*DeadTime,0) -> 7.085743674e-07 | E41: =MaxTlRise*Fsw -> 0.1417148735
B43: =DeadTime+GdrvDelay -> 4e-08 | E43: =B43*Fsw -> 0.008

Sheet CFG Setting (hidden)
A1: LM5177
A2: CFG
A3: Setting | B3: R_CFG [ | C3: DRSS | D3: HICCUP | E3: USLEEP | F3: IMON_LIMIT | G3: =C3 -> DRSS | H3: =D3 -> HICCUP | I3: =E3 -> USLEEP | J3: =F3 -> IMON_LIMIT
A4: 1 | B4: 0 | C4: 0 | D4: 0 | E4: 0 | F4: 0 | G4: =IF(C4=1,"Enable","Disable") -> Disable | H4: =IF(D4=1,"Enable","Disable") -> Disable | I4: =IF(E4=1,"Enable","Disable") -> Disable | J4: =IF(F4=1,"Enable","Disable") -> Disable | L4: =CONCATENATE(G$3,": ",C4) -> DRSS: 0 | M4: =CONCATENATE(H$3,": ",D4) -> HICCUP: 0 | N4: =CONCATENATE(I$3,": ",E4) -> USLEEP: 0 | O4: =CONCATENATE(J$3,": ",F4) -> IMON_LIMIT: 0 | P4: =CONCATENATE(K$3,": ",G4) -> : Disable | R4: =CONCATENATE(L4," / ",M4," / ",N4," / ",O4) -> DRSS: 0 / HICCUP: 0 / USLEEP: 0 / IMON_LIMIT: 0
A5: 2 | B5: 0.511 | C5: 1 | D5: 0 | E5: 0 | F5: 0 | G5: =IF(C5=1,"Enable","Disable") -> Enable | H5: Disable | I5: Disable | J5: Disable | L5: =CONCATENATE(G$3,": ",C5) -> DRSS: 1 | M5: HICCUP: 0 | N5: USLEEP: 0 | O5: IMON_LIMIT: 0 | P5: : Enable | R5: =CONCATENATE(L5," / ",M5," / ",N5," / ",O5) -> DRSS: 1 / HICCUP: 0 / USLEEP: 0 / IMON_LIMIT: 0
A6: 3 | B6: 1.3 | C6: 0 | D6: 1 | E6: 0 | F6: 0 | G6: Disable | H6: Enable | I6: Disable | J6: Disable | L6: DRSS: 0 | M6: HICCUP: 1 | N6: USLEEP: 0 | O6: IMON_LIMIT: 0 | P6: : Disable | R6: DRSS: 0 / HICCUP: 1 / USLEEP: 0 / IMON_LIMIT: 0
A7: 4 | B7: 1.9 | C7: 1 | D7: 1 | E7: 0 | F7: 0 | G7: Enable | H7: Enable | I7: Disable | J7: Disable | L7: DRSS: 1 | M7: HICCUP: 1 | N7: USLEEP: 0 | O7: IMON_LIMIT: 0 | P7: : Enable | R7: DRSS: 1 / HICCUP: 1 / USLEEP: 0 / IMON_LIMIT: 0
A8: 5 | B8: 2.7 | C8: 0 | D8: 0 | E8: 0 | F8: 1 | G8: Disable | H8: Disable | I8: Disable | J8: Enable | L8: DRSS: 0 | M8: HICCUP: 0 | N8: USLEEP: 0 | O8: IMON_LIMIT: 1 | P8: : Disable | R8: DRSS: 0 / HICCUP: 0 / USLEEP: 0 / IMON_LIMIT: 1
A9: 6 | B9: 3.8 | C9: 1 | D9: 0 | E9: 0 | F9: 1 | G9: Enable | H9: Disable | I9: Disable | J9: Enable | L9: DRSS: 1 | M9: HICCUP: 0 | N9: USLEEP: 0 | O9: IMON_LIMIT: 1 | P9: : Enable | R9: DRSS: 1 / HICCUP: 0 / USLEEP: 0 / IMON_LIMIT: 1
A10: 7 | B10: 5.1 | C10: 0 | D10: 1 | E10: 0 | F10: 1 | G10: Disable | H10: Enable | I10: Disable | J10: Enable | L10: DRSS: 0 | M10: HICCUP: 1 | N10: USLEEP: 0 | O10: IMON_LIMIT: 1 | P10: : Disable | R10: DRSS: 0 / HICCUP: 1 / USLEEP: 0 / IMON_LIMIT: 1
A11: 8 | B11: 6.5 | C11: 1 | D11: 1 | E11: 0 | F11: 1 | G11: Enable | H11: Enable | I11: Disable | J11: Enable | L11: DRSS: 1 | M11: HICCUP: 1 | N11: USLEEP: 0 | O11: IMON_LIMIT: 1 | P11: : Enable | R11: DRSS: 1 / HICCUP: 1 / USLEEP: 0 / IMON_LIMIT: 1
A12: 9 | B12: 8.3 | C12: 0 | D12: 0 | E12: 1 | F12: 0 | G12: Disable | H12: Disable | I12: Enable | J12: Disable | L12: DRSS: 0 | M12: HICCUP: 0 | N12: USLEEP: 1 | O12: IMON_LIMIT: 0 | P12: : Disable | R12: DRSS: 0 / HICCUP: 0 / USLEEP: 1 / IMON_LIMIT: 0
A13: 10 | B13: 10.5 | C13: 1 | D13: 0 | E13: 1 | F13: 0 | G13: Enable | H13: Disable | I13: Enable | J13: Disable | L13: DRSS: 1 | M13: HICCUP: 0 | N13: USLEEP: 1 | O13: IMON_LIMIT: 0 | P13: : Enable | R13: DRSS: 1 / HICCUP: 0 / USLEEP: 1 / IMON_LIMIT: 0
A14: 11 | B14: 13.3 | C14: 0 | D14: 1 | E14: 1 | F14: 0 | G14: Disable | H14: Enable | I14: Enable | J14: Disable | L14: DRSS: 0 | M14: HICCUP: 1 | N14: USLEEP: 1 | O14: IMON_LIMIT: 0 | P14: : Disable | R14: DRSS: 0 / HICCUP: 1 / USLEEP: 1 / IMON_LIMIT: 0
A15: 12 | B15: 16.2 | C15: 1 | D15: 1 | E15: 1 | F15: 0 | G15: Enable | H15: Enable | I15: Enable | J15: Disable | L15: DRSS: 1 | M15: HICCUP: 1 | N15: USLEEP: 1 | O15: IMON_LIMIT: 0 | P15: : Enable | R15: DRSS: 1 / HICCUP: 1 / USLEEP: 1 / IMON_LIMIT: 0
A16: 13 | B16: 20.5 | C16: 0 | D16: 0 | E16: 1 | F16: 1 | G16: Disable | H16: Disable | I16: Enable | J16: Enable | L16: DRSS: 0 | M16: HICCUP: 0 | N16: USLEEP: 1 | O16: IMON_LIMIT: 1 | P16: : Disable | R16: DRSS: 0 / HICCUP: 0 / USLEEP: 1 / IMON_LIMIT: 1
A17: 14 | B17: 24.9 | C17: 1 | D17: 0 | E17: 1 | F17: 1 | G17: Enable | H17: Disable | I17: Enable | J17: Enable | L17: DRSS: 1 | M17: HICCUP: 0 | N17: USLEEP: 1 | O17: IMON_LIMIT: 1 | P17: : Enable | R17: DRSS: 1 / HICCUP: 0 / USLEEP: 1 / IMON_LIMIT: 1
A18: 15 | B18: 30.1 | C18: 0 | D18: 1 | E18: 1 | F18: 1 | G18: Disable | H18: Enable | I18: Enable | J18: Enable | L18: DRSS: 0 | M18: HICCUP: 1 | N18: USLEEP: 1 | O18: IMON_LIMIT: 1 | P18: : Disable | R18: DRSS: 0 / HICCUP: 1 / USLEEP: 1 / IMON_LIMIT: 1
A19: 16 | B19: 36.5 | C19: 1 | D19: 1 | E19: 1 | F19: 1 | G19: Enable | H19: Enable | I19: Enable | J19: Enable | L19: DRSS: 1 | M19: HICCUP: 1 | N19: USLEEP: 1 | O19: IMON_LIMIT: 1 | P19: : Enable | R19: DRSS: 1 / HICCUP: 1 / USLEEP: 1 / IMON_LIMIT: 1
C21: 0 | D21: 1 | E21: 3 | F21: 2
C22: DRSS: off | D22: HICCUP: off | E22: uSleep: off | F22: IMON_LIMIT: off
C23: DRSS: on | D23: HICCUP: on | E23: uSleep: on | F23: IMON: on
F24: ILIMIT: positive
F25: ILIMIT: negative
B27: CFG Setting | C27: 1 | D27: 2 | E27: 2 | F27: 2 | G27: Calc Setting | H27: =CONCATENATE("R_",A2) -> R_CFG | J27: This cell give 1 for disable and 2 for enable
C28: =(C27-1)*2^C21 -> 0 | D28: =(D27-1)*2^D21 -> 2 | E28: =(E27-1)*2^E21 -> 8 | F28: =(IF(F27>2,1,0)*2^F21) -> 0 | G28: =SUM(C28:F28)+1 -> 11 | H28: =INDEX(B4:B19,G28) -> 13.3
A30: LM51772
A31: CFG1
A32: Setting | B32: R_CFG2 [ | C32: Slope Comp. | D32: I2C ADDR LSB
A33: 1 | B33: 0 | C33: n/a | D33: Enabled | F33: =CONCATENATE($C$32,": ",C33) -> Slope Comp.: n/a | L33: =CONCATENATE($C$61,": ",C33) -> EN_SYNC_OUT: n/a | M33: =CONCATENATE(D$61,": ",D33) -> SYNC_IN_FALLING: Enabled | N33: =CONCATENATE(E$61,": ",E33) -> VDET_EN: | O33: =CONCATENATE(F$61,": ",F33) -> PCM_HYST_30: Slope Comp.: n/a | P33: =CONCATENATE(K$3,": ",G33) -> : | R33: =CONCATENATE(L33," / ",M33," / ",N33," / ",O33) -> EN_SYNC_OUT: n/a / SYNC_IN_FALLING: Enabled / VDET_EN: / PCM_HYST_30: Slope Comp.: n/a
A34: 2 | B34: 0.511 | C34: 0.25 | D34: Disabled | F34: =CONCATENATE($C$32,": ",C34) -> Slope Comp.: 0.25 | L34: =CONCATENATE($C$61,": ",C34) -> EN_SYNC_OUT: 0.25 | M34: =CONCATENATE(D$61,": ",D34) -> SYNC_IN_FALLING: Disabled | N34: =CONCATENATE(E$61,": ",E34) -> VDET_EN: | O34: =CONCATENATE(F$61,": ",F34) -> PCM_HYST_30: Slope Comp.: 0.25 | P34: : | R34: =CONCATENATE(L34," / ",M34," / ",N34," / ",O34) -> EN_SYNC_OUT: 0.25 / SYNC_IN_FALLING: Disabled / VDET_EN: / PCM_HYST_30: Slope Comp.: 0.25
A35: 3 | B35: 1.3 | C35: 0.375 | D35: Disabled | F35: Slope Comp.: 0.375 | L35: EN_SYNC_OUT: 0.375 | M35: SYNC_IN_FALLING: Disabled | N35: VDET_EN: | O35: PCM_HYST_30: Slope Comp.: 0.375 | P35: : | R35: EN_SYNC_OUT: 0.375 / SYNC_IN_FALLING: Disabled / VDET_EN: / PCM_HYST_30: Slope Comp.: 0.375
A36: 4 | B36: 1.9 | C36: 0.5 | D36: Disabled | F36: Slope Comp.: 0.5 | L36: EN_SYNC_OUT: 0.5 | M36: SYNC_IN_FALLING: Disabled | N36: VDET_EN: | O36: PCM_HYST_30: Slope Comp.: 0.5 | P36: : | R36: EN_SYNC_OUT: 0.5 / SYNC_IN_FALLING: Disabled / VDET_EN: / PCM_HYST_30: Slope Comp.: 0.5
A37: 5 | B37: 2.7 | C37: 0.625 | D37: Disabled | F37: Slope Comp.: 0.625 | L37: EN_SYNC_OUT: 0.625 | M37: SYNC_IN_FALLING: Disabled | N37: VDET_EN: | O37: PCM_HYST_30: Slope Comp.: 0.625 | P37: : | R37: EN_SYNC_OUT: 0.625 / SYNC_IN_FALLING: Disabled / VDET_EN: / PCM_HYST_30: Slope Comp.: 0.625
A38: 6 | B38: 3.8 | C38: 0.75 | D38: Disabled | F38: Slope Comp.: 0.75 | L38: EN_SYNC_OUT: 0.75 | M38: SYNC_IN_FALLING: Disabled | N38: VDET_EN: | O38: PCM_HYST_30: Slope Comp.: 0.75 | P38: : | R38: EN_SYNC_OUT: 0.75 / SYNC_IN_FALLING: Disabled / VDET_EN: / PCM_HYST_30: Slope Comp.: 0.75
A39: 7 | B39: 5.1 | C39: 0.875 | D39: Disabled | F39: Slope Comp.: 0.875 | L39: EN_SYNC_OUT: 0.875 | M39: SYNC_IN_FALLING: Disabled | N39: VDET_EN: | O39: PCM_HYST_30: Slope Comp.: 0.875 | P39: : | R39: EN_SYNC_OUT: 0.875 / SYNC_IN_FALLING: Disabled / VDET_EN: / PCM_HYST_30: Slope Comp.: 0.875
A40: 8 | B40: 6.5 | C40: 1 | D40: Disabled | F40: Slope Comp.: 1 | L40: EN_SYNC_OUT: 1 | M40: SYNC_IN_FALLING: Disabled | N40: VDET_EN: | O40: PCM_HYST_30: Slope Comp.: 1 | P40: : | R40: EN_SYNC_OUT: 1 / SYNC_IN_FALLING: Disabled / VDET_EN: / PCM_HYST_30: Slope Comp.: 1
A41: 9 | B41: 8.3 | C41: 1.5 | D41: Disabled | F41: Slope Comp.: 1.5 | L41: EN_SYNC_OUT: 1.5 | M41: SYNC_IN_FALLING: Disabled | N41: VDET_EN: | O41: PCM_HYST_30: Slope Comp.: 1.5 | P41: : | R41: EN_SYNC_OUT: 1.5 / SYNC_IN_FALLING: Disabled / VDET_EN: / PCM_HYST_30: Slope Comp.: 1.5
A42: 10 | B42: 10.5 | C42: 2 | D42: Disabled | F42: Slope Comp.: 2 | L42: EN_SYNC_OUT: 2 | M42: SYNC_IN_FALLING: Disabled | N42: VDET_EN: | O42: PCM_HYST_30: Slope Comp.: 2 | P42: : | R42: EN_SYNC_OUT: 2 / SYNC_IN_FALLING: Disabled / VDET_EN: / PCM_HYST_30: Slope Comp.: 2
A43: 11 | B43: 13.3 | C43: 2.5 | D43: Disabled | F43: Slope Comp.: 2.5 | L43: EN_SYNC_OUT: 2.5 | M43: SYNC_IN_FALLING: Disabled | N43: VDET_EN: | O43: PCM_HYST_30: Slope Comp.: 2.5 | P43: : | R43: EN_SYNC_OUT: 2.5 / SYNC_IN_FALLING: Disabled / VDET_EN: / PCM_HYST_30: Slope Comp.: 2.5
A44: 12 | B44: 16.2 | C44: 3 | D44: Disabled | F44: Slope Comp.: 3 | L44: EN_SYNC_OUT: 3 | M44: SYNC_IN_FALLING: Disabled | N44: VDET_EN: | O44: PCM_HYST_30: Slope Comp.: 3 | P44: : | R44: EN_SYNC_OUT: 3 / SYNC_IN_FALLING: Disabled / VDET_EN: / PCM_HYST_30: Slope Comp.: 3
A45: 13 | B45: 20.5 | C45: 3.5 | D45: Disabled | F45: Slope Comp.: 3.5 | L45: EN_SYNC_OUT: 3.5 | M45: SYNC_IN_FALLING: Disabled | N45: VDET_EN: | O45: PCM_HYST_30: Slope Comp.: 3.5 | P45: : | R45: EN_SYNC_OUT: 3.5 / SYNC_IN_FALLING: Disabled / VDET_EN: / PCM_HYST_30: Slope Comp.: 3.5
A46: 14 | B46: 24.9 | C46: 4 | D46: Disabled | F46: Slope Comp.: 4 | L46: EN_SYNC_OUT: 4 | M46: SYNC_IN_FALLING: Disabled | N46: VDET_EN: | O46: PCM_HYST_30: Slope Comp.: 4 | P46: : | R46: EN_SYNC_OUT: 4 / SYNC_IN_FALLING: Disabled / VDET_EN: / PCM_HYST_30: Slope Comp.: 4
A47: 15 | B47: 30.1 | C47: 4.5 | D47: Disabled | F47: Slope Comp.: 4.5 | L47: EN_SYNC_OUT: 4.5 | M47: SYNC_IN_FALLING: Disabled | N47: VDET_EN: | O47: PCM_HYST_30: Slope Comp.: 4.5 | P47: : | R47: EN_SYNC_OUT: 4.5 / SYNC_IN_FALLING: Disabled / VDET_EN: / PCM_HYST_30: Slope Comp.: 4.5
A48: 16 | B48: 36.5 | C48: n/a | D48: Enabled | F48: Slope Comp.: n/a | L48: EN_SYNC_OUT: n/a | M48: SYNC_IN_FALLING: Enabled | N48: VDET_EN: | O48: PCM_HYST_30: Slope Comp.: n/a | P48: : | R48: EN_SYNC_OUT: n/a / SYNC_IN_FALLING: Enabled / VDET_EN: / PCM_HYST_30: Slope Comp.: n/a
C51: =CONCATENATE(C32,": off") -> Slope Comp.: off | D51: =CONCATENATE(D32,": 0") -> I2C ADDR LSB: 0
C52: =CONCATENATE(C32,": on") -> Slope Comp.: on | D52: =CONCATENATE(D32,": 1") -> I2C ADDR LSB: 1
B56: CFG Setting | C56: 8 | D56: =IF(OR(C56=1,B56=16),2,1) -> 1 | E56: 1 | F56: 1 | G56: Calc Setting | H56: =CONCATENATE("R_",A31) -> R_CFG1 | J56: This cell give 1 for disable and 2 for enable
C57: =C56 -> 8 | D57: =(D56-1)*2^D50 -> 0 | E57: =(E56-1)*2^E50 -> 0 | F57: =(IF(F56>1,1,0)*2^F50) -> 0 | G57: =C57 -> 8 | H57: =INDEX(B33:B48,G57) -> 6.5
A60: CFG2
A61: Setting | B61: R_CFG2 [ | C61: EN_SYNC_OUT | D61: SYNC_IN_FALLING | E61: VDET_EN | F61: PCM_HYST_30 | G61: =C61 -> EN_SYNC_OUT | H61: =D61 -> SYNC_IN_FALLING | I61: =E61 -> VDET_EN | J61: =F61 -> PCM_HYST_30
A62: 1 | B62: 0 | C62: 0 | D62: 0 | E62: 0 | F62: 0 | G62: =IF(C62=1,"Enable","Disable") -> Disable | H62: =IF(D62=1,"Enable","Disable") -> Disable | I62: =IF(E62=1,"Enable","Disable") -> Disable | J62: =IF(F62=1,"Enable","Disable") -> Disable | L62: =CONCATENATE($C$61,": ",C62) -> EN_SYNC_OUT: 0 | M62: =CONCATENATE(D$61,": ",D62) -> SYNC_IN_FALLING: 0 | N62: =CONCATENATE(E$61,": ",E62) -> VDET_EN: 0 | O62: =CONCATENATE(F$61,": ",F62) -> PCM_HYST_30: 0 | P62: =CONCATENATE(K$3,": ",G62) -> : Disable | R62: =CONCATENATE(L62," / ",M62," / ",N62," / ",O62) -> EN_SYNC_OUT: 0 / SYNC_IN_FALLING: 0 / VDET_EN: 0 / PCM_HYST_30: 0
A63: 2 | B63: 0.511 | C63: 1 | D63: 0 | E63: 0 | F63: 0 | G63: Enable | H63: Disable | I63: Disable | J63: Disable | L63: =CONCATENATE($C$61,": ",C63) -> EN_SYNC_OUT: 1 | M63: =CONCATENATE(D$61,": ",D63) -> SYNC_IN_FALLING: 0 | N63: =CONCATENATE(E$61,": ",E63) -> VDET_EN: 0 | O63: =CONCATENATE(F$61,": ",F63) -> PCM_HYST_30: 0 | P63: : Enable | R63: =CONCATENATE(L63," / ",M63," / ",N63," / ",O63) -> EN_SYNC_OUT: 1 / SYNC_IN_FALLING: 0 / VDET_EN: 0 / PCM_HYST_30: 0
A64: 3 | B64: 1.3 | C64: 0 | D64: 1 | E64: 0 | F64: 0 | G64: Disable | H64: Enable | I64: Disable | J64: Disable | L64: EN_SYNC_OUT: 0 | M64: SYNC_IN_FALLING: 1 | N64: VDET_EN: 0 | O64: PCM_HYST_30: 0 | P64: : Disable | R64: EN_SYNC_OUT: 0 / SYNC_IN_FALLING: 1 / VDET_EN: 0 / PCM_HYST_30: 0
A65: 4 | B65: 1.9 | C65: 1 | D65: 1 | E65: 0 | F65: 0 | G65: Enable | H65: Enable | I65: Disable | J65: Disable | L65: EN_SYNC_OUT: 1 | M65: SYNC_IN_FALLING: 1 | N65: VDET_EN: 0 | O65: PCM_HYST_30: 0 | P65: : Enable | R65: EN_SYNC_OUT: 1 / SYNC_IN_FALLING: 1 / VDET_EN: 0 / PCM_HYST_30: 0
A66: 5 | B66: 2.7 | C66: 0 | D66: 0 | E66: 1 | F66: 0 | G66: Disable | H66: Disable | I66: Enable | J66: Disable | L66: EN_SYNC_OUT: 0 | M66: SYNC_IN_FALLING: 0 | N66: VDET_EN: 1 | O66: PCM_HYST_30: 0 | P66: : Disable | R66: EN_SYNC_OUT: 0 / SYNC_IN_FALLING: 0 / VDET_EN: 1 / PCM_HYST_30: 0
A67: 6 | B67: 3.8 | C67: 1 | D67: 1 | E67: 1 | F67: 0 | G67: Enable | H67: Enable | I67: Enable | J67: Disable | L67: EN_SYNC_OUT: 1 | M67: SYNC_IN_FALLING: 1 | N67: VDET_EN: 1 | O67: PCM_HYST_30: 0 | P67: : Enable | R67: EN_SYNC_OUT: 1 / SYNC_IN_FALLING: 1 / VDET_EN: 1 / PCM_HYST_30: 0
A68: 7 | B68: 5.1 | C68: 0 | D68: 1 | E68: 1 | F68: 0 | G68: Disable | H68: Enable | I68: Enable | J68: Disable | L68: EN_SYNC_OUT: 0 | M68: SYNC_IN_FALLING: 1 | N68: VDET_EN: 1 | O68: PCM_HYST_30: 0 | P68: : Disable | R68: EN_SYNC_OUT: 0 / SYNC_IN_FALLING: 1 / VDET_EN: 1 / PCM_HYST_30: 0
A69: 8 | B69: 6.5 | C69: 1 | D69: 1 | E69: 1 | F69: 0 | G69: Enable | H69: Enable | I69: Enable | J69: Disable | L69: EN_SYNC_OUT: 1 | M69: SYNC_IN_FALLING: 1 | N69: VDET_EN: 1 | O69: PCM_HYST_30: 0 | P69: : Enable | R69: EN_SYNC_OUT: 1 / SYNC_IN_FALLING: 1 / VDET_EN: 1 / PCM_HYST_30: 0
A70: 9 | B70: 8.3 | C70: 0 | D70: 0 | E70: 0 | F70: 1 | G70: Disable | H70: Disable | I70: Disable | J70: Enable | L70: EN_SYNC_OUT: 0 | M70: SYNC_IN_FALLING: 0 | N70: VDET_EN: 0 | O70: PCM_HYST_30: 1 | P70: : Disable | R70: EN_SYNC_OUT: 0 / SYNC_IN_FALLING: 0 / VDET_EN: 0 / PCM_HYST_30: 1
A71: 10 | B71: 10.5 | C71: 1 | D71: 0 | E71: 0 | F71: 1 | G71: Enable | H71: Disable | I71: Disable | J71: Enable | L71: EN_SYNC_OUT: 1 | M71: SYNC_IN_FALLING: 0 | N71: VDET_EN: 0 | O71: PCM_HYST_30: 1 | P71: : Enable | R71: EN_SYNC_OUT: 1 / SYNC_IN_FALLING: 0 / VDET_EN: 0 / PCM_HYST_30: 1
A72: 11 | B72: 13.3 | C72: 0 | D72: 1 | E72: 0 | F72: 1 | G72: Disable | H72: Enable | I72: Disable | J72: Enable | L72: EN_SYNC_OUT: 0 | M72: SYNC_IN_FALLING: 1 | N72: VDET_EN: 0 | O72: PCM_HYST_30: 1 | P72: : Disable | R72: EN_SYNC_OUT: 0 / SYNC_IN_FALLING: 1 / VDET_EN: 0 / PCM_HYST_30: 1
A73: 12 | B73: 16.2 | C73: 1 | D73: 1 | E73: 0 | F73: 1 | G73: Enable | H73: Enable | I73: Disable | J73: Enable | L73: EN_SYNC_OUT: 1 | M73: SYNC_IN_FALLING: 1 | N73: VDET_EN: 0 | O73: PCM_HYST_30: 1 | P73: : Enable | R73: EN_SYNC_OUT: 1 / SYNC_IN_FALLING: 1 / VDET_EN: 0 / PCM_HYST_30: 1
A74: 13 | B74: 20.5 | C74: 0 | D74: 0 | E74: 1 | F74: 1 | G74: Disable | H74: Disable | I74: Enable | J74: Enable | L74: EN_SYNC_OUT: 0 | M74: SYNC_IN_FALLING: 0 | N74: VDET_EN: 1 | O74: PCM_HYST_30: 1 | P74: : Disable | R74: EN_SYNC_OUT: 0 / SYNC_IN_FALLING: 0 / VDET_EN: 1 / PCM_HYST_30: 1
A75: 14 | B75: 24.9 | C75: 1 | D75: 0 | E75: 1 | F75: 1 | G75: Enable | H75: Disable | I75: Enable | J75: Enable | L75: EN_SYNC_OUT: 1 | M75: SYNC_IN_FALLING: 0 | N75: VDET_EN: 1 | O75: PCM_HYST_30: 1 | P75: : Enable | R75: EN_SYNC_OUT: 1 / SYNC_IN_FALLING: 0 / VDET_EN: 1 / PCM_HYST_30: 1
A76: 15 | B76: 30.1 | C76: 0 | D76: 1 | E76: 1 | F76: 1 | G76: Disable | H76: Enable | I76: Enable | J76: Enable | L76: EN_SYNC_OUT: 0 | M76: SYNC_IN_FALLING: 1 | N76: VDET_EN: 1 | O76: PCM_HYST_30: 1 | P76: : Disable | R76: EN_SYNC_OUT: 0 / SYNC_IN_FALLING: 1 / VDET_EN: 1 / PCM_HYST_30: 1
A77: 16 | B77: 36.5 | C77: 1 | D77: 1 | E77: 1 | F77: 1 | G77: Enable | H77: Enable | I77: Enable | J77: Enable | L77: EN_SYNC_OUT: 1 | M77: SYNC_IN_FALLING: 1 | N77: VDET_EN: 1 | O77: PCM_HYST_30: 1 | P77: : Enable | R77: EN_SYNC_OUT: 1 / SYNC_IN_FALLING: 1 / VDET_EN: 1 / PCM_HYST_30: 1
C79: 0 | D79: 1 | E79: 2 | F79: 3
C80: =CONCATENATE(C61,": off") -> EN_SYNC_OUT: off | D80: =CONCATENATE(D61,": off") -> SYNC_IN_FALLING: off | E80: =CONCATENATE(E61,": off") -> VDET_EN: off | F80: =CONCATENATE(F61,": off") -> PCM_HYST_30: off
C81: =CONCATENATE(C61,": on") -> EN_SYNC_OUT: on | D81: =CONCATENATE(D61,": on") -> SYNC_IN_FALLING: on | E81: =CONCATENATE(E61,": on") -> VDET_EN: on | F81: =CONCATENATE(F61,": on") -> PCM_HYST_30: on
B85: CFG Setting | C85: 1 | D85: 2 | E85: 1 | F85: 2 | G85: Calc Setting | H85: =CONCATENATE("R_",A60) -> R_CFG2 | J85: This cell give 1 for disable and 2 for enable
C86: =(C85-1)*2^C79 -> 0 | D86: =(D85-1)*2^D79 -> 2 | E86: =(E85-1)*2^E79 -> 0 | F86: =(F85-1)*2^F79 -> 8 | G86: =SUM(C86:F86)+1 -> 11 | H86: =INDEX(B62:B77,G86) -> 13.3
A90: CFG3
A91: Setting | B91: R_CFG3 [ | C91: EN_VCC1 | D91: INC_INDUCT_De-Rate | E91: USLEEP | F91: SCALE_DT | G91: =C91 -> EN_VCC1 | H91: =D91 -> INC_INDUCT_De-Rate | I91: =E91 -> USLEEP | J91: =F91 -> SCALE_DT
A92: 1 | B92: 0 | C92: 0 | D92: 0 | E92: 0 | F92: 0 | G92: =IF(C92=1,"Enable","Disable") -> Disable | H92: =IF(D92=1,"Enable","Disable") -> Disable | I92: =IF(E92=1,"Enable","Disable") -> Disable | J92: =IF(F92=1,"Enable","Disable") -> Disable | L92: =CONCATENATE($C$91,": ",C92) -> EN_VCC1: 0 | M92: =CONCATENATE(D$91,": ",D92) -> INC_INDUCT_De-Rate: 0 | N92: =CONCATENATE(E$91,": ",E92) -> USLEEP: 0 | O92: =CONCATENATE(F$91,": ",F92) -> SCALE_DT: 0 | P92: =CONCATENATE(K$3,": ",G92) -> : Disable | R92: =CONCATENATE(L92," / ",M92," / ",N92," / ",O92) -> EN_VCC1: 0 / INC_INDUCT_De-Rate: 0 / USLEEP: 0 / SCALE_DT: 0
A93: 2 | B93: 0.511 | C93: 1 | D93: 0 | E93: 0 | F93: 0 | G93: Enable | H93: Disable | I93: Disable | J93: Disable | L93: =CONCATENATE($C$91,": ",C93) -> EN_VCC1: 1 | M93: =CONCATENATE(D$91,": ",D93) -> INC_INDUCT_De-Rate: 0 | N93: =CONCATENATE(E$91,": ",E93) -> USLEEP: 0 | O93: =CONCATENATE(F$91,": ",F93) -> SCALE_DT: 0 | P93: : Enable | R93: =CONCATENATE(L93," / ",M93," / ",N93," / ",O93) -> EN_VCC1: 1 / INC_INDUCT_De-Rate: 0 / USLEEP: 0 / SCALE_DT: 0
A94: 3 | B94: 1.3 | C94: 0 | D94: 1 | E94: 0 | F94: 0 | G94: Disable | H94: Enable | I94: Disable | J94: Disable | L94: EN_VCC1: 0 | M94: INC_INDUCT_De-Rate: 1 | N94: USLEEP: 0 | O94: SCALE_DT: 0 | P94: : Disable | R94: EN_VCC1: 0 / INC_INDUCT_De-Rate: 1 / USLEEP: 0 / SCALE_DT: 0
A95: 4 | B95: 1.9 | C95: 1 | D95: 1 | E95: 0 | F95: 0 | G95: Enable | H95: Enable | I95: Disable | J95: Disable | L95: EN_VCC1: 1 | M95: INC_INDUCT_De-Rate: 1 | N95: USLEEP: 0 | O95: SCALE_DT: 0 | P95: : Enable | R95: EN_VCC1: 1 / INC_INDUCT_De-Rate: 1 / USLEEP: 0 / SCALE_DT: 0
A96: 5 | B96: 2.7 | C96: 0 | D96: 0 | E96: 1 | F96: 0 | G96: Disable | H96: Disable | I96: Enable | J96: Disable | L96: EN_VCC1: 0 | M96: INC_INDUCT_De-Rate: 0 | N96: USLEEP: 1 | O96: SCALE_DT: 0 | P96: : Disable | R96: EN_VCC1: 0 / INC_INDUCT_De-Rate: 0 / USLEEP: 1 / SCALE_DT: 0
A97: 6 | B97: 3.8 | C97: 1 | D97: 0 | E97: 1 | F97: 0 | G97: Enable | H97: Disable | I97: Enable | J97: Disable | L97: EN_VCC1: 1 | M97: INC_INDUCT_De-Rate: 0 | N97: USLEEP: 1 | O97: SCALE_DT: 0 | P97: : Enable | R97: EN_VCC1: 1 / INC_INDUCT_De-Rate: 0 / USLEEP: 1 / SCALE_DT: 0
A98: 7 | B98: 5.1 | C98: 0 | D98: 1 | E98: 1 | F98: 0 | G98: Disable | H98: Enable | I98: Enable | J98: Disable | L98: EN_VCC1: 0 | M98: INC_INDUCT_De-Rate: 1 | N98: USLEEP: 1 | O98: SCALE_DT: 0 | P98: : Disable | R98: EN_VCC1: 0 / INC_INDUCT_De-Rate: 1 / USLEEP: 1 / SCALE_DT: 0
A99: 8 | B99: 6.5 | C99: 1 | D99: 1 | E99: 1 | F99: 0 | G99: Enable | H99: Enable | I99: Enable | J99: Disable | L99: EN_VCC1: 1 | M99: INC_INDUCT_De-Rate: 1 | N99: USLEEP: 1 | O99: SCALE_DT: 0 | P99: : Enable | R99: EN_VCC1: 1 / INC_INDUCT_De-Rate: 1 / USLEEP: 1 / SCALE_DT: 0
A100: 9 | B100: 8.3 | C100: 0 | D100: 0 | E100: 0 | F100: 1 | G100: Disable | H100: Disable | I100: Disable | J100: Enable | L100: EN_VCC1: 0 | M100: INC_INDUCT_De-Rate: 0 | N100: USLEEP: 0 | O100: SCALE_DT: 1 | P100: : Disable | R100: EN_VCC1: 0 / INC_INDUCT_De-Rate: 0 / USLEEP: 0 / SCALE_DT: 1
A101: 10 | B101: 10.5 | C101: 1 | D101: 0 | E101: 0 | F101: 1 | G101: Enable | H101: Disable | I101: Disable | J101: Enable | L101: EN_VCC1: 1 | M101: INC_INDUCT_De-Rate: 0 | N101: USLEEP: 0 | O101: SCALE_DT: 1 | P101: : Enable | R101: EN_VCC1: 1 / INC_INDUCT_De-Rate: 0 / USLEEP: 0 / SCALE_DT: 1
A102: 11 | B102: 13.3 | C102: 0 | D102: 1 | E102: 0 | F102: 1 | G102: Disable | H102: Enable | I102: Disable | J102: Enable | L102: EN_VCC1: 0 | M102: INC_INDUCT_De-Rate: 1 | N102: USLEEP: 0 | O102: SCALE_DT: 1 | P102: : Disable | R102: EN_VCC1: 0 / INC_INDUCT_De-Rate: 1 / USLEEP: 0 / SCALE_DT: 1
A103: 12 | B103: 16.2 | C103: 1 | D103: 1 | E103: 0 | F103: 1 | G103: Enable | H103: Enable | I103: Disable | J103: Enable | L103: EN_VCC1: 1 | M103: INC_INDUCT_De-Rate: 1 | N103: USLEEP: 0 | O103: SCALE_DT: 1 | P103: : Enable | R103: EN_VCC1: 1 / INC_INDUCT_De-Rate: 1 / USLEEP: 0 / SCALE_DT: 1
A104: 13 | B104: 20.5 | C104: 0 | D104: 0 | E104: 1 | F104: 1 | G104: Disable | H104: Disable | I104: Enable | J104: Enable | L104: EN_VCC1: 0 | M104: INC_INDUCT_De-Rate: 0 | N104: USLEEP: 1 | O104: SCALE_DT: 1 | P104: : Disable | R104: EN_VCC1: 0 / INC_INDUCT_De-Rate: 0 / USLEEP: 1 / SCALE_DT: 1
A105: 14 | B105: 24.9 | C105: 1 | D105: 0 | E105: 1 | F105: 1 | G105: Enable | H105: Disable | I105: Enable | J105: Enable | L105: EN_VCC1: 1 | M105: INC_INDUCT_De-Rate: 0 | N105: USLEEP: 1 | O105: SCALE_DT: 1 | P105: : Enable | R105: EN_VCC1: 1 / INC_INDUCT_De-Rate: 0 / USLEEP: 1 / SCALE_DT: 1
A106: 15 | B106: 30.1 | C106: 0 | D106: 1 | E106: 1 | F106: 1 | G106: Disable | H106: Enable | I106: Enable | J106: Enable | L106: EN_VCC1: 0 | M106: INC_INDUCT_De-Rate: 1 | N106: USLEEP: 1 | O106: SCALE_DT: 1 | P106: : Disable | R106: EN_VCC1: 0 / INC_INDUCT_De-Rate: 1 / USLEEP: 1 / SCALE_DT: 1
A107: 16 | B107: 36.5 | C107: 1 | D107: 1 | E107: 1 | F107: 1 | G107: Enable | H107: Enable | I107: Enable | J107: Enable | L107: EN_VCC1: 1 | M107: INC_INDUCT_De-Rate: 1 | N107: USLEEP: 1 | O107: SCALE_DT: 1 | P107: : Enable | R107: EN_VCC1: 1 / INC_INDUCT_De-Rate: 1 / USLEEP: 1 / SCALE_DT: 1
C109: 0 | D109: 1 | E109: 2 | F109: 3
C110: =CONCATENATE(C91,": off") -> EN_VCC1: off | D110: =CONCATENATE(D91,": off") -> INC_INDUCT_De-Rate: off | E110: =CONCATENATE(E91,": off") -> USLEEP: off | F110: =CONCATENATE(F91,": off") -> SCALE_DT: off
C111: =CONCATENATE(C91,": on") -> EN_VCC1: on | D111: =CONCATENATE(D91,": on") -> INC_INDUCT_De-Rate: on | E111: =CONCATENATE(E91,": on") -> USLEEP: on | F111: =CONCATENATE(F91,": on") -> SCALE_DT: on
B115: CFG Setting | C115: 1 | D115: 2 | E115: 2 | F115: 2 | G115: Calc Setting | H115: =CONCATENATE("R_",A90) -> R_CFG3 | J115: This cell give 1 for disable and 2 for enable
C116: =(C115-1)*2^C109 -> 0 | D116: =(D115-1)*2^D109 -> 2 | E116: =(E115-1)*2^E109 -> 4 | F116: =(F115-1)*2^F109 -> 8 | G116: =SUM(C116:F116)+1 -> 15 | H116: =INDEX(B92:B107,G116) -> 30.1
A120: CFG4
A121: Setting | B121: R_CFG4 [ | C121: DRSS | D121: SCP – Hiccup Mode | E121: VDET_EN | F121: Negative Current Limit | G121: Current Limit | H121: =D121 -> SCP – Hiccup Mode | I121: =E121 -> VDET_EN | J121: =F121 -> Negative Current Limit
A122: 1 | B122: 0 | C122: 0 | D122: 0 | E122: 0 | F122: 0 | G122: =IF(C122=1,"Enable","Disable") -> Disable | H122: =IF(D122=1,"Enable","Disable") -> Disable | I122: =IF(E122=1,"Enable","Disable") -> Disable | J122: =IF(F122=1,"Enable","Disable") -> Disable | L122: =CONCATENATE($C$121,": ",C122) -> DRSS: 0 | M122: =CONCATENATE(D$121,": ",D122) -> SCP – Hiccup Mode: 0 | N122: =CONCATENATE(E$121,": ",E122) -> VDET_EN: 0 | O122: =CONCATENATE(F$121,": ",F122) -> Negative Current Limit: 0 | P122: =CONCATENATE(K$3,": ",G122) -> : Disable | R122: =CONCATENATE(L122," / ",M122," / ",N122," / ",O122) -> DRSS: 0 / SCP – Hiccup Mode: 0 / VDET_EN: 0 / Negative Current Limit: 0
A123: 2 | B123: 0.511 | C123: 1 | D123: 0 | E123: 0 | F123: 0 | G123: Enable | H123: Disable | I123: Disable | J123: Disable | L123: =CONCATENATE($C$121,": ",C123) -> DRSS: 1 | M123: =CONCATENATE(D$121,": ",D123) -> SCP – Hiccup Mode: 0 | N123: =CONCATENATE(E$121,": ",E123) -> VDET_EN: 0 | O123: =CONCATENATE(F$121,": ",F123) -> Negative Current Limit: 0 | P123: : Enable | R123: =CONCATENATE(L123," / ",M123," / ",N123," / ",O123) -> DRSS: 1 / SCP – Hiccup Mode: 0 / VDET_EN: 0 / Negative Current Limit: 0
A124: 3 | B124: 1.3 | C124: 0 | D124: 1 | E124: 0 | F124: 0 | G124: Disable | H124: Enable | I124: Disable | J124: Disable | L124: DRSS: 0 | M124: SCP – Hiccup Mode: 1 | N124: VDET_EN: 0 | O124: Negative Current Limit: 0 | P124: : Disable | R124: DRSS: 0 / SCP – Hiccup Mode: 1 / VDET_EN: 0 / Negative Current Limit: 0
A125: 4 | B125: 1.9 | C125: 1 | D125: 1 | E125: 0 | F125: 0 | G125: Enable | H125: Enable | I125: Disable | J125: Disable | L125: DRSS: 1 | M125: SCP – Hiccup Mode: 1 | N125: VDET_EN: 0 | O125: Negative Current Limit: 0 | P125: : Enable | R125: DRSS: 1 / SCP – Hiccup Mode: 1 / VDET_EN: 0 / Negative Current Limit: 0
A126: 5 | B126: 2.7 | C126: 0 | D126: 0 | E126: 1 | F126: 0 | G126: Disable | H126: Disable | I126: Enable | J126: Disable | L126: DRSS: 0 | M126: SCP – Hiccup Mode: 0 | N126: VDET_EN: 1 | O126: Negative Current Limit: 0 | P126: : Disable | R126: DRSS: 0 / SCP – Hiccup Mode: 0 / VDET_EN: 1 / Negative Current Limit: 0
A127: 6 | B127: 3.8 | C127: 1 | D127: 0 | E127: 1 | F127: 0 | G127: Enable | H127: Disable | I127: Enable | J127: Disable | L127: DRSS: 1 | M127: SCP – Hiccup Mode: 0 | N127: VDET_EN: 1 | O127: Negative Current Limit: 0 | P127: : Enable | R127: DRSS: 1 / SCP – Hiccup Mode: 0 / VDET_EN: 1 / Negative Current Limit: 0
A128: 7 | B128: 5.1 | C128: 0 | D128: 1 | E128: 1 | F128: 0 | G128: Disable | H128: Enable | I128: Enable | J128: Disable | L128: DRSS: 0 | M128: SCP – Hiccup Mode: 1 | N128: VDET_EN: 1 | O128: Negative Current Limit: 0 | P128: : Disable | R128: DRSS: 0 / SCP – Hiccup Mode: 1 / VDET_EN: 1 / Negative Current Limit: 0
A129: 8 | B129: 6.5 | C129: 1 | D129: 1 | E129: 1 | F129: 0 | G129: Enable | H129: Enable | I129: Enable | J129: Disable | L129: DRSS: 1 | M129: SCP – Hiccup Mode: 1 | N129: VDET_EN: 1 | O129: Negative Current Limit: 0 | P129: : Enable | R129: DRSS: 1 / SCP – Hiccup Mode: 1 / VDET_EN: 1 / Negative Current Limit: 0
A130: 9 | B130: 8.3 | C130: 0 | D130: 0 | E130: 0 | F130: 1 | G130: Disable | H130: Disable | I130: Disable | J130: Enable | L130: DRSS: 0 | M130: SCP – Hiccup Mode: 0 | N130: VDET_EN: 0 | O130: Negative Current Limit: 1 | P130: : Disable | R130: DRSS: 0 / SCP – Hiccup Mode: 0 / VDET_EN: 0 / Negative Current Limit: 1
A131: 10 | B131: 10.5 | C131: 1 | D131: 0 | E131: 0 | F131: 1 | G131: Enable | H131: Disable | I131: Disable | J131: Enable | L131: DRSS: 1 | M131: SCP – Hiccup Mode: 0 | N131: VDET_EN: 0 | O131: Negative Current Limit: 1 | P131: : Enable | R131: DRSS: 1 / SCP – Hiccup Mode: 0 / VDET_EN: 0 / Negative Current Limit: 1
A132: 11 | B132: 13.3 | C132: 0 | D132: 1 | E132: 0 | F132: 1 | G132: Disable | H132: Enable | I132: Disable | J132: Enable | L132: DRSS: 0 | M132: SCP – Hiccup Mode: 1 | N132: VDET_EN: 0 | O132: Negative Current Limit: 1 | P132: : Disable | R132: DRSS: 0 / SCP – Hiccup Mode: 1 / VDET_EN: 0 / Negative Current Limit: 1
A133: 12 | B133: 16.2 | C133: 1 | D133: 1 | E133: 0 | F133: 1 | G133: Enable | H133: Enable | I133: Disable | J133: Enable | L133: DRSS: 1 | M133: SCP – Hiccup Mode: 1 | N133: VDET_EN: 0 | O133: Negative Current Limit: 1 | P133: : Enable | R133: DRSS: 1 / SCP – Hiccup Mode: 1 / VDET_EN: 0 / Negative Current Limit: 1
A134: 13 | B134: 20.5 | C134: 0 | D134: 0 | E134: 1 | F134: 1 | G134: Disable | H134: Disable | I134: Enable | J134: Enable | L134: DRSS: 0 | M134: SCP – Hiccup Mode: 0 | N134: VDET_EN: 1 | O134: Negative Current Limit: 1 | P134: : Disable | R134: DRSS: 0 / SCP – Hiccup Mode: 0 / VDET_EN: 1 / Negative Current Limit: 1
A135: 14 | B135: 24.9 | C135: 1 | D135: 0 | E135: 1 | F135: 1 | G135: Enable | H135: Disable | I135: Enable | J135: Enable | L135: DRSS: 1 | M135: SCP – Hiccup Mode: 0 | N135: VDET_EN: 1 | O135: Negative Current Limit: 1 | P135: : Enable | R135: DRSS: 1 / SCP – Hiccup Mode: 0 / VDET_EN: 1 / Negative Current Limit: 1
A136: 15 | B136: 30.1 | C136: 0 | D136: 1 | E136: 1 | F136: 1 | G136: Disable | H136: Enable | I136: Enable | J136: Enable | L136: DRSS: 0 | M136: SCP – Hiccup Mode: 1 | N136: VDET_EN: 1 | O136: Negative Current Limit: 1 | P136: : Disable | R136: DRSS: 0 / SCP – Hiccup Mode: 1 / VDET_EN: 1 / Negative Current Limit: 1
A137: 16 | B137: 36.5 | C137: 1 | D137: 1 | E137: 1 | F137: 1 | G137: Enable | H137: Enable | I137: Enable | J137: Enable | L137: DRSS: 1 | M137: SCP – Hiccup Mode: 1 | N137: VDET_EN: 1 | O137: Negative Current Limit: 1 | P137: : Enable | R137: DRSS: 1 / SCP – Hiccup Mode: 1 / VDET_EN: 1 / Negative Current Limit: 1
C139: 0 | D139: 1 | E139: 2 | F139: 3
C140: =CONCATENATE(C121,": off") -> DRSS: off | D140: =CONCATENATE(D121,": off") -> SCP – Hiccup Mode: off | E140: =CONCATENATE(E121,": off") -> VDET_EN: off | F140: =CONCATENATE(F121,": off") -> Negative Current Limit: off
C141: =CONCATENATE(C121,": on") -> DRSS: on | D141: =CONCATENATE(D121,": on") -> SCP – Hiccup Mode: on | E141: =CONCATENATE(E121,": on") -> VDET_EN: on | F141: =CONCATENATE(F121,": on") -> Negative Current Limit: on
B145: CFG Setting | C145: 1 | D145: 2 | E145: 1 | F145: 1 | G145: Calc Setting | H145: =CONCATENATE("R_",A120) -> R_CFG4 | J145: This cell give 1 for disable and 2 for enable
C146: =(C145-1)*2^C139 -> 0 | D146: =(D145-1)*2^D139 -> 2 | E146: =(E145-1)*2^E139 -> 0 | F146: =(F145-1)*2^F139 -> 0 | G146: =SUM(C146:F146)+1 -> 3 | H146: =INDEX(B122:B137,G146) -> 1.3

Sheet Stability Calculations (hidden)
B2: Divider Network & EA Poles/Zeros | E2: Modulator | J2: Power Stage Poles/Zeros | M2: Complex Pole Pair | P2: Total System
B3: Afb1 | C3: =Afb -> 0.08333333333 | D3: V/V | E3: Acs | F3: =Acs -> 100 | G3: A/V | H3: gm | I3: =gm -> 0.0006 | J3: z_ESR | K3: =Fesr -> 154332.066 | L3: Hz | M3: p3 | N3: =Fsw/2 -> 100000 | O3: Hz | P3: Adc | Q3: =Am*Afb*AEA -> 14593.31603 | R3: V/V | S3: =20*LOG(Adc) -> 83.28307975 | T3: dB
B4: EA zero, z1 | C4: =Fz1_u -> 397.8873577 | D4: Hz | E4: Am | F4: =Am -> 29.18663206 | G4: V/V | J4: p_dom | K4: =Fp_dominant -> 602.8596329 | L4: Hz | M4: pterm1 | N4: =Q*PS_Pole2 -> 35914.08971 | P4: Crossover | Q4: =AM8/1000 -> 1.5849 | R4: kHz | U4: IL zero, z1 | V4: =1/(2*Pi*RcIL*Cc1IL) -> 53051.6477
B5: EA pole, p1 | C5: =Fp1_u -> 0.07956155923 | D5: Hz | E5: Q | F5: =Q -> 0.3591408971 | J5: z_RHP | K5: =IF(VIN_nom>Vout, 10000000,Frhp) -> 10000000 | L5: Hz | M5: pterm2 | N5: =PS_Pole2^2+0.01 -> 1e+10 | P5: Phase Margin | Q5: =AM9 -> 92.2794086 | R5: ° | U5: IL pole, p1 | V5: =1/(2*Pi*(RoEA_IL+RcIL)*Cc1IL) -> 5.304634306
B6: Aea | C6: =AEA -> 6000 | D6: V/V | E6: mc | F6: =mc -> 5.5 | P6: radconv | Q6: =180/Pi -> 57.29577951 | U6: AIL | V6: =gm_IL*RoEA_IL -> 2000 | AL6: XOVER SEARCH
B7: EA pole, p2 | C7: =Fp2_u -> 36051.20607 | D7: Hz | E7: k | F7: =k -> 1.386309214 | U7: IL pole, p2 | V7: =1/(2*Pi*RcIL*(Cc2IL+Cbw_IL)) -> 9937560.466 | AL7: System | AN7: Error Amp | AP7: IL Error Amp
AL8: xover | AM8: =SUM(AL12:AL613) -> 1584.9 | AN8: xover | AO8: =SUM(AN12:AN613) -> 23851.5 | AP8: xover | AQ8: =SUM(AP12:AP613) -> 10777.5 | AR8: 0
AL9: phase margin | AM9: =SUM(AM13:AM613) -> 92.2794086 | AN9: phase margin | AO9: =SUM(AO13:AO613) -> -34.44416605 | AP9: phase margin | AQ9: =SUM(AQ13:AQ613) -> 0.0389771988
B10: Freq (Hz) | C10: Power Stage | I10: Error Amplifier | O10: ILimit Amplifier | U10: Sampling Double Pole | W10: System Response | AB10: ERROR AMP Response | AE10: ILimit AMP Response | AG10: EA*5 | AI10: PLANT Response
C11: p_dom | E11: z_ESR | G11: z_RHP | I11: p1 | K11: z1 | M11: p2 | O11: p1 | Q11: z1 | S11: p2 | U11: p3
C12: Gain(V/V) | D12: Phase(rad) | E12: Gain(V/V) | F12: Phase(rad) | G12: Gain(V/V) | H12: Phase(rad) | I12: Gain(V/V) | J12: Phase(rad) | K12: Gain(V/V) | L12: Phase(rad) | M12: Gain(V/V) | N12: Phase(rad) | O12: Gain(V/V) | P12: Phase(rad) | Q12: Gain(V/V) | R12: Phase(rad) | S12: Gain(V/V) | T12: Phase(rad) | U12: Gain(V/V) | V12: Phase(rad) | W12: Loop Gain (dB) | X12: :Loop Phase Margin (°) | Y12: Phase (°) | AB12: Gain(dB) | AC12: Phase(Deg) | AE12: ILimit Gain(dB) | AF12: ILimit Phase(Deg) | AG12: Gain(dB) | AI12: Gain(dB) | AJ12: Phase(Deg)
B13: 1 | C13: =SQRT(1+(B13/PS_Pole1)^2) -> 1.000001376 | D13: =ATAN(B13/PS_Pole1) -> 0.0016587594 | E13: =SQRT(1+(B13/PS_Zero1)^2) -> 1 | F13: =ATAN(B13/PS_Zero1) -> 6.479534848e-06 | G13: =IF(VIN_nom>Vout, 1, SQRT(1+(B13/PS_RHPZ)^2)) -> 1 | H13: =IF(VIN_nom>Vout, 0, -ATAN(B13/PS_RHPZ)) -> 0 | I13: =SQRT(1+(B13/EA_Pole1)^2) -> 12.60860191 | J13: =ATAN(B13/EA_Pole1) -> 1.491402009 | K13: =SQRT(1+(B13/EA_Zero1)^2) -> 1.000003158 | L13: =ATAN(B13/EA_Zero1) -> 0.002513268831 | M13: =SQRT(1+(B13/EA_Pole2)^2) -> 1 | N13: =ATAN(B13/EA_Pole2) -> 2.773832304e-05 | O13: =SQRT(1+(B13/$V$5)^2) -> 1.01761372 | P13: =ATAN(B13/$V$5) -> 0.1863277268 | Q13: =SQRT(1+(B13/$V$4)^2) -> 1 | R13: =ATAN(B13/$V$4) -> 1.884955592e-05 | S13: =SQRT(1+(B13/$V$7)^2) -> 1 | T13: =ATAN(B13/$V$7) -> 1.006283185e-07 | U13: =SQRT((1-(B13^2/pterm2))^2+(B13/pterm1)^2) -> 1 | V13: =IF((ATAN((B13/pterm1)/(1-B13^2/pterm2))>0),ATAN((B13/pterm1)/(1-B13^2/pterm2)),PI()+ATAN((B13/pterm1)/(1-B13^2/pterm2))) -> 2.784422515e-05 | W13: =20*LOG10(((E13*K13*G13)/(C13*I13*U13*M13))*Adc) -> 61.26975657 | X13: =IF(((F13+L13+H13)-(D13+J13+V13+N13))*radconv<-180,((F13+L13+H13)-(D13+J13+V13+N13))*radconv+180,((F13+L13+H13)-(D13+J13+V13+N13))*radconv) -> -85.40489427 | Y13: =IF(X13>0,X13-180,X13+180) -> 94.59510573 | AB13: =20*LOG10((K13/(I13*M13))*AEA) -> 53.54971377 | AC13: =(L13-(J13+N13))*radconv -> -85.30863026 | AE13: =20*LOG10((Q13/(O13*S13))*AIL) -> 65.86894084 | AF13: =(R13-(P13+T13))*radconv -> -10.67471812 | AI13: =20*LOG10((E13*G13/(C13*U13))*Acs*Am) -> 69.30366771 | AJ13: =(F13+H13-(D13+V13))*radconv -> -0.09626401942 | AL13: =SUM((W14<0)*(W13>0))*B13 -> 0 | AM13: =IF(AL13>0,Y11,0) -> 0 | AN13: =SUM((AB14<0)*(AB13>0))*B13 -> 0 | AO13: =IF(AN13>0,AC13,0) -> 0 | AP13: =SUM((AE14<0)*(AE13>0))*B13 -> 0 | AQ13: =IF(AP13>0,AE13,0) -> 0
B14: 1.0965 | C14: 1.000001654 | D14: 0.001818829344 | E14: 1 | F14: 7.104809961e-06 | G14: 1 | H14: 0 | I14: 13.81801334 | J14: 1.498363704 | K14: 1.000003797 | L14: 0.002755798099 | M14: 1 | N14: 3.041507121e-05 | O14: 1.021140241 | P14: 0.2038352901 | Q14: 1 | R14: 2.066853807e-05 | S14: 1 | T14: 1.103389513e-07 | U14: 1 | V14: 3.053119288e-05 | W14: 60.47418621 | X14: =IF(((F14+L14+H14)-(D14+J14+V14+N14))*radconv<-180,((F14+L14+H14)-(D14+J14+V14+N14))*radconv+180,((F14+L14+H14)-(D14+J14+V14+N14))*radconv) -> -85.79931694 | Y14: =IF(X14>0,X14-180,X14+180) -> 94.20068306 | AB14: 52.75414584 | AC14: -85.69376346 | AE14: 65.8388921 | AF14: -11.67772394 | AI14: 69.30366529 | AJ14: -0.105553478 | AL14: 0 | AM14: 0 | AN14: 0 | AO14: =IF(AN14>0,AC14,0) -> 0 | AP14: =SUM((AE15<0)*(AE14>0))*B14 -> 0 | AQ14: =IF(AP14>0,AE14,0) -> 0
B15: 1.2023 | C15: 1.000001989 | D15: 0.001994325611 | E15: 1 | F15: 7.790344748e-06 | G15: 1 | H15: 0 | I15: 15.14462019 | J15: 1.504718203 | K15: 1.000004565 | L15: 0.003021700281 | M15: 1.000000001 | N15: 3.334978578e-05 | O15: 1.025363652 | P15: 0.222885211 | Q15: 1 | R15: 2.266282108e-05 | S15: 1 | T15: 1.209854274e-07 | U15: 1 | V15: 3.347711189e-05 | W15: 59.6779344 | X15: =IF(((F15+L15+H15)-(D15+J15+V15+N15))*radconv<-180,((F15+L15+H15)-(D15+J15+V15+N15))*radconv+360,((F15+L15+H15)-(D15+J15+V15+N15))*radconv) -> -86.15852069 | Y15: 93.84147931 | AB15: 51.95789693 | AC15: -86.04278251 | AE15: 65.80304155 | AF15: -12.76909036 | AI15: 69.30366239 | AJ15: -0.1157381839 | AL15: 0 | AM15: 0 | AN15: 0 | AO15: 0 | AP15: 0 | AQ15: 0
B16: 1.3183 | C16: 1.000002391 | D16: 0.002186741037 | E16: 1 | F16: 8.54197079e-06 | G16: 1 | H16: 0 | I16: 16.59970802 | J16: 1.510517806 | K16: 1.000005489 | L16: 0.003313237152 | M16: 1.000000001 | N16: 3.656743125e-05 | O16: 1.030418103 | P16: 0.2435838673 | Q16: 1 | R16: 2.484936957e-05 | S16: 1 | T16: 1.326583123e-07 | U16: 1 | V16: 3.670704201e-05 | W16: 58.88109767 | X16: -86.48546061 | Y16: 93.51453939 | AB16: 51.16106369 | AC16: -86.35855583 | AE16: 65.76033031 | AF16: -13.95491139 | AI16: 69.30365889 | AJ16: -0.126904772 | AL16: 0 | AM16: 0 | AN16: 0 | AO16: 0 | AP16: 0 | AQ16: 0
B17: 1.4454 | C17: 1.000002874 | D17: 0.002397568441 | E17: 1 | F17: 9.365519669e-06 | G17: 1 | H17: 0 | I17: 18.19456629 | J17: 1.515807154 | K17: 1.000006598 | L17: 0.003632670438 | M17: 1.000000001 | N17: 4.009297211e-05 | O17: 1.036457745 | P17: 0.2660206953 | Q17: 1 | R17: 2.724514812e-05 | S17: 1 | T17: 1.454481716e-07 | U17: 1.000000001 | V17: 4.024604302e-05 | W17: 58.08427793 | X17: -86.78265284 | Y17: 93.21734716 | AB17: 50.36424816 | AC17: -86.64351296 | AE17: 65.7095679 | AF17: -15.24031041 | AI17: 69.30365469 | AJ17: -0.1391398764 | AL17: 0 | AM17: 0 | AN17: 0 | AO17: 0 | AP17: 0 | AQ17: 0
B18: 1.5849 | C18: 1.000003456 | D18: 0.002628964127 | E18: 1 | F18: 1.026941478e-05 | G18: 1 | H18: 0 | I18: 19.94550815 | J18: 1.520638697 | K18: 1.000007933 | L18: 0.00398326709 | M18: 1.000000001 | N18: 4.396246816e-05 | O18: 1.043679735 | P18: 0.2903339273 | Q18: 1 | R18: 2.987466117e-05 | S18: 1 | T18: 1.59485822e-07 | U18: 1.000000001 | V18: 4.413031243e-05 | W18: 57.28621652 | X18: -87.05304259 | Y18: 92.94695741 | AB18: 49.5661918 | AC18: -86.90047395 | AE18: 65.6492549 | AF18: -16.63320613 | AI18: 69.30364964 | AJ18: -0.1525686355 | AL18: 0 | AM18: 0 | AN18: 0 | AO18: 0 | AP18: 0 | AQ18: 0
B19: 1.7378 | C19: 1.000004155 | D19: 0.002882586745 | E19: 1 | F19: 1.126013566e-05 | G19: 1 | H19: 0 | I19: 21.8650859 | J19: 1.525045354 | K19: 1.000009538 | L19: 0.00436754 | M19: 1.000000001 | N19: 4.820365775e-05 | O19: 1.052293677 | P19: 0.3165820166 | Q19: 1.000000001 | R19: 3.275675827e-05 | S19: 1 | T19: 1.748718919e-07 | U19: 1.000000001 | V19: 4.838769445e-05 | W19: 56.48810273 | X19: -87.29846993 | Y19: 92.70153007 | AB19: 48.76808408 | AC19: -87.13118262 | AE19: 65.5778607 | AF19: -18.13694662 | AI19: 69.30364357 | AJ19: -0.167287307 | AL19: 0 | AM19: 0 | AN19: 0 | AO19: 0 | AP19: 0 | AQ19: 0
B20: 1.9055 | C20: 1.000004995 | D20: 0.003160758409 | E20: 1 | F20: 1.234675365e-05 | G20: 1 | H20: 0 | I20: 23.97087598 | J20: 1.529066926 | K20: 1.000011467 | L20: 0.004789007229 | M20: 1.000000001 | N20: 5.285537451e-05 | O20: 1.062560514 | P20: 0.3448597672 | Q20: 1.000000001 | R20: 3.591782879e-05 | S20: 1 | T20: 1.91747261e-07 | U20: 1.000000001 | V20: 5.3057171e-05 | W20: 55.68945785 | X20: -87.52115061 | Y20: 92.47884939 | AB20: 47.9694465 | AC20: -87.33771996 | AE20: 65.49352646 | AF20: -19.75696223 | AI20: 69.30363627 | AJ20: -0.183430652 | AL20: 0 | AM20: 0 | AN20: 0 | AO20: 0 | AP20: 0 | AQ20: 0
B21: 2.0893 | C21: 1.000006005 | D21: 0.003465635318 | E21: 1 | F21: 1.353769216e-05 | G21: 1 | H21: 0 | I21: 26.27920245 | J21: 1.532734232 | K21: 1.000013786 | L21: 0.005250935364 | M21: 1.000000002 | N21: 5.795367827e-05 | O21: 1.074768898 | P21: 0.3752048235 | Q21: 1.000000001 | R21: 3.938237717e-05 | S21: 1 | T21: 2.102427459e-07 | U21: 1.000000001 | V21: 5.817493957e-05 | W21: 54.8909037 | X21: -87.72279048 | Y21: 92.27720952 | AB21: 47.17090112 | AC21: -87.52166668 | AE21: 65.39429812 | AF21: -21.49540844 | AI21: 69.30362749 | AJ21: -0.2011238029 | AL21: 0 | AM21: 0 | AN21: 0 | AO21: 0 | AP21: 0 | AQ21: 0
B22: 2.2909 | C22: 1.00000722 | D22: 0.003800037103 | E22: 1 | F22: 1.484396638e-05 | G22: 1 | H22: 0 | I22: 28.81141556 | J22: 1.53608089 | K22: 1.000016575 | L22: 0.005757596066 | M22: 1.000000002 | N22: 6.354572418e-05 | O22: 1.089270249 | P22: 0.407673206 | Q22: 1.000000001 | R22: 4.318244763e-05 | S22: 1 | T22: 2.305294149e-07 | U22: 1.000000002 | V22: 6.378833535e-05 | W22: 54.09186905 | X22: -87.9052373 | Y22: 92.0947627 | AB22: 46.37187703 | AC22: -87.68470691 | AE22: 65.27788708 | AF22: -23.35549316 | AI22: 69.30361694 | AJ22: -0.2205303938 | AL22: 0 | AM22: 0 | AN22: 0 | AO22: 0 | AP22: 0 | AQ22: 0
B23: 2.5119 | C23: 1.00000868 | D23: 0.004166617446 | E23: 1 | F23: 1.627594358e-05 | G23: 1 | H23: 0 | I23: 31.5876124 | J23: 1.539133056 | K23: 1.000019927 | L23: 0.006313009401 | M23: 1.000000002 | N23: 6.967589354e-05 | O23: 1.106449293 | P23: 0.4422477289 | Q23: 1.000000001 | R23: 4.734819948e-05 | S23: 1 | T23: 2.527682733e-07 | U23: 1.000000002 | V23: 6.994190909e-05 | W23: 53.2928414 | X23: -88.06991601 | Y23: 91.93008399 | AB23: 45.57286207 | AC23: -87.82811158 | AE23: 65.14196961 | AF23: -25.33623 | AI23: 69.30360425 | AJ23: -0.2418044278 | AL23: 0 | AM23: 0 | AN23: 0 | AO23: 0 | AP23: 0 | AQ23: 0
B24: 2.7542 | C24: 1.000010436 | D24: 0.004568527545 | E24: 1 | F24: 1.784593488e-05 | G24: 1 | H24: 0 | I24: 34.63166067 | J24: 1.541917001 | K24: 1.000023957 | L24: 0.006921949036 | M24: 1.000000003 | N24: 7.639688918e-05 | O24: 1.126754308 | P24: 0.4788943918 | Q24: 1.000000001 | R24: 5.191544687e-05 | S24: 1 | T24: 2.771505149e-07 | U24: 1.000000002 | V24: 7.668856483e-05 | W24: 52.4937308 | X24: -88.21824404 | Y24: 91.78175596 | AB24: 44.77376672 | AC24: -87.95311526 | AE24: 64.98401538 | AF24: -27.43566883 | AI24: 69.303589 | AJ24: -0.2651287813 | AL24: 0 | AM24: 0 | AN24: 0 | AO24: 0 | AP24: 0 | AQ24: 0
B25: 3.02 | C25: 1.000012547 | D25: 0.005009416079 | E25: 1 | F25: 1.956819524e-05 | G25: 1 | H25: 0 | I25: 37.9711995 | J25: 1.544457532 | K25: 1.000028804 | L25: 0.007589942103 | M25: 1.000000004 | N25: 8.37697354e-05 | O25: 1.15070321 | P25: 0.5175502341 | Q25: 1.000000002 | R25: 5.692565882e-05 | S25: 1 | T25: 3.03897522e-07 | U25: 1.000000003 | V25: 8.408955984e-05 | W25: 51.69413457 | X25: -88.35154143 | Y25: 91.64845857 | AB25: 43.97418883 | AC25: -88.06082622 | AE25: 64.80133343 | AF25: -29.65019991 | AI25: 69.30357066 | AJ25: -0.290715201 | AL25: 0 | AM25: 0 | AN25: 0 | AO25: 0 | AP25: 0 | AQ25: 0
B26: 3.3113 | C26: 1.000015085 | D26: 0.005492599803 | E26: 1 | F26: 2.145568374e-05 | G26: 1 | H26: 0 | I26: 41.63135713 | J26: 1.546773661 | K26: 1.000034629 | L26: 0.008322012482 | M26: 1.000000004 | N26: 9.184990884e-05 | O26: 1.178838538 | P26: 0.5580438052 | Q26: 1.000000002 | R26: 6.241653444e-05 | S26: 1 | T26: 3.332105512e-07 | U26: 1.000000003 | V26: 9.220058259e-05 | W26: 50.89483807 | X26: -88.47080522 | Y26: 91.52919478 | AB26: 43.17491438 | AC26: -88.15204904 | AE26: 64.59151343 | AF26: -31.96999771 | AI26: 69.30354862 | AJ26: -0.3187561714 | AL26: 0 | AM26: 0 | AN26: 0 | AO26: 0 | AP26: 0 | AQ26: 0
B27: 3.6308 | C27: 1.000018136 | D27: 0.006022556336 | E27: 1 | F27: 2.352589512e-05 | G27: 1 | H27: 0 | I27: 45.64605879 | J27: 1.548886878 | K27: 1.000041634 | L27: 0.009124942415 | M27: 1.000000005 | N27: 0.000100712303 | O27: 1.211809767 | P27: 0.6002188348 | Q27: 1.000000002 | R27: 6.843896753e-05 | S27: 1 | T27: 3.653612989e-07 | U27: 1.000000004 | V27: 0.0001010968125 | W27: 50.09521807 | X27: -88.57714227 | Y27: 91.42285773 | AB27: 42.37532088 | AC27: -88.22763073 | AE27: 64.35191096 | AF27: -34.38610569 | AI27: 69.30352211 | AJ27: -0.3495115461 | AL27: 0 | AM27: 0 | AN27: 0 | AO27: 0 | AP27: 0 | AQ27: 0
B28: 3.9811 | C28: 1.000021804 | D28: 0.006603597113 | E28: 1 | F28: 2.579567618e-05 | G28: 1 | H28: 0 | I28: 50.04797506 | J28: 1.550814169 | K28: 1.000050055 | L28: 0.01000526174 | M28: 1.000000006 | N28: 0.0001104290374 | O28: 1.25029689 | P28: 0.6438176498 | Q28: 1.000000003 | R28: 7.504196694e-05 | S28: 1 | T28: 4.006113989e-07 | U28: 1.000000005 | V28: 0.0001108506445 | W28: 49.29559482 | X28: -88.67140606 | Y28: 91.32859394 | AB28: 41.5757295 | AC28: -88.28817452 | AE28: 64.08033692 | AF28: -36.88375747 | AI28: 69.30349024 | AJ28: -0.3832315349 | AL28: 0 | AM28: 0 | AN28: 0 | AO28: 0 | AP28: 0 | AQ28: 0
B29: 4.3652 | C29: 1.000026214 | D29: 0.007240696632 | E29: 1 | F29: 2.828446551e-05 | G29: 1 | H29: 0 | I29: 54.87480436 | J29: 1.552572018 | K29: 1.000060179 | L29: 0.01097050407 | M29: 1.000000007 | N29: 0.0001210833272 | O29: 1.295055793 | P29: 0.6885510675 | Q29: 1.000000003 | R29: 8.228208132e-05 | S29: 1 | T29: 4.392627361e-07 | U29: 1.000000005 | V29: 0.0001215456113 | W29: 48.49591495 | X29: -88.75440285 | Y29: 91.24559715 | AB29: 40.77608794 | AC29: -88.33419803 | AE29: 63.77483036 | AF29: -39.4463809 | AI29: 69.30345193 | AJ29: -0.4202048278 | AL29: 0 | AM29: 0 | AN29: 0 | AO29: 0 | AP29: 0 | AQ29: 0
B30: 4.7863 | C30: 1.000031516 | D30: 0.00793916059 | E30: 1 | F30: 3.101299763e-05 | G30: 1 | H30: 0 | I30: 60.16675977 | J30: 1.554175089 | K30: 1.000072349 | L30: 0.01202870376 | M30: 1.000000009 | N30: 0.0001327639348 | O30: 1.346893075 | P30: 0.7340769343 | Q30: 1.000000004 | R30: 9.021962926e-05 | S30: 1 | T30: 4.81637321e-07 | U30: 1.000000007 | V30: 0.0001332708144 | W30: 47.69630181 | X30: -88.82682539 | Y30: 91.17317461 | AB30: 39.97652086 | AC30: -88.36608606 | AE30: 63.43393755 | AF30: -42.05436856 | AI30: 69.30340587 | AJ30: -0.460739336 | AL30: 0 | AM30: 0 | AN30: 0 | AO30: 0 | AP30: 0 | AQ30: 0
B31: 5.2481 | C31: 1.000037891 | D31: 0.008705123294 | E31: 1.000000001 | F31: 3.400524682e-05 | G31: 1 | H31: 0 | I31: 65.97033913 | J31: 1.555637419 | K31: 1.000086983 | L31: 0.0131891491 | M31: 1.000000011 | N31: 0.0001455734921 | O31: 1.406697736 | P31: 0.7800409011 | Q31: 1.000000005 | R31: 9.892435411e-05 | S31: 1 | T31: 5.281074785e-07 | U31: 1.000000008 | V31: 0.0001461292774 | W31: 46.89653165 | X31: -88.88930778 | Y31: 91.11069222 | AB31: 39.17680608 | AC31: -88.38411672 | AE31: 63.05658419 | AF31: -44.68741379 | AI31: 69.30335049 | AJ31: -0.5051910586 | AL31: 0 | AM31: 0 | AN31: 0 | AO31: 0 | AP31: 0 | AQ31: 0
B32: 5.7544 | C32: 1.000045554 | D32: 0.009544883972 | E32: 1.000000001 | F32: 3.728583531e-05 | G32: 1 | H32: 0 | I32: 72.33329822 | J32: 1.556970995 | K32: 1.000104575 | L32: 0.01446137642 | M32: 1.000000013 | N32: 0.0001596174048 | O32: 1.475385887 | P32: 0.82604529 | Q32: 1.000000006 | R32: 0.0001084678842 | S32: 1 | T32: 5.790555962e-07 | U32: 1.00000001 | V32: 0.0001602268084 | W32: 46.09682681 | X32: -88.94236197 | Y32: 91.05763803 | AB32: 38.37716781 | AC32: -88.3884364 | AE32: 62.64248747 | AF32: -47.32272723 | AI32: 69.30328392 | AJ32: -0.5539255664 | AL32: 0 | AM32: 0 | AN32: 0 | AO32: 0 | AP32: 0 | AQ32: 0
B33: 6.3096 | C33: 1.000054768 | D33: 0.01046573578 | E33: 1.000000001 | F33: 4.088327305e-05 | G33: 1 | H33: 0 | I33: 79.31093433 | J33: 1.558187391 | K33: 1.000125726 | L33: 0.01585642536 | M33: 1.000000015 | N33: 0.0001750177213 | O33: 1.553960271 | P33: 0.8717119692 | Q33: 1.000000007 | R33: 0.0001189331575 | S33: 1 | T33: 6.349244386e-07 | U33: 1.000000011 | V33: 0.0001756859219 | W33: 45.29703448 | X33: -88.98644882 | Y33: 91.01355118 | AB33: 37.57745553 | AC33: -88.37908271 | AE33: 62.19180175 | AF33: -49.93863879 | AI33: 69.30320387 | AJ33: -0.6073661126 | AL33: 0 | AM33: 0 | AN33: 0 | AO33: 0 | AP33: 0 | AQ33: 0
B34: 6.9183 | C34: 1.000065845 | D34: 0.01147530195 | E34: 1.000000001 | F34: 4.482736591e-05 | G34: 1 | H34: 0 | I34: 86.9610593 | J34: 1.559296673 | K34: 1.000151153 | L34: 0.01738583243 | M34: 1.000000018 | N34: 0.000191902038 | O34: 1.643452355 | P34: 0.9166585914 | Q34: 1.000000009 | R34: 0.000130406882 | S34: 1 | T34: 6.961768961e-07 | U34: 1.000000014 | V34: 0.0001926347014 | W34: 44.49732395 | X34: -89.02193386 | Y34: 90.97806614 | AB34: 36.77784122 | AC34: -88.35597875 | AE34: 61.70545763 | AF34: -52.51323666 | AI34: 69.30310765 | AJ34: -0.6659551072 | AL34: 0 | AM34: 0 | AN34: 0 | AO34: 0 | AP34: 0 | AQ34: 0
B35: 7.5858 | C35: 1.000079163 | D35: 0.01258236456 | E35: 1.000000001 | F35: 4.915245541e-05 | G35: 1 | H35: 0 | I35: 95.35028337 | J35: 1.560308489 | K35: 1.000181724 | L35: 0.0190628854 | M35: 1.000000022 | N35: 0.0002104173678 | O35: 1.744990901 | P35: 0.9605505529 | Q35: 1.00000001 | R35: 0.0001429889603 | S35: 1 | T35: 7.633462987e-07 | U35: 1.000000017 | V35: 0.0002112207212 | W35: 43.69753038 | X35: -89.0491265 | Y35: 90.9508735 | AB35: 35.97816335 | AC35: -88.31892429 | AE35: 61.18473667 | AF35: -55.02734376 | AI35: 69.30299196 | AJ35: -0.730202213 | AL35: 0 | AM35: 0 | AN35: 0 | AO35: 0 | AP35: 0 | AQ35: 0
B36: 8.3176 | C36: 1.000095173 | D36: 0.0137960345 | E36: 1.000000001 | F36: 5.3894179e-05 | G36: 1 | H36: 0 | I36: 104.5477312 | J36: 1.561231172 | K36: 1.000218473 | L36: 0.02090136461 | M36: 1.000000027 | N36: 0.0002307162717 | O36: 1.859727032 | P36: 1.003073708 | Q36: 1.000000012 | R36: 0.000156783065 | S36: 1 | T36: 8.369861022e-07 | U36: 1.00000002 | V36: 0.0002315971246 | W36: 42.89785791 | X36: -89.06825226 | Y36: 90.93174774 | AB36: 35.17862995 | AC36: -88.26761608 | AE36: 60.63161595 | AF36: -57.46295493 | AI36: 69.30285288 | AJ36: -0.8006361798 | AL36: 0 | AM36: 0 | AN36: 0 | AO36: 0 | AP36: 0 | AQ36: 0
B37: 9.1201 | C37: 1.000114423 | D37: 0.01512691157 | E37: 1.000000002 | F37: 5.90940057e-05 | G37: 1 | H37: 0 | I37: 114.6338397 | J37: 1.562072789 | K37: 1.000262659 | L37: 0.02291729841 | M37: 1.000000032 | N37: 0.0002529762746 | O37: 1.988941986 | P37: 1.043984644 | Q37: 1.000000015 | R37: 0.0001719098333 | S37: 1 | T37: 9.177403278e-07 | U37: 1.000000024 | V37: 0.0002539421145 | W37: 42.09810981 | X37: -89.07948024 | Y37: 90.92051976 | AB37: 34.37904906 | AC37: -88.20160807 | AE37: 60.04815773 | AF37: -59.80611688 | AI37: 69.30268567 | AJ37: -0.8778721645 | AL37: 0 | AM37: 0 | AN37: 0 | AO37: 0 | AP37: 0 | AQ37: 0
B38: 10 | C38: 1.000137565 | D38: 0.01658608811 | E38: 1.000000002 | F38: 6.479534839e-05 | G38: 1 | H38: 0 | I38: 125.6928169 | J38: 1.562840339 | K38: 1.000315777 | L38: 0.0251274515 | M38: 1.000000038 | N38: 0.0002773832233 | O38: 2.133956005 | P38: 1.083076016 | Q38: 1.000000018 | R38: 0.000188495557 | S38: 1 | T38: 1.006283185e-06 | U38: 1.000000029 | V38: 0.0002784422471 | W38: 41.29841758 | X38: -89.08290534 | Y38: 90.91709466 | AB38: 33.57955786 | AC38: -88.12035143 | AE38: 59.43689084 | AF38: -62.04494226 | AI38: 69.30248464 | AJ38: -0.9625539129 | AL38: 0 | AM38: 0 | AN38: 0 | AO38: 0 | AP38: 0 | AQ38: 0
B39: 10.965 | C39: 1.000165394 | D39: 0.01818630824 | E39: 1.000000003 | F39: 7.104809949e-05 | G39: 1 | H39: 0 | I39: 137.8214398 | J39: 1.563540498 | K39: 1.000379651 | L39: 0.02755107765 | M39: 1.000000046 | N39: 0.0003041507028 | O39: 2.29624456 | P39: 1.120209703 | Q39: 1.000000021 | R39: 0.0002066853777 | S39: 1 | T39: 1.103389513e-06 | U39: 1.000000035 | V39: 0.000305311923 | W39: 40.49860393 | X39: -89.07855875 | Y39: 90.92144125 | AB39: 32.77998594 | AC39: -88.02313771 | AE39: 58.80023729 | AF39: -64.17150918 | AI39: 69.30224291 | AJ39: -1.055421036 | AL39: 0 | AM39: 0 | AN39: 0 | AO39: 0 | AP39: 0 | AQ39: 0
B40: 12.023 | C40: 1.000198847 | D40: 0.01994063914 | E40: 1.000000003 | F40: 7.790344732e-05 | G40: 1 | H40: 0 | I40: 151.1189997 | J40: 1.564178977 | K40: 1.000456432 | L40: 0.03020790301 | M40: 1.000000056 | N40: 0.0003334978456 | O40: 2.477309398 | P40: 1.155278499 | Q40: 1.000000026 | R40: 0.000226628207 | S40: 1 | T40: 1.209854274e-06 | U40: 1.000000042 | V40: 0.0003347711114 | W40: 39.69893415 | X40: -89.06640834 | Y40: 90.93359166 | AB40: 31.98060674 | AC40: -87.90917645 | AE40: 58.14099513 | AF40: -66.17966661 | AI40: 69.30195233 | AJ40: -1.157231897 | AL40: 0 | AM40: 0 | AN40: 0 | AO40: 0 | AP40: 0 | AQ40: 0
B41: 13.183 | C41: 1.000239064 | D41: 0.02186396066 | E41: 1.000000004 | F41: 8.541970769e-05 | G41: 1 | H41: 0 | I41: 165.6986139 | J41: 1.564761237 | K41: 1.00054873 | L41: 0.03312037688 | M41: 1.000000067 | N41: 0.0003656742964 | O41: 2.67883309 | P41: 1.188236074 | Q41: 1.000000031 | R41: 0.0002484936906 | S41: 1 | T41: 1.326583123e-06 | U41: 1.00000005 | V41: 0.0003670704101 | W41: 38.89938993 | X41: -89.04635865 | Y41: 90.95364135 | AB41: 31.18141182 | AC41: -87.77750859 | AE41: 57.46168708 | AF41: -68.06675049 | AI41: 69.30160303 | AJ41: -1.268850066 | AL41: 0 | AM41: 0 | AN41: 0 | AO41: 0 | AP41: 0 | AQ41: 0
B42: 14.454 | C42: 1.000287377 | D42: 0.0239711379 | E42: 1.000000004 | F42: 9.365519642e-05 | G42: 1 | H42: 0 | I42: 181.6733999 | J42: 1.565291916 | K42: 1.000659603 | L42: 0.03631089734 | M42: 1.00000008 | N42: 0.0004009296998 | O42: 2.902493004 | P42: 1.219056741 | Q42: 1.000000037 | R42: 0.0002724514745 | S42: 1 | T42: 1.454481716e-06 | U42: 1.00000006 | V42: 0.000402460417 | W42: 38.10048328 | X42: -89.01826916 | Y42: 90.98173084 | AB42: 30.38292478 | AC42: -87.6271309 | AE42: 56.7651766 | AF42: -69.83127924 | AI42: 69.30118342 | AJ42: -1.391138268 | AL42: 0 | AM42: 0 | AN42: 0 | AO42: 0 | AP42: 0 | AQ42: 0
B43: 15.849 | C43: 1.000345515 | D43: 0.02628364765 | E43: 1.000000005 | F43: 0.0001026941474 | G43: 1 | H43: 0 | I43: 199.2067507 | J43: 1.565776396 | K43: 1.000793015 | L43: 0.03981183455 | M43: 1.000000097 | N43: 0.0004396246536 | O43: 3.150672767 | P43: 1.247817752 | Q43: 1.000000045 | R43: 0.0002987466029 | S43: 1 | T43: 1.59485822e-06 | U43: 1.000000072 | V43: 0.0004413031069 | W43: 37.30088202 | X43: -88.98186061 | Y43: 91.01813939 | AB43: 29.58382844 | AC43: -87.45651767 | AE43: 56.05253432 | AF43: -71.47766525 | AI43: 69.3006785 | AJ43: -1.525342945 | AL43: 0 | AM43: 0 | AN43: 0 | AO43: 0 | AP43: 0 | AQ43: 0
B44: 17.378 | C44: 1.000415381 | D44: 0.0288179671 | E44: 1.000000006 | F44: 0.0001126013561 | G44: 1 | H44: 0 | I44: 218.4243533 | J44: 1.566218067 | K44: 1.000953328 | L44: 0.04364793805 | M44: 1.000000116 | N44: 0.0004820365405 | O44: 3.425229664 | P44: 1.274530015 | Q44: 1.000000054 | R44: 0.0003275675711 | S44: 1 | T44: 1.748718919e-06 | U44: 1.000000087 | V44: 0.0004838769216 | W44: 36.50172622 | X44: -88.93688146 | Y44: 91.06311854 | AB44: 28.78527938 | AC44: -87.26446105 | AE44: 55.32680645 | AF44: -73.0065227 | AI44: 69.30007176 | AJ44: -1.672420412 | AL44: 0 | AM44: 0 | AN44: 0 | AO44: 0 | AP44: 0 | AQ44: 0
B45: 19.055 | C45: 1.000499398 | D45: 0.03159716981 | E45: 1.000000008 | F45: 0.0001234675359 | G45: 1 | H45: 0 | I45: 239.5021702 | J45: 1.566620987 | K45: 1.00114609 | L45: 0.04785387656 | M45: 1.00000014 | N45: 0.0005285536964 | O45: 3.728737665 | P45: 1.299285444 | Q45: 1.000000065 | R45: 0.0003591782726 | S45: 1 | T45: 1.91747261e-06 | U45: 1.000000104 | V45: 0.0005305716798 | W45: 35.70250111 | X45: -88.88293922 | Y45: 91.11706078 | AB45: 27.98678385 | AC45: -87.0492294 | AE45: 54.58936388 | AF45: -74.42310278 | AI45: 69.29934219 | AJ45: -1.833709824 | AL45: 0 | AM45: =IF(AL45>0,Y43,0) -> 0 | AN45: 0 | AO45: 0 | AP45: 0 | AQ45: 0
B46: 20.893 | C46: 1.000600356 | D46: 0.03464262693 | E46: 1.000000009 | F46: 0.0001353769208 | G46: 1 | H46: 0 | I46: 262.6035951 | J46: 1.566988297 | K46: 1.001377692 | L46: 0.05246165444 | M46: 1.000000168 | N46: 0.0005795367185 | O46: 4.063596735 | P46: 1.322154881 | Q46: 1.000000078 | R46: 0.0003938237515 | S46: 1 | T46: 2.102427459e-06 | U46: 1.000000126 | V46: 0.0005817493559 | W46: 34.90380912 | X46: -88.81964114 | Y46: 91.18035886 | AB46: 27.18896845 | AC46: -86.80918956 | AE46: 53.84238853 | AF46: -75.73145058 | AI46: 69.29846559 | AJ46: -2.010451571 | AL46: 0 | AM46: 0 | AN46: 0 | AO46: 0 | AP46: 0 | AQ46: 0
B47: 22.909 | C47: 1.000721761 | D47: 0.03798227831 | E47: 1.000000011 | F47: 0.0001484396627 | G47: 1 | H47: 0 | I47: 287.9422975 | J47: 1.567323402 | K47: 1.001656161 | L47: 0.05751309975 | M47: 1.000000202 | N47: 0.0006354571571 | O47: 4.432941179 | P47: 1.34325402 | Q47: 1.000000093 | R47: 0.0004318244498 | S47: 1 | T47: 2.305294149e-06 | U47: 1.000000151 | V47: 0.000637883301 | W47: 34.10507393 | X47: -88.74643448 | Y47: 91.25356552 | AB47: 26.39128727 | AC47: -86.54216718 | AE47: 53.08676135 | AF47: -76.93817653 | AI47: 69.29741158 | AJ47: -2.204267298 | AL47: 0 | AM47: 0 | AN47: 0 | AO47: 0 | AP47: 0 | AQ47: 0
B48: 25.119 | C48: 1.000867669 | D48: 0.04164232844 | E48: 1.000000013 | F48: 0.0001627594344 | G48: 1 | H48: 0 | I48: 315.7193781 | J48: 1.567628952 | K48: 1.001990776 | L48: 0.06304726293 | M48: 1.000000243 | N48: 0.0006967588238 | O48: 4.839731801 | P48: 1.362674093 | Q48: 1.000000112 | R48: 0.0004734819598 | S48: 1 | T48: 2.527682733e-06 | U48: 1.000000181 | V48: 0.0006994190217 | W48: 33.30679267 | X48: -88.66278004 | Y48: 91.33721996 | AB48: 25.5942726 | AC48: -86.24610204 | AE48: 52.32417498 | AF48: -78.0484907 | AI48: 69.296145 | AJ48: -2.416677998 | AL48: 0 | AM48: 0 | AN48: 0 | AO48: 0 | AP48: 0 | AQ48: 0
B49: 27.542 | C49: 1.001043043 | D49: 0.04565384845 | E49: 1.000000016 | F49: 0.0001784593469 | G49: 1 | H49: 0 | I49: 346.1736444 | J49: 1.567907599 | K49: 1.002392883 | L49: 0.06911035603 | M49: 1.000000292 | N49: 0.0007639687446 | O49: 5.287487776 | P49: 1.380524592 | Q49: 1.000000135 | R49: 0.0005191544225 | S49: 1 | T49: 2.771505149e-06 | U49: 1.000000218 | V49: 0.000766885557 | W49: 32.50889991 | X49: -88.56801573 | Y49: 91.43198427 | AB49: 24.79790195 | AC49: -85.91852856 | AE49: 51.55561356 | AF49: -79.06864607 | AI49: 69.29462287 | AJ49: -2.649487173 | AL49: 0 | AM49: 0 | AN49: 0 | AO49: 0 | AP49: 0 | AQ49: 0
B50: 30.2 | C50: 1.001253947 | D50: 0.05005273923 | E50: 1.000000019 | F50: 0.0001956819499 | G50: 1 | H50: 0 | I50: 379.5816107 | J50: 1.568161844 | K50: 1.002876335 | L50: 0.0757556267 | M50: 1.000000351 | N50: 0.00083769716 | O50: 5.780293053 | P50: 1.396919906 | Q50: 1.000000162 | R50: 0.0005692565273 | S50: 1 | T50: 3.03897522e-06 | U50: 1.000000262 | V50: 0.0008408954781 | W50: 31.71103415 | X50: -88.46135282 | Y50: 91.53864718 | AB50: 24.00186634 | AC50: -85.55657409 | AE50: 50.78160418 | AF50: -80.00517308 | AI50: 69.29279273 | AJ50: -2.904778723 | AL50: 0 | AM50: 0 | AN50: 0 | AO50: 0 | AP50: 0 | AQ50: 0
B51: 33.113 | C51: 1.001507327 | D51: 0.05487141371 | E51: 1.000000023 | F51: 0.0002145568341 | G51: 1 | H51: 0 | I51: 416.1946536 | J51: 1.568393603 | K51: 1.003456979 | L51: 0.08303071107 | M51: 1.000000422 | N51: 0.0009184988327 | O51: 6.321869174 | P51: 1.411948074 | Q51: 1.000000195 | R51: 0.0006241652642 | S51: 1 | T51: 3.332105511e-06 | U51: 1.000000315 | V51: 0.0009220056673 | W51: 30.91403615 | X51: -88.34208509 | Y51: 91.65791491 | AB51: 23.20706656 | AC51: -85.15765084 | AE51: 50.00369152 | AF51: -80.8630944 | AI51: 69.29059451 | AJ51: -3.184434254 | AL51: 0 | AM51: 0 | AN51: 0 | AO51: 0 | AP51: 0 | AQ51: 0
B52: 36.308 | C52: 1.001811961 | D52: 0.06015363186 | E52: 1.000000028 | F52: 0.0002352589469 | G52: 1 | H52: 0 | I52: 456.3521319 | J52: 1.568605035 | K52: 1.004154829 | L52: 0.09099993224 | M52: 1.000000507 | N52: 0.001007122693 | O52: 6.917245924 | P52: 1.425721768 | Q52: 1.000000234 | R52: 0.0006843895695 | S52: 1 | T52: 3.653612989e-06 | U52: 1.000000379 | V52: 0.001010967916 | W52: 30.11735998 | X52: -88.20923412 | Y52: 91.79076588 | AB52: 22.41303255 | AC52: -84.71824004 | AE52: 49.22193763 | AF52: -81.64883674 | AI52: 69.28795236 | AJ52: -3.490994078 | AL52: 0 | AM52: 0 | AN52: 0 | AO52: 0 | AP52: 0 | AQ52: 0
B53: 39.811 | C53: 1.002178066 | D53: 0.06594118846 | E53: 1.000000033 | F53: 0.0002579567561 | G53: 1 | H53: 0 | I53: 500.3808357 | J53: 1.568797848 | K53: 1.004993131 | L53: 0.09972405427 | M53: 1.00000061 | N53: 0.00110428993 | O53: 7.571276734 | P53: 1.438331151 | Q53: 1.000000282 | R53: 0.0007504195299 | S53: 1 | T53: 4.006113989e-06 | U53: 1.000000456 | V53: 0.001108506169 | W53: 29.32142143 | X53: -88.06188399 | Y53: 91.93811601 | AB53: 21.62026822 | AC53: -84.23499931 | AE53: 48.43721996 | AF53: -82.36753817 | AI53: 69.28477812 | AJ53: -3.826884686 | AL53: 0 | AM53: 0 | AN53: 0 | AO53: 0 | AP53: 0 | AQ53: 0
B54: 43.652 | C54: 1.002618049 | D54: 0.07228208403 | E54: 1.00000004 | F54: 0.0002828446476 | G54: 1 | H54: 0 | I54: 548.6578308 | J54: 1.568973696 | K54: 1.00600008 | L54: 0.1092724334 | M54: 1.000000733 | N54: 0.001210832686 | O54: 8.289568791 | P54: 1.449868272 | Q54: 1.000000339 | R54: 0.0008228206294 | S54: 1 | T54: 4.39262736e-06 | U54: 1.000000548 | V54: 0.001215455749 | W54: 28.52628727 | X54: -87.89899034 | Y54: 92.10100966 | AB54: 20.82894731 | AC54: -83.70409731 | AE54: 47.64996406 | AF54: -83.02444036 | AI54: 69.28096488 | AJ54: -4.194893029 | AL54: 0 | AM54: 0 | AN54: 0 | AO54: 0 | AP54: 0 | AQ54: 0
B55: 47.863 | C55: 1.003146695 | D55: 0.07922708903 | E55: 1.000000048 | F55: 0.0003101299665 | G55: 1 | H55: 0 | I55: 601.5853207 | J55: 1.569134051 | K55: 1.007209197 | L55: 0.1197175983 | M55: 1.000000881 | N55: 0.001327638576 | O55: 9.078110787 | P55: 1.460417251 | Q55: 1.000000407 | R55: 0.0009021960503 | S55: 1 | T55: 4.81637321e-06 | U55: 1.000000659 | V55: 0.001332707665 | W55: 27.7322269 | X55: -87.71948082 | Y55: 92.28051918 | AB55: 20.0394664 | AC55: -83.12151361 | AE55: 46.86069388 | AF55: -83.62432873 | AI55: 69.27638542 | AJ55: -4.597967211 | AL55: 0 | AM55: 0 | AN55: 0 | AO55: 0 | AP55: 0 | AQ55: 0
B56: 52.481 | C56: 1.003781998 | D56: 0.08683452075 | E56: 1.000000058 | F56: 0.0003400524553 | G56: 1 | H56: 0 | I56: 659.6283534 | J56: 1.569280321 | K56: 1.008661183 | L56: 0.1311421258 | M56: 1.00000106 | N56: 0.001455733903 | O56: 9.943834876 | P56: 1.47006122 | Q56: 1.000000489 | R56: 0.0009892432216 | S56: 1 | T56: 5.281074785e-06 | U56: 1.000000792 | V56: 0.001461292143 | W56: 26.93919597 | X56: -87.52215021 | Y56: 92.47784979 | AB56: 19.25193567 | AC56: -82.48265635 | AE56: 46.06952608 | AF56: -84.17192667 | AI56: 69.27088523 | AJ56: -5.039493857 | AL56: 0 | AM56: 0 | AN56: 0 | AO56: 0 | AP56: 0 | AQ56: 0
B57: 57.544 | C57: 1.004545188 | D57: 0.09516342489 | E57: 1.00000007 | F57: 0.000372858336 | G57: 1 | H57: 0 | I57: 723.2645458 | J57: 1.569413706 | K57: 1.010403908 | L57: 0.143627994 | M57: 1.000001274 | N57: 0.001596172706 | O57: 10.89386762 | P57: 1.478872157 | Q57: 1.000000588 | R57: 0.001084678421 | S57: 1 | T57: 5.790555961e-06 | U57: 1.000000952 | V57: 0.001602267252 | W57: 26.14762828 | X57: -87.30586032 | Y57: 92.69413968 | AB57: 18.46697075 | AC57: -81.78295777 | AE57: 45.27696316 | AF57: -84.67131734 | AI57: 69.26428244 | AJ57: -5.522902552 | AL57: 0 | AM57: 0 | AN57: 0 | AO57: 0 | AP57: 0 | AQ57: 0
B58: 63.096 | C58: 1.005462064 | D58: 0.1042815197 | E58: 1.000000084 | F58: 0.000408832708 | G58: 1 | H58: 0 | I58: 793.0469283 | J58: 1.569535367 | K58: 1.012495352 | L58: 0.1572680052 | M58: 1.000001532 | N58: 0.001750175444 | O58: 11.93646733 | P58: 1.486921136 | Q58: 1.000000707 | R58: 0.00118933102 | S58: 1 | T58: 6.349244386e-06 | U58: 1.000001145 | V58: 0.001756858122 | W58: 25.35762646 | X58: -87.06936417 | Y58: 92.93063583 | AB58: 17.68489472 | AC58: -81.01723704 | AE58: 44.48308978 | AF58: -85.12652572 | AI58: 69.25635666 | AJ58: -6.052127127 | AL58: 0 | AM58: 0 | AN58: 0 | AO58: 0 | AP58: 0 | AQ58: 0
B59: 69.183 | C59: 1.006563168 | D59: 0.114258235 | E59: 1.0000001 | F59: 0.0004482736294 | G59: 1 | H59: 0 | I59: 869.5536691 | J59: 1.569646311 | K59: 1.015003847 | L59: 0.1721547066 | M59: 1.000001841 | N59: 0.001919018047 | O59: 13.08027386 | P59: 1.494270659 | Q59: 1.00000085 | R59: 0.001304068088 | S59: 1 | T59: 6.961768961e-06 | U59: 1.000001377 | V59: 0.001926345568 | W59: 24.5696579 | X59: -86.81152441 | Y59: 93.18847559 | AB59: 16.90643494 | AC59: -80.18032249 | AE59: 43.68827056 | AF59: -85.54108347 | AI59: 69.24684788 | AJ59: -6.631201921 | AL59: 0 | AM59: 0 | AN59: 0 | AO59: 0 | AP59: 0 | AQ59: 0
B60: 75.858 | C60: 1.00788554 | D60: 0.1251724232 | E60: 1.000000121 | F60: 0.0004915245149 | G60: 1 | H60: 0 | I60: 953.4509184 | J60: 1.569747505 | K60: 1.018011869 | L60: 0.1883911043 | M60: 1.000002214 | N60: 0.002104170604 | O60: 14.33524762 | P60: 1.500981501 | Q60: 1.000001022 | R60: 0.001429888639 | S60: 1 | T60: 7.633462987e-06 | U60: 1.000001655 | V60: 0.002112205306 | W60: 23.78391291 | X60: -86.53116158 | Y60: 93.46883842 | AB60: 16.13209578 | AC60: -79.26645185 | AE60: 42.89250481 | AF60: -85.91841592 | AI60: 69.23544205 | AJ60: -7.264709727 | AL60: 0 | AM60: 0 | AN60: 0 | AO60: 0 | AP60: 0 | AQ60: 0
B61: 83.176 | C61: 1.009472868 | D61: 0.1371035274 | E61: 1.000000145 | F61: 0.0005389417383 | G61: 1 | H61: 0 | I61: 1045.429965 | J61: 1.569839782 | K61: 1.021616088 | L61: 0.206076482 | M61: 1.000002661 | N61: 0.002307158664 | O61: 15.71173011 | P61: 1.507106563 | Q61: 1.000001229 | R61: 0.001567829379 | S61: 1 | T61: 8.369861022e-06 | U61: 1.00000199 | V61: 0.002315968733 | W61: 23.00100318 | X61: -86.22734144 | Y61: 93.77265856 | AB61: 15.36285748 | AC61: -78.27007182 | AE61: 42.09613038 | AF61: -86.26149487 | AI61: 69.22177062 | AJ61: -7.957269621 | AL61: 0 | AM61: 0 | AN61: 0 | AO61: 0 | AP61: 0 | AQ61: 0
B62: 91.201 | C62: 1.011378187 | D62: 0.1501421858 | E62: 1.000000175 | F62: 0.0005909399889 | G62: 1 | H62: 0 | I62: 1146.295216 | J62: 1.569923951 | K62: 1.025933064 | L62: 0.2253209078 | M62: 1.0000032 | N62: 0.002529757403 | O62: 17.22176015 | P62: 1.512697573 | Q62: 1.000001478 | R62: 0.001719096656 | S62: 1 | T62: 9.177403278e-06 | U62: 1.000002393 | V62: 0.002539417832 | W62: 22.22121197 | X62: -85.89917705 | Y62: 94.10082295 | AB62: 14.59944815 | AC62: -77.18502392 | AE62: 41.29906202 | AF62: -86.57321547 | AI62: 69.20538875 | AJ62: -8.71415313 | AL62: 0 | AM62: 0 | AN62: 0 | AO62: 0 | AP62: 0 | AQ62: 0
B63: 100 | C63: 1.013664085 | D63: 0.1643793713 | E63: 1.00000021 | F63: 0.0006479533941 | G63: 1 | H63: 0 | I63: 1256.888787 | J63: 1.570000711 | K63: 1.031099155 | L63: 0.2462276016 | M63: 1.000003847 | N63: 0.00277382519 | O63: 18.87794542 | P63: 1.517799656 | Q63: 1.000001777 | R63: 0.00188495336 | S63: 1 | T63: 1.006283185e-05 | U63: 1.000002877 | V63: 0.002784418104 | W63: 21.44521357 | X63: -85.54619532 | Y63: 94.45380468 | AB63: 13.84306318 | AC63: -76.0055407 | AE63: 40.50152082 | AF63: -86.85609111 | AI63: 69.18577531 | AJ63: -9.540654623 | AL63: 0 | AM63: 0 | AN63: 0 | AO63: 0 | AP63: 0 | AQ63: 0
B64: 109.65 | C64: 1.016406156 | D64: 0.1799163738 | E64: 1.000000252 | F64: 0.0007104808765 | G64: 1 | H64: 0 | I64: 1378.178481 | J64: 1.570070731 | K64: 1.037277502 | L64: 0.268905824 | M64: 1.000004625 | N64: 0.003041497743 | O64: 20.69477972 | P64: 1.522456138 | Q64: 1.000002136 | R64: 0.002066850864 | S64: 1 | T64: 1.103389513e-05 | U64: 1.000003458 | V64: 0.003053113472 | W64: 20.67345587 | X64: -85.16819446 | Y64: 94.83180554 | AB64: 13.09477471 | AC64: -74.72552262 | AE64: 39.7034023 | AF64: -87.11252154 | AI64: 69.16230608 | AJ64: -10.44267184 | AL64: 0 | AM64: 0 | AN64: 0 | AO64: 0 | AP64: 0 | AQ64: 0
B65: 120.23 | C65: 1.019692822 | D65: 0.1968501404 | E65: 1.000000303 | F65: 0.0007790343172 | G65: 1 | H65: 0 | I65: 1511.157241 | J65: 1.570134582 | K65: 1.044656538 | L65: 0.2934472977 | M65: 1.000005561 | N65: 0.003334966216 | O65: 22.687137 | P65: 1.526704201 | Q65: 1.000002568 | R65: 0.002266278229 | S65: 1 | T65: 1.209854274e-05 | U65: 1.000004158 | V65: 0.003347703523 | W65: 19.90688812 | X65: -84.76572879 | Y65: 95.23427121 | AB65: 12.35625411 | AC65: -73.33987265 | AE65: 38.90502835 | AF65: -87.34455231 | AI65: 69.13425894 | AJ65: -11.42585614 | AL65: 0 | AM65: 0 | AN65: 0 | AO65: 0 | AP65: 0 | AQ65: 0
B66: 131.83 | C66: 1.023630068 | D66: 0.2152856008 | E66: 1.000000365 | F66: 0.0008541968713 | G66: 1 | H66: 0 | I66: 1656.956265 | J66: 1.570192811 | K66: 1.053459163 | L66: 0.3199419015 | M66: 1.000006686 | N66: 0.003656726828 | O66: 24.87196559 | P66: 1.530579577 | Q66: 1.000003087 | R66: 0.002484931842 | S66: 1 | T66: 1.326583123e-05 | U66: 1.000004999 | V66: 0.003670694095 | W66: 19.14625393 | X66: -84.33994515 | Y66: 95.66005485 | AB66: 11.62910013 | AC66: -71.84361544 | AE66: 38.10642456 | AF66: -87.55413394 | AI66: 69.10077873 | AJ66: -12.49632972 | AL66: 0 | AM66: 0 | AN66: 0 | AO66: 0 | AP66: 0 | AQ66: 0
B67: 144.54 | C67: 1.028340199 | D67: 0.2353154896 | E67: 1.000000439 | F67: 0.0009365516931 | G67: 1 | H67: 0 | I67: 1816.706752 | J67: 1.57024588 | K67: 1.063938018 | L67: 0.3484461889 | M67: 1.000008037 | N67: 0.004009275731 | O67: 27.26621653 | P67: 1.534112678 | Q67: 1.000003711 | R67: 0.002724508072 | S67: 1 | T67: 1.454481716e-05 | U67: 1.00000601 | V67: 0.004024590982 | W67: 18.39285524 | X67: -83.89319632 | Y67: 96.10680368 | AB67: 10.91558515 | AC67: -70.2336803 | AE67: 37.30813457 | AF67: -87.74291228 | AI67: 69.06089501 | AJ67: -13.65951603 | AL67: 0 | AM67: 0 | AN67: 0 | AO67: 0 | AP67: 0 | AQ67: 0
B68: 158.49 | C68: 1.033980098 | D68: 0.2570797191 | E68: 1.000000527 | F68: 0.001026941117 | G68: 1 | H68: 0 | I68: 1992.042658 | J68: 1.570294329 | K68: 1.076413418 | L68: 0.3790648713 | M68: 1.000009663 | N68: 0.004396218497 | O68: 29.89437888 | P68: 1.53733898 | Q68: 1.000004462 | R68: 0.00298745723 | S68: 1 | T68: 1.59485822e-05 | U68: 1.000007225 | V68: 0.004413013682 | W68: 17.64630341 | X68: -83.42789572 | Y68: 96.57210428 | AB68: 10.21655044 | AC68: -68.50430515 | AE68: 36.50884798 | AF68: -87.91278035 | AI68: 69.0133779 | AJ68: -14.92359057 | AL68: 0 | AM68: 0 | AN68: 0 | AO68: 0 | AP68: 0 | AQ68: 0
B69: 173.78 | C69: 1.040717793 | D69: 0.2806511713 | E69: 1.000000634 | F69: 0.00112601309 | G69: 1 | H69: 0 | I69: 2184.220871 | J69: 1.570338498 | K69: 1.091217889 | L69: 0.4117864515 | M69: 1.000011618 | N69: 0.004820328444 | O69: 32.7752929 | P69: 1.540280803 | Q69: 1.000005365 | R69: 0.003275664112 | S69: 1 | T69: 1.748718919e-05 | U69: 1.000008687 | V69: 0.004838746296 | W69: 16.9085478 | X69: -82.94917864 | Y69: 97.05082136 | AB69: 9.535222588 | AC69: -66.65632707 | AE69: 35.70971488 | AF69: -88.06490951 | AI69: 68.95695013 | AJ69: -16.29285157 | AL69: 0 | AM69: 0 | AN69: 0 | AO69: 0 | AP69: 0 | AQ69: 0
B70: 190.55 | C70: 1.048763368 | D70: 0.3061402064 | E70: 1.000000762 | F70: 0.001234674738 | G70: 1 | H70: 0 | I70: 2395.001034 | J70: 1.57037879 | K70: 1.108760303 | L70: 0.4466291396 | M70: 1.000013968 | N70: 0.005285488236 | O70: 35.93533717 | P70: 1.542964972 | Q70: 1.00000645 | R70: 0.003591767435 | S70: 1 | T70: 1.917472609e-05 | U70: 1.000010444 | V70: 0.005305686582 | W70: 16.1799634 | X70: -82.46274195 | Y70: 97.53725805 | AB70: 8.873542945 | AC70: -64.68894839 | AE70: 34.91022146 | AF70: -88.20068636 | AI70: 68.89004537 | AJ70: -17.77379356 | AL70: 0 | AM70: 0 | AN70: 0 | AO70: 0 | AP70: 0 | AQ70: 0
B71: 208.93 | C71: 1.058351191 | D71: 0.3336113422 | E71: 1.000000916 | F71: 0.001353768389 | G71: 1 | H71: 0 | I71: 2626.017101 | J71: 1.570415522 | K71: 1.129481425 | L71: 0.4835241077 | M71: 1.000016793 | N71: 0.005795302953 | O71: 39.39900814 | P71: 1.545412251 | Q71: 1.000007755 | R71: 0.003938217359 | S71: 1 | T71: 2.102427459e-05 | U71: 1.000012556 | V71: 0.005817453729 | W71: 15.4618676 | X71: -81.97660946 | Y71: 98.02339054 | AB71: 8.234510012 | AC71: -62.60633723 | AE71: 34.11096149 | AF71: -88.32116097 | AI71: 68.8109825 | AJ71: -19.37027224 | AL71: 0 | AM71: 0 | AN71: 0 | AO71: 0 | AP71: 0 | AQ71: 0
B72: 229.09 | C72: 1.069768297 | D72: 0.3631518504 | E72: 1.000001102 | F72: 0.001484395548 | G72: 1 | H72: 0 | I72: 2879.405784 | J72: 1.570449033 | K72: 1.153909204 | L72: 0.5224097352 | M72: 1.00002019 | N72: 0.006354486894 | O72: 43.19834197 | P72: 1.547645222 | Q72: 1.000009324 | R72: 0.004318217925 | S72: 1 | T72: 2.305294149e-05 | U72: 1.000015096 | V72: 0.006378780502 | W72: 14.75436366 | X72: -81.49980976 | Y72: 98.50019024 | AB72: 7.620224936 | AC72: -60.4123138 | AE72: 33.31133933 | AF72: -88.42744459 | AI72: 68.71776364 | AJ72: -21.08749595 | AL72: 0 | AM72: 0 | AN72: 0 | AO72: 0 | AP72: 0 | AQ72: 0
B73: 251.19 | C73: 1.083332368 | D73: 0.3947889802 | E73: 1.000001325 | F73: 0.001627592921 | G73: 1 | H73: 0 | I73: 3157.178102 | J73: 1.570479588 | K73: 1.182603681 | L73: 0.5631234995 | M73: 1.000024273 | N73: 0.006967476616 | O73: 47.36349217 | P73: 1.54968145 | Q73: 1.000011209 | R73: 0.00473478457 | S73: 1 | T73: 2.527682733e-05 | U73: 1.00001815 | V73: 0.006994121 | W73: 14.05829129 | X73: -81.04368113 | Y73: 98.95631887 | AB73: 7.033617065 | AC73: -58.11645936 | AE73: 32.51182295 | AF73: -88.52037175 | AI73: 68.60829914 | AJ73: -22.92722178 | AL73: 0 | AM73: 0 | AN73: 0 | AO73: 0 | AP73: 0 | AQ73: 0
B74: 275.42 | C74: 1.09941682 | D74: 0.4285406741 | E74: 1.000001592 | F74: 0.001784591593 | G74: 1 | H74: 0 | I74: 3461.722145 | J74: 1.570507453 | K74: 1.216202734 | L74: 0.6054758886 | M74: 1.000029182 | N74: 0.007639540308 | O74: 51.93026765 | P74: 1.551538544 | Q74: 1.000013476 | R74: 0.005191498052 | S74: 1 | T74: 2.771505148e-05 | U74: 1.00002182 | V74: 0.007668764329 | W74: 13.37367843 | X74: -80.62065941 | Y74: 99.37934059 | AB74: 6.477046919 | AC74: -55.72994917 | AE74: 31.71230574 | AF74: -88.60074735 | AI74: 68.48025644 | AJ74: -24.89071024 | AL74: 0 | AM74: 0 | AN74: 0 | AO74: 0 | AP74: 0 | AQ74: 0
B75: 302 | C75: 1.118457282 | D75: 0.4644039613 | E75: 1.000001915 | F75: 0.001956817026 | G75: 1 | H75: 0 | I75: 3795.803066 | J75: 1.570532878 | K75: 1.255425958 | L75: 0.6492418437 | M75: 1.000035086 | N75: 0.00837677762 | O75: 56.94013328 | P75: 1.553233119 | Q75: 1.000016203 | R75: 0.0056925044 | S75: 1 | T75: 3.038975219e-05 | U75: 1.000026235 | V75: 0.008408834492 | W75: 12.69992437 | X75: -80.2441023 | Y75: 99.7558977 | AB75: 5.952468895 | AC75: -53.26604197 | AE75: 30.91237105 | AF75: -88.66928703 | AI75: 68.33108039 | AJ75: -26.97806034 | AL75: 0 | AM75: 0 | AN75: 0 | AO75: 0 | AP75: 0 | AQ75: 0
B76: 331.13 | C76: 1.140917435 | D76: 0.5022791234 | E76: 1.000002302 | F76: 0.002145565082 | G76: 1 | H76: 0 | I76: 4161.934642 | J76: 1.570556054 | K76: 1.300996116 | L76: 0.6940811391 | M76: 1.000042181 | N76: 0.009184732628 | O76: 62.43078556 | P76: 1.554777903 | Q76: 1.000019479 | R76: 0.0062415724 | S76: 1.000000001 | T76: 3.33210551e-05 | U76: 1.00003154 | V76: 0.009219898112 | W76: 12.03698997 | X76: -79.92836322 | Y76: 100.0716368 | AB76: 5.462273519 | AC76: -50.74455988 | AE76: 30.11279311 | AF76: -88.72650534 | AI76: 68.15834137 | AJ76: -29.18380333 | AL76: 0 | AM76: 0 | AN76: 0 | AO76: 0 | AP76: 0 | AQ76: 0
B77: 363.08 | C77: =SQRT(1+(B77/PS_Pole1)^2) -> 1.167356252 | D77: =ATAN(B77/PS_Pole1) -> 0.5420817475 | E77: =SQRT(1+(B77/PS_Zero1)^2) -> 1.000002767 | F77: =ATAN(B77/PS_Zero1) -> 0.002352585172 | G77: =IF(VIN_nom>Vout, 1, SQRT(1+(B77/PS_RHPZ)^2)) -> 1 | H77: =IF(VIN_nom>Vout, 0, -ATAN(B77/PS_RHPZ)) -> 0 | I77: =SQRT(1+(B77/EA_Pole1)^2) -> 4563.510472 | J77: =ATAN(B77/EA_Pole1) -> 1.570577197 | K77: =SQRT(1+(B77/EA_Zero1)^2) -> 1.353769538 | L77: =ATAN(B77/EA_Zero1) -> 0.7396890896 | M77: =SQRT(1+(B77/EA_Pole2)^2) -> 1.000050714 | N77: =ATAN(B77/EA_Pole2) -> 0.01007088984 | O77: =SQRT(1+(B77/$V$5)^2) -> 68.4531162 | P77: =ATAN(B77/$V$5) -> 1.556187268 | Q77: =SQRT(1+(B77/$V$4)^2) -> 1.000023419 | R77: =ATAN(B77/$V$4) -> 0.006843789913 | S77: =SQRT(1+(B77/$V$7)^2) -> 1.000000001 | T77: =ATAN(B77/$V$7) -> 3.653612988e-05 | U77: =SQRT((1-(B77^2/pterm2))^2+(B77/pterm1)^2) -> 1.000037919 | V77: =IF((ATAN((B77/pterm1)/(1-B77^2/pterm2))>0),ATAN((B77/pterm1)/(1-B77^2/pterm2)),PI()+ATAN((B77/pterm1)/(1-B77^2/pterm2))) -> 0.01010947013 | W77: =20*LOG10(((E77*K77*G77)/(C77*I77*U77*M77))*Adc) -> 11.3831794 | X77: -79.68683435 | Y77: 100.3131656 | AB77: =20*LOG10((K77/(I77*M77))*AEA) -> 5.007498251 | AC77: =(L77-(J77+N77))*radconv -> -48.1834013 | AE77: =20*LOG10((Q77/(O77*S77))*AIL) -> 29.31293885 | AF77: =(R77-(P77+T77))*radconv -> -88.7729357 | AI77: =20*LOG10((E77*G77/(C77*U77))*Acs*Am) -> 67.95930607 | AJ77: =(F77+H77-(D77+V77))*radconv -> -31.50343305 | AL77: =SUM((W78<0)*(W77>0))*B77 -> 0 | AM77: =IF(AL77>0,Y75,0) -> 0 | AN77: =SUM((AB78<0)*(AB77>0))*B77 -> 0 | AO77: 0 | AP77: 0 | AQ77: 0
B78: 398.11 | C78: 1.198368735 | D78: 0.5836302148 | E78: 1.000003327 | F78: 0.002579561897 | G78: 1 | H78: 0 | I78: 5003.798465 | J78: 1.570596479 | K78: 1.414609287 | L78: 0.7856778657 | M78: 1.000060971 | N78: 0.01104245494 | O78: 75.05613325 | P78: 1.557472571 | Q78: 1.000028156 | R78: 0.007504055851 | S78: 1.000000001 | T78: 4.006113987e-05 | U78: 1.000045589 | V78: 0.01108478614 | W78: 10.73710761 | X78: -79.53207141 | Y78: =IF(X78>0,X78-180,X78+180) -> 100.4679286 | AB78: 4.589229345 | AC78: -45.60520985 | AE78: 28.51312073 | AF78: -88.80894963 | AI78: 67.73150319 | AJ78: -33.92686156 | AL78: 0 | AM78: 0 | AN78: 0 | AO78: =IF(AN78>0,AC78,0) -> 0 | AP78: =SUM((AE79<0)*(AE78>0))*B78 -> 0 | AQ78: =IF(AP78>0,AE78,0) -> 0
B79: 436.52 | C79: 1.234623506 | D79: 0.6267064173 | E79: 1.000004 | F79: 0.002828439009 | G79: 1 | H79: 0 | I79: 5486.569286 | J79: 1.570614064 | K79: 1.484458206 | L79: 0.8316646213 | M79: 1.000073303 | N79: 0.01210774109 | O79: 82.29638554 | P79: 1.558644826 | Q79: 1.000033851 | R79: 0.008228022466 | S79: 1.000000001 | T79: 4.392627358e-05 | U79: 1.00005481 | V79: 0.01215419425 | W79: 10.09665306 | X79: =IF(((F79+L79+H79)-(D79+J79+V79+N79))*radconv<-180,((F79+L79+H79)-(D79+J79+V79+N79))*radconv+360,((F79+L79+H79)-(D79+J79+V79+N79))*radconv) -> -79.4743659 | Y79: 100.5256341 | AB79: 4.207730467 | AC79: -43.03240678 | AE79: 27.7132787 | AF79: -88.83485611 | AI79: 67.47254752 | AJ79: -36.44195912 | AL79: 0 | AM79: 0 | AN79: 0 | AO79: 0 | AP79: 0 | AQ79: 0
B80: 478.63 | C80: 1.27684345 | D80: 0.6710304284 | E80: 1.000004809 | F80: 0.003101289822 | G80: 1 | H80: 0 | I80: 6015.844979 | J80: 1.570630099 | K80: 1.564300713 | L80: 0.8772564853 | M80: 1.000088127 | N80: 0.0132756136 | O80: 90.23419278 | P80: 1.559713826 | Q80: 1.000040697 | R80: 0.009021718179 | S80: 1.000000001 | T80: 4.816373206e-05 | U80: 1.000065895 | V80: 0.01332659782 | W80: 9.459502829 | X80: -79.52109679 | Y80: 100.4789032 | AB80: 3.86273171 | AC80: -40.48801833 | AE80: 26.91353064 | AF80: -88.85087271 | AI80: 67.18039604 | AJ80: -39.03307847 | AL80: 0 | AM80: 0 | AN80: 0 | AO80: 0 | AP80: 0 | AQ80: 0
B81: 524.81 | C81: 1.325831815 | D81: 0.71629516 | E81: 1.000005782 | F81: 0.003400511576 | G81: 1 | H81: 0 | I81: 6596.276029 | J81: 1.570644726 | K81: 1.655215482 | L81: 0.9220963763 | M81: 1.000105953 | N81: 0.01455632113 | O81: 98.9393006 | P81: 1.560688948 | Q81: 1.000048929 | R81: 0.00989211277 | S81: 1.000000001 | T81: 5.28107478e-05 | U81: 1.000079224 | V81: 0.0146122902 | W81: 8.822867285 | X81: -79.67617617 | Y81: 100.3238238 | AB81: 3.553219144 | AC81: -37.99309902 | AE81: 26.11364816 | AF81: -88.85713935 | AI81: 66.85327306 | AJ81: -41.68307715 | AL81: 0 | AM81: 0 | AN81: 0 | AO81: 0 | AP81: 0 | AQ81: 0
B82: 575.44 | C82: 1.382426648 | D82: 0.7621318529 | E82: 1.000006951 | F82: 0.003728566254 | G82: 1 | H82: 0 | I82: 7232.638614 | J82: 1.570658065 | K82: 1.758296245 | L82: 0.965832437 | M82: 1.00012738 | N82: 0.01596038526 | O82: 108.4833405 | P82: 1.561578191 | Q82: 1.000058825 | R82: 0.0108463631 | S82: 1.000000002 | T82: 5.790555955e-05 | U82: 1.000095246 | V82: 0.01602184043 | W82: 8.184270254 | X82: -79.93970985 | Y82: 100.0602901 | AB82: 3.277824327 | AC82: -35.56841852 | AE82: 25.31384983 | AF82: -88.85370664 | AI82: 66.49007085 | AJ82: -44.37129133 | AL82: 0 | AM82: 0 | AN82: 0 | AO82: 0 | AP82: 0 | AQ82: 0
B83: 630.96 | C83: 1.447548355 | D83: 0.808169328 | E83: 1.000008357 | F83: 0.00408830453 | G83: 1 | H83: 0 | I83: 7930.463041 | J83: 1.570670231 | K83: 1.874748983 | L83: 1.008175661 | M83: 1.000153144 | N83: 0.01749998563 | O83: 118.9492549 | P83: 1.562389281 | Q83: 1.000070723 | R83: 0.01189275508 | S83: 1.000000002 | T83: 6.349244377e-05 | U83: 1.000114511 | V83: 0.01756748433 | W83: 7.541057694 | X83: -80.30823188 | Y83: 99.69176812 | AB83: 3.034586537 | AC83: -33.23124014 | AE83: 24.51397965 | AF83: -88.84054496 | AI83: 66.09009608 | AJ83: -47.07699174 | AL83: 0 | AM83: 0 | AN83: 0 | AO83: 0 | AP83: 0 | AQ83: 0
B84: 691.83 | C84: 1.522150177 | D84: 0.854009752 | E84: 1.000010047 | F84: 0.004482706568 | G84: 1 | H84: 0 | I84: 8695.530998 | J84: 1.570681325 | K84: 2.005811781 | L84: 1.0488696 | M84: 1.000184115 | N84: 0.01918784887 | O84: 130.4237571 | P84: 1.563128937 | Q84: 1.000085026 | R84: 0.01303994912 | S84: 1.000000002 | T84: 6.96176895e-05 | U84: 1.000137669 | V84: 0.01926200975 | W84: 6.891103621 | X84: -80.77493844 | Y84: 99.22506156 | AB84: 2.821307355 | AC84: -30.99699229 | AE84: 23.71420425 | AF84: -88.81754567 | AI84: 65.65342119 | AJ84: -49.77794615 | AL84: 0 | AM84: 0 | AN84: 0 | AO84: 0 | AP84: 0 | AQ84: 0
B85: 758.58 | C85: 1.607272872 | D85: 0.8992824435 | E85: 1.00001208 | F85: 0.004915205962 | G85: 1 | H85: 0 | I85: 9534.503993 | J85: 1.570691445 | K85: 2.152862407 | L85: 1.087728812 | M85: 1.000221353 | N85: 0.02103863248 | O85: 143.0067566 | P85: 1.563803593 | Q85: 1.000102224 | R85: 0.01429792174 | S85: 1.000000003 | T85: 7.633462972e-05 | U85: 1.000165515 | V85: 0.02112014699 | W85: 6.232395809 | X85: -81.33070869 | Y85: 98.66929131 | AB85: 2.63546596 | AC85: -28.87714536 | AE85: 22.91435661 | AF85: -88.78450896 | AI85: 65.18055477 | AJ85: -52.45356333 | AL85: 0 | AM85: 0 | AN85: 0 | AO85: 0 | AP85: 0 | AQ85: 0
B86: 831.76 | C86: 1.703979815 | D86: 0.9436192527 | E86: 1.000014523 | F86: 0.005389365726 | G86: 1 | H86: 0 | I86: 10454.29491 | J86: 1.570700672 | K86: 2.317313766 | L86: 1.124603604 | M86: 1.000266115 | N86: 0.02306753521 | O86: 156.8019334 | P86: 1.564418811 | Q86: 1.000122897 | R86: 0.0156770222 | S86: 1.000000004 | T86: 8.369861003e-05 | U86: 1.000198986 | V86: 0.0231571748 | W86: 5.563679528 | X86: -81.96457282 | Y86: 98.03542718 | AB86: 2.474515762 | AC86: -26.88115171 | AE86: 22.11463902 | AF86: -88.74116364 | AI86: 64.67278869 | AJ86: -55.08342112 | AL86: 0 | AM86: 0 | AN86: 0 | AO86: 0 | AP86: 0 | AQ86: 0
B87: 912.01 | C87: 1.813445243 | D87: 0.9867110252 | E87: 1.00001746 | F87: 0.005909331791 | G87: 1 | H87: 0 | I87: 11462.94784 | J87: 1.570709089 | K87: 2.500772907 | L87: 1.159414365 | M87: 1.000319934 | N87: 0.0252922335 | O87: 171.9299341 | P87: 1.564979971 | Q87: 1.000147754 | R87: 0.01718929031 | S87: 1.000000004 | T87: 9.177403253e-05 | U87: 1.000239232 | V87: 0.02539086628 | W87: 4.883845106 | X87: -82.66517713 | Y87: 97.33482287 | AB87: 2.335805329 | AC87: -25.01459008 | AE87: 21.31485322 | AF87: -88.68713185 | AI87: 64.1316647 | AJ87: -57.65058705 | AL87: 0 | AM87: 0 | AN87: 0 | AO87: 0 | AP87: 0 | AQ87: 0
B88: 1000 | C88: 1.936875782 | D88: 1.028276808 | E88: 1.000020992 | F88: 0.006479444171 | G88: 1 | H88: 0 | I88: 12568.88393 | J88: 1.570716765 | K88: 2.70491161 | L88: 1.192112519 | M88: 1.000384633 | N88: 0.02773121224 | O88: 188.5170611 | P88: 1.565491742 | Q88: 1.000177637 | R88: 0.01884732395 | S88: 1.000000005 | T88: 0.0001006283182 | U88: 1.000287614 | V88: 0.02783981516 | W88: 4.192515888 | X88: -83.42108721 | Y88: 96.57891279 | AB88: 2.216812014 | AC88: -23.28130685 | AE88: 20.51512946 | AF88: -88.62196315 | AI88: 63.55932879 | AJ88: -60.13978036 | AL88: 0 | AM88: 0 | AN88: 0 | AO88: 0 | AP88: 0 | AQ88: 0
B89: 1096.5 | C89: 2.075607737 | D89: 1.068103925 | E89: 1.000025239 | F89: 0.007104690418 | G89: 1 | H89: 0 | I89: 13781.78122 | J89: 1.570723767 | K89: 2.931631221 | L89: 1.222702027 | M89: 1.000462431 | N89: 0.03040569766 | O89: 206.7084681 | P89: 1.565958577 | Q89: 1.000213571 | R89: 0.0206655957 | S89: 1.000000006 | T89: 0.0001103389508 | U89: 1.000345793 | V89: 0.03052537942 | W89: 3.489454385 | X89: -84.22204871 | Y89: 95.77795129 | AB89: 2.115089043 | AC89: -21.68229507 | AE89: 19.71528935 | AF89: -88.54508788 | AI89: 62.95799026 | AJ89: -62.53975364 | AL89: 0 | AM89: 0 | AN89: 0 | AO89: 0 | AP89: 0 | AQ89: 0
B90: 1202.3 | C90: 2.230996457 | D90: 1.10601179 | E90: 1.000030344 | F90: 0.007790187156 | G90: 1 | H90: 0 | I90: 15111.56913 | J90: 1.570730152 | K90: 3.182880483 | L90: 1.251202669 | M90: 1.00055595 | N90: 0.03333743007 | O90: 226.6530797 | P90: 1.566384283 | Q90: 1.000256769 | R90: 0.02265894238 | S90: 1.000000007 | T90: 0.0001209854268 | U90: 1.00041573 | V90: 0.03346944866 | W90: 2.775143272 | X90: -85.05879122 | Y90: 94.94120878 | AB90: 2.028412811 | AC90: -20.21767026 | AE90: 18.91559734 | AF90: -88.45587872 | AI90: 62.33035538 | AJ90: -64.84112097 | AL90: 0 | AM90: =IF(AL90>0,Y90,0) -> 0 | AN90: 0 | AO90: 0 | AP90: 0 | AQ90: 0
B91: 1318.3 | C91: 2.404548108 | D91: 1.141887673 | E91: 1.000036482 | F91: 0.008541763044 | G91: 1 | H91: 0 | I91: 16569.55966 | J91: 1.570735975 | K91: 3.460869944 | L91: 1.277672 | M91: 1.000668365 | N91: 0.03655114529 | O91: 248.520557 | P91: 1.566772504 | Q91: 1.000308698 | R91: 0.02484425671 | S91: 1.000000009 | T91: 0.0001326583115 | U91: 1.000499802 | V91: 0.03669694079 | W91: 2.050069906 | X91: -85.92407249 | Y91: 94.07592751 | AB91: 1.954707843 | AC91: -18.88555529 | AE91: 18.11603437 | AF91: -88.35358164 | AI91: 61.67898698 | AJ91: -67.0385172 | AL91: 0 | AM91: 0 | AN91: 0 | AO91: 0 | AP91: 0 | AQ91: 0
B92: 1445.4 | C92: 2.597759893 | D92: 1.175645879 | E92: 1.000043856 | F92: 0.009365245858 | G92: 1 | H92: 0 | I92: 18167.0648 | J92: 1.570741282 | K92: 3.767812443 | L92: 1.302171335 | M92: 1.0008034 | N92: 0.04007151039 | O92: 272.4805614 | P92: 1.567126332 | Q92: 1.00037108 | R92: 0.02723840979 | S92: 1.000000011 | T92: 0.0001454481706 | U92: 1.000600795 | V92: 0.04023273098 | W92: 1.315378415 | X92: -86.8119766 | Y92: 93.1880234 | AB92: 1.892139776 | AC92: -17.68385291 | AE92: 17.31711188 | AF92: -88.23741243 | AI92: 61.00686356 | AJ92: -69.12812369 | AL92: 0 | AM92: 0 | AN92: 0 | AO92: 0 | AP92: 0 | AQ92: 0
B93: 1584.9 | C93: 2.812736075 | D93: 1.207319859 | E93: 1.000052729 | F93: 0.0102690538 | G93: 1 | H93: 0 | I93: 19920.4241 | J93: 1.570746127 | K93: 4.106894757 | L93: 1.324830734 | M93: 1.000965883 | N93: 0.04393417892 | O93: 298.7781599 | P93: 1.567449356 | Q93: 1.000446148 | R93: 0.02986577827 | S93: 1.000000013 | T93: 0.0001594858207 | U93: 1.000722322 | V93: 0.04411276453 | W93: 0.5706006958 | X93: -87.7205914 | Y93: 92.2794086 | AB93: 1.838939377 | AC93: -16.60715719 | AE93: 16.51749717 | AF93: -88.1061875 | AI93: 60.31528624 | AJ93: -71.11343421 | AL93: 1584.9 | AM93: 92.2794086 | AN93: 0 | AO93: 0 | AP93: 0 | AQ93: 0
B94: 1737.8 | C94: 3.051123133 | D94: 1.236877229 | E94: 1.000063393 | F94: 0.0112596598 | G94: 1 | H94: 0 | I94: 21842.20644 | J94: 1.570750544 | K94: 4.480585702 | L94: 1.345715545 | M94: 1.001161122 | N94: 0.04816637453 | O94: 327.6018658 | P94: 1.567743836 | Q94: 1.000536359 | R94: 0.03274504976 | S94: 1.000000015 | T94: 0.0001748718902 | U94: 1.000868358 | V94: 0.04836456605 | W94: -0.1824174281 | X94: -88.64708521 | Y94: 91.35291479 | AB94: 1.793711101 | AC94: -15.65328566 | AE94: 15.71832995 | AF94: -87.95897145 | AI94: 59.60749639 | AJ94: -72.99379955 | AL94: 0 | AM94: 0 | AN94: 0 | AO94: 0 | AP94: 0 | AQ94: 0
B95: 1905.5 | C95: 3.315186309 | D95: 1.264381741 | E95: 1.000076218 | F95: 0.01234612632 | G95: 1 | H95: 0 | I95: 23950.00827 | J95: 1.570754573 | K95: 4.892334914 | L95: 1.364944191 | M95: 1.001395871 | N95: 0.05280623638 | O95: 359.2155978 | P95: 1.56801248 | Q95: 1.000644837 | R95: 0.035902395 | S95: 1.000000018 | T95: 0.0001917472586 | U95: 1.00104396 | V95: 0.05302668609 | W95: -0.9433857278 | X95: -89.59220258 | Y95: 90.40779742 | AB95: 1.755119322 | AC95: -14.81764073 | AE95: 14.91909521 | AF95: -87.79442791 | AI95: 58.88511987 | AJ95: -74.77456185 | AL95: 0 | AM95: 0 | AN95: 0 | AO95: 0 | AP95: 0 | AQ95: 0
B96: 2089.3 | C96: 3.607038165 | D96: 1.289880421 | E96: 1.00009163 | F96: 0.01353686524 | G96: 1 | H96: 0 | I96: 26260.16913 | J96: 1.570758246 | K96: 5.345355837 | L96: 1.382609253 | M96: 1.001677907 | N96: 0.05788892714 | O96: 393.8644237 | P96: 1.568257379 | Q96: 1.000775185 | R96: 0.0393620358 | S96: 1.000000022 | T96: 0.0002102427428 | U96: 1.001254952 | V96: 0.05813476469 | W96: -1.711012537 | X96: -90.55691004 | Y96: 89.44308996 | AB96: 1.722045157 | AC96: -14.09693445 | AE96: 14.1203952 | AF96: -87.61129652 | AI96: 58.15056723 | AJ96: -76.45997559 | AL96: 0 | AM96: 0 | AN96: 0 | AO96: 0 | AP96: 0 | AQ96: 0
B97: 2290.9 | C97: 3.929430111 | D97: 1.313476199 | E97: 1.000110166 | F97: 0.01484287627 | G97: 1 | H97: 0 | I97: 28794.05612 | J97: 1.570761597 | K97: 5.843855327 | L97: 1.398830093 | M97: 1.002016995 | N97: 0.0634603971 | O97: 431.8688168 | P97: 1.568480807 | Q97: 1.000931928 | R97: 0.04315563654 | S97: 1.000000027 | T97: 0.0002305294108 | U97: 1.001508653 | V97: 0.0637353881 | W97: -2.485218486 | X97: -91.54493976 | Y97: 88.45506024 | AB97: 1.693455435 | AC97: -13.48696246 | AE97: 13.3216536 | AF97: -87.407903 | AI97: 57.404951 | AJ97: -78.0579773 | AL97: 0 | AM97: 0 | AN97: 0 | AO97: 0 | AP97: 0 | AQ97: 0
B98: 2511.9 | C98: 4.284962295 | D98: 1.335249979 | E98: 1.000132444 | F98: 0.01627450661 | G98: 1 | H98: 0 | I98: 31571.77946 | J98: 1.570764653 | K98: 6.391803081 | L98: 1.413700584 | M98: 1.002424426 | N98: 0.0695634684 | O98: 473.5303993 | P98: 1.568684528 | Q98: 1.001120298 | R98: 0.04731286448 | S98: 1.000000032 | T98: 0.0002527682679 | U98: 1.001813526 | V98: 0.06987213742 | W98: -3.264994126 | X98: -92.55990781 | Y98: 87.44009219 | AB98: 1.668478723 | AC98: -12.98480141 | AE98: 12.52336768 | AF98: -87.18265797 | AI98: 56.65015207 | AJ98: -79.5751064 | AL98: 0 | AM98: 0 | AN98: 0 | AO98: 0 | AP98: 0 | AQ98: 0
B99: 2754.2 | C99: 4.676722607 | D99: 1.355307521 | E99: 1.000159226 | F99: 0.01784404073 | G99: 1 | H99: 0 | I99: 34617.22002 | J99: 1.570767439 | K99: 6.993919427 | L99: 1.427323268 | M99: 1.002913997 | N99: 0.07624877789 | O99: 519.2073476 | P99: 1.568870313 | Q99: 1.0013467 | R99: 0.05186888113 | S99: 1.000000038 | T99: 0.0002771505078 | U99: 1.002179918 | V99: 0.07659663111 | W99: -4.0499886 | X99: -93.6071551 | Y99: 86.3928449 | AB99: 1.646319888 | AC99: -12.58747876 | AE99: 11.7254724 | AF99: -86.9336591 | AI99: 55.88731643 | AJ99: -81.01967634 | AL99: 0 | AM99: 0 | AN99: 0 | AO99: 0 | AP99: 0 | AQ99: 0
B100: 3020 | C100: 5.108294164 | D100: 1.373763875 | E100: 1.000191439 | F100: 0.01956569817 | G100: 1 | H100: 0 | I100: 37958.02936 | J100: 1.570769982 | K100: 7.655679825 | L100: 1.439800025 | M100: 1.00350255 | N100: 0.0835746088 | O100: 569.3143927 | P100: 1.569039827 | Q100: 1.001618955 | R100: 0.05686428838 | S100: 1.000000046 | T100: 0.0003038975126 | U100: 1.00262047 | V100: 0.0839684196 | W100: -4.840274414 | X100: -94.69337432 | Y100: 85.30662568 | AB100: 1.626257492 | AC100: -12.29249811 | AE100: 10.92760694 | AF100: -86.6586883 | AI100: 55.11709301 | AJ100: -82.40087621 | AL100: 0 | AM100: 0 | AN100: 0 | AO100: 0 | AP100: 0 | AQ100: 0
B101: 3311.3 | C101: 5.582943611 | D101: 1.390707484 | E101: 1.000230147 | F101: 0.0214523923 | G101: 1 | H101: 0 | I101: 41619.34523 | J101: 1.5707723 | K101: 8.382069521 | L101: 1.451209214 | M101: 1.004209344 | N101: 0.09159291434 | O101: 624.2285628 | P101: 1.569194349 | Q101: 1.001946018 | R101: 0.06233566886 | S101: 1.000000056 | T101: 0.0003332105388 | U101: 1.003149644 | V101: 0.09204099539 | W101: -5.634865602 | X101: -95.82444604 | Y101: 84.17555396 | AB101: 1.607660151 | AC101: -12.09834763 | AE101: 10.13061317 | AF101: -86.35573424 | AI101: 54.34109917 | AJ101: -83.72609841 | AL101: 0 | AM101: 0 | AN101: 0 | AO101: 0 | AP101: 0 | AQ101: 0
B102: 3630.8 | C102: 6.105084922 | D102: 1.406257012 | E102: 1.000276696 | F102: 0.02352155629 | G102: 1 | H102: 0 | I102: 45635.10363 | J102: 1.570774414 | K102: 9.179825505 | L102: 1.461645186 | M102: 1.005058689 | N102: 0.1003738534 | O102: 684.4588459 | P102: 1.569335318 | Q102: 1.00233921 | R102: 0.06833241335 | S102: 1.000000067 | T102: 0.0003653612827 | U102: 1.003785715 | V102: 0.1008865843 | W102: -6.434292392 | X102: -97.00892363 | Y102: 82.99107637 | AB102: 1.589904256 | AC102: -12.00364235 | AE102: 9.333946915 | AF102: -86.02206514 | AI102: 53.55942827 | AJ102: -85.00528128 | AL102: 0 | AM102: 0 | AN102: 0 | AO102: 0 | AP102: 0 | AQ102: 0
B103: 3981.1 | C103: 6.678979158 | D103: 1.420507733 | E103: 1.000332653 | F103: 0.02578995684 | G103: 1 | H103: 0 | I103: 50037.98366 | J103: 1.570776342 | K103: 10.05544348 | L103: 1.471183046 | M103: 1.00607881 | N103: 0.1099834156 | O103: 750.495379 | P103: 1.569463873 | Q103: 1.002811696 | R103: 0.07490157991 | S103: 1.00000008 | T103: 0.0004006113775 | U103: 1.004549922 | V103: 0.1105737523 | W103: -7.238275071 | X103: -98.25471258 | Y103: 81.74528742 | AB103: 1.572413529 | AC103: -12.00786107 | AE103: 8.538026574 | AF103: -85.65506496 | AI103: 52.77293632 | AJ103: -86.24685151 | AL103: 0 | AM103: 0 | AN103: 0 | AO103: 0 | AP103: 0 | AQ103: 0
B104: 4365.2 | C104: 7.309549933 | D104: 1.43355861 | E104: 1.000399926 | F104: 0.02827692651 | G104: 1 | H104: 0 | I104: 54865.69196 | J104: 1.5707781 | K104: 11.01642486 | L104: 1.479897652 | M104: 1.007303913 | N104: 0.120496738 | O104: 822.9037048 | P104: 1.569581117 | Q104: 1.00337946 | R104: 0.08209713962 | S104: 1.000000096 | T104: 0.0004392627078 | U104: 1.005468036 | V104: 0.1211809795 | W104: -8.047039462 | X104: -99.57088887 | Y104: 80.42911113 | AB104: 1.554610905 | AC104: -12.11102069 | AE104: 7.742922853 | AF104: -85.25172192 | AI104: 51.98197455 | AJ104: -87.45986818 | AL104: 0 | AM104: 0 | AN104: 0 | AO104: 0 | AP104: 0 | AQ104: 0
B105: 4786.3 | C105: 8.002057205 | D105: 1.445500885 | E105: 1.000480787 | F105: 0.03100306055 | G105: 1 | H105: 0 | I105: 60158.44896 | J105: 1.570779704 | K105: 12.0707776 | L105: 1.487856565 | M105: 1.008774634 | N105: 0.1319920387 | O105: 902.2870688 | P105: 1.569688032 | Q105: 1.004061543 | R105: 0.08997603472 | S105: 1.000000116 | T105: 0.0004816372837 | U105: 1.006570725 | V105: 0.1327907598 | W105: -8.860774835 | X105: -100.9668382 | Y105: 79.03316178 | AB105: 1.5359143 | AC105: -12.31373265 | AE105: 6.948910903 | AF105: -84.80884811 | AI105: 51.18693579 | AJ105: -88.65310558 | AL105: 0 | AM105: 0 | AN105: 0 | AO105: 0 | AP105: 0 | AQ105: 0
B106: 5248.1 | C106: 8.762590944 | D106: 1.456425652 | E106: 1.000578011 | F106: 0.03399214852 | G106: 1 | H106: 0 | I106: 65962.75954 | J106: 1.570781167 | K106: 13.22776736 | L106: 1.495125584 | M106: 1.010540272 | N106: 0.1445580597 | O106: 989.3429741 | P106: 1.569785555 | Q106: 1.004881101 | R106: 0.09860354385 | S106: 1.000000139 | T106: 0.0005281074294 | U106: 1.007895253 | V106: 0.1454973959 | W106: -9.680177791 | X106: -102.4531354 | Y106: 77.5468646 | AB106: 1.515707137 | AC106: -12.6173123 | AE106: 6.155954796 | AF106: -84.32277845 | AI106: 50.38773999 | AJ106: -89.8358231 | AL106: 0 | AM106: 0 | AN106: 0 | AO106: 0 | AP106: 0 | AQ106: 0
B107: 5370.3 | C107: 8.963997093 | D107: 1.459006255 | E107: 1.000605234 | F107: 0.0347830117 | G107: 1 | H107: 0 | I107: 67498.67715 | J107: 1.570781512 | K107: 13.53403049 | L107: 1.496841111 | M107: 1.011034129 | N107: 0.1478757264 | O107: 1012.379423 | P107: 1.569808555 | Q107: 1.005110472 | R107: 0.1008841182 | S107: 1.000000146 | T107: 0.0005404042064 | U107: 1.00826587 | V107: 0.1488550734 | W107: -9.885878856 | X107: -102.8398763 | Y107: 77.16012369 | AB107: 1.510346467 | AC107: -12.70912791 | AE107: 5.958008413 | AF107: -84.19413352 | AI107: 50.1873996 | AJ107: -90.1307484 | AL107: 0 | AM107: 0 | AN107: 0 | AO107: 0 | AP107: 0 | AQ107: 0
B108: 5432.85 | C108: 9.067112334 | D108: 1.460282813 | E108: 1.000619411 | F108: 0.03518781073 | G108: 1 | H108: 0 | I108: 68284.86084 | J108: 1.570781682 | K108: 13.69081101 | L108: 1.497689531 | M108: 1.01129122 | N108: 0.1495726633 | O108: 1024.170994 | P108: 1.569819927 | Q108: 1.005229901 | R108: 0.1020510603 | S108: 1.000000149 | T108: 0.0005466985059 | U108: 1.00845883 | V108: 0.1505729608 | W108: -9.989514971 | X108: -103.0368783 | Y108: 76.96312169 | AB108: 1.507595204 | AC108: -12.75775411 | AE108: 5.858457151 | AF108: -84.12828489 | AI108: 50.08651475 | AJ108: -90.2791242 | AL108: 0 | AM108: 0 | AN108: 0 | AO108: 0 | AP108: 0 | AQ108: 0
B109: 5495.4 | C109: 9.170242019 | D109: 1.46153066 | E109: 1.000633751 | F109: 0.03559259822 | G109: 1 | H109: 0 | I109: 69071.04453 | J109: 1.570781849 | K109: 13.84760115 | L109: 1.498518739 | M109: 1.011551222 | N109: 0.1512687326 | O109: 1035.962565 | P109: 1.569831041 | Q109: 1.005350699 | R109: 0.1032177237 | S109: 1.000000153 | T109: 0.0005529928053 | U109: 1.008653991 | V109: 0.1522903035 | W109: -10.09206461 | X109: -103.2332556 | Y109: 76.76674439 | AB109: 1.504837876 | AC109: -12.80743116 | AE109: 5.760069029 | AF109: -84.0624374 | AI109: 49.98672244 | AJ109: -90.42582445 | AL109: 0 | AM109: 0 | AN109: 0 | AO109: 0 | AP109: 0 | AQ109: 0
B110: 5559.4 | C110: 9.275776847 | D110: 1.462778713 | E110: 1.000648594 | F110: 0.0360067572 | G110: 1 | H110: 0 | I110: 69875.4531 | J110: 1.570782016 | K110: 14.00803555 | L110: 1.499347956 | M110: 1.011820261 | N110: 0.153003212 | O110: 1048.027481 | P110: 1.569842153 | Q110: 1.005475713 | R110: 0.1044111402 | S110: 1.000000156 | T110: 0.0005594330157 | U110: 1.008855954 | V110: 0.1540468868 | W110: -10.195893 | X110: -103.4335563 | Y110: 76.56644374 | AB110: 1.502009538 | AC110: -12.85930843 | AE110: 5.660576835 | AF110: -83.99506536 | AI110: 49.88572239 | AJ110: -90.57424783 | AL110: 0 | AM110: 0 | AN110: 0 | AO110: 0 | AP110: 0 | AQ110: 0
B111: 5623.4 | C111: 9.381325798 | D111: 1.463998683 | E111: 1.000663608 | F111: 0.03642090382 | G111: 1 | H111: 0 | I111: 70679.86167 | J111: 1.570782178 | K111: 14.16847936 | L111: 1.500158393 | M111: 1.012092343 | N111: 0.154736764 | O111: 1060.092398 | P111: 1.569853013 | Q111: 1.005602159 | R111: 0.1056042582 | S111: 1.00000016 | T111: 0.000565873226 | U111: 1.009060219 | V111: 0.1558028875 | W111: -10.29863596 | X111: -103.6332379 | Y111: 76.36676208 | AB111: 1.499173248 | AC111: -12.91220834 | AE111: 5.56224806 | AF111: -83.92769593 | AI111: 49.78581571 | AJ111: -90.72102958 | AL111: 0 | AM111: 0 | AN111: 0 | AO111: 0 | AP111: 0 | AQ111: 0
B112: 5688.9 | C112: 9.489362684 | D112: 1.465219144 | E112: 1.000679152 | F112: 0.03684474406 | G112: 1 | H112: 0 | I112: 71503.12356 | J112: 1.570782341 | K112: 14.332693 | L112: 1.500969037 | M112: 1.012373949 | N112: 0.1565099759 | O112: 1072.440086 | P112: 1.569863874 | Q112: 1.00573305 | R112: 0.1068250276 | S112: 1.000000164 | T112: 0.0005724643788 | U112: 1.009271654 | V112: 0.1575994348 | W112: -10.40268918 | X112: -103.8369759 | Y112: 76.16302408 | AB112: 1.496261475 | AC112: -12.96736875 | AE112: 5.462792149 | AF112: -83.85875094 | AI112: 49.68467426 | AJ112: -90.86960716 | AL112: 0 | AM112: 0 | AN112: 0 | AO112: 0 | AP112: 0 | AQ112: 0
B113: 5754.4 | C113: 9.597413387 | D113: 1.466412126 | E113: 1.000694875 | F113: 0.03726857106 | G113: 1 | H113: 0 | I113: 72326.38545 | J113: 1.570782501 | K113: 14.49691583 | L113: 1.501761316 | M113: 1.012658736 | N113: 0.158282196 | O113: 1084.787775 | P113: 1.569874487 | Q113: 1.005865439 | R113: 0.1080454774 | S113: 1.000000168 | T113: 0.0005790555314 | U113: 1.009485498 | V113: 0.1593953585 | W113: -10.50565761 | X113: -104.0400998 | Y113: 75.95990024 | AB113: 1.49333985 | AC113: -13.0235244 | AE113: 5.364500542 | AF113: -83.78981008 | AI113: 49.58462746 | AJ113: -91.01657536 | AL113: 0 | AM113: 0 | AN113: 0 | AO113: 0 | AP113: 0 | AQ113: 0
B114: 5821.4 | C114: 9.707952347 | D114: 1.467604952 | E114: 1.000711145 | F114: 0.03770209015 | G114: 1 | H114: 0 | I114: 73168.50068 | J114: 1.57078266 | K114: 14.6649087 | L114: 1.502553379 | M114: 1.012953334 | N114: 0.1600939644 | O114: 1097.418235 | P114: 1.569885097 | Q114: 1.00600241 | R114: 0.1092935422 | S114: 1.000000172 | T114: 0.0005857976265 | U114: 1.009706731 | V114: 0.1612317584 | W114: -10.60988787 | X114: -104.2472567 | Y114: 75.7527433 | AB114: 1.490340394 | AC114: -13.08195834 | AE114: 5.265135404 | AF114: -83.71929542 | AI114: 49.48339665 | AJ114: -91.16529837 | AL114: 0 | AM114: 0 | AN114: 0 | AO114: 0 | AP114: 0 | AQ114: 0
B115: 5888.4 | C115: 9.818504809 | D115: 1.468770917 | E115: 1.000727603 | F115: 0.03813559507 | G115: 1 | H115: 0 | I115: 74010.6159 | J115: 1.570782815 | K115: 14.83291056 | L115: 1.5033275 | M115: 1.013251256 | N115: 0.1619046734 | O115: 1110.048695 | P115: 1.569895465 | Q115: 1.006140948 | R115: 0.1105412652 | S115: 1.000000176 | T115: 0.0005925397215 | U115: 1.009930481 | V115: 0.1630674918 | W115: -10.71303523 | X115: -104.4538044 | Y115: 75.54619561 | AB115: 1.48732919 | AC115: -13.14135935 | AE115: 5.166934261 | AF115: -83.64878651 | AI115: 49.3832605 | AJ115: -91.31244504 | AL115: 0 | AM115: 0 | AN115: 0 | AO115: 0 | AP115: 0 | AQ115: 0
B116: 5957 | C116: 9.931710848 | D116: 1.469937831 | E116: 1.000744648 | F116: 0.03857943749 | G116: 1 | H116: 0 | I116: 74872.84133 | J116: 1.570782971 | K116: 15.00493341 | L116: 1.504102146 | M116: 1.013559731 | N116: 0.163757514 | O116: 1122.980778 | P116: 1.569905839 | Q116: 1.006284416 | R116: 0.1118184266 | S116: 1.00000018 | T116: 0.0005994428217 | U116: 1.010162181 | V116: 0.1649463657 | W116: -10.81754996 | X116: -104.6646697 | Y116: 75.33533026 | AB116: 1.484233212 | AC116: -13.20314424 | AE116: 5.067566842 | AF116: -83.57660046 | AI116: 49.28184175 | AJ116: -91.4615255 | AL116: 0 | AM116: 0 | AN116: 0 | AO116: 0 | AP116: 0 | AQ116: 0
B117: 6025.6 | C117: 10.04493011 | D117: 1.47107844 | E117: 1.000761891 | F117: 0.0390232647 | G117: 1 | H117: 0 | I117: 75735.06677 | J117: 1.570783123 | K117: 15.17696505 | L117: 1.504859232 | M117: 1.013871685 | N117: 0.1656092208 | O117: 1135.912862 | P117: 1.569915977 | Q117: 1.006429526 | R117: 0.1130952218 | S117: 1.000000184 | T117: 0.0006063459218 | U117: 1.010396518 | V117: 0.166824526 | W117: -10.92098172 | X117: -104.874929 | Y117: 75.12507103 | AB117: 1.481123553 | AC117: -13.26587012 | AE117: 4.969365361 | AF117: -83.50442187 | AI117: 49.18151964 | AJ117: -91.60905885 | AL117: 0 | AM117: 0 | AN117: 0 | AO117: 0 | AP117: 0 | AQ117: 0
B118: 6095.8 | C118: 10.16080327 | D118: 1.472219336 | E118: 1.00077974 | F118: 0.03947742764 | G118: 1 | H118: 0 | I118: 76617.40241 | J118: 1.570783275 | K118: 15.3530179 | L118: 1.505616411 | M118: 1.01419451 | N118: 0.1675029302 | O118: 1149.146568 | P118: 1.569926116 | Q118: 1.006579717 | R118: 0.1144014132 | S118: 1.000000188 | T118: 0.0006134100272 | U118: 1.010639048 | V118: 0.168745745 | W118: -11.02573095 | X118: -105.0894807 | Y118: 74.91051926 | AB118: 1.477926546 | AC118: -13.33099725 | AE118: 4.870053294 | AF118: -83.43056824 | AI118: 49.07996743 | AJ118: -91.75848349 | AL118: 0 | AM118: 0 | AN118: 0 | AO118: 0 | AP118: 0 | AQ118: 0
B119: 6166 | C119: 10.27668936 | D119: 1.473334503 | E119: 1.000797795 | F119: 0.03993157429 | G119: 1 | H119: 0 | I119: 77499.73806 | J119: 1.570783424 | K119: 15.52907935 | L119: 1.50635642 | M119: 1.014520971 | N119: 0.1693954276 | O119: 1162.380275 | P119: 1.569936023 | Q119: 1.006731626 | R119: 0.1157072126 | S119: 1.000000192 | T119: 0.0006204741324 | U119: 1.010884335 | V119: 0.1706662007 | W119: -11.12939845 | X119: -105.3034296 | Y119: 74.69657042 | AB119: 1.474713924 | AC119: -13.39703843 | AE119: 4.771907853 | AF119: -83.35672383 | AI119: 48.97951255 | AJ119: -91.90639115 | AL119: 0 | AM119: 0 | AN119: 0 | AO119: 0 | AP119: 0 | AQ119: 0
B120: 6237.8 | C120: 10.39522965 | D120: 1.474449364 | E120: 1.000816476 | F120: 0.04039605481 | G120: 1 | H120: 0 | I120: 78402.18393 | J120: 1.570783572 | K120: 15.70916219 | L120: 1.507096137 | M120: 1.014858628 | N120: 0.1713297922 | O120: 1175.915604 | P120: 1.569945926 | Q120: 1.006888772 | R120: 0.1170423639 | S120: 1.000000197 | T120: 0.0006276992429 | U120: 1.011138063 | V120: 0.1726296293 | W120: -11.23433598 | X120: -105.5216466 | Y120: 74.47835337 | AB120: 1.471411307 | AC120: -13.46549521 | AE120: 4.672705097 | AF120: -83.28120664 | AI120: 48.87787764 | AJ120: -92.05615142 | AL120: 0 | AM120: 0 | AN120: 0 | AO120: 0 | AP120: 0 | AQ120: 0
B121: 6309.6 | C121: 10.51378258 | D121: 1.475539085 | E121: 1.000835372 | F121: 0.04086051789 | G121: 1 | H121: 0 | I121: 79304.62979 | J121: 1.570783717 | K121: 15.88925344 | L121: 1.507819087 | M121: 1.01520008 | N121: 0.1732628628 | O121: 1189.450934 | P121: 1.569955603 | Q121: 1.007047713 | R121: 0.1183770961 | S121: 1.000000202 | T121: 0.0006349243533 | U121: 1.011394672 | V121: 0.1745922424 | W121: -11.33819426 | X121: -105.7392639 | Y121: 74.26073614 | AB121: 1.468091139 | AC121: -13.53483837 | AE121: 4.574668479 | AF121: -83.20570054 | AI121: 48.77733952 | AJ121: -92.20442549 | AL121: 0 | AM121: 0 | AN121: 0 | AO121: 0 | AP121: 0 | AQ121: 0
B122: 6383.05 | C122: 10.63507253 | D122: 1.476628708 | E122: 1.000854926 | F122: 0.04133563631 | G122: 1 | H122: 0 | I122: 80227.81431 | J122: 1.570783862 | K122: 16.07349167 | L122: 1.508541886 | M122: 1.015553302 | N122: 0.1752390038 | O122: 1203.297312 | P122: 1.569965277 | Q122: 1.007212162 | R122: 0.1197420628 | S122: 1.000000206 | T122: 0.0006423155003 | U122: 1.011660156 | V122: 0.1765991044 | W122: -11.44334875 | X122: -105.9612766 | Y122: 74.03872342 | AB122: 1.46467593 | AC122: -13.60665785 | AE122: 4.475558409 | AF122: -83.12847149 | AI122: 48.67560024 | AJ122: -92.35461873 | AL122: 0 | AM122: 0 | AN122: 0 | AO122: 0 | AP122: 0 | AQ122: 0
B123: 6456.5 | C123: 10.75637483 | D123: 1.477693756 | E123: 1.000874706 | F123: 0.04181073606 | G123: 1 | H123: 0 | I123: 81150.99883 | J123: 1.570784004 | K123: 16.2577381 | L123: 1.509248304 | M123: 1.015910487 | N123: 0.1772137629 | O123: 1217.143691 | P123: 1.569974731 | Q123: 1.007378487 | R123: 0.1211065813 | S123: 1.000000211 | T123: 0.0006497066472 | U123: 1.011928651 | V123: 0.1786050947 | W123: -11.54742617 | X123: -106.1826917 | Y123: 73.81730833 | AB123: 1.461241211 | AC123: -13.6793366 | AE123: 4.377614472 | AF123: -83.0512555 | AI123: 48.57495754 | AJ123: -92.50335507 | AL123: 0 | AM123: 0 | AN123: 0 | AO123: 0 | AP123: 0 | AQ123: 0
B124: 6531.7 | C124: 10.8805796 | D124: 1.478759576 | E124: 1.000895191 | F124: 0.04229713584 | G124: 1 | H124: 0 | I124: 82096.1789 | J124: 1.570784146 | K124: 16.44638256 | L124: 1.509955154 | M124: 1.016280283 | N124: 0.1792341258 | O124: 1231.31997 | P124: 1.56998419 | Q124: 1.007550717 | R124: 0.1225031411 | S124: 1.000000216 | T124: 0.0006572738935 | U124: 1.01220666 | V124: 0.1806579666 | W124: -11.65289372 | X124: -106.4087778 | Y124: 73.59122223 | AB124: 1.457703898 | AC124: -13.75460348 | AE124: 4.278517903 | AF124: -82.97221406 | AI124: 48.4730273 | AJ124: -92.65417428 | AL124: 0 | AM124: 0 | AN124: 0 | AO124: 0 | AP124: 0 | AQ124: 0
B125: 6606.9 | C125: 11.00479644 | D125: 1.479801336 | E125: 1.000915913 | F125: 0.0427835156 | G125: 1 | H125: 0 | I125: 83041.35897 | J125: 1.570784285 | K125: 16.63503505 | L125: 1.510645972 | M125: 1.016654225 | N125: 0.1812530107 | O125: 1245.496249 | P125: 1.569993434 | Q125: 1.007724911 | R125: 0.1238992207 | S125: 1.000000221 | T125: 0.0006648411397 | U125: 1.01248782 | V125: 0.1827099055 | W125: -11.75728474 | X125: -106.6342667 | Y125: 73.36573328 | AB125: 1.454145061 | AC125: -13.83070406 | AE125: 4.180589409 | AF125: -82.89318779 | AI125: 48.37219512 | AJ125: -92.80356266 | AL125: 0 | AM125: 0 | AN125: 0 | AO125: 0 | AP125: 0 | AQ125: 0
B126: 6683.85 | C126: 11.13191606 | D126: 1.480843271 | E126: 1.000937362 | F126: 0.04328119306 | G126: 1 | H126: 0 | I126: 84008.53458 | J126: 1.570784423 | K126: 16.82808576 | L126: 1.511336832 | M126: 1.017041155 | N126: 0.1833173322 | O126: 1260.002428 | P126: 1.570002677 | Q126: 1.007905192 | R126: 0.1253272865 | S126: 1.000000226 | T126: 0.0006725844854 | U126: 1.012778783 | V126: 0.1848086196 | W126: -11.86301698 | X126: -106.8643993 | Y126: 73.13560068 | AB126: 1.45048061 | AC126: -13.90940554 | AE126: 4.081563959 | AF126: -82.81233892 | AI126: 48.27012733 | AJ126: -92.95499378 | AL126: 0 | AM126: 0 | AN126: 0 | AO126: 0 | AP126: 0 | AQ126: 0
B127: 6760.8 | C127: 11.25904749 | D127: 1.481861677 | E127: 1.00095906 | F127: 0.04377884908 | G127: 1 | H127: 0 | I127: 84975.7102 | J127: 1.570784559 | K127: 17.02114431 | L127: 1.51201202 | M127: 1.017432416 | N127: 0.1853800748 | O127: 1274.508607 | P127: 1.570011711 | Q127: 1.008087528 | R127: 0.1267548386 | S127: 1.000000231 | T127: 0.000680327831 | U127: 1.01307304 | V127: 0.1869063361 | W127: -11.96767453 | X127: -107.0939352 | Y127: 72.90606485 | AB127: 1.446792615 | AC127: -13.9889143 | AE127: 3.983707281 | AF127: -82.73150743 | AI127: 48.16915778 | AJ127: -93.10502085 | AL127: 0 | AM127: 0 | AN127: 0 | AO127: 0 | AP127: 0 | AQ127: 0
B128: 6839.55 | C128: 11.38916457 | D128: 1.482880364 | E128: 1.000981521 | F128: 0.0442881237 | G128: 1 | H128: 0 | I128: 85965.50981 | J128: 1.570784694 | K128: 17.21872671 | L128: 1.512687326 | M128: 1.017837308 | N128: 0.1874894176 | O128: 1289.354112 | P128: 1.570020745 | Q128: 1.008276255 | R128: 0.1282152461 | S128: 1.000000237 | T128: 0.0006882523073 | U128: 1.013377589 | V128: 0.1890520784 | W128: -12.07369384 | X128: -107.3282363 | Y128: 72.67176366 | AB128: 1.442993495 | AC128: -14.07108631 | AE128: 3.884744452 | AF128: -82.64880389 | AI128: 48.06693758 | AJ128: -93.25715003 | AL128: 0 | AM128: 0 | AN128: 0 | AO128: 0 | AP128: 0 | AQ128: 0
B129: 6918.3 | C129: 11.51929321 | D129: 1.483876037 | E129: 1.001004242 | F129: 0.04479737533 | G129: 1 | H129: 0 | I129: 86955.30941 | J129: 1.570784827 | K129: 17.41631678 | L129: 1.51334731 | M129: 1.018246725 | N129: 0.1895970734 | O129: 1304.199618 | P129: 1.570029573 | Q129: 1.008467131 | R129: 0.1296751039 | S129: 1.000000242 | T129: 0.0006961767836 | U129: 1.013685584 | V129: 0.1911967541 | W129: -12.17864018 | X129: -107.5619402 | Y129: 72.43805981 | AB129: 1.439168778 | AC129: -14.15403941 | AE129: 3.786951397 | AF129: -82.56612007 | AI129: 47.96581597 | AJ129: -93.40790078 | AL129: 0 | AM129: 0 | AN129: 0 | AO129: 0 | AP129: 0 | AQ129: 0
B130: 6998.9 | C130: 11.65249039 | D130: 1.484872072 | E130: 1.001027766 | F130: 0.04531856627 | G130: 1 | H130: 0 | I130: 87968.36145 | J130: 1.570784959 | K130: 17.61855632 | L130: 1.514007469 | M130: 1.01867044 | N130: 0.1917524783 | O130: 1319.393875 | P130: 1.570038403 | Q130: 1.008664717 | R130: 0.1311686814 | S130: 1.000000248 | T130: 0.0007042874221 | U130: 1.014004378 | V130: 0.1933906965 | W130: -12.2849672 | X130: -107.8005292 | Y130: 72.19947075 | AB130: 1.435227258 | AC130: -14.2397183 | AE130: 3.688045078 | AF130: -82.48151501 | AI130: 47.86343047 | AJ130: -93.56081095 | AL130: 0 | AM130: 0 | AN130: 0 | AO130: 0 | AP130: 0 | AQ130: 0
B131: 7079.5 | C131: 11.78569887 | D131: 1.485845592 | E131: 1.001051561 | F131: 0.04583973256 | G131: 1 | H131: 0 | I131: 88981.41349 | J131: 1.570785088 | K131: 17.82080337 | L131: 1.514652643 | M131: 1.019098884 | N131: 0.1939060808 | O131: 1334.588132 | P131: 1.570047032 | Q131: 1.008864551 | R131: 0.1326616705 | S131: 1.000000254 | T131: 0.0007123980605 | U131: 1.014326776 | V131: 0.1955834982 | W131: -12.39022287 | X131: -108.0385194 | Y131: 71.96148056 | AB131: 1.431258049 | AC131: -14.32615226 | AE131: 3.590309791 | AF131: -82.39693215 | AI131: 47.762144 | AJ131: -93.71236718 | AL131: 0 | AM131: 0 | AN131: 0 | AO131: 0 | AP131: 0 | AQ131: 0
B132: 7161.95 | C132: 11.92197616 | D132: 1.486818946 | E132: 1.001076184 | F132: 0.04637283532 | G132: 1 | H132: 0 | I132: 90017.71797 | J132: 1.570785218 | K132: 18.02770007 | L132: 1.515297648 | M132: 1.019542048 | N132: 0.1961072313 | O132: 1350.13114 | P132: 1.570055658 | Q132: 1.009071299 | R132: 0.1341883126 | S132: 1.00000026 | T132: 0.0007206948611 | U132: 1.014660299 | V132: 0.1978254385 | W132: -12.49681233 | X132: -108.2813657 | Y132: 71.71863429 | AB132: 1.427168675 | AC132: -14.41532025 | AE132: 3.491515645 | AF132: -82.3104316 | AI132: 47.65964392 | AJ132: -93.86604545 | AL132: 0 | AM132: 0 | AN132: 0 | AO132: 0 | AP132: 0 | AQ132: 0
B133: 7244.4 | C133: 12.05826449 | D133: 1.487770298 | E133: 1.001101092 | F133: 0.04690591171 | G133: 1 | H133: 0 | I133: 91054.02245 | J133: 1.570785344 | K133: 18.2346041 | L133: 1.515928016 | M133: 1.019990147 | N133: 0.1983064585 | O133: 1365.674149 | P133: 1.570064088 | Q133: 1.009280397 | R133: 0.1357143256 | S133: 1.000000266 | T133: 0.0007289916616 | U133: 1.014997586 | V133: 0.2000661604 | W133: -12.60233334 | X133: -108.5236113 | Y133: 71.47638865 | AB133: 1.42304952 | AC133: -14.50521653 | AE133: 3.393892592 | AF133: -82.22395585 | AI133: 47.55824207 | AJ133: -94.01839482 | AL133: 0 | AM133: 0 | AN133: 0 | AO133: 0 | AP133: 0 | AQ133: 0
B134: 7328.75 | C134: 12.19770453 | D134: 1.488721573 | E134: 1.001126867 | F134: 0.04745124485 | G134: 1 | H134: 0 | I134: 92114.2078 | J134: 1.570785471 | K134: 18.4462834 | L134: 1.516558276 | M134: 1.020453674 | N134: 0.2005543554 | O134: 1381.575335 | P134: 1.570072515 | Q134: 1.009496744 | R134: 0.1372748467 | S134: 1.000000272 | T134: 0.0007374796557 | U134: 1.015346537 | V134: 0.2023572442 | W134: -12.70920669 | X134: -108.7708305 | Y134: 71.22916946 | AB134: 1.418804244 | AC134: -14.59790754 | AE134: 3.29520458 | AF134: -82.13551378 | AI134: 47.45561398 | AJ134: -94.172923 | AL134: 0 | AM134: 0 | AN134: 0 | AO134: 0 | AP134: 0 | AQ134: 0
B135: 7413.1 | C135: 12.33715535 | D135: 1.489651344 | E135: 1.001152941 | F135: 0.04799654974 | G135: 1 | H135: 0 | I135: 93174.39316 | J135: 1.570785594 | K135: 18.65796987 | L135: 1.517174235 | M135: 1.020922351 | N135: 0.2028001997 | O135: 1397.476521 | P135: 1.570080751 | Q135: 1.00971555 | R135: 0.1388346952 | S135: 1.000000278 | T135: 0.0007459676497 | U135: 1.015699421 | V135: 0.2046470265 | W135: -12.81501442 | X135: -109.0174463 | Y135: 70.98255371 | AB135: 1.414527057 | AC135: -14.69130017 | AE135: 3.197687981 | AF135: -82.04709925 | AI135: 47.35408345 | AJ135: -94.32614612 | AL135: 0 | AM135: 0 | AN135: 0 | AO135: 0 | AP135: 0 | AQ135: 0
B136: 7499.45 | C136: 12.47992345 | D136: 1.490581636 | E136: 1.001179941 | F136: 0.04855475461 | G136: 1 | H136: 0 | I136: 94259.71628 | J136: 1.570785718 | K136: 18.87468275 | L136: 1.517790486 | M136: 1.021407471 | N136: 0.2050971478 | O136: 1413.754737 | P136: 1.57008899 | Q136: 1.009942086 | R136: 0.1404308247 | S136: 1.000000285 | T136: 0.0007546569001 | U136: 1.016064742 | V136: 0.2069897392 | W136: -12.92225347 | X136: -109.2692967 | Y136: 70.73070326 | AB136: 1.410115052 | AC136: -14.78760406 | AE136: 3.099045391 | AF136: -81.9566177 | AI136: 47.2512564 | AJ136: -94.48169269 | AL136: 0 | AM136: 0 | AN136: 0 | AO136: 0 | AP136: 0 | AQ136: 0
B137: 7585.8 | C137: 12.62270211 | D137: 1.491490883 | E137: 1.001207253 | F137: 0.04911292921 | G137: 1 | H137: 0 | I137: 95345.03941 | J137: 1.570785839 | K137: 19.09140263 | L137: 1.518392747 | M137: 1.021897974 | N137: 0.207391903 | O137: 1430.032952 | P137: 1.570097042 | Q137: 1.010171195 | R137: 0.1420262343 | S137: 1.000000291 | T137: 0.0007633461504 | U137: 1.016434176 | V137: 0.2093310599 | W137: -13.02842844 | X137: -109.5205392 | Y137: 70.47946079 | AB137: 1.405668927 | AC137: -14.88458375 | AE137: 3.001576094 | AF137: -81.86616665 | AI137: 47.14952756 | AJ137: -94.63595546 | AL137: 0 | AM137: 0 | AN137: 0 | AO137: 0 | AP137: 0 | AQ137: 0
B138: 7674.15 | C138: 12.7687983 | D138: 1.492400143 | E138: 1.001235521 | F138: 0.0496840003 | G138: 1 | H138: 0 | I138: 96455.5003 | J138: 1.570785959 | K138: 19.31314908 | L138: 1.518994968 | M138: 1.022405403 | N138: 0.2097375166 | O138: 1446.688196 | P138: 1.570105093 | Q138: 1.01040827 | R138: 0.1436578429 | S138: 1.000000298 | T138: 0.0007722366571 | U138: 1.016816422 | V138: 0.2117251538 | W138: -13.13598766 | X138: -109.7769835 | Y138: 70.22301653 | AB138: 1.401084191 | AC138: -14.98447974 | AE138: 2.903036411 | AF138: -81.77365302 | AI138: 47.04655307 | AJ138: -94.79250373 | AL138: 0 | AM138: 0 | AN138: 0 | AO138: 0 | AP138: 0 | AQ138: 0
B139: 7762.5 | C139: 12.91490481 | D139: 1.49328883 | E139: 1.001264115 | F139: 0.05025503895 | G139: 1 | H139: 0 | I139: 97565.96119 | J139: 1.570786077 | K139: 19.53490238 | L139: 1.519583516 | M139: 1.022918451 | N139: 0.2120807902 | O139: 1463.34344 | P139: 1.57011296 | Q139: 1.010648034 | R139: 0.1452886818 | S139: 1.000000305 | T139: 0.0007811271637 | U139: 1.017202965 | V139: 0.2141177609 | W139: -13.24248564 | X139: -110.0328148 | Y139: 69.96718518 | AB139: 1.396463123 | AC139: -15.08502486 | AE139: 2.805670672 | AF139: -81.68117299 | AI139: 46.94467615 | AJ139: -94.94778996 | AL139: 0 | AM139: 0 | AN139: 0 | AO139: 0 | AP139: 0 | AQ139: 0
B140: 7852.9 | C140: 13.06441177 | D140: 1.494177563 | E140: 1.00129371 | F140: 0.05083929356 | G140: 1 | H140: 0 | I140: 98702.18829 | J140: 1.570786195 | K140: 19.76180791 | L140: 1.520172048 | M140: 1.023449211 | N140: 0.21447599 | O140: 1480.385138 | P140: 1.570120827 | Q140: 1.010896142 | R140: 0.1469565559 | S140: 1.000000312 | T140: 0.0007902239581 | U140: 1.017602922 | V140: 0.2165643294 | W140: -13.35038266 | X140: -110.2939594 | Y140: 69.70604064 | AB140: 1.39169694 | AC140: -15.18854603 | AE140: 2.707233649 | AF140: -81.58658278 | AI140: 46.84154532 | AJ140: -95.10541333 | AL140: 0 | AM140: 0 | AN140: 0 | AO140: 0 | AP140: 0 | AQ140: 0
B141: 7943.3 | C141: =SQRT(1+(B141/PS_Pole1)^2) -> 13.21392882 | D141: =ATAN(B141/PS_Pole1) -> 1.495046185 | E141: =SQRT(1+(B141/PS_Zero1)^2) -> 1.001323647 | F141: =ATAN(B141/PS_Zero1) -> 0.05142351343 | G141: =IF(VIN_nom>Vout, 1, SQRT(1+(B141/PS_RHPZ)^2)) -> 1 | H141: =IF(VIN_nom>Vout, 0, -ATAN(B141/PS_RHPZ)) -> 0 | I141: =SQRT(1+(B141/EA_Pole1)^2) -> 99838.4154 | J141: =ATAN(B141/EA_Pole1) -> 1.570786311 | K141: =SQRT(1+(B141/EA_Zero1)^2) -> 19.98872012 | L141: =ATAN(B141/EA_Zero1) -> 1.520747219 | M141: =SQRT(1+(B141/EA_Pole2)^2) -> 1.023985836 | N141: =ATAN(B141/EA_Pole2) -> 0.216868693 | O141: =SQRT(1+(B141/$V$5)^2) -> 1497.426837 | P141: =ATAN(B141/$V$5) -> 1.570128514 | Q141: =SQRT(1+(B141/$V$4)^2) -> 1.01114706 | R141: =ATAN(B141/$V$4) -> 0.148623607 | S141: =SQRT(1+(B141/$V$7)^2) -> 1.000000319 | T141: =ATAN(B141/$V$7) -> 0.0007993207524 | U141: =SQRT((1-(B141^2/pterm2))^2+(B141/pterm1)^2) -> 1.018007369 | V141: =IF((ATAN((B141/pterm1)/(1-B141^2/pterm2))>0),ATAN((B141/pterm1)/(1-B141^2/pterm2)),PI()+ATAN((B141/pterm1)/(1-B141^2/pterm2))) -> 0.2190093096 | W141: =20*LOG10(((E141*K141*G141)/(C141*I141*U141*M141))*Adc) -> -13.45722133 | X141: -110.554485 | Y141: 69.44551504 | AB141: =20*LOG10((K141/(I141*M141))*AEA) -> 1.38689217 | AC141: =(L141-(J141+N141))*radconv -> -15.29268958 | AE141: =20*LOG10((Q141/(O141*S141))*AIL) -> 2.609971362 | AF141: =(R141-(P141+T141))*radconv -> -81.49202946 | AI141: =20*LOG10((E141*G141/(C141*U141))*Acs*Am) -> 46.73951142 | AJ141: =(F141+H141-(D141+V141))*radconv -> -95.26179538 | AL141: =SUM((W142<0)*(W141>0))*B141 -> 0 | AM141: 0 | AN141: =SUM((AB142<0)*(AB141>0))*B141 -> 0 | AO141: 0 | AP141: 0 | AQ141: 0
B142: 8035.8 | C142: 13.36692924 | D142: 1.495914869 | E142: 1.001354634 | F142: 0.05202126841 | G142: 1 | H142: 0 | I142: 101001.0372 | J142: 1.570786426 | K142: 20.22091021 | L142: 1.521322389 | M142: 1.024540989 | N142: 0.2193143699 | O142: 1514.864416 | P142: 1.570136202 | Q142: 1.011406715 | R142: 0.1503285227 | S142: 1.000000327 | T142: 0.0008086288658 | U142: 1.018425856 | V142: 0.2215094265 | W142: -13.56547275 | X142: -110.820433 | Y142: =IF(X142>0,X142-180,X142+180) -> 69.17956701 | AB142: 1.381935591 | AC142: -15.39986836 | AE142: 2.511638443 | AF142: -81.39531875 | AI142: 46.63621658 | AJ142: -95.42056463 | AL142: 0 | AM142: 0 | AN142: 0 | AO142: =IF(AN142>0,AC142,0) -> 0 | AP142: =SUM((AE143<0)*(AE142>0))*B142 -> 0 | AQ142: =IF(AP142>0,AE142,0) -> 0
B143: 8128.3 | C143: 13.51993953 | D143: 1.496763891 | E143: 1.001385978 | F143: 0.05261898619 | G143: 1 | H143: 0 | I143: 102163.6589 | J143: 1.570786539 | K143: 20.45310684 | L143: 1.521884499 | M143: 1.025102264 | N143: 0.2217573832 | O143: 1532.301995 | P143: 1.570143714 | Q143: 1.011669308 | R143: 0.1520325582 | S143: 1.000000335 | T143: 0.0008179369791 | U143: 1.018849034 | V143: 0.224007847 | W143: -13.67266876 | X143: =IF(((F143+L143+H143)-(D143+J143+V143+N143))*radconv<-180,((F143+L143+H143)-(D143+J143+V143+N143))*radconv+360,((F143+L143+H143)-(D143+J143+V143+N143))*radconv) -> -111.0857549 | Y143: 68.91424511 | AB143: 1.376938125 | AC143: -15.50764261 | AE143: 2.414481159 | AF143: -81.29864844 | AI143: 46.53401803 | AJ143: -95.57811228 | AL143: 0 | AM143: 0 | AN143: 0 | AO143: 0 | AP143: 0 | AQ143: 0
B144: 8222.95 | C144: 13.67651613 | D144: 1.497612982 | E144: 1.001418421 | F144: 0.05323055791 | G144: 1 | H144: 0 | I144: 103353.3038 | J144: 1.570786651 | K144: 20.69070702 | L144: 1.522446615 | M144: 1.02568291 | N144: 0.2242543971 | O144: 1550.14488 | P144: 1.570151226 | Q144: 1.011941044 | R144: 0.1537752805 | S144: 1.000000342 | T144: 0.000827461443 | U144: 1.019286901 | V144: 0.2265625655 | W144: -13.78129028 | X144: -111.3566063 | Y144: 68.64339373 | AB144: 1.371781962 | AC144: -15.61851055 | AE144: 2.316255356 | AF144: -81.19977392 | AI144: 46.43055268 | AJ144: -95.73809572 | AL144: 0 | AM144: 0 | AN144: 0 | AO144: 0 | AP144: 0 | AQ144: 0
B145: 8270.275 | C145: 13.75480806 | D145: 1.498030278 | E145: 1.001434783 | F145: 0.05353632885 | G145: 1 | H145: 0 | I145: 103948.1262 | J145: 1.570786707 | K145: 20.80950951 | L145: 1.522722859 | M145: 1.02597563 | N145: 0.2255018403 | O145: 1559.066323 | P145: 1.570154917 | Q145: 1.012078064 | R145: 0.1546462894 | S145: 1.000000346 | T145: 0.0008322236749 | U145: 1.019507672 | V145: 0.2278392466 | W145: -13.8352048 | X145: -111.4917934 | Y145: 68.5082066 | AB145: 1.369187682 | AC145: -15.67415932 | AE145: 2.267585334 | AF145: -81.15035315 | AI145: 46.37923244 | AJ145: -95.81763408 | AL145: 0 | AM145: 0 | AN145: 0 | AO145: 0 | AP145: 0 | AQ145: 0
B146: 8317.6 | C146: 13.83310237 | D146: 1.498442851 | E146: 1.001451238 | F146: 0.05384208977 | G146: 1 | H146: 0 | I146: 104542.9486 | J146: 1.570786761 | K146: 20.92831358 | L146: 1.522995967 | M146: 1.026269945 | N146: 0.22674857 | O146: 1567.987765 | P146: 1.570158567 | Q146: 1.012215851 | R146: 0.1555170617 | S146: 1.00000035 | T146: 0.0008369859068 | U146: 1.019729669 | V146: 0.2291154725 | W146: -13.88885945 | X146: -111.6268232 | Y146: 68.37317684 | AB146: 1.366582572 | AC146: -15.72994687 | AE146: 2.219206161 | AF146: -81.10094352 | AI146: 46.3281829 | AJ146: -95.89687629 | AL146: 0 | AM146: 0 | AN146: 0 | AO146: 0 | AP146: 0 | AQ146: 0
B147: 8366.05 | C147: 13.91326028 | D147: 1.498860421 | E147: 1.001468182 | F147: 0.05415510874 | G147: 1 | H147: 0 | I147: 105151.9111 | J147: 1.570786817 | K147: 21.04994343 | L147: 1.523272374 | M147: 1.026572908 | N147: 0.228024194 | O147: 1577.121287 | P147: 1.57016226 | Q147: 1.012357709 | R147: 0.1564082877 | S147: 1.000000354 | T147: 0.0008418613454 | U147: 1.019958211 | V147: 0.2304215628 | W147: -13.94352361 | X147: -111.7649011 | Y147: 68.23509894 | AB147: 1.363904291 | AC147: -15.78720098 | AE147: 2.169974855 | AF147: -81.05037099 | AI147: 46.27619702 | AJ147: -95.97770008 | AL147: 0 | AM147: 0 | AN147: 0 | AO147: 0 | AP147: 0 | AQ147: 0
B148: 8414.5 | C148: 13.99342058 | D148: 1.499273207 | E148: 1.001485224 | F148: 0.05446811708 | G148: 1 | H148: 0 | I148: 105760.8735 | J148: 1.570786872 | K148: 21.17157486 | L148: 1.523545605 | M148: 1.02687754 | N148: 0.2292990632 | O148: 1586.254808 | P148: 1.570165911 | Q148: 1.012500371 | R148: 0.1572992632 | S148: 1.000000358 | T148: 0.0008467367839 | U148: 1.020188035 | V148: 0.2317271713 | W148: -13.99792198 | X148: -111.9028165 | Y148: 68.09718345 | AB148: 1.361214615 | AC148: -15.84459378 | AE148: 2.121041593 | AF148: -80.99981038 | AI148: 46.22448833 | AJ148: -96.05822277 | AL148: 0 | AM148: 0 | AN148: 0 | AO148: 0 | AP148: 0 | AQ148: 0
B149: 8462.95 | C149: 14.07358325 | D149: 1.49968129 | E149: 1.001502364 | F149: 0.05478111475 | G149: 1 | H149: 0 | I149: 106369.8359 | J149: 1.570786926 | K149: 21.29320787 | L149: 1.523815714 | M149: 1.027183841 | N149: 0.2305731742 | O149: 1595.388329 | P149: 1.57016952 | Q149: 1.012643836 | R149: 0.158189987 | S149: 1.000000363 | T149: 0.0008516122224 | U149: 1.02041914 | V149: 0.2330322958 | W149: -14.05205781 | X149: -112.0405709 | Y149: 67.95942915 | AB149: 1.358513524 | AC149: -15.90212195 | AE149: 2.072403023 | AF149: -80.94926179 | AI149: 46.17305359 | AJ149: -96.13844891 | AL149: 0 | AM149: 0 | AN149: 0 | AO149: 0 | AP149: 0 | AQ149: 0
B150: 8511.4 | C150: 14.15374823 | D150: 1.500084751 | E150: 1.001519602 | F150: 0.05509410166 | G150: 1 | H150: 0 | I150: 106978.7983 | J150: 1.570786979 | K150: 21.4148424 | L150: 1.524082755 | M150: 1.027491808 | N150: 0.2318465235 | O150: 1604.52185 | P150: 1.570173088 | Q150: 1.012788105 | R150: 0.1590804578 | S150: 1.000000367 | T150: 0.0008564876609 | U150: 1.020651526 | V150: 0.2343369338 | W150: -14.10593429 | X150: -112.1781652 | Y150: 67.82183482 | AB150: 1.355800998 | AC150: -15.95978224 | AE150: 2.024055853 | AF150: -80.89872535 | AI150: 46.12188963 | AJ150: -96.21838294 | AL150: 0 | AM150: 0 | AN150: 0 | AO150: 0 | AP150: 0 | AQ150: 0
B151: 8560.95 | C151: 14.23573562 | D151: 1.500492672 | E151: 1.001537333 | F151: 0.0554141834 | G151: 1 | H151: 0 | I151: 107601.5865 | J151: 1.570787033 | K151: 21.53924007 | L151: 1.524352739 | M151: 1.027808489 | N151: 0.2331479913 | O151: 1613.862738 | P151: 1.570176695 | Q151: 1.012936479 | R151: 0.1599908825 | S151: 1.000000371 | T151: 0.0008614737904 | U151: 1.020890512 | V151: 0.2356706865 | W151: -14.16076899 | X151: -112.3187192 | Y151: 67.68128084 | AB151: 1.353015043 | AC151: -16.018885 | AE151: 1.974909041 | AF151: -80.84705422 | AI151: 46.06984088 | AJ151: -96.29983416 | AL151: 0 | AM151: 0 | AN151: 0 | AO151: 0 | AP151: 0 | AQ151: 0
B152: 8610.5 | C152: 14.31772535 | D152: 1.500895921 | E152: 1.001555166 | F152: 0.05573425378 | G152: 1 | H152: 0 | I152: 108224.3747 | J152: 1.570787087 | K152: 21.66363929 | L152: 1.524619622 | M152: 1.02812691 | N152: 0.2344486551 | O152: 1623.203625 | P152: 1.570180261 | Q152: 1.013085693 | R152: 0.1609010397 | S152: 1.000000375 | T152: 0.0008664599199 | U152: 1.021130836 | V152: 0.2370039255 | W152: -14.21533902 | X152: -112.4591082 | Y152: 67.54089177 | AB152: 1.350217093 | AC152: -16.07811931 | AE152: 1.92606022 | AF152: -80.79539604 | AI152: 46.01806881 | AJ152: -96.38098892 | AL152: 0 | AM152: 0 | AN152: 0 | AO152: 0 | AP152: 0 | AQ152: 0
B153: 8660.05 | C153: 14.39971738 | D153: 1.501294578 | E153: 1.001573102 | F153: 0.05605431272 | G153: 1 | H153: 0 | I153: 108847.1629 | J153: 1.57078714 | K153: 21.78804004 | L153: 1.524883458 | M153: 1.028447069 | N153: 0.2357485113 | O153: 1632.544512 | P153: 1.570183786 | Q153: 1.013235746 | R153: 0.1618109282 | S153: 1.00000038 | T153: 0.0008714460493 | U153: 1.021372497 | V153: 0.2383366481 | W153: -14.26964762 | X153: -112.5993336 | Y153: 67.40066643 | AB153: 1.347407131 | AC153: -16.13748193 | AE153: 1.877506044 | AF153: -80.74375091 | AI153: 45.96657017 | AJ153: -96.46185164 | AL153: 0 | AM153: 0 | AN153: 0 | AO153: 0 | AP153: 0 | AQ153: 0
B154: 8709.6 | C154: 14.48171168 | D154: 1.501688721 | E154: 1.001591141 | F154: 0.05637436017 | G154: 1 | H154: 0 | I154: 109469.9511 | J154: 1.570787192 | K154: 21.91244228 | L154: 1.525144298 | M154: 1.028768965 | N154: 0.2370475563 | O154: 1641.885399 | P154: 1.570187271 | Q154: 1.013386637 | R154: 0.1627205465 | S154: 1.000000384 | T154: 0.0008764321787 | U154: 1.021615494 | V154: 0.239668852 | W154: -14.32369797 | X154: -112.7393963 | Y154: 67.26060367 | AB154: 1.344585144 | AC154: -16.19696968 | AE154: 1.829243224 | AF154: -80.69211898 | AI154: 45.9153418 | AJ154: -96.54242665 | AL154: 0 | AM154: =IF(AL154>0,Y154,0) -> 0 | AN154: 0 | AO154: 0 | AP154: 0 | AQ154: 0
B155: 8760.325 | C155: 14.56565264 | D155: 1.502087614 | E155: 1.001609714 | F155: 0.05670198506 | G155: 1 | H155: 0 | I155: 110107.5078 | J155: 1.570787245 | K155: 22.03979605 | L155: 1.525408274 | M155: 1.029100291 | N155: 0.2383765619 | O155: 1651.447791 | P155: 1.570190797 | Q155: 1.013541975 | R155: 0.1636514535 | S155: 1.000000389 | T155: 0.0008815365462 | U155: 1.021865637 | V155: 0.241032107 | W155: -14.37876581 | X155: -112.8826132 | Y155: 67.11738681 | AB155: 1.341683766 | AC155: -16.25799444 | AE155: 1.780134355 | AF155: -80.63927645 | AI155: 45.86317534 | AJ155: -96.62461875 | AL155: 0 | AM155: 0 | AN155: 0 | AO155: 0 | AP155: 0 | AQ155: 0
B156: 8811.05 | C156: 14.6495959 | D156: 1.502481935 | E156: 1.001628394 | F156: 0.05702959777 | G156: 1 | H156: 0 | I156: 110745.0644 | J156: 1.570787297 | K156: 22.16715135 | L156: 1.525669216 | M156: 1.029433433 | N156: 0.2397047098 | O156: 1661.010182 | P156: 1.570194283 | Q156: 1.01369819 | R156: 0.1645820745 | S156: 1.000000393 | T156: 0.0008866409137 | U156: 1.022117178 | V156: 0.2423948131 | W156: -14.4335696 | X156: -113.025662 | Y156: 66.97433801 | AB156: 1.338769758 | AC156: -16.31914381 | AE156: 1.731324027 | AF156: -80.58644799 | AI156: 45.81128557 | AJ156: -96.70651818 | AL156: 0 | AM156: 0 | AN156: 0 | AO156: 0 | AP156: 0 | AQ156: 0
B157: 8861.775 | C157: 14.73354141 | D157: 1.502871763 | E157: 1.001647182 | F157: 0.05735719822 | G157: 1 | H157: 0 | I157: 111382.621 | J157: 1.570787349 | K157: 22.29450813 | L157: 1.525927177 | M157: 1.029768391 | N157: 0.2410319959 | O157: 1670.572574 | P157: 1.57019773 | Q157: 1.013855284 | R157: 0.1655124079 | S157: 1.000000398 | T157: 0.0008917452811 | U157: 1.022370117 | V157: 0.2437569675 | W157: -14.48811258 | X157: -113.1685438 | Y157: 66.83145615 | AB157: 1.335843109 | AC157: -16.38041459 | AE157: 1.682808891 | AF157: -80.53363372 | AI157: 45.75966923 | AJ157: -96.78812926 | AL157: 0 | AM157: 0 | AN157: 0 | AO157: 0 | AP157: 0 | AQ157: 0
B158: 8912.5 | C158: 14.81748913 | D158: 1.503257174 | E158: 1.001666077 | F158: 0.05768478635 | G158: 1 | H158: 0 | I158: 112020.1777 | J158: 1.5707874 | K158: 22.42186638 | L158: 1.526182208 | M158: 1.030105161 | N158: 0.2423584165 | O158: 1680.134966 | P158: 1.570201136 | Q158: 1.014013254 | R158: 0.1664424522 | S158: 1.000000402 | T158: 0.0008968496484 | U158: 1.022624453 | V158: 0.2451185678 | W158: -14.54239794 | X158: -113.3112599 | Y158: 66.68874015 | AB158: 1.332903807 | AC158: -16.44180364 | AE158: 1.634585654 | AF158: -80.48083376 | AI158: 45.70832317 | AJ158: -96.86945621 | AL158: 0 | AM158: 0 | AN158: 0 | AO158: 0 | AP158: 0 | AQ158: 0
B159: 8964.4 | C159: 14.90338368 | D159: 1.503647019 | E159: 1.001685521 | F159: 0.05801994994 | G159: 1 | H159: 0 | I159: 112672.5027 | J159: 1.570787452 | K159: 22.55217627 | L159: 1.526440165 | M159: 1.030451607 | N159: 0.2437146627 | O159: 1689.918862 | P159: 1.570204582 | Q159: 1.014175792 | R159: 0.1673937394 | S159: 1.000000407 | T159: 0.000902072254 | U159: 1.022886125 | V159: 0.2465111319 | W159: -14.59767741 | X159: -113.4571112 | Y159: 66.5428888 | AB159: 1.329883314 | AC159: -16.50473395 | AE159: 1.58554411 | AF159: -80.42682569 | AI159: 45.65606419 | AJ159: -96.95237725 | AL159: 0 | AM159: 0 | AN159: 0 | AO159: 0 | AP159: 0 | AQ159: 0
B160: 9016.3 | C160: 14.98928046 | D160: 1.504032396 | E160: 1.001705078 | F160: 0.05835510048 | G160: 1 | H160: 0 | I160: 113324.8278 | J160: 1.570787503 | K160: 22.68248763 | L160: 1.526695158 | M160: 1.030799947 | N160: 0.2450699947 | O160: 1699.702758 | P160: 1.570207989 | Q160: 1.014339247 | R160: 0.1683447209 | S160: 1.000000412 | T160: 0.0009072948594 | U160: 1.023149258 | V160: 0.2479031101 | W160: -14.65269378 | X160: -113.6027911 | Y160: 66.39720885 | AB160: 1.326849556 | AC160: -16.56778166 | AE160: 1.536801346 | AF160: -80.37283286 | AI160: 45.60408159 | AJ160: -97.03500948 | AL160: 0 | AM160: 0 | AN160: 0 | AO160: 0 | AP160: 0 | AQ160: 0
B161: 9068.2 | C161: 15.07517945 | D161: 1.504413381 | E161: 1.001724747 | F161: 0.0586902379 | G161: 1 | H161: 0 | I161: 113977.1529 | J161: 1.570787553 | K161: 22.81280046 | L161: 1.526947237 | M161: 1.031150179 | N161: 0.2464244086 | O161: 1709.486654 | P161: 1.570211356 | Q161: 1.014503619 | R161: 0.1692953952 | S161: 1.000000416 | T161: 0.0009125174648 | U161: 1.02341385 | V161: 0.2492944998 | W161: -14.70745028 | X161: -113.7483008 | Y161: 66.25169924 | AB161: 1.323802528 | AC161: -16.63094365 | AE161: 1.488354014 | AF161: -80.3188554 | AI161: 45.55237212 | AJ161: -97.11735711 | AL161: 0 | AM161: 0 | AN161: 0 | AO161: 0 | AP161: 0 | AQ161: 0
B162: 9120.1 | C162: 15.1610806 | D162: 1.504790048 | E162: 1.001744529 | F162: 0.05902536211 | G162: 1 | H162: 0 | I162: 114629.478 | J162: 1.570787603 | K162: 22.94311472 | L162: 1.527196453 | M162: 1.031502302 | N162: 0.2477779002 | O162: 1719.27055 | P162: 1.570214685 | Q162: 1.014668907 | R162: 0.1702457605 | S162: 1.000000421 | T162: 0.0009177400702 | U162: 1.0236799 | V162: 0.2506852981 | W162: -14.7619501 | X162: -113.8936411 | Y162: 66.10635891 | AB162: 1.320742222 | AC162: -16.69421683 | AE162: 1.440198821 | AF162: -80.26489344 | AI162: 45.5009326 | AJ162: -97.19942426 | AL162: 0 | AM162: 0 | AN162: 0 | AO162: 0 | AP162: 0 | AQ162: 0
B163: 9173.2 | C163: 15.24897011 | D163: 1.505171033 | E163: 1.001764885 | F163: 0.05936822113 | G163: 1 | H163: 0 | I163: 115296.8857 | J163: 1.570787654 | K163: 23.07644348 | L163: 1.527448519 | M163: 1.03186452 | N163: 0.2491617278 | O163: 1729.280664 | P163: 1.570218052 | Q163: 1.014838966 | R163: 0.1712177783 | S163: 1.000000426 | T163: 0.0009230834294 | U163: 1.02395361 | V163: 0.2521076385 | W163: -14.81744765 | X163: -114.0421677 | Y163: 65.95783227 | AB163: 1.317597412 | AC163: -16.75906492 | AE163: 1.391229186 | AF163: -80.20969998 | AI163: 45.44857986 | AJ163: -97.28310281 | AL163: 0 | AM163: 0 | AN163: 0 | AO163: 0 | AP163: 0 | AQ163: 0
B164: 9226.3 | C164: 15.3368618 | D164: 1.505547651 | E164: 1.001785358 | F164: 0.05971106618 | G164: 1 | H164: 0 | I164: 115964.2934 | J164: 1.570787703 | K164: 23.2097737 | L164: 1.527697688 | M164: 1.032228713 | N164: 0.2505445815 | O164: 1739.290777 | P164: 1.57022138 | Q164: 1.015009983 | R164: 0.1721894695 | S164: 1.000000431 | T164: 0.0009284267885 | U164: 1.024228844 | V164: 0.253529354 | W164: -14.8726831 | X164: -114.1905193 | Y164: 65.80948072 | AB164: 1.314438693 | AC164: -16.82402312 | AE164: 1.34255856 | AF164: -80.15452302 | AI164: 45.39650313 | AJ164: -97.36649617 | AL164: 0 | AM164: 0 | AN164: 0 | AO164: 0 | AP164: 0 | AQ164: 0
B165: 9279.4 | C165: 15.42475565 | D165: 1.505919978 | E165: 1.001805949 | F165: 0.06005389717 | G165: 1 | H165: 0 | I165: 116631.7012 | J165: 1.570787753 | K165: 23.34310533 | L165: 1.527944011 | M165: 1.032594879 | N165: 0.2519264571 | O165: 1749.300891 | P165: 1.57022467 | Q165: 1.015181958 | R165: 0.1731608324 | S165: 1.000000436 | T165: 0.0009337701476 | U165: 1.024505602 | V165: 0.2549504415 | W165: -14.92765968 | X165: -114.3386968 | Y165: 65.66130325 | AB165: 1.311266064 | AC165: -16.88908832 | AE165: 1.294183593 | AF165: -80.09936268 | AI165: 45.34469918 | AJ165: -97.44960843 | AL165: 0 | AM165: 0 | AN165: 0 | AO165: 0 | AP165: 0 | AQ165: 0
B166: 9332.5 | C166: 15.51265161 | D166: 1.506288084 | E166: 1.001826658 | F166: 0.06039671402 | G166: 1 | H166: 0 | I166: 117299.1089 | J166: 1.570787802 | K166: 23.47643837 | L166: 1.528187536 | M166: 1.032963015 | N166: 0.2533073504 | O166: 1759.311004 | P166: 1.570227922 | Q166: 1.01535489 | R166: 0.1741318653 | S166: 1.000000441 | T166: 0.0009391135066 | U166: 1.024783883 | V166: 0.2563708982 | W166: -14.98238057 | X166: -114.4867011 | Y166: 65.51329887 | AB166: 1.308079523 | AC166: -16.95425752 | AE166: 1.246100996 | AF166: -80.04421911 | AI166: 45.29316483 | AJ166: -97.53244362 | AL166: 0 | AM166: 0 | AN166: 0 | AO166: 0 | AP166: 0 | AQ166: 0
B167: 9386.85 | C167: 15.60261883 | D167: 1.506660562 | E167: 1.001847976 | F167: 0.06074758624 | G167: 1 | H167: 0 | I167: 117982.2277 | J167: 1.570787851 | K167: 23.61291156 | L167: 1.528433946 | M167: 1.033341855 | N167: 0.254719729 | O167: 1769.556761 | P167: 1.570231213 | Q167: 1.015532885 | R167: 0.1751254134 | S167: 1.000000446 | T167: 0.0009445826509 | U167: 1.025070289 | V167: 0.2578241366 | W167: -15.03812809 | X167: -114.6380114 | Y167: 65.36198863 | AB167: 1.30480356 | AC167: -17.02106544 | AE167: 1.197185907 | AF167: -79.98779492 | AI167: 45.24069327 | AJ167: -97.61694593 | AL167: 0 | AM167: 0 | AN167: 0 | AO167: 0 | AP167: 0 | AQ167: 0
B168: 9441.2 | C168: 15.6925882 | D168: 1.507028768 | E168: 1.001869418 | F168: 0.06109844348 | G168: 1 | H168: 0 | I168: 118665.3466 | J168: 1.5707879 | K168: 23.74938616 | L168: 1.528677523 | M168: 1.033722755 | N168: 0.2561310694 | O168: 1779.802517 | P168: 1.570234467 | Q168: 1.015711881 | R168: 0.1761186123 | S168: 1.000000451 | T168: 0.0009500517951 | U168: 1.025358288 | V168: 0.2592767079 | W168: -15.09361433 | X168: -114.7891423 | Y168: 65.21085772 | AB168: 1.301513022 | AC168: -17.08797612 | AE168: 1.148570313 | AF168: -79.93138857 | AI168: 45.18849757 | AJ168: -97.70116616 | AL168: 0 | AM168: 0 | AN168: 0 | AO168: 0 | AP168: 0 | AQ168: 0
B169: 9495.55 | C169: 15.78255966 | D169: 1.507392776 | E169: 1.001890982 | F169: 0.06144928566 | G169: 1 | H169: 0 | I169: 119348.4654 | J169: 1.570787948 | K169: 23.88586216 | L169: 1.528918318 | M169: 1.034105713 | N169: 0.2575413674 | O169: 1790.048274 | P169: 1.570237683 | Q169: 1.015891879 | R169: 0.1771114602 | S169: 1.000000457 | T169: 0.0009555209392 | U169: 1.025647879 | V169: 0.2607286088 | W169: -15.14884251 | X169: -114.9400948 | Y169: 65.05990517 | AB169: 1.298207911 | AC169: -17.15498651 | AE169: 1.100250862 | AF169: -79.87500019 | AI169: 45.1365745 | AJ169: -97.78510832 | AL169: 0 | AM169: 0 | AN169: 0 | AO169: 0 | AP169: 0 | AQ169: 0
B170: 9549.9 | C170: 15.8725332 | D170: 1.507752658 | E170: 1.001912671 | F170: 0.06180011269 | G170: 1 | H170: 0 | I170: 120031.5843 | J170: 1.570787996 | K170: 24.02233953 | L170: 1.529156376 | M170: 1.034490726 | N170: 0.2589506184 | O170: 1800.29403 | P170: 1.570240862 | Q170: 1.016072879 | R170: 0.1781039553 | S170: 1.000000462 | T170: 0.0009609900833 | U170: 1.02593906 | V170: 0.2621798363 | W170: -15.20381583 | X170: -115.09087 | Y170: 64.90913004 | AB170: 1.294888229 | AC170: -17.22209365 | AE170: 1.05222426 | AF170: -79.81862993 | AI170: 45.08492087 | AJ170: -97.86877632 | AL170: 0 | AM170: 0 | AN170: 0 | AO170: 0 | AP170: 0 | AQ170: 0
B171: 9605.525 | C171: 15.96461953 | D171: 1.508116782 | E171: 1.001934995 | F171: 0.06215915402 | G171: 1 | H171: 0 | I171: 120730.7284 | J171: 1.570788044 | K171: 24.16201992 | L171: 1.529397234 | M171: 1.034886897 | N171: 0.2603918404 | O171: 1810.780142 | P171: 1.570244079 | Q171: 1.01625916 | R171: 0.1791193664 | S171: 1.000000467 | T171: 0.0009665875283 | U171: 1.026238717 | V171: 0.2636644076 | W171: -15.25981812 | X171: -115.2449994 | Y171: 64.75500062 | AB171: 1.291475587 | AC171: -17.29087219 | AE171: 1.003370853 | AF171: -79.76095617 | AI171: 45.03233121 | AJ171: -97.95412719 | AL171: 0 | AM171: 0 | AN171: 0 | AO171: 0 | AP171: 0 | AQ171: 0
B172: 9661.15 | C172: 16.05670796 | D172: 1.508476729 | E172: 1.001957449 | F172: 0.06251817931 | G172: 1 | H172: 0 | I172: 121429.8726 | J172: 1.570788092 | K172: 24.3017017 | L172: 1.529635323 | M172: 1.035285216 | N172: 0.2618319564 | O172: 1821.266255 | P172: 1.570247258 | Q172: 1.016446489 | R172: 0.1801344042 | S172: 1.000000473 | T172: 0.0009721849733 | U172: 1.026540037 | V172: 0.2651482668 | W172: -15.31556002 | X172: -115.3989449 | Y172: 64.60105514 | AB172: 1.288047692 | AC172: -17.35974598 | AE172: 0.954817391 | AF172: -79.70330168 | AI172: 44.98001721 | AJ172: -98.03919888 | AL172: 0 | AM172: 0 | AN172: 0 | AO172: 0 | AP172: 0 | AQ172: 0
B173: 9716.775 | C173: 16.14879844 | D173: 1.508832571 | E173: 1.001980032 | F173: 0.06287718846 | G173: 1 | H173: 0 | I173: 122129.0167 | J173: 1.570788139 | K173: 24.44138484 | L173: 1.529870691 | M173: 1.03568568 | N173: 0.2632709617 | O173: 1831.752367 | P173: 1.570250401 | Q173: 1.016634865 | R173: 0.181149067 | S173: 1.000000478 | T173: 0.0009777824182 | U173: 1.02684302 | V173: 0.2666314108 | W173: -15.37104476 | X173: -115.5527073 | Y173: 64.44729268 | AB173: 1.284604551 | AC173: -17.42871202 | AE173: 0.9065605184 | AF173: -79.64566659 | AI173: 44.92797561 | AJ173: -98.1239953 | AL173: 0 | AM173: 0 | AN173: 0 | AO173: 0 | AP173: 0 | AQ173: 0
B174: 9772.4 | C174: 16.24089095 | D174: 1.509184377 | E174: 1.002002744 | F174: 0.06323618138 | G174: 1 | H174: 0 | I174: 122828.1609 | J174: 1.570788185 | K174: 24.58106932 | L174: 1.530103384 | M174: 1.036088287 | N174: 0.2647088516 | O174: 1842.23848 | P174: 1.570253509 | Q174: 1.016824286 | R174: 0.1821633527 | S174: 1.000000484 | T174: 0.000983379863 | U174: 1.027147663 | V174: 0.2681138361 | W174: -15.42627552 | X174: -115.7062876 | Y174: 64.29371235 | AB174: 1.281146172 | AC174: -17.49776739 | AE174: 0.8585969384 | AF174: -79.58805105 | AI174: 44.87620323 | AJ174: -98.20852026 | AL174: 0 | AM174: 0 | AN174: 0 | AO174: 0 | AP174: 0 | AQ174: 0
B175: 9829.3 | C175: 16.33509639 | D175: 1.509540143 | E175: 1.00202611 | F175: 0.06360338602 | G175: 1 | H175: 0 | I175: 123543.3304 | J175: 1.570788232 | K175: 24.72395691 | L175: 1.530338691 | M175: 1.036502337 | N175: 0.2661785411 | O175: 1852.964948 | P175: 1.570256651 | Q175: 1.017019132 | R175: 0.1832004952 | S175: 1.000000489 | T175: 0.0009891056088 | U175: 1.027461006 | V175: 0.2696294936 | W175: -15.48251273 | X175: -115.8632007 | Y175: 64.13679931 | AB175: 1.277592764 | AC175: -17.56849504 | AE175: 0.8098340435 | AF175: -79.52913526 | AI175: 44.82351943 | AJ175: -98.29470566 | AL175: 0 | AM175: 0 | AN175: 0 | AO175: 0 | AP175: 0 | AQ175: 0
B176: 9886.2 | C176: 16.42930388 | D176: 1.509891829 | E176: 1.002049612 | F176: 0.06397057348 | G176: 1 | H176: 0 | I176: 124258.4999 | J176: 1.570788279 | K176: 24.86684586 | L176: 1.530571293 | M176: 1.036918624 | N176: 0.2676470536 | O176: 1863.691416 | P176: 1.570259757 | Q176: 1.017215071 | R176: 0.1842372392 | S176: 1.000000495 | T176: 0.0009948313545 | U176: 1.027776084 | V176: 0.2711443923 | W176: -15.53849075 | X176: -116.019925 | Y176: 63.98007504 | AB176: 1.27402343 | AC176: -17.63931016 | AE176: 0.7613712393 | AF176: -79.47024023 | AI176: 44.77111075 | AJ176: -98.38061479 | AL176: 0 | AM176: 0 | AN176: 0 | AO176: 0 | AP176: 0 | AQ176: 0
B177: 9943.1 | C177: 16.52351338 | D177: 1.510239505 | E177: 1.002073248 | F177: 0.06433774367 | G177: 1 | H177: 0 | I177: 124973.6694 | J177: 1.570788325 | K177: 25.00973614 | L177: 1.530801237 | M177: 1.037337146 | N177: 0.2691143844 | O177: 1874.417885 | P177: 1.570262828 | Q177: 1.017412103 | R177: 0.1852735829 | S177: 1.000000501 | T177: 0.0010005571 | U177: 1.028092895 | V177: 0.2726585285 | W177: -15.5942128 | X177: -116.1764613 | Y177: 63.8235387 | AB177: 1.270438181 | AC177: -17.71020983 | AE177: 0.7132051741 | AF177: -79.4113661 | AI177: 44.71897394 | AJ177: -98.46625146 | AL177: 0 | AM177: 0 | AN177: 0 | AO177: 0 | AP177: 0 | AQ177: 0
B178: 10000 | C178: 16.61772485 | D178: 1.510583239 | E178: 1.00209702 | F178: 0.06470489649 | G178: 1 | H178: 0 | I178: 125688.8389 | J178: 1.570788371 | K178: 25.15262773 | L178: 1.531028568 | M178: 1.037757899 | N178: 0.2705805284 | O178: 1885.144353 | P178: 1.570265863 | Q178: 1.017610228 | R178: 0.1863095241 | S178: 1.000000506 | T178: 0.001006282846 | U178: 1.028411439 | V178: 0.2741718988 | W178: -15.64968206 | X178: -116.3328106 | Y178: 63.66718945 | AB178: 1.266837031 | AC178: -17.78119117 | AE178: 0.6653325536 | AF178: -79.35251303 | AI178: 44.66710583 | AJ178: -98.55161938 | AL178: 0 | AM178: 0 | AN178: 0 | AO178: 0 | AP178: 0 | AQ178: 0
B179: 10058.25 | C179: 16.71417358 | D179: 1.510931114 | E179: 1.002121495 | F179: 0.06508074222 | G179: 1 | H179: 0 | I179: 126420.9764 | J179: 1.570788417 | K179: 25.29891087 | L179: 1.531258633 | M179: 1.038190944 | N179: 0.2720802237 | O179: 1896.125316 | P179: 1.570268935 | Q179: 1.017814184 | R179: 0.1873696249 | S179: 1.000000512 | T179: 0.001012144439 | U179: 1.028739333 | V179: 0.2757203782 | W179: -15.70620878 | X179: -116.4926764 | Y179: 63.50732363 | AB179: 1.263133983 | AC179: -17.85393827 | AE179: 0.6166247048 | AF179: -79.29228559 | AI179: 44.61428215 | AJ179: -98.63873811 | AL179: 0 | AM179: 0 | AN179: 0 | AO179: 0 | AP179: 0 | AQ179: 0
B180: 10116.5 | C180: 16.81062431 | D180: 1.511274997 | E180: 1.002146112 | F180: 0.06545656954 | G180: 1 | H180: 0 | I180: 127153.1139 | J180: 1.570788462 | K180: 25.44519533 | L180: 1.531486053 | M180: 1.038626321 | N180: 0.273578665 | O180: 1907.106279 | P180: 1.570271972 | Q180: 1.018019283 | R180: 0.1884292998 | S180: 1.000000518 | T180: 0.001018006033 | U180: 1.02906904 | V180: 0.2772680475 | W180: -15.76247713 | X180: -116.6523478 | Y180: 63.34765219 | AB180: 1.259414299 | AC180: -17.92676504 | AE180: 0.568217581 | AF180: -79.23208053 | AI180: 44.56173349 | AJ180: -98.72558277 | AL180: 0 | AM180: 0 | AN180: 0 | AO180: 0 | AP180: 0 | AQ180: 0
B181: 10174.75 | C181: 16.90707701 | D181: 1.511614957 | E181: 1.002170871 | F181: 0.06583237834 | G181: 1 | H181: 0 | I181: 127885.2513 | J181: 1.570788507 | K181: 25.5914811 | L181: 1.531710873 | M181: 1.039064029 | N181: 0.2750758472 | O181: 1918.087241 | P181: 1.570274974 | Q181: 1.018225525 | R181: 0.1894885465 | S181: 1.000000524 | T181: 0.001023867626 | U181: 1.029400557 | V181: 0.2788149032 | W181: -15.81849035 | X181: -116.8118257 | Y181: 63.18817431 | AB181: 1.255677996 | AC181: -17.99966862 | AE181: 0.5201078254 | AF181: -79.171898 | AI181: 44.50945658 | AJ181: -98.81215706 | AL181: 0 | AM181: 0 | AN181: 0 | AO181: 0 | AP181: 0 | AQ181: 0
B182: 10233 | C182: 17.00353163 | D182: 1.51195106 | E182: 1.002195771 | F182: 0.06620816853 | G182: 1 | H182: 0 | I182: 128617.3888 | J182: 1.570788552 | K182: 25.73776814 | L182: 1.531933137 | M182: 1.039504064 | N182: 0.2765717652 | O182: 1929.068204 | P182: 1.570277942 | Q182: 1.018432909 | R182: 0.1905473631 | S182: 1.00000053 | T182: 0.00102972922 | U182: 1.029733884 | V182: 0.2803609415 | W182: -15.8742516 | X182: -116.9711108 | Y182: 63.02888923 | AB182: 1.251925093 | AC182: -18.07264616 | AE182: 0.4722921383 | AF182: -79.11173816 | AI182: 44.45744823 | AJ182: -98.89846461 | AL182: 0 | AM182: 0 | AN182: 0 | AO182: 0 | AP182: 0 | AQ182: 0
B183: 10292.5 | C183: 17.10205806 | D183: 1.512290461 | E183: 1.002221352 | F183: 0.06659200354 | G183: 1 | H183: 0 | I183: 129365.2374 | J183: 1.570788597 | K183: 25.88719569 | L183: 1.532157577 | M183: 1.039955941 | N183: 0.278098474 | O183: 1940.28481 | P183: 1.570280939 | Q183: 1.018645921 | R183: 0.1916284547 | S183: 1.000000536 | T183: 0.001035716598 | U183: 1.030076231 | V183: 0.281939309 | W183: -15.93095255 | X183: -117.1336158 | Y183: 62.86638425 | AB183: 1.248074534 | AC183: -18.14726322 | AE183: 0.4237505931 | AF183: -79.05031093 | AI183: 44.40459783 | AJ183: -98.98635253 | AL183: 0 | AM183: 0 | AN183: 0 | AO183: 0 | AP183: 0 | AQ183: 0
B184: 10352 | C184: 17.20058644 | D184: 1.512625974 | E184: 1.00224708 | F184: 0.0669758189 | G184: 1 | H184: 0 | I184: 130113.086 | J184: 1.570788641 | K184: 26.03662453 | L184: 1.532379441 | M184: 1.040410241 | N184: 0.279623853 | O184: 1951.501416 | P184: 1.570283901 | Q184: 1.018860124 | R184: 0.192709093 | S184: 1.000000543 | T184: 0.001041703977 | U184: 1.030420462 | V184: 0.2835168159 | W184: -15.98739714 | X184: -117.2959212 | Y184: 62.70407884 | AB184: 1.244206695 | AC184: -18.22195167 | AE184: 0.3755090906 | AF184: -78.98890769 | AI184: 44.35202109 | AJ184: -99.07396949 | AL184: 0 | AM184: 0 | AN184: 0 | AO184: 0 | AP184: 0 | AQ184: 0
B185: 10411.5 | C185: 17.29911673 | D185: 1.512957665 | E185: 1.002272956 | F185: 0.06735961451 | G185: 1 | H185: 0 | I185: 130860.9346 | J185: 1.570788685 | K185: 26.18605463 | L185: 1.532598774 | M185: 1.040866958 | N185: 0.281147897 | O185: 1962.718022 | P185: 1.570286829 | Q185: 1.019075516 | R185: 0.1937892758 | S185: 1.000000549 | T185: 0.001047691355 | U185: 1.030766576 | V185: 0.2850934585 | W185: -16.04358855 | X185: -117.4580278 | Y185: 62.54197225 | AB185: 1.240321597 | AC185: -18.29670867 | AE185: 0.3275642909 | AF185: -78.92752862 | AI185: 44.29971477 | AJ185: -99.16131908 | AL185: 0 | AM185: 0 | AN185: 0 | AO185: 0 | AP185: 0 | AQ185: 0
B186: 10471 | C186: 17.3976489 | D186: 1.513285598 | E186: 1.002298979 | F186: 0.06774339024 | G186: 1 | H186: 0 | I186: 131608.7832 | J186: 1.570788729 | K186: 26.33548598 | L186: 1.532815617 | M186: 1.041326092 | N186: 0.2826706006 | O186: 1973.934628 | P186: 1.570289724 | Q186: 1.019292096 | R186: 0.1948690008 | S186: 1.000000555 | T186: 0.001053678733 | U186: 1.031114572 | V186: 0.2866692329 | W186: -16.09952996 | X186: -117.6199363 | Y186: 62.38006374 | AB186: 1.236419264 | AC186: -18.37153146 | AE186: 0.2799129108 | AF186: -78.86617386 | AI186: 44.2476757 | AJ186: -99.2484048 | AL186: 0 | AM186: 0 | AN186: 0 | AO186: 0 | AP186: 0 | AQ186: 0
B187: 10532 | C187: 17.49866699 | D187: 1.513617966 | E187: 1.002325812 | F187: 0.06813682024 | G187: 1 | H187: 0 | I187: 132375.4851 | J187: 1.570788773 | K187: 26.48868578 | L187: 1.533035386 | M187: 1.041799304 | N187: 0.2842302945 | O187: 1985.434005 | P187: 1.570292659 | Q187: 1.01951537 | R187: 0.1959754681 | S187: 1.000000562 | T187: 0.001059817054 | U187: 1.031473292 | V187: 0.2882838274 | W187: -16.15662536 | X187: -117.7857216 | Y187: 62.21427841 | AB187: 1.232400683 | AC187: -18.44830598 | AE187: 0.2313614656 | AF187: -78.80329777 | AI187: 44.19459888 | AJ187: -99.3374156 | AL187: 0 | AM187: 0 | AN187: 0 | AO187: 0 | AP187: 0 | AQ187: 0
B188: 10593 | C188: 17.599687 | D188: 1.513946517 | E188: 1.0023528 | F188: 0.06853022911 | G188: 1 | H188: 0 | I188: 133142.187 | J188: 1.570788816 | K188: 26.64188684 | L188: 1.533252629 | M188: 1.042275049 | N188: 0.2857885685 | O188: 1996.933382 | P188: 1.570295559 | Q188: 1.019739891 | R188: 0.1970814496 | S188: 1.000000568 | T188: 0.001065955374 | U188: 1.031833986 | V188: 0.2898975012 | W188: -16.21346451 | X188: -117.9513002 | Y188: 62.04869981 | AB188: 1.228364039 | AC188: -18.52514393 | AE188: 0.18311161 | AF188: -78.74044758 | AI188: 44.14179637 | AJ188: -99.42615626 | AL188: 0 | AM188: 0 | AN188: 0 | AO188: 0 | AP188: 0 | AQ188: 0
B189: 10654 | C189: 17.70070888 | D189: 1.514271319 | E189: 1.002379943 | F189: 0.06892361674 | G189: 1 | H189: 0 | I189: 133908.889 | J189: 1.570788859 | K189: 26.79508914 | L189: 1.533467387 | M189: 1.042753322 | N189: 0.2873454168 | O189: 2008.43276 | P189: 1.570298426 | Q189: 1.019965659 | R189: 0.1981869429 | S189: 1.000000575 | T189: 0.001072093695 | U189: 1.032196652 | V189: 0.2915102502 | W189: -16.27005065 | X189: -118.1166728 | Y189: 61.88332723 | AB189: 1.224309358 | AC189: -18.6020425 | AE189: 0.135159984 | AF189: -78.67762346 | AI189: 44.08926492 | AJ189: -99.51463028 | AL189: 0 | AM189: 0 | AN189: 0 | AO189: 0 | AP189: 0 | AQ189: 0
B190: 10715 | C190: 17.80173262 | D190: 1.514592434 | E190: 1.002407241 | F190: 0.06931698301 | G190: 1 | H190: 0 | I190: 134675.5909 | J190: 1.570788902 | K190: 26.94829267 | L190: 1.533679703 | M190: 1.04323412 | N190: 0.2889008338 | O190: 2019.932138 | P190: 1.570301261 | Q190: 1.020192673 | R190: 0.1992919454 | S190: 1.000000581 | T190: 0.001078232015 | U190: 1.032561288 | V190: 0.2931220704 | W190: -16.32638693 | X190: -118.28184 | Y190: 61.71815998 | AB190: 1.22023667 | AC190: -18.67899894 | AE190: 0.08750328466 | AF190: -78.61482558 | AI190: 44.03700132 | AJ190: -99.60284108 | AL190: 0 | AM190: 0 | AN190: 0 | AO190: 0 | AP190: 0 | AQ190: 0
B191: 10777.5 | C191: 17.90524242 | D191: 1.514917687 | E191: 1.002435371 | F191: 0.06971999993 | G191: 1 | H191: 0 | I191: 135461.1461 | J191: 1.570788945 | K191: 27.10526474 | L191: 1.533894751 | M191: 1.043729356 | N191: 0.2904930085 | O191: 2031.714287 | P191: 1.570304132 | Q191: 1.02042656 | R191: 0.2004236089 | S191: 1.000000588 | T191: 0.001084521278 | U191: 1.032936933 | V191: 0.2947725579 | W191: -16.38385265 | X191: -118.4508565 | Y191: 61.54914353 | AB191: 1.216045187 | AC191: -18.75790497 | AE191: 0.0389771988 | AF191: -78.55051088 | AI191: 43.98372709 | AJ191: -99.69295151 | AL191: 0 | AM191: 0 | AN191: 0 | AO191: 0 | AP191: 10777.5 | AQ191: 0.0389771988
B192: 10840 | C192: 18.00875409 | D192: 1.515239201 | E192: 1.002463665 | F192: 0.07012299417 | G192: 1 | H192: 0 | I192: 136246.7014 | J192: 1.570788987 | K192: 27.26223805 | L192: 1.534107322 | M192: 1.044227236 | N192: 0.292083669 | O192: 2043.496436 | P192: 1.570306969 | Q192: 1.020661754 | R192: 0.2015547522 | S192: 1.000000595 | T192: 0.00109081054 | U192: 1.033314642 | V192: 0.2964220617 | W192: -16.44106262 | X192: -118.6196587 | Y192: 61.38034126 | AB192: 1.211834864 | AC192: -18.8368661 | AE192: -0.009246118475 | AF192: -78.48622409 | AI192: 43.93072744 | AJ192: -99.78279265 | AL192: 0 | AM192: 0 | AN192: 0 | AO192: 0 | AP192: 0 | AQ192: 0
B193: 10902.5 | C193: 18.11226761 | D193: 1.51555704 | E193: 1.00249212 | F193: 0.07052596559 | G193: 1 | H193: 0 | I193: 137032.2566 | J193: 1.570789029 | K193: 27.41921258 | L193: 1.534317459 | M193: 1.044727755 | N193: 0.2936728093 | O193: 2055.278585 | P193: 1.570309775 | Q193: 1.020898253 | R193: 0.2026853729 | S193: 1.000000602 | T193: 0.001097099803 | U193: 1.033694414 | V193: 0.2980705776 | W193: -16.49802008 | X193: -118.7882475 | Y193: 61.21175252 | AB193: 1.207605735 | AC193: -18.91587955 | AE193: -0.05717004108 | AF193: -78.42196537 | AI193: 43.8779991 | AJ193: -99.87236792 | AL193: 0 | AM193: 0 | AN193: 0 | AO193: 0 | AP193: 0 | AQ193: 0
B194: 10965 | C194: 18.21578294 | D194: 1.515871267 | E194: 1.002520739 | F194: 0.07092891408 | G194: 1 | H194: 0 | I194: 137817.8118 | J194: 1.570789071 | K194: 27.57618831 | L194: 1.534525204 | M194: 1.04523091 | N194: 0.2952604237 | O194: 2067.060734 | P194: 1.570312548 | Q194: 1.021136057 | R194: 0.2038154684 | S194: 1.000000609 | T194: 0.001103389065 | U194: 1.034076247 | V194: 0.2997181012 | W194: -16.55472821 | X194: -118.9566233 | Y194: 61.04337668 | AB194: 1.203357834 | AC194: -18.99494263 | AE194: -0.1047978854 | AF194: -78.35773492 | AI194: 43.82553888 | AJ194: -99.96168069 | AL194: 0 | AM194: 0 | AN194: 0 | AO194: 0 | AP194: 0 | AQ194: 0
B195: 11028.75 | C195: 18.3213704 | D195: 1.51618812 | E195: 1.002550098 | F195: 0.07133989776 | G195: 1 | H195: 0 | I195: 138619.0782 | J195: 1.570789113 | K195: 27.73630476 | L195: 1.534734682 | M195: 1.04574684 | N195: 0.2968782123 | O195: 2079.078526 | P195: 1.570315344 | Q195: 1.021379959 | R195: 0.2049676223 | S195: 1.000000616 | T195: 0.001109804112 | U195: 1.034467837 | V195: 0.3013975486 | W195: -16.61231685 | X195: -119.128148 | Y195: 60.87185202 | AB195: 1.199005673 | AC195: -19.07563532 | AE195: -0.1530766474 | AF195: -78.29224914 | AI195: 43.77230239 | AJ195: -100.0525127 | AL195: 0 | AM195: 0 | AN195: 0 | AO195: 0 | AP195: 0 | AQ195: 0
B196: 11092.5 | C196: 18.42695968 | D196: 1.516501342 | E196: 1.002579626 | F196: 0.07175085731 | G196: 1 | H196: 0 | I196: 139420.3445 | J196: 1.570789154 | K196: 27.89642241 | L196: 1.534941755 | M196: 1.046265504 | N196: 0.2984944012 | O196: 2091.096318 | P196: 1.570318109 | Q196: 1.021625217 | R196: 0.2061192244 | S196: 1.000000623 | T196: 0.00111621916 | U196: 1.034861567 | V196: 0.3030759547 | W196: -16.66965258 | X196: -119.2994524 | Y196: 60.7005476 | AB196: 1.194634057 | AC196: -19.1563741 | AE196: -0.2010541621 | AF196: -78.22679313 | AI196: 43.71933828 | AJ196: -100.1430783 | AL196: 0 | AM196: 0 | AN196: 0 | AO196: 0 | AP196: 0 | AQ196: 0
B197: 11156.25 | C197: 18.53255075 | D197: 1.516810995 | E197: 1.002609323 | F197: 0.07216179258 | G197: 1 | H197: 0 | I197: 140221.6109 | J197: 1.570789195 | K197: 28.05654125 | L197: 1.535146464 | M197: 1.046786898 | N197: 0.3001089842 | O197: 2103.114111 | P197: 1.570320841 | Q197: 1.021871829 | R197: 0.2072702723 | S197: 1.00000063 | T197: 0.001122634207 | U197: 1.035257434 | V197: 0.304753315 | W197: -16.72673857 | X197: -119.4705372 | Y197: 60.52946282 | AB197: 1.190243027 | AC197: -19.23715627 | AE197: -0.2487337721 | AF197: -78.16136708 | AI197: 43.66664332 | AJ197: -100.2333809 | AL197: 0 | AM197: 0 | AN197: 0 | AO197: 0 | AP197: 0 | AQ197: 0
B198: 11220 | C198: 18.63814358 | D198: 1.517117139 | E198: 1.00263919 | F198: 0.07257270343 | G198: 1 | H198: 0 | I198: 141022.8772 | J198: 1.570789236 | K198: 28.21666125 | L198: 1.53534885 | M198: 1.047311018 | N198: 0.3017219555 | O198: 2115.131903 | P198: 1.570323543 | Q198: 1.022119794 | R198: 0.2084207632 | S198: 1.000000637 | T198: 0.001129049254 | U198: 1.035655438 | V198: 0.306429625 | W198: -16.78357797 | X198: -119.6414029 | Y198: 60.3585971 | AB198: 1.185832623 | AC198: -19.31797918 | AE198: -0.2961187634 | AF198: -78.09597115 | AI198: 43.61421433 | AJ198: -100.3234237 | AL198: 0 | AM198: 0 | AN198: 0 | AO198: 0 | AP198: 0 | AQ198: 0
B199: 11285.5 | C199: 18.74663683 | D199: 1.517428095 | E199: 1.002670053 | F199: 0.07299486863 | G199: 1 | H199: 0 | I199: 141846.1391 | J199: 1.570789277 | K199: 28.38117789 | L199: 1.535554413 | M199: 1.047852361 | N199: 0.3033775193 | O199: 2127.479595 | P199: 1.570326287 | Q199: 1.022375975 | R199: 0.2096022533 | S199: 1.000000645 | T199: 0.001135640401 | U199: 1.036066588 | V199: 0.3081508528 | W199: -16.84172406 | X199: -119.8167315 | Y199: 60.18326854 | AB199: 1.181281013 | AC199: -19.40106046 | AE199: -0.3445010529 | AF199: -78.02881162 | AI199: 43.56061985 | AJ199: -100.415671 | AL199: 0 | AM199: 0 | AN199: 0 | AO199: 0 | AP199: 0 | AQ199: 0
B200: 11351 | C200: 18.85513187 | D200: 1.517735473 | E200: 1.002701094 | F200: 0.07341700776 | G200: 1 | H200: 0 | I200: 142669.401 | J200: 1.570789318 | K200: 28.54569572 | L200: 1.535757607 | M200: 1.048396573 | N200: 0.3050313689 | O200: 2139.827288 | P200: 1.570328999 | Q200: 1.022633581 | R200: 0.2107831498 | S200: 1.000000652 | T200: 0.001142231547 | U200: 1.036479989 | V200: 0.3098709623 | W200: -16.89961635 | X200: -119.9918299 | Y200: 60.00817008 | AB200: 1.17670904 | AC200: -19.48417925 | AE200: -0.3925791807 | AF200: -77.96168428 | AI200: 43.50729953 | AJ200: -100.5076507 | AL200: 0 | AM200: 0 | AN200: 0 | AO200: 0 | AP200: 0 | AQ200: 0
B201: 11416.5 | C201: 18.96362867 | D201: 1.518039333 | E201: 1.002732315 | F201: 0.07383912067 | G201: 1 | H201: 0 | I201: 143492.6629 | J201: 1.570789358 | K201: 28.71021471 | L201: 1.535958471 | M201: 1.04894365 | N201: 0.3066834979 | O201: 2152.17498 | P201: 1.570331681 | Q201: 1.022892614 | R201: 0.2119634498 | S201: 1.00000066 | T201: 0.001148822693 | U201: 1.036895637 | V201: 0.311589949 | W201: -16.95725808 | X201: -120.1666988 | Y201: 59.83330117 | AB201: 1.17211675 | AC201: -19.56733286 | AE201: -0.4403565317 | AF201: -77.89458934 | AI201: 43.45425009 | AJ201: -100.599366 | AL201: 0 | AM201: 0 | AN201: 0 | AO201: 0 | AP201: 0 | AQ201: 0
... 435 more rows

Sheet Schematic Management (hidden)
A2: =IF(Device="LM5177",CHOOSE(With_RCS, "SCH_NO_RCS", "SCH_RCS_MON","SCH_RCS_LIM","SCH_RCS_LIM_NEG"),CHOOSE(With_RCS, "SCH772_NO_RCS", "SCH772_RCS_MON","SCH772_RCS_LIM","SCH772_RCS_LIM_NEG")) -> SCH_RCS_MON

Sheet Efficiency Plot Management (hidden)
A2: =IF(PLOT_TYPE=1, "EFF_IOUT", "EFF_VIN") -> EFF_IOUT
A9: =IF(BODEPLOT_TYPE=FALSE, "BodePlot", "BodePlot_ILim") -> BodePlot

Sheet Efficiency vs VIN Calculations (hidden)
A1: BUCK-BOOST CONTROLLER POWER TOOL
H2: =BH9 -> 1.298735295 | I2: Low VIN
H3: =BH109 -> 0.8813462242 | I3: Nom VIN
H4: =BH209 -> 0.8665650575 | I4: High VIN
A6: Enter the values of your design and MOSFET datasheet specifications below. Note that thermal resistance (θJA) will change when components are placed on the PCB | BY6: 80 | BZ6: 100 | CA6: 120 | CB6: 140 | CC6: 160 | CD6: 180 | CE6: 20 | CF6: 30 | CG6: 40 | CH6: 50
G7: Operating Point Condtions | U7: Filter Inductor | Y7: Cout | AB7: Cin | AE7: High-side BUCK "Control" MOSFET Losses | AJ7: Low-side BUCK "Sync" MOSFET Losses | AN7: Low-side BOOST "Control" MOSFET Losses | AS7: High-side BOOST "Sync" MOSFET Losses | AW7: Pass FET | AX7: External Diode | AY7: Diode/FET | AZ7: Sense Rs | BA7: Output Rs | BB7: Controller IC Losses | BF7: RESULTS | BL7: Consolidated Buck/Boost Efficiency & Losses
A8: Input Parameters | G8: Step | H8: Vin | I8: Mode | J8: Mode Digit | K8: Iout | L8: Iin | M8: Avg IL | N8: Duty Cycle BUCK Leg | O8: Duty Cycle BOOST Leg | P8: BOE/BUD BUBO ratio | Q8: T BOE | R8: T BOD/BUE | S8: T BUD | T8: Ripple Current pk-pk | U8: Irms Lf | V8: DCR Loss | W8: Core Loss | X8: Total Inductor Loss | Y8: Irms Cout | Z8: Cout ESR Loss | AA8: Total Cout Loss | AB8: Irms Cin | AC8: Cin ESR Loss | AD8: Total Cin Loss | AE8: Irms1 | AF8: RDS(on) Loss | AG8: Transition Loss | AH8: Dead Time Loss | AI8: Total Control MOSFET Loss | AJ8: Irms2 | AK8: RDS(on) Loss3 | AL8: Deadtime Loss | AM8: Total Sync MOSFET Loss | AN8: Irms4 | AO8: RDS(on) Loss5 | AP8: Transition Loss6 | AQ8: Dead Time Loss 7 | AR8: Total Control MOSFET Loss8 | AS8: Irms9 | AT8: RDS(on) Loss10 | AU8: Deadtime Loss11 | AV8: Total Sync MOSFET Loss12 | AW8: Q1/Q3 RDS(on) Loss @ D = 100% | AX8: Deadtime Loss13 | AY8: Reverse Recovery Loss | AZ8: Isense Shunt Loss | BA8: Iout Shunt Loss | BB8: IQ Loss | BC8: Switching Current Loss | BD8: Switching Current Diss | BE8: Total IC Loss | BF8: Total Loss | BG8: Pout | BH8: EFF, h | BI8: Control FET Temp Rise | BJ8: Sync FET Temp Rise | BK8: Column1 | BL8: h | BM8: Inductor Cu & Core Loss | BN8: Total MOSFET Loss | BO8: Total Sync MOSFET Loss15 | BP8: Shunt Loss | BW8: Qg | BY8: θJA=80 | BZ8: θJA=100 | CA8: θJA=120 | CB8: θJA=140 | CC8: θJA=160 | CD8: θJA=180 | CE8: θJA=20 | CF8: θJA=30 | CG8: θJA=40 | CH8: θJA=50
A9: Design | B9: Input Value | C9: Units | D9: Description | G9: 0 | H9: =VIN_min+(VIN_max-VIN_min)*(Table1[[#This Row],[Step]]/200) -> 8 | I9: =IF(Table1[[#This Row],[Vin]]>VIN_BB_to_buck, "BUCK", IF(Table1[[#This Row],[Vin]]<=VIN_boost_to_BB,"BOOST","BUCK-BST")) -> BOOST | J9: =IF(Table1[[#This Row],[Mode]]="BOOST",2, IF(Table1[[#This Row],[Mode]]="BUCK", 1,3)) -> 2 | K9: =Iout -> 25 | L9: =Vout*Table1[[#This Row],[Iout]]/(Table1[[#This Row],[Vin]]*Efficiency) -> 39.47368421 | M9: =Iout/(1-Table1[[#This Row],[Duty Cycle BOOST Leg]]) -> 38.91267123 | N9: =CHOOSE(Table1[[#This Row],[Mode Digit]],(Vout+(Rdson2+Rs+Rdcr)*Table1[[#This Row],[Iout]])/(Table1[[#This Row],[Vin]]+(Rs+Rdson2-Rdson1)*Table1[[#This Row],[Iout]]),1,IF(Table1[[#This Row],[Vin]]<Vout,D_max_buck_BB,Vout/Table1[[#This Row],[Vin]]*(1-D_min_boost_exitBB_to_buck))) -> 1 | O9: =CHOOSE(Table1[[#This Row],[Mode Digit]],0,(Vout+(Rdson3+Rdcr)*Table1[[#This Row],[Iin]]-Table1[[#This Row],[Vin]])/(Vout+(Rdson3-Rdson4-Rs)*Table1[[#This Row],[Iin]]),IF(Table1[[#This Row],[Vin]]>Vout, (Vout-Table1[[#This Row],[Vin]]*D_max_exitBB_to_buck)/Vout, (Vout-Table1[[#This Row],[Vin]]*D_max_buck_BB)/Vout)) -> 0.3575357536 | P9: =CHOOSE(Table1[[#This Row],[Mode Digit]],0,0,1-((Table1[[#This Row],[Vin]]-Vout)+((VIN_BB_to_buck-VIN_BB_to_boost)/2))/((VIN_BB_to_buck-VIN_BB_to_boost))) -> 0 | Q9: =CHOOSE(Table1[[#This Row],[Mode Digit]],0,Table1[[#This Row],[Duty Cycle BOOST Leg]]/Fsw,(1/Fsw-Table1[[#This Row],[T BOD/BUE]])*Table1[[#This Row],[BOE/BUD BUBO ratio]]) -> 1.787678768e-06 | R9: =CHOOSE(Table1[[#This Row],[Mode Digit]],Table1[[#This Row],[Duty Cycle BUCK Leg]]/Fsw,(1-Table1[[#This Row],[Duty Cycle BOOST Leg]])/Fsw,TonBubo) -> 3.212321232e-06 | S9: =CHOOSE(Table1[[#This Row],[Mode Digit]],(1-Table1[[#This Row],[Duty Cycle BUCK Leg]])/Fsw,0,(1/Fsw-Table1[[#This Row],[T BOD/BUE]]-Table1[[#This Row],[T BOE]])) -> 0 | T9: =MAX(0, CHOOSE(Table1[[#This Row],[Mode Digit]], (Table1[[#This Row],[Vin]]-(Rdson1+Rdcr)*Table1[[#This Row],[Iout]]-Vout)*Table1[[#This Row],[Duty Cycle BUCK Leg]]/(Fsw*Lf), (Table1[[#This Row],[Vin]]-(Rdson4+Rdcr+Rs)*Table1[[#This Row],[Iin]])*Table1[[#This Row],[Duty Cycle BOOST Leg]]/(Fsw*Lf), IF(Table1[[#This Row],[Vin]]<Vout, (Table1[[#This Row],[Vin]]-(Rdson1+Rdson3+Rdcr+Rs)*Table1[[#This Row],[Iin]])*Table1[[#This Row],[T BOE]]/(Lf),(Vout-(Rdson2+Rdson4+Rdcr+Rs)*Table1[[#This Row],[Iout]])*Table1[[#This Row],[T BUD]]/(Lf)))) -> 4.162696971 | U9: =CHOOSE(Table1[[#This Row],[Mode Digit]], SQRT(Table1[[#This Row],[Iout]]^2+(Table1[[#This Row],[Ripple Current pk-pk]]^2)/12), SQRT(Table1[[#This Row],[Iin]]^2+(Table1[[#This Row],[Ripple Current pk-pk]]^2)/12), SQRT(Table1[[#This Row],[Avg IL]]^2+(Table1[[#This Row],[Ripple Current pk-pk]]^2)/12)) -> 39.49197069 | V9: =(Table1[[#This Row],[Irms Lf]]^2*Rdcr*(1+Ltc*Ta-Ltc*25))/(1-Table1[[#This Row],[Irms Lf]]^2*Rdcr*Ltc*ThetaCa) -> 8.307727058 | W9: =ABS(7.759*10^-3*Fsw^0.9458*(0.00787*Table1[[#This Row],[Ripple Current pk-pk]])^2.304) -> 0.3040081577 | X9: =Table1[[#This Row],[DCR Loss]]+Table1[[#This Row],[Core Loss]] -> 8.611735216 | Y9: =IF(Table1[[#This Row],[Vin]]>Vout, Table1[[#This Row],[Ripple Current pk-pk]]/SQRT(12), SQRT(Table1[[#This Row],[Duty Cycle BOOST Leg]]/(1-Table1[[#This Row],[Duty Cycle BOOST Leg]]))*SQRT(Table1[[#This Row],[Iout]]^2+(Table1[[#This Row],[Ripple Current pk-pk]]^2)/12)) -> 18.6713786 | Z9: =RCoutEsr*Table1[[#This Row],[Irms Cout]]^2 -> 0.6536632103 | AA9: =Table1[[#This Row],[Cout ESR Loss]] -> 0.6536632103 | AB9: =IF(Table1[[#This Row],[Vin]]>Vout, SQRT(Table1[[#This Row],[Duty Cycle BUCK Leg]]*(1-Table1[[#This Row],[Duty Cycle BUCK Leg]]))*SQRT(Table1[[#This Row],[Iout]]^2+(Table1[[#This Row],[Ripple Current pk-pk]]^2)/12), Table1[[#This Row],[Ripple Current pk-pk]]/SQRT(12)) -> 1.201667109 | AC9: =RCinEsr*Table1[[#This Row],[Irms Cin]]^2 -> 0.002888007679 | AD9: =Table1[[#This Row],[Cin ESR Loss]] -> 0.002888007679 | AE9: =Table1[[#This Row],[Irms Lf]] -> 39.49197069 | AF9: =Rdson1*Table1[[#This Row],[Irms1]]^2 -> 7.64211717 | AG9: =CHOOSE(Table1[[#This Row],[Mode Digit]], (Table1[[#This Row],[Vin]]*Table1[[#This Row],[Iout]]/2)*(Fsw)*(Tr_buck+Tf_buck), 0, (Table1[[#This Row],[Vin]]*Table1[[#This Row],[Avg IL]]/2)*(Fsw/1)*(Tr_buck+Tf_buck)) -> 0 | AH9: =IF(Table1[[#This Row],[Vin]]>Vout, IF(Table1[[#This Row],[Iout]]>Table1[[#This Row],[Ripple Current pk-pk]]/2,0,ABS(Table1[[#This Row],[Iout]]-Table1[[#This Row],[Ripple Current pk-pk]]/2)*Vsd_Q1*Deadtime*Fsw),0) -> 0 | AI9: =(Table1[[#This Row],[Dead Time Loss ]]+Table1[[#This Row],[Transition Loss]]+Table1[[#This Row],[RDS(on) Loss]]*(1+RdsonTopTc*Ta-RdsonTopTc*25))/(1-Table1[[#This Row],[RDS(on) Loss]]*RdsonTopTc*ThetaJA_Q1) -> -14.46210875 | AJ9: =Table1[[#This Row],[Irms Lf]] -> 39.49197069 | AK9: =Rdson2*Table1[[#This Row],[Irms2]]^2 -> 7.64211717 | AL9: =CHOOSE(Table1[[#This Row],[Mode Digit]], IF(Table1[[#This Row],[Iout]]<Table1[[#This Row],[Ripple Current pk-pk]]/2,Deadtime*Fsw*IF(VfdSky_Q2>0,0,Vsd_Q2)*(Table1[[#This Row],[Iout]]+Table1[[#This Row],[Ripple Current pk-pk]]/2),2*Deadtime*Fsw*IF(VfdSky_Q2>0,0,Vsd_Q2)*Table1[[#This Row],[Iout]]),0, IF(Table1[[#This Row],[Iout]]<Table1[[#This Row],[Ripple Current pk-pk]]/2,Deadtime*Fsw*IF(VfdSky_Q2>0,0,Vsd_Q2)*(Table1[[#This Row],[Iout]]+Table1[[#This Row],[Ripple Current pk-pk]]/2),2*Deadtime*Fsw*IF(VfdSky_Q2>0,0,Vsd_Q2)*Table1[[#This Row],[Iout]])) -> 0 | AM9: =(Table1[[#This Row],[Deadtime Loss]]+Table1[[#This Row],[RDS(on) Loss3]]*(1+RdsonBotTc*Ta-RdsonBotTc*25))/(1-Table1[[#This Row],[RDS(on) Loss3]]*RdsonBotTc*ThetaJA_Q2) -> -14.46210875 | AN9: =Table1[[#This Row],[Irms Lf]] -> 39.49197069 | AO9: =Rdson4*Table1[[#This Row],[Irms4]]^2 -> 5.926539846 | AP9: =CHOOSE(Table1[[#This Row],[Mode Digit]], 0, (Vout*Table1[[#This Row],[Iin]]/2)*(Fsw)*(Tr_boost+Tf_boost), (Vout*Iout/2)*(Fsw/1)*(Tr_boost+Tf_boost)) -> 0.4140280986 | AQ9: =IF(Table1[[#This Row],[Vin]]>Vout, 0, IF(Table1[[#This Row],[Iin]]>Table1[[#This Row],[Ripple Current pk-pk]]/2,0,ABS(Table1[[#This Row],[Iin]]-Table1[[#This Row],[Ripple Current pk-pk]]/2)*Vsd_Q4*Deadtime*Fsw)) -> 0 | AR9: =(Table1[[#This Row],[Dead Time Loss 7]]+Table1[[#This Row],[Transition Loss6]]+Table1[[#This Row],[RDS(on) Loss5]]*(1+RdsonTopTc*Ta-RdsonTopTc*25))/(1-Table1[[#This Row],[RDS(on) Loss5]]*RdsonTopTc*ThetaJA_Q4) -> -11.7222476 | AS9: =Table1[[#This Row],[Irms Lf]] -> 39.49197069 | AT9: =Rdson3*Table1[[#This Row],[Irms9]]^2 -> 5.926539846 | AU9: =CHOOSE(Table1[[#This Row],[Mode Digit]], 0, IF(Table1[[#This Row],[Iin]]<Table1[[#This Row],[Ripple Current pk-pk]]/2,Deadtime*Fsw*IF(VfdSky_Q3>0,0,Vsd_Q3)*(Table1[[#This Row],[Iin]]+Table1[[#This Row],[Ripple Current pk-pk]]/2), 2*Deadtime*Fsw*IF(VfdSky_Q3>0,0,Vsd_Q3)*Table1[[#This Row],[Iin]]), IF(Table1[[#This Row],[Iin]]<Table1[[#This Row],[Ripple Current pk-pk]]/2,Deadtime*Fsw*IF(VfdSky_Q3>0,0,Vsd_Q3)*(Table1[[#This Row],[Iin]]+Table1[[#This Row],[Ripple Current pk-pk]]/2), 2*Deadtime*Fsw*IF(VfdSky_Q3>0,0,Vsd_Q3)*Table1[[#This Row],[Iin]])) -> 0.6315789474 | AV9: =(Table1[[#This Row],[Deadtime Loss11]]+Table1[[#This Row],[RDS(on) Loss10]]*(1+RdsonBotTc*Ta-RdsonBotTc*25))/(1-Table1[[#This Row],[RDS(on) Loss10]]*RdsonBotTc*ThetaJA_Q3) -> -40.58196378 | AW9: =CHOOSE(Table1[[#This Row],[Mode Digit]], Rdson3*Table1[[#This Row],[Irms Lf]]^2, Rdson1*Table1[[#This Row],[Irms Lf]]^2, 0) -> 7.64211717 | AX9: =CHOOSE(Table1[[#This Row],[Mode Digit]], 2*Deadtime*Fsw*IF(VfdSky_Q2>0,VfdSky_Q2,0)*Table1[[#This Row],[Iout]], 2*Deadtime*Fsw*IF(VfdSky_Q3>0,VfdSky_Q3,0)*Table1[[#This Row],[Iin]], 2*Deadtime*Fsw*IF(VfdSky_Q2>0,VfdSky_Q2,0)*Table1[[#This Row],[Iout]]+2*Deadtime*Fsw*IF(VfdSky_Q3>0,VfdSky_Q3,0)*Table1[[#This Row],[Iin]]) -> 0 | AY9: =CHOOSE(Table1[[#This Row],[Mode Digit]], IF(QrrSky_Q2>0,QrrSky_Q2,Qrr_Q2)*Fsw*(Table1[[#This Row],[Vin]]-Table1[[#This Row],[Iout]]*Rdson1), IF(QrrSky_Q3>0,QrrSky_Q3,Qrr_Q3)*Fsw*Vout, IF(QrrSky_Q2>0,QrrSky_Q2,Qrr_Q2)*Fsw*(Table1[[#This Row],[Vin]]-Table1[[#This Row],[Iout]]*Rdson1)+IF(QrrSky_Q3>0,QrrSky_Q3,Qrr_Q3)*Fsw*Vout) -> 0.0528 | AZ9: =CHOOSE(Table1[[#This Row],[Mode Digit]], Rs*Table1[[#This Row],[Irms2]]^2, Rs*Table1[[#This Row],[Irms4]]^2, Rs*(Table1[[#This Row],[Irms2]]^2+Table1[[#This Row],[Irms4]]^2)) -> 1.559615749 | BA9: =Rshunt_std/1000*Iout^2 -> 1.25 | BB9: =IF(Vout>8, Iq*Vout, Iq*Table1[[#This Row],[Vin]]) -> 0.036 | BC9: =CHOOSE(Table1[[#This Row],[Mode Digit]], (Qg_Q1+Qg_Q2)*Fsw, (Qg_Q3+Qg_Q4)*Fsw, (Qg_Q1+Qg_Q2+Qg_Q3+Qg_Q4)*Fsw)*IF(Vout>8, Vout, Table1[[#This Row],[Vin]]) -> 0.05568 | BD9: =(Vin-Vdd)*Fsw*(Qg_Q1+Qg_Q2)+(RdsonDRT+RdsonDRT2)*Fsw*Qg_Q1*Vdd/(RdsonDRT+2*Rgate1+RdsonDRT2)+(RdsonDRB+RdsonDRB2)*Fsw*Qg_Q2*Vdd/(RdsonDRB+2*Rgate2+RdsonDRB2) -> 0.7301853659 | BE9: =Table1[[#This Row],[IQ Loss]]+Table1[[#This Row],[Switching Current Loss]] -> 0.09168 | BF9: =SUM(Table1[[#This Row],[Total Inductor Loss]],Table1[[#This Row],[Total Cout Loss]],Table1[[#This Row],[Total Cin Loss]],Table1[[#This Row],[Total Control MOSFET Loss]],Table1[[#This Row],[Total Sync MOSFET Loss]],Table1[[#This Row],[Total Control MOSFET Loss8]],Table1[[#This Row],[Total Sync MOSFET Loss12]], Table1[[#This Row],[Deadtime Loss13]],Table1[[#This Row],[Reverse Recovery Loss]],Table1[[#This Row],[Total IC Loss]],Table1[[#This Row],[Isense Shunt Loss]],Table1[[#This Row],[Iout Shunt Loss]]) -> -69.00604669 | BG9: =Vout*Table1[[#This Row],[Iout]] -> 300 | BH9: =Table1[[#This Row],[Pout]]/(Table1[[#This Row],[Pout]]+Table1[[#This Row],[Total Loss]]) -> 1.298735295 | BI9: =IF(Table1[[#This Row],[Vin]]>Vout,ThetaJA_Q1*(Table1[[#This Row],[Total Control MOSFET Loss]]+Table1[[#This Row],[Reverse Recovery Loss]]),ThetaJA_Q4*(Table1[[#This Row],[Total Control MOSFET Loss8]]+Table1[[#This Row],[Reverse Recovery Loss]])) -> -758.5140937 | BJ9: =IF(Table1[[#This Row],[Vin]]>Vout, Table1[[#This Row],[Total Sync MOSFET Loss]]*ThetaJA_Q2, ThetaJA_Q3*Table1[[#This Row],[Total Sync MOSFET Loss12]]) -> -1988.516225 | BL9: =Table1[[#This Row],[EFF, h]]*100 -> 129.8735295 | BM9: =Table1[[#This Row],[Total Inductor Loss]] -> 8.611735216 | BN9: =Table1[[#This Row],[Total Control MOSFET Loss]]+Table1[[#This Row],[Total Sync MOSFET Loss]]+Table1[[#This Row],[Total Control MOSFET Loss8]]+Table1[[#This Row],[Total Sync MOSFET Loss12]]+Table1[[#This Row],[Reverse Recovery Loss]] -> -81.17562888 | BO9: =Table1[[#This Row],[Total Sync MOSFET Loss]]+Table1[[#This Row],[Reverse Recovery Loss]]*0.33 -> -14.44468475 | BP9: =Table1[[#This Row],[Isense Shunt Loss]] -> 1.559615749 | BT9: 250kHz / 5-1.2V /25A | BU9: 70 | BV9: 70 | BW9: 70 | BX9: =250000*(5-Vdd)*BW9/1000000000+((250000*BW9/1000000000*Vdd)*2.5/(2*4)) -> -0.002734375 | BY9: =BY$6*$BX9 -> -0.21875 | BZ9: -0.2734375 | CA9: -0.328125 | CB9: -0.3828125 | CC9: -0.4375 | CD9: -0.4921875 | CE9: -0.0546875 | CF9: -0.08203125 | CG9: -0.109375 | CH9: -0.13671875
G10: 1 | H10: =VIN_min+(VIN_max-VIN_min)*(Table1[[#This Row],[Step]]/200) -> 8.235 | I10: =IF(Table1[[#This Row],[Vin]]>VIN_BB_to_buck, "BUCK", IF(Table1[[#This Row],[Vin]]<=VIN_boost_to_BB,"BOOST","BUCK-BST")) -> BOOST | J10: =IF(Table1[[#This Row],[Mode]]="BOOST",2, IF(Table1[[#This Row],[Mode]]="BUCK", 1,3)) -> 2 | K10: 25 | L10: =Vout*Table1[[#This Row],[Iout]]/(Table1[[#This Row],[Vin]]*Efficiency) -> 38.34723421 | M10: =Iout/(1-Table1[[#This Row],[Duty Cycle BOOST Leg]]) -> 37.71858487 | N10: =CHOOSE(Table1[[#This Row],[Mode Digit]],(Vout+(Rdson2+Rs+Rdcr)*Table1[[#This Row],[Iout]])/(Table1[[#This Row],[Vin]]+(Rs+Rdson2-Rdson1)*Table1[[#This Row],[Iout]]),1,IF(Table1[[#This Row],[Vin]]<Vout,D_max_buck_BB,Vout/Table1[[#This Row],[Vin]]*(1-D_min_boost_exitBB_to_buck))) -> 1 | O10: =CHOOSE(Table1[[#This Row],[Mode Digit]],0,(Vout+(Rdson3+Rdcr)*Table1[[#This Row],[Iin]]-Table1[[#This Row],[Vin]])/(Vout+(Rdson3-Rdson4-Rs)*Table1[[#This Row],[Iin]]),IF(Table1[[#This Row],[Vin]]>Vout, (Vout-Table1[[#This Row],[Vin]]*D_max_exitBB_to_buck)/Vout, (Vout-Table1[[#This Row],[Vin]]*D_max_buck_BB)/Vout)) -> 0.3371967669 | P10: =CHOOSE(Table1[[#This Row],[Mode Digit]],0,0,1-((Table1[[#This Row],[Vin]]-Vout)+((VIN_BB_to_buck-VIN_BB_to_boost)/2))/((VIN_BB_to_buck-VIN_BB_to_boost))) -> 0 | Q10: =CHOOSE(Table1[[#This Row],[Mode Digit]],0,Table1[[#This Row],[Duty Cycle BOOST Leg]]/Fsw,(1/Fsw-Table1[[#This Row],[T BOD/BUE]])*Table1[[#This Row],[BOE/BUD BUBO ratio]]) -> 1.685983835e-06 | R10: =CHOOSE(Table1[[#This Row],[Mode Digit]],Table1[[#This Row],[Duty Cycle BUCK Leg]]/Fsw,(1-Table1[[#This Row],[Duty Cycle BOOST Leg]])/Fsw,TonBubo) -> 3.314016165e-06 | S10: =CHOOSE(Table1[[#This Row],[Mode Digit]],(1-Table1[[#This Row],[Duty Cycle BUCK Leg]])/Fsw,0,(1/Fsw-Table1[[#This Row],[T BOD/BUE]]-Table1[[#This Row],[T BOE]])) -> 0 | T10: =MAX(0, CHOOSE(Table1[[#This Row],[Mode Digit]], (Table1[[#This Row],[Vin]]-(Rdson1+Rdcr)*Table1[[#This Row],[Iout]]-Vout)*Table1[[#This Row],[Duty Cycle BUCK Leg]]/(Fsw*Lf), (Table1[[#This Row],[Vin]]-(Rdson4+Rdcr+Rs)*Table1[[#This Row],[Iin]])*Table1[[#This Row],[Duty Cycle BOOST Leg]]/(Fsw*Lf), IF(Table1[[#This Row],[Vin]]<Vout, (Table1[[#This Row],[Vin]]-(Rdson1+Rdson3+Rdcr+Rs)*Table1[[#This Row],[Iin]])*Table1[[#This Row],[T BOE]]/(Lf),(Vout-(Rdson2+Rdson4+Rdcr+Rs)*Table1[[#This Row],[Iout]])*Table1[[#This Row],[T BUD]]/(Lf)))) -> 4.050561922 | U10: =CHOOSE(Table1[[#This Row],[Mode Digit]], SQRT(Table1[[#This Row],[Iout]]^2+(Table1[[#This Row],[Ripple Current pk-pk]]^2)/12), SQRT(Table1[[#This Row],[Iin]]^2+(Table1[[#This Row],[Ripple Current pk-pk]]^2)/12), SQRT(Table1[[#This Row],[Avg IL]]^2+(Table1[[#This Row],[Ripple Current pk-pk]]^2)/12)) -> 38.36505735 | V10: =(Table1[[#This Row],[Irms Lf]]^2*Rdcr*(1+Ltc*Ta-Ltc*25))/(1-Table1[[#This Row],[Irms Lf]]^2*Rdcr*Ltc*ThetaCa) -> 7.557788 | W10: =ABS(7.759*10^-3*Fsw^0.9458*(0.00787*Table1[[#This Row],[Ripple Current pk-pk]])^2.304) -> 0.2854702795 | X10: =Table1[[#This Row],[DCR Loss]]+Table1[[#This Row],[Core Loss]] -> 7.84325828 | Y10: =IF(Table1[[#This Row],[Vin]]>Vout, Table1[[#This Row],[Ripple Current pk-pk]]/SQRT(12), SQRT(Table1[[#This Row],[Duty Cycle BOOST Leg]]/(1-Table1[[#This Row],[Duty Cycle BOOST Leg]]))*SQRT(Table1[[#This Row],[Iout]]^2+(Table1[[#This Row],[Ripple Current pk-pk]]^2)/12)) -> 17.85105609 | Z10: =RCoutEsr*Table1[[#This Row],[Irms Cout]]^2 -> 0.5974878813 | AA10: =Table1[[#This Row],[Cout ESR Loss]] -> 0.5974878813 | AB10: =IF(Table1[[#This Row],[Vin]]>Vout, SQRT(Table1[[#This Row],[Duty Cycle BUCK Leg]]*(1-Table1[[#This Row],[Duty Cycle BUCK Leg]]))*SQRT(Table1[[#This Row],[Iout]]^2+(Table1[[#This Row],[Ripple Current pk-pk]]^2)/12), Table1[[#This Row],[Ripple Current pk-pk]]/SQRT(12)) -> 1.169296508 | AC10: =RCinEsr*Table1[[#This Row],[Irms Cin]]^2 -> 0.002734508647 | AD10: =Table1[[#This Row],[Cin ESR Loss]] -> 0.002734508647 | AE10: =Table1[[#This Row],[Irms Lf]] -> 38.36505735 | AF10: =Rdson1*Table1[[#This Row],[Irms1]]^2 -> 7.212200365 | AG10: =CHOOSE(Table1[[#This Row],[Mode Digit]], (Table1[[#This Row],[Vin]]*Table1[[#This Row],[Iout]]/2)*(Fsw)*(Tr_buck+Tf_buck), 0, (Table1[[#This Row],[Vin]]*Table1[[#This Row],[Avg IL]]/2)*(Fsw/1)*(Tr_buck+Tf_buck)) -> 0 | AH10: =IF(Table1[[#This Row],[Vin]]>Vout, IF(Table1[[#This Row],[Iout]]>Table1[[#This Row],[Ripple Current pk-pk]]/2,0,ABS(Table1[[#This Row],[Iout]]-Table1[[#This Row],[Ripple Current pk-pk]]/2)*Vsd_Q1*Deadtime*Fsw),0) -> 0 | AI10: =(Table1[[#This Row],[Dead Time Loss ]]+Table1[[#This Row],[Transition Loss]]+Table1[[#This Row],[RDS(on) Loss]]*(1+RdsonTopTc*Ta-RdsonTopTc*25))/(1-Table1[[#This Row],[RDS(on) Loss]]*RdsonTopTc*ThetaJA_Q1) -> -16.3009655 | AJ10: =Table1[[#This Row],[Irms Lf]] -> 38.36505735 | AK10: =Rdson2*Table1[[#This Row],[Irms2]]^2 -> 7.212200365 | AL10: =CHOOSE(Table1[[#This Row],[Mode Digit]], IF(Table1[[#This Row],[Iout]]<Table1[[#This Row],[Ripple Current pk-pk]]/2,Deadtime*Fsw*IF(VfdSky_Q2>0,0,Vsd_Q2)*(Table1[[#This Row],[Iout]]+Table1[[#This Row],[Ripple Current pk-pk]]/2),2*Deadtime*Fsw*IF(VfdSky_Q2>0,0,Vsd_Q2)*Table1[[#This Row],[Iout]]),0, IF(Table1[[#This Row],[Iout]]<Table1[[#This Row],[Ripple Current pk-pk]]/2,Deadtime*Fsw*IF(VfdSky_Q2>0,0,Vsd_Q2)*(Table1[[#This Row],[Iout]]+Table1[[#This Row],[Ripple Current pk-pk]]/2),2*Deadtime*Fsw*IF(VfdSky_Q2>0,0,Vsd_Q2)*Table1[[#This Row],[Iout]])) -> 0 | AM10: =(Table1[[#This Row],[Deadtime Loss]]+Table1[[#This Row],[RDS(on) Loss3]]*(1+RdsonBotTc*Ta-RdsonBotTc*25))/(1-Table1[[#This Row],[RDS(on) Loss3]]*RdsonBotTc*ThetaJA_Q2) -> -16.3009655 | AN10: =Table1[[#This Row],[Irms Lf]] -> 38.36505735 | AO10: =Rdson4*Table1[[#This Row],[Irms4]]^2 -> 5.593134977 | AP10: =CHOOSE(Table1[[#This Row],[Mode Digit]], 0, (Vout*Table1[[#This Row],[Iin]]/2)*(Fsw)*(Tr_boost+Tf_boost), (Vout*Iout/2)*(Fsw/1)*(Tr_boost+Tf_boost)) -> 0.4022130891 | AQ10: =IF(Table1[[#This Row],[Vin]]>Vout, 0, IF(Table1[[#This Row],[Iin]]>Table1[[#This Row],[Ripple Current pk-pk]]/2,0,ABS(Table1[[#This Row],[Iin]]-Table1[[#This Row],[Ripple Current pk-pk]]/2)*Vsd_Q4*Deadtime*Fsw)) -> 0 | AR10: =(Table1[[#This Row],[Dead Time Loss 7]]+Table1[[#This Row],[Transition Loss6]]+Table1[[#This Row],[RDS(on) Loss5]]*(1+RdsonTopTc*Ta-RdsonTopTc*25))/(1-Table1[[#This Row],[RDS(on) Loss5]]*RdsonTopTc*ThetaJA_Q4) -> -13.19935895 | AS10: =Table1[[#This Row],[Irms Lf]] -> 38.36505735 | AT10: =Rdson3*Table1[[#This Row],[Irms9]]^2 -> 5.593134977 | AU10: =CHOOSE(Table1[[#This Row],[Mode Digit]], 0, IF(Table1[[#This Row],[Iin]]<Table1[[#This Row],[Ripple Current pk-pk]]/2,Deadtime*Fsw*IF(VfdSky_Q3>0,0,Vsd_Q3)*(Table1[[#This Row],[Iin]]+Table1[[#This Row],[Ripple Current pk-pk]]/2), 2*Deadtime*Fsw*IF(VfdSky_Q3>0,0,Vsd_Q3)*Table1[[#This Row],[Iin]]), IF(Table1[[#This Row],[Iin]]<Table1[[#This Row],[Ripple Current pk-pk]]/2,Deadtime*Fsw*IF(VfdSky_Q3>0,0,Vsd_Q3)*(Table1[[#This Row],[Iin]]+Table1[[#This Row],[Ripple Current pk-pk]]/2), 2*Deadtime*Fsw*IF(VfdSky_Q3>0,0,Vsd_Q3)*Table1[[#This Row],[Iin]])) -> 0.6135557473 | AV10: =(Table1[[#This Row],[Deadtime Loss11]]+Table1[[#This Row],[RDS(on) Loss10]]*(1+RdsonBotTc*Ta-RdsonBotTc*25))/(1-Table1[[#This Row],[RDS(on) Loss10]]*RdsonBotTc*ThetaJA_Q3) -> -64.48211349 | AW10: =CHOOSE(Table1[[#This Row],[Mode Digit]], Rdson3*Table1[[#This Row],[Irms Lf]]^2, Rdson1*Table1[[#This Row],[Irms Lf]]^2, 0) -> 7.212200365 | AX10: =CHOOSE(Table1[[#This Row],[Mode Digit]], 2*Deadtime*Fsw*IF(VfdSky_Q2>0,VfdSky_Q2,0)*Table1[[#This Row],[Iout]], 2*Deadtime*Fsw*IF(VfdSky_Q3>0,VfdSky_Q3,0)*Table1[[#This Row],[Iin]], 2*Deadtime*Fsw*IF(VfdSky_Q2>0,VfdSky_Q2,0)*Table1[[#This Row],[Iout]]+2*Deadtime*Fsw*IF(VfdSky_Q3>0,VfdSky_Q3,0)*Table1[[#This Row],[Iin]]) -> 0 | AY10: =CHOOSE(Table1[[#This Row],[Mode Digit]], IF(QrrSky_Q2>0,QrrSky_Q2,Qrr_Q2)*Fsw*(Table1[[#This Row],[Vin]]-Table1[[#This Row],[Iout]]*Rdson1), IF(QrrSky_Q3>0,QrrSky_Q3,Qrr_Q3)*Fsw*Vout, IF(QrrSky_Q2>0,QrrSky_Q2,Qrr_Q2)*Fsw*(Table1[[#This Row],[Vin]]-Table1[[#This Row],[Iout]]*Rdson1)+IF(QrrSky_Q3>0,QrrSky_Q3,Qrr_Q3)*Fsw*Vout) -> 0.0528 | AZ10: =CHOOSE(Table1[[#This Row],[Mode Digit]], Rs*Table1[[#This Row],[Irms2]]^2, Rs*Table1[[#This Row],[Irms4]]^2, Rs*(Table1[[#This Row],[Irms2]]^2+Table1[[#This Row],[Irms4]]^2)) -> 1.471877626 | BA10: 1.25 | BB10: =IF(Vout>8, Iq*Vout, Iq*Table1[[#This Row],[Vin]]) -> 0.036 | BC10: =CHOOSE(Table1[[#This Row],[Mode Digit]], (Qg_Q1+Qg_Q2)*Fsw, (Qg_Q3+Qg_Q4)*Fsw, (Qg_Q1+Qg_Q2+Qg_Q3+Qg_Q4)*Fsw)*IF(Vout>8, Vout, Table1[[#This Row],[Vin]]) -> 0.05568 | BD10: 0.7301853659 | BE10: =Table1[[#This Row],[IQ Loss]]+Table1[[#This Row],[Switching Current Loss]] -> 0.09168 | BF10: =SUM(Table1[[#This Row],[Total Inductor Loss]],Table1[[#This Row],[Total Cout Loss]],Table1[[#This Row],[Total Cin Loss]],Table1[[#This Row],[Total Control MOSFET Loss]],Table1[[#This Row],[Total Sync MOSFET Loss]],Table1[[#This Row],[Total Control MOSFET Loss8]],Table1[[#This Row],[Total Sync MOSFET Loss12]], Table1[[#This Row],[Deadtime Loss13]],Table1[[#This Row],[Reverse Recovery Loss]],Table1[[#This Row],[Total IC Loss]],Table1[[#This Row],[Isense Shunt Loss]],Table1[[#This Row],[Iout Shunt Loss]]) -> -98.97356514 | BG10: =Vout*Table1[[#This Row],[Iout]] -> 300 | BH10: =Table1[[#This Row],[Pout]]/(Table1[[#This Row],[Pout]]+Table1[[#This Row],[Total Loss]]) -> 1.492341046 | BI10: =IF(Table1[[#This Row],[Vin]]>Vout,ThetaJA_Q1*(Table1[[#This Row],[Total Control MOSFET Loss]]+Table1[[#This Row],[Reverse Recovery Loss]]),ThetaJA_Q4*(Table1[[#This Row],[Total Control MOSFET Loss8]]+Table1[[#This Row],[Reverse Recovery Loss]])) -> -854.5263317 | BJ10: =IF(Table1[[#This Row],[Vin]]>Vout, Table1[[#This Row],[Total Sync MOSFET Loss]]*ThetaJA_Q2, ThetaJA_Q3*Table1[[#This Row],[Total Sync MOSFET Loss12]]) -> -3159.623561 | BL10: =Table1[[#This Row],[EFF, h]]*100 -> 149.2341046 | BM10: =Table1[[#This Row],[Total Inductor Loss]] -> 7.84325828 | BN10: =Table1[[#This Row],[Total Control MOSFET Loss]]+Table1[[#This Row],[Total Sync MOSFET Loss]]+Table1[[#This Row],[Total Control MOSFET Loss8]]+Table1[[#This Row],[Total Sync MOSFET Loss12]]+Table1[[#This Row],[Reverse Recovery Loss]] -> -110.2306034 | BO10: =Table1[[#This Row],[Total Sync MOSFET Loss]]+Table1[[#This Row],[Reverse Recovery Loss]]*0.33 -> -16.2835415 | BP10: =Table1[[#This Row],[Isense Shunt Loss]] -> 1.471877626
A11: Vin | B11: =Vin -> 48 | C11: V | D11: Vin | G11: 2 | H11: =VIN_min+(VIN_max-VIN_min)*(Table1[[#This Row],[Step]]/200) -> 8.47 | I11: =IF(Table1[[#This Row],[Vin]]>VIN_BB_to_buck, "BUCK", IF(Table1[[#This Row],[Vin]]<=VIN_boost_to_BB,"BOOST","BUCK-BST")) -> BOOST | J11: =IF(Table1[[#This Row],[Mode]]="BOOST",2, IF(Table1[[#This Row],[Mode]]="BUCK", 1,3)) -> 2 | K11: 25 | L11: =Vout*Table1[[#This Row],[Iout]]/(Table1[[#This Row],[Vin]]*Efficiency) -> 37.28329087 | M11: =Iout/(1-Table1[[#This Row],[Duty Cycle BOOST Leg]]) -> 36.59785422 | N11: =CHOOSE(Table1[[#This Row],[Mode Digit]],(Vout+(Rdson2+Rs+Rdcr)*Table1[[#This Row],[Iout]])/(Table1[[#This Row],[Vin]]+(Rs+Rdson2-Rdson1)*Table1[[#This Row],[Iout]]),1,IF(Table1[[#This Row],[Vin]]<Vout,D_max_buck_BB,Vout/Table1[[#This Row],[Vin]]*(1-D_min_boost_exitBB_to_buck))) -> 1 | O11: =CHOOSE(Table1[[#This Row],[Mode Digit]],0,(Vout+(Rdson3+Rdcr)*Table1[[#This Row],[Iin]]-Table1[[#This Row],[Vin]])/(Vout+(Rdson3-Rdson4-Rs)*Table1[[#This Row],[Iin]]),IF(Table1[[#This Row],[Vin]]>Vout, (Vout-Table1[[#This Row],[Vin]]*D_max_exitBB_to_buck)/Vout, (Vout-Table1[[#This Row],[Vin]]*D_max_buck_BB)/Vout)) -> 0.3168998421 | P11: =CHOOSE(Table1[[#This Row],[Mode Digit]],0,0,1-((Table1[[#This Row],[Vin]]-Vout)+((VIN_BB_to_buck-VIN_BB_to_boost)/2))/((VIN_BB_to_buck-VIN_BB_to_boost))) -> 0 | Q11: =CHOOSE(Table1[[#This Row],[Mode Digit]],0,Table1[[#This Row],[Duty Cycle BOOST Leg]]/Fsw,(1/Fsw-Table1[[#This Row],[T BOD/BUE]])*Table1[[#This Row],[BOE/BUD BUBO ratio]]) -> 1.58449921e-06 | R11: =CHOOSE(Table1[[#This Row],[Mode Digit]],Table1[[#This Row],[Duty Cycle BUCK Leg]]/Fsw,(1-Table1[[#This Row],[Duty Cycle BOOST Leg]])/Fsw,TonBubo) -> 3.41550079e-06 | S11: =CHOOSE(Table1[[#This Row],[Mode Digit]],(1-Table1[[#This Row],[Duty Cycle BUCK Leg]])/Fsw,0,(1/Fsw-Table1[[#This Row],[T BOD/BUE]]-Table1[[#This Row],[T BOE]])) -> 0 | T11: =MAX(0, CHOOSE(Table1[[#This Row],[Mode Digit]], (Table1[[#This Row],[Vin]]-(Rdson1+Rdcr)*Table1[[#This Row],[Iout]]-Vout)*Table1[[#This Row],[Duty Cycle BUCK Leg]]/(Fsw*Lf), (Table1[[#This Row],[Vin]]-(Rdson4+Rdcr+Rs)*Table1[[#This Row],[Iin]])*Table1[[#This Row],[Duty Cycle BOOST Leg]]/(Fsw*Lf), IF(Table1[[#This Row],[Vin]]<Vout, (Table1[[#This Row],[Vin]]-(Rdson1+Rdson3+Rdcr+Rs)*Table1[[#This Row],[Iin]])*Table1[[#This Row],[T BOE]]/(Lf),(Vout-(Rdson2+Rdson4+Rdcr+Rs)*Table1[[#This Row],[Iout]])*Table1[[#This Row],[T BUD]]/(Lf)))) -> 3.923668349 | U11: =CHOOSE(Table1[[#This Row],[Mode Digit]], SQRT(Table1[[#This Row],[Iout]]^2+(Table1[[#This Row],[Ripple Current pk-pk]]^2)/12), SQRT(Table1[[#This Row],[Iin]]^2+(Table1[[#This Row],[Ripple Current pk-pk]]^2)/12), SQRT(Table1[[#This Row],[Avg IL]]^2+(Table1[[#This Row],[Ripple Current pk-pk]]^2)/12)) -> 37.30049208 | V11: =(Table1[[#This Row],[Irms Lf]]^2*Rdcr*(1+Ltc*Ta-Ltc*25))/(1-Table1[[#This Row],[Irms Lf]]^2*Rdcr*Ltc*ThetaCa) -> 6.915353614 | W11: =ABS(7.759*10^-3*Fsw^0.9458*(0.00787*Table1[[#This Row],[Ripple Current pk-pk]])^2.304) -> 0.2652850304 | X11: =Table1[[#This Row],[DCR Loss]]+Table1[[#This Row],[Core Loss]] -> 7.180638644 | Y11: =IF(Table1[[#This Row],[Vin]]>Vout, Table1[[#This Row],[Ripple Current pk-pk]]/SQRT(12), SQRT(Table1[[#This Row],[Duty Cycle BOOST Leg]]/(1-Table1[[#This Row],[Duty Cycle BOOST Leg]]))*SQRT(Table1[[#This Row],[Iout]]^2+(Table1[[#This Row],[Ripple Current pk-pk]]^2)/12)) -> 17.04527869 | Z11: =RCoutEsr*Table1[[#This Row],[Irms Cout]]^2 -> 0.5447653604 | AA11: =Table1[[#This Row],[Cout ESR Loss]] -> 0.5447653604 | AB11: =IF(Table1[[#This Row],[Vin]]>Vout, SQRT(Table1[[#This Row],[Duty Cycle BUCK Leg]]*(1-Table1[[#This Row],[Duty Cycle BUCK Leg]]))*SQRT(Table1[[#This Row],[Iout]]^2+(Table1[[#This Row],[Ripple Current pk-pk]]^2)/12), Table1[[#This Row],[Ripple Current pk-pk]]/SQRT(12)) -> 1.132665489 | AC11: =RCinEsr*Table1[[#This Row],[Irms Cin]]^2 -> 0.002565862219 | AD11: =Table1[[#This Row],[Cin ESR Loss]] -> 0.002565862219 | AE11: =Table1[[#This Row],[Irms Lf]] -> 37.30049208 | AF11: =Rdson1*Table1[[#This Row],[Irms1]]^2 -> 6.817500876 | AG11: =CHOOSE(Table1[[#This Row],[Mode Digit]], (Table1[[#This Row],[Vin]]*Table1[[#This Row],[Iout]]/2)*(Fsw)*(Tr_buck+Tf_buck), 0, (Table1[[#This Row],[Vin]]*Table1[[#This Row],[Avg IL]]/2)*(Fsw/1)*(Tr_buck+Tf_buck)) -> 0 | AH11: =IF(Table1[[#This Row],[Vin]]>Vout, IF(Table1[[#This Row],[Iout]]>Table1[[#This Row],[Ripple Current pk-pk]]/2,0,ABS(Table1[[#This Row],[Iout]]-Table1[[#This Row],[Ripple Current pk-pk]]/2)*Vsd_Q1*Deadtime*Fsw),0) -> 0 | AI11: =(Table1[[#This Row],[Dead Time Loss ]]+Table1[[#This Row],[Transition Loss]]+Table1[[#This Row],[RDS(on) Loss]]*(1+RdsonTopTc*Ta-RdsonTopTc*25))/(1-Table1[[#This Row],[RDS(on) Loss]]*RdsonTopTc*ThetaJA_Q1) -> -18.75515156 | AJ11: =Table1[[#This Row],[Irms Lf]] -> 37.30049208 | AK11: =Rdson2*Table1[[#This Row],[Irms2]]^2 -> 6.817500876 | AL11: =CHOOSE(Table1[[#This Row],[Mode Digit]], IF(Table1[[#This Row],[Iout]]<Table1[[#This Row],[Ripple Current pk-pk]]/2,Deadtime*Fsw*IF(VfdSky_Q2>0,0,Vsd_Q2)*(Table1[[#This Row],[Iout]]+Table1[[#This Row],[Ripple Current pk-pk]]/2),2*Deadtime*Fsw*IF(VfdSky_Q2>0,0,Vsd_Q2)*Table1[[#This Row],[Iout]]),0, IF(Table1[[#This Row],[Iout]]<Table1[[#This Row],[Ripple Current pk-pk]]/2,Deadtime*Fsw*IF(VfdSky_Q2>0,0,Vsd_Q2)*(Table1[[#This Row],[Iout]]+Table1[[#This Row],[Ripple Current pk-pk]]/2),2*Deadtime*Fsw*IF(VfdSky_Q2>0,0,Vsd_Q2)*Table1[[#This Row],[Iout]])) -> 0 | AM11: =(Table1[[#This Row],[Deadtime Loss]]+Table1[[#This Row],[RDS(on) Loss3]]*(1+RdsonBotTc*Ta-RdsonBotTc*25))/(1-Table1[[#This Row],[RDS(on) Loss3]]*RdsonBotTc*ThetaJA_Q2) -> -18.75515156 | AN11: =Table1[[#This Row],[Irms Lf]] -> 37.30049208 | AO11: =Rdson4*Table1[[#This Row],[Irms4]]^2 -> 5.287041495 | AP11: =CHOOSE(Table1[[#This Row],[Mode Digit]], 0, (Vout*Table1[[#This Row],[Iin]]/2)*(Fsw)*(Tr_boost+Tf_boost), (Vout*Iout/2)*(Fsw/1)*(Tr_boost+Tf_boost)) -> 0.3910536941 | AQ11: =IF(Table1[[#This Row],[Vin]]>Vout, 0, IF(Table1[[#This Row],[Iin]]>Table1[[#This Row],[Ripple Current pk-pk]]/2,0,ABS(Table1[[#This Row],[Iin]]-Table1[[#This Row],[Ripple Current pk-pk]]/2)*Vsd_Q4*Deadtime*Fsw)) -> 0 | AR11: =(Table1[[#This Row],[Dead Time Loss 7]]+Table1[[#This Row],[Transition Loss6]]+Table1[[#This Row],[RDS(on) Loss5]]*(1+RdsonTopTc*Ta-RdsonTopTc*25))/(1-Table1[[#This Row],[RDS(on) Loss5]]*RdsonTopTc*ThetaJA_Q4) -> -15.15650971 | AS11: =Table1[[#This Row],[Irms Lf]] -> 37.30049208 | AT11: =Rdson3*Table1[[#This Row],[Irms9]]^2 -> 5.287041495 | AU11: =CHOOSE(Table1[[#This Row],[Mode Digit]], 0, IF(Table1[[#This Row],[Iin]]<Table1[[#This Row],[Ripple Current pk-pk]]/2,Deadtime*Fsw*IF(VfdSky_Q3>0,0,Vsd_Q3)*(Table1[[#This Row],[Iin]]+Table1[[#This Row],[Ripple Current pk-pk]]/2), 2*Deadtime*Fsw*IF(VfdSky_Q3>0,0,Vsd_Q3)*Table1[[#This Row],[Iin]]), IF(Table1[[#This Row],[Iin]]<Table1[[#This Row],[Ripple Current pk-pk]]/2,Deadtime*Fsw*IF(VfdSky_Q3>0,0,Vsd_Q3)*(Table1[[#This Row],[Iin]]+Table1[[#This Row],[Ripple Current pk-pk]]/2), 2*Deadtime*Fsw*IF(VfdSky_Q3>0,0,Vsd_Q3)*Table1[[#This Row],[Iin]])) -> 0.5965326539 | AV11: =(Table1[[#This Row],[Deadtime Loss11]]+Table1[[#This Row],[RDS(on) Loss10]]*(1+RdsonBotTc*Ta-RdsonBotTc*25))/(1-Table1[[#This Row],[RDS(on) Loss10]]*RdsonBotTc*ThetaJA_Q3) -> -162.2601365 | AW11: =CHOOSE(Table1[[#This Row],[Mode Digit]], Rdson3*Table1[[#This Row],[Irms Lf]]^2, Rdson1*Table1[[#This Row],[Irms Lf]]^2, 0) -> 6.817500876 | AX11: =CHOOSE(Table1[[#This Row],[Mode Digit]], 2*Deadtime*Fsw*IF(VfdSky_Q2>0,VfdSky_Q2,0)*Table1[[#This Row],[Iout]], 2*Deadtime*Fsw*IF(VfdSky_Q3>0,VfdSky_Q3,0)*Table1[[#This Row],[Iin]], 2*Deadtime*Fsw*IF(VfdSky_Q2>0,VfdSky_Q2,0)*Table1[[#This Row],[Iout]]+2*Deadtime*Fsw*IF(VfdSky_Q3>0,VfdSky_Q3,0)*Table1[[#This Row],[Iin]]) -> 0 | AY11: =CHOOSE(Table1[[#This Row],[Mode Digit]], IF(QrrSky_Q2>0,QrrSky_Q2,Qrr_Q2)*Fsw*(Table1[[#This Row],[Vin]]-Table1[[#This Row],[Iout]]*Rdson1), IF(QrrSky_Q3>0,QrrSky_Q3,Qrr_Q3)*Fsw*Vout, IF(QrrSky_Q2>0,QrrSky_Q2,Qrr_Q2)*Fsw*(Table1[[#This Row],[Vin]]-Table1[[#This Row],[Iout]]*Rdson1)+IF(QrrSky_Q3>0,QrrSky_Q3,Qrr_Q3)*Fsw*Vout) -> 0.0528 | AZ11: =CHOOSE(Table1[[#This Row],[Mode Digit]], Rs*Table1[[#This Row],[Irms2]]^2, Rs*Table1[[#This Row],[Irms4]]^2, Rs*(Table1[[#This Row],[Irms2]]^2+Table1[[#This Row],[Irms4]]^2)) -> 1.391326709 | BA11: 1.25 | BB11: =IF(Vout>8, Iq*Vout, Iq*Table1[[#This Row],[Vin]]) -> 0.036 | BC11: =CHOOSE(Table1[[#This Row],[Mode Digit]], (Qg_Q1+Qg_Q2)*Fsw, (Qg_Q3+Qg_Q4)*Fsw, (Qg_Q1+Qg_Q2+Qg_Q3+Qg_Q4)*Fsw)*IF(Vout>8, Vout, Table1[[#This Row],[Vin]]) -> 0.05568 | BD11: 0.7301853659 | BE11: =Table1[[#This Row],[IQ Loss]]+Table1[[#This Row],[Switching Current Loss]] -> 0.09168 | BF11: =SUM(Table1[[#This Row],[Total Inductor Loss]],Table1[[#This Row],[Total Cout Loss]],Table1[[#This Row],[Total Cin Loss]],Table1[[#This Row],[Total Control MOSFET Loss]],Table1[[#This Row],[Total Sync MOSFET Loss]],Table1[[#This Row],[Total Control MOSFET Loss8]],Table1[[#This Row],[Total Sync MOSFET Loss12]], Table1[[#This Row],[Deadtime Loss13]],Table1[[#This Row],[Reverse Recovery Loss]],Table1[[#This Row],[Total IC Loss]],Table1[[#This Row],[Isense Shunt Loss]],Table1[[#This Row],[Iout Shunt Loss]]) -> -204.4131728 | BG11: =Vout*Table1[[#This Row],[Iout]] -> 300 | BH11: =Table1[[#This Row],[Pout]]/(Table1[[#This Row],[Pout]]+Table1[[#This Row],[Total Loss]]) -> 3.13850777 | BI11: =IF(Table1[[#This Row],[Vin]]>Vout,ThetaJA_Q1*(Table1[[#This Row],[Total Control MOSFET Loss]]+Table1[[#This Row],[Reverse Recovery Loss]]),ThetaJA_Q4*(Table1[[#This Row],[Total Control MOSFET Loss8]]+Table1[[#This Row],[Reverse Recovery Loss]])) -> -981.7411313 | BJ11: =IF(Table1[[#This Row],[Vin]]>Vout, Table1[[#This Row],[Total Sync MOSFET Loss]]*ThetaJA_Q2, ThetaJA_Q3*Table1[[#This Row],[Total Sync MOSFET Loss12]]) -> -7950.746689 | BL11: =Table1[[#This Row],[EFF, h]]*100 -> 313.850777 | BM11: =Table1[[#This Row],[Total Inductor Loss]] -> 7.180638644 | BN11: =Table1[[#This Row],[Total Control MOSFET Loss]]+Table1[[#This Row],[Total Sync MOSFET Loss]]+Table1[[#This Row],[Total Control MOSFET Loss8]]+Table1[[#This Row],[Total Sync MOSFET Loss12]]+Table1[[#This Row],[Reverse Recovery Loss]] -> -214.8741493 | BO11: =Table1[[#This Row],[Total Sync MOSFET Loss]]+Table1[[#This Row],[Reverse Recovery Loss]]*0.33 -> -18.73772756 | BP11: =Table1[[#This Row],[Isense Shunt Loss]] -> 1.391326709 | BT11: 250kHz / 12-5V / 30A | BU11: 90 | BV11: 90 | BW11: 90 | BX11: =250000*(12-Vdd)*BW11/1000000000+((250000*BW9/1000000000*Vdd)*2.5/(2*4)) -> 0.142265625 | BY11: 11.38125 | BZ11: 14.2265625 | CA11: 17.071875 | CB11: 19.9171875 | CC11: 22.7625 | CD11: 25.6078125 | CE11: 2.8453125 | CF11: 4.26796875 | CG11: 5.690625 | CH11: 7.11328125
A12: Vout | B12: =Vout -> 12 | C12: V | D12: Vout | G12: 3 | H12: =VIN_min+(VIN_max-VIN_min)*(Table1[[#This Row],[Step]]/200) -> 8.705 | I12: =IF(Table1[[#This Row],[Vin]]>VIN_BB_to_buck, "BUCK", IF(Table1[[#This Row],[Vin]]<=VIN_boost_to_BB,"BOOST","BUCK-BST")) -> BOOST | J12: =IF(Table1[[#This Row],[Mode]]="BOOST",2, IF(Table1[[#This Row],[Mode]]="BUCK", 1,3)) -> 2 | K12: 25 | L12: =Vout*Table1[[#This Row],[Iout]]/(Table1[[#This Row],[Vin]]*Efficiency) -> 36.27679192 | M12: =Iout/(1-Table1[[#This Row],[Duty Cycle BOOST Leg]]) -> 35.54375502 | N12: =CHOOSE(Table1[[#This Row],[Mode Digit]],(Vout+(Rdson2+Rs+Rdcr)*Table1[[#This Row],[Iout]])/(Table1[[#This Row],[Vin]]+(Rs+Rdson2-Rdson1)*Table1[[#This Row],[Iout]]),1,IF(Table1[[#This Row],[Vin]]<Vout,D_max_buck_BB,Vout/Table1[[#This Row],[Vin]]*(1-D_min_boost_exitBB_to_buck))) -> 1 | O12: =CHOOSE(Table1[[#This Row],[Mode Digit]],0,(Vout+(Rdson3+Rdcr)*Table1[[#This Row],[Iin]]-Table1[[#This Row],[Vin]])/(Vout+(Rdson3-Rdson4-Rs)*Table1[[#This Row],[Iin]]),IF(Table1[[#This Row],[Vin]]>Vout, (Vout-Table1[[#This Row],[Vin]]*D_max_exitBB_to_buck)/Vout, (Vout-Table1[[#This Row],[Vin]]*D_max_buck_BB)/Vout)) -> 0.2966415623 | P12: =CHOOSE(Table1[[#This Row],[Mode Digit]],0,0,1-((Table1[[#This Row],[Vin]]-Vout)+((VIN_BB_to_buck-VIN_BB_to_boost)/2))/((VIN_BB_to_buck-VIN_BB_to_boost))) -> 0 | Q12: =CHOOSE(Table1[[#This Row],[Mode Digit]],0,Table1[[#This Row],[Duty Cycle BOOST Leg]]/Fsw,(1/Fsw-Table1[[#This Row],[T BOD/BUE]])*Table1[[#This Row],[BOE/BUD BUBO ratio]]) -> 1.483207812e-06 | R12: =CHOOSE(Table1[[#This Row],[Mode Digit]],Table1[[#This Row],[Duty Cycle BUCK Leg]]/Fsw,(1-Table1[[#This Row],[Duty Cycle BOOST Leg]])/Fsw,TonBubo) -> 3.516792188e-06 | S12: =CHOOSE(Table1[[#This Row],[Mode Digit]],(1-Table1[[#This Row],[Duty Cycle BUCK Leg]])/Fsw,0,(1/Fsw-Table1[[#This Row],[T BOD/BUE]]-Table1[[#This Row],[T BOE]])) -> 0 | T12: =MAX(0, CHOOSE(Table1[[#This Row],[Mode Digit]], (Table1[[#This Row],[Vin]]-(Rdson1+Rdcr)*Table1[[#This Row],[Iout]]-Vout)*Table1[[#This Row],[Duty Cycle BUCK Leg]]/(Fsw*Lf), (Table1[[#This Row],[Vin]]-(Rdson4+Rdcr+Rs)*Table1[[#This Row],[Iin]])*Table1[[#This Row],[Duty Cycle BOOST Leg]]/(Fsw*Lf), IF(Table1[[#This Row],[Vin]]<Vout, (Table1[[#This Row],[Vin]]-(Rdson1+Rdson3+Rdcr+Rs)*Table1[[#This Row],[Iin]])*Table1[[#This Row],[T BOE]]/(Lf),(Vout-(Rdson2+Rdson4+Rdcr+Rs)*Table1[[#This Row],[Iout]])*Table1[[#This Row],[T BUD]]/(Lf)))) -> 3.782083585 | U12: =CHOOSE(Table1[[#This Row],[Mode Digit]], SQRT(Table1[[#This Row],[Iout]]^2+(Table1[[#This Row],[Ripple Current pk-pk]]^2)/12), SQRT(Table1[[#This Row],[Iin]]^2+(Table1[[#This Row],[Ripple Current pk-pk]]^2)/12), SQRT(Table1[[#This Row],[Avg IL]]^2+(Table1[[#This Row],[Ripple Current pk-pk]]^2)/12)) -> 36.29321762 | V12: =(Table1[[#This Row],[Irms Lf]]^2*Rdcr*(1+Ltc*Ta-Ltc*25))/(1-Table1[[#This Row],[Irms Lf]]^2*Rdcr*Ltc*ThetaCa) -> 6.35945833 | W12: =ABS(7.759*10^-3*Fsw^0.9458*(0.00787*Table1[[#This Row],[Ripple Current pk-pk]])^2.304) -> 0.2437464008 | X12: =Table1[[#This Row],[DCR Loss]]+Table1[[#This Row],[Core Loss]] -> 6.603204731 | Y12: =IF(Table1[[#This Row],[Vin]]>Vout, Table1[[#This Row],[Ripple Current pk-pk]]/SQRT(12), SQRT(Table1[[#This Row],[Duty Cycle BOOST Leg]]/(1-Table1[[#This Row],[Duty Cycle BOOST Leg]]))*SQRT(Table1[[#This Row],[Iout]]^2+(Table1[[#This Row],[Ripple Current pk-pk]]^2)/12)) -> 16.25104942 | Z12: =RCoutEsr*Table1[[#This Row],[Irms Cout]]^2 -> 0.4951811385 | AA12: =Table1[[#This Row],[Cout ESR Loss]] -> 0.4951811385 | AB12: =IF(Table1[[#This Row],[Vin]]>Vout, SQRT(Table1[[#This Row],[Duty Cycle BUCK Leg]]*(1-Table1[[#This Row],[Duty Cycle BUCK Leg]]))*SQRT(Table1[[#This Row],[Iout]]^2+(Table1[[#This Row],[Ripple Current pk-pk]]^2)/12), Table1[[#This Row],[Ripple Current pk-pk]]/SQRT(12)) -> 1.091793488 | AC12: =RCinEsr*Table1[[#This Row],[Irms Cin]]^2 -> 0.002384026041 | AD12: =Table1[[#This Row],[Cin ESR Loss]] -> 0.002384026041 | AE12: =Table1[[#This Row],[Irms Lf]] -> 36.29321762 | AF12: =Rdson1*Table1[[#This Row],[Irms1]]^2 -> 6.454268461 | AG12: =CHOOSE(Table1[[#This Row],[Mode Digit]], (Table1[[#This Row],[Vin]]*Table1[[#This Row],[Iout]]/2)*(Fsw)*(Tr_buck+Tf_buck), 0, (Table1[[#This Row],[Vin]]*Table1[[#This Row],[Avg IL]]/2)*(Fsw/1)*(Tr_buck+Tf_buck)) -> 0 | AH12: =IF(Table1[[#This Row],[Vin]]>Vout, IF(Table1[[#This Row],[Iout]]>Table1[[#This Row],[Ripple Current pk-pk]]/2,0,ABS(Table1[[#This Row],[Iout]]-Table1[[#This Row],[Ripple Current pk-pk]]/2)*Vsd_Q1*Deadtime*Fsw),0) -> 0 | AI12: =(Table1[[#This Row],[Dead Time Loss ]]+Table1[[#This Row],[Transition Loss]]+Table1[[#This Row],[RDS(on) Loss]]*(1+RdsonTopTc*Ta-RdsonTopTc*25))/(1-Table1[[#This Row],[RDS(on) Loss]]*RdsonTopTc*ThetaJA_Q1) -> -22.19077369 | AJ12: =Table1[[#This Row],[Irms Lf]] -> 36.29321762 | AK12: =Rdson2*Table1[[#This Row],[Irms2]]^2 -> 6.454268461 | AL12: =CHOOSE(Table1[[#This Row],[Mode Digit]], IF(Table1[[#This Row],[Iout]]<Table1[[#This Row],[Ripple Current pk-pk]]/2,Deadtime*Fsw*IF(VfdSky_Q2>0,0,Vsd_Q2)*(Table1[[#This Row],[Iout]]+Table1[[#This Row],[Ripple Current pk-pk]]/2),2*Deadtime*Fsw*IF(VfdSky_Q2>0,0,Vsd_Q2)*Table1[[#This Row],[Iout]]),0, IF(Table1[[#This Row],[Iout]]<Table1[[#This Row],[Ripple Current pk-pk]]/2,Deadtime*Fsw*IF(VfdSky_Q2>0,0,Vsd_Q2)*(Table1[[#This Row],[Iout]]+Table1[[#This Row],[Ripple Current pk-pk]]/2),2*Deadtime*Fsw*IF(VfdSky_Q2>0,0,Vsd_Q2)*Table1[[#This Row],[Iout]])) -> 0 | AM12: =(Table1[[#This Row],[Deadtime Loss]]+Table1[[#This Row],[RDS(on) Loss3]]*(1+RdsonBotTc*Ta-RdsonBotTc*25))/(1-Table1[[#This Row],[RDS(on) Loss3]]*RdsonBotTc*ThetaJA_Q2) -> -22.19077369 | AN12: =Table1[[#This Row],[Irms Lf]] -> 36.29321762 | AO12: =Rdson4*Table1[[#This Row],[Irms4]]^2 -> 5.005351052 | AP12: =CHOOSE(Table1[[#This Row],[Mode Digit]], 0, (Vout*Table1[[#This Row],[Iin]]/2)*(Fsw)*(Tr_boost+Tf_boost), (Vout*Iout/2)*(Fsw/1)*(Tr_boost+Tf_boost)) -> 0.3804968166 | AQ12: =IF(Table1[[#This Row],[Vin]]>Vout, 0, IF(Table1[[#This Row],[Iin]]>Table1[[#This Row],[Ripple Current pk-pk]]/2,0,ABS(Table1[[#This Row],[Iin]]-Table1[[#This Row],[Ripple Current pk-pk]]/2)*Vsd_Q4*Deadtime*Fsw)) -> 0 | AR12: =(Table1[[#This Row],[Dead Time Loss 7]]+Table1[[#This Row],[Transition Loss6]]+Table1[[#This Row],[RDS(on) Loss5]]*(1+RdsonTopTc*Ta-RdsonTopTc*25))/(1-Table1[[#This Row],[RDS(on) Loss5]]*RdsonTopTc*ThetaJA_Q4) -> -17.86995292 | AS12: =Table1[[#This Row],[Irms Lf]] -> 36.29321762 | AT12: =Rdson3*Table1[[#This Row],[Irms9]]^2 -> 5.005351052 | AU12: =CHOOSE(Table1[[#This Row],[Mode Digit]], 0, IF(Table1[[#This Row],[Iin]]<Table1[[#This Row],[Ripple Current pk-pk]]/2,Deadtime*Fsw*IF(VfdSky_Q3>0,0,Vsd_Q3)*(Table1[[#This Row],[Iin]]+Table1[[#This Row],[Ripple Current pk-pk]]/2), 2*Deadtime*Fsw*IF(VfdSky_Q3>0,0,Vsd_Q3)*Table1[[#This Row],[Iin]]), IF(Table1[[#This Row],[Iin]]<Table1[[#This Row],[Ripple Current pk-pk]]/2,Deadtime*Fsw*IF(VfdSky_Q3>0,0,Vsd_Q3)*(Table1[[#This Row],[Iin]]+Table1[[#This Row],[Ripple Current pk-pk]]/2), 2*Deadtime*Fsw*IF(VfdSky_Q3>0,0,Vsd_Q3)*Table1[[#This Row],[Iin]])) -> 0.5804286708 | AV12: =(Table1[[#This Row],[Deadtime Loss11]]+Table1[[#This Row],[RDS(on) Loss10]]*(1+RdsonBotTc*Ta-RdsonBotTc*25))/(1-Table1[[#This Row],[RDS(on) Loss10]]*RdsonBotTc*ThetaJA_Q3) -> 294.7455324 | AW12: =CHOOSE(Table1[[#This Row],[Mode Digit]], Rdson3*Table1[[#This Row],[Irms Lf]]^2, Rdson1*Table1[[#This Row],[Irms Lf]]^2, 0) -> 6.454268461 | AX12: =CHOOSE(Table1[[#This Row],[Mode Digit]], 2*Deadtime*Fsw*IF(VfdSky_Q2>0,VfdSky_Q2,0)*Table1[[#This Row],[Iout]], 2*Deadtime*Fsw*IF(VfdSky_Q3>0,VfdSky_Q3,0)*Table1[[#This Row],[Iin]], 2*Deadtime*Fsw*IF(VfdSky_Q2>0,VfdSky_Q2,0)*Table1[[#This Row],[Iout]]+2*Deadtime*Fsw*IF(VfdSky_Q3>0,VfdSky_Q3,0)*Table1[[#This Row],[Iin]]) -> 0 | AY12: =CHOOSE(Table1[[#This Row],[Mode Digit]], IF(QrrSky_Q2>0,QrrSky_Q2,Qrr_Q2)*Fsw*(Table1[[#This Row],[Vin]]-Table1[[#This Row],[Iout]]*Rdson1), IF(QrrSky_Q3>0,QrrSky_Q3,Qrr_Q3)*Fsw*Vout, IF(QrrSky_Q2>0,QrrSky_Q2,Qrr_Q2)*Fsw*(Table1[[#This Row],[Vin]]-Table1[[#This Row],[Iout]]*Rdson1)+IF(QrrSky_Q3>0,QrrSky_Q3,Qrr_Q3)*Fsw*Vout) -> 0.0528 | AZ12: =CHOOSE(Table1[[#This Row],[Mode Digit]], Rs*Table1[[#This Row],[Irms2]]^2, Rs*Table1[[#This Row],[Irms4]]^2, Rs*(Table1[[#This Row],[Irms2]]^2+Table1[[#This Row],[Irms4]]^2)) -> 1.317197645 | BA12: 1.25 | BB12: =IF(Vout>8, Iq*Vout, Iq*Table1[[#This Row],[Vin]]) -> 0.036 | BC12: =CHOOSE(Table1[[#This Row],[Mode Digit]], (Qg_Q1+Qg_Q2)*Fsw, (Qg_Q3+Qg_Q4)*Fsw, (Qg_Q1+Qg_Q2+Qg_Q3+Qg_Q4)*Fsw)*IF(Vout>8, Vout, Table1[[#This Row],[Vin]]) -> 0.05568 | BD12: 0.7301853659 | BE12: =Table1[[#This Row],[IQ Loss]]+Table1[[#This Row],[Switching Current Loss]] -> 0.09168 | BF12: =SUM(Table1[[#This Row],[Total Inductor Loss]],Table1[[#This Row],[Total Cout Loss]],Table1[[#This Row],[Total Cin Loss]],Table1[[#This Row],[Total Control MOSFET Loss]],Table1[[#This Row],[Total Sync MOSFET Loss]],Table1[[#This Row],[Total Control MOSFET Loss8]],Table1[[#This Row],[Total Sync MOSFET Loss12]], Table1[[#This Row],[Deadtime Loss13]],Table1[[#This Row],[Reverse Recovery Loss]],Table1[[#This Row],[Total IC Loss]],Table1[[#This Row],[Isense Shunt Loss]],Table1[[#This Row],[Iout Shunt Loss]]) -> 242.3064796 | BG12: =Vout*Table1[[#This Row],[Iout]] -> 300 | BH12: =Table1[[#This Row],[Pout]]/(Table1[[#This Row],[Pout]]+Table1[[#This Row],[Total Loss]]) -> 0.5531927264 | BI12: =IF(Table1[[#This Row],[Vin]]>Vout,ThetaJA_Q1*(Table1[[#This Row],[Total Control MOSFET Loss]]+Table1[[#This Row],[Reverse Recovery Loss]]),ThetaJA_Q4*(Table1[[#This Row],[Total Control MOSFET Loss8]]+Table1[[#This Row],[Reverse Recovery Loss]])) -> -1158.11494 | BJ12: =IF(Table1[[#This Row],[Vin]]>Vout, Table1[[#This Row],[Total Sync MOSFET Loss]]*ThetaJA_Q2, ThetaJA_Q3*Table1[[#This Row],[Total Sync MOSFET Loss12]]) -> 14442.53109 | BL12: =Table1[[#This Row],[EFF, h]]*100 -> 55.31927264 | BM12: =Table1[[#This Row],[Total Inductor Loss]] -> 6.603204731 | BN12: =Table1[[#This Row],[Total Control MOSFET Loss]]+Table1[[#This Row],[Total Sync MOSFET Loss]]+Table1[[#This Row],[Total Control MOSFET Loss8]]+Table1[[#This Row],[Total Sync MOSFET Loss12]]+Table1[[#This Row],[Reverse Recovery Loss]] -> 232.5468321 | BO12: =Table1[[#This Row],[Total Sync MOSFET Loss]]+Table1[[#This Row],[Reverse Recovery Loss]]*0.33 -> -22.17334969 | BP12: =Table1[[#This Row],[Isense Shunt Loss]] -> 1.317197645 | BT12: 250kHz / 18-1.2V / 20A | BU12: 60 | BV12: 60 | BW12: 60 | BX12: =250000*(18-Vdd)*BW12/1000000000+((250000*BW9/1000000000*Vdd)*2.5/(2*4)) -> 0.198515625 | BY12: 15.88125 | BZ12: 19.8515625 | CA12: 23.821875 | CB12: 27.7921875 | CC12: 31.7625 | CD12: 35.7328125 | CE12: 3.9703125 | CF12: 5.95546875 | CG12: 7.940625 | CH12: 9.92578125
A13: Fsw | B13: =Fsw/1000 -> 200 | C13: kHz | D13: Switching Frequency | G13: 4 | H13: =VIN_min+(VIN_max-VIN_min)*(Table1[[#This Row],[Step]]/200) -> 8.94 | I13: =IF(Table1[[#This Row],[Vin]]>VIN_BB_to_buck, "BUCK", IF(Table1[[#This Row],[Vin]]<=VIN_boost_to_BB,"BOOST","BUCK-BST")) -> BOOST | J13: =IF(Table1[[#This Row],[Mode]]="BOOST",2, IF(Table1[[#This Row],[Mode]]="BUCK", 1,3)) -> 2 | K13: 25 | L13: =Vout*Table1[[#This Row],[Iout]]/(Table1[[#This Row],[Vin]]*Efficiency) -> 35.32320735 | M13: =Iout/(1-Table1[[#This Row],[Duty Cycle BOOST Leg]]) -> 34.5503759 | N13: =CHOOSE(Table1[[#This Row],[Mode Digit]],(Vout+(Rdson2+Rs+Rdcr)*Table1[[#This Row],[Iout]])/(Table1[[#This Row],[Vin]]+(Rs+Rdson2-Rdson1)*Table1[[#This Row],[Iout]]),1,IF(Table1[[#This Row],[Vin]]<Vout,D_max_buck_BB,Vout/Table1[[#This Row],[Vin]]*(1-D_min_boost_exitBB_to_buck))) -> 1 | O13: =CHOOSE(Table1[[#This Row],[Mode Digit]],0,(Vout+(Rdson3+Rdcr)*Table1[[#This Row],[Iin]]-Table1[[#This Row],[Vin]])/(Vout+(Rdson3-Rdson4-Rs)*Table1[[#This Row],[Iin]]),IF(Table1[[#This Row],[Vin]]>Vout, (Vout-Table1[[#This Row],[Vin]]*D_max_exitBB_to_buck)/Vout, (Vout-Table1[[#This Row],[Vin]]*D_max_buck_BB)/Vout)) -> 0.276418871 | P13: =CHOOSE(Table1[[#This Row],[Mode Digit]],0,0,1-((Table1[[#This Row],[Vin]]-Vout)+((VIN_BB_to_buck-VIN_BB_to_boost)/2))/((VIN_BB_to_buck-VIN_BB_to_boost))) -> 0 | Q13: =CHOOSE(Table1[[#This Row],[Mode Digit]],0,Table1[[#This Row],[Duty Cycle BOOST Leg]]/Fsw,(1/Fsw-Table1[[#This Row],[T BOD/BUE]])*Table1[[#This Row],[BOE/BUD BUBO ratio]]) -> 1.382094355e-06 | R13: =CHOOSE(Table1[[#This Row],[Mode Digit]],Table1[[#This Row],[Duty Cycle BUCK Leg]]/Fsw,(1-Table1[[#This Row],[Duty Cycle BOOST Leg]])/Fsw,TonBubo) -> 3.617905645e-06 | S13: =CHOOSE(Table1[[#This Row],[Mode Digit]],(1-Table1[[#This Row],[Duty Cycle BUCK Leg]])/Fsw,0,(1/Fsw-Table1[[#This Row],[T BOD/BUE]]-Table1[[#This Row],[T BOE]])) -> 0 | T13: =MAX(0, CHOOSE(Table1[[#This Row],[Mode Digit]], (Table1[[#This Row],[Vin]]-(Rdson1+Rdcr)*Table1[[#This Row],[Iout]]-Vout)*Table1[[#This Row],[Duty Cycle BUCK Leg]]/(Fsw*Lf), (Table1[[#This Row],[Vin]]-(Rdson4+Rdcr+Rs)*Table1[[#This Row],[Iin]])*Table1[[#This Row],[Duty Cycle BOOST Leg]]/(Fsw*Lf), IF(Table1[[#This Row],[Vin]]<Vout, (Table1[[#This Row],[Vin]]-(Rdson1+Rdson3+Rdcr+Rs)*Table1[[#This Row],[Iin]])*Table1[[#This Row],[T BOE]]/(Lf),(Vout-(Rdson2+Rdson4+Rdcr+Rs)*Table1[[#This Row],[Iout]])*Table1[[#This Row],[T BUD]]/(Lf)))) -> 3.625867725 | U13: =CHOOSE(Table1[[#This Row],[Mode Digit]], SQRT(Table1[[#This Row],[Iout]]^2+(Table1[[#This Row],[Ripple Current pk-pk]]^2)/12), SQRT(Table1[[#This Row],[Iin]]^2+(Table1[[#This Row],[Ripple Current pk-pk]]^2)/12), SQRT(Table1[[#This Row],[Avg IL]]^2+(Table1[[#This Row],[Ripple Current pk-pk]]^2)/12)) -> 35.33871183 | V13: =(Table1[[#This Row],[Irms Lf]]^2*Rdcr*(1+Ltc*Ta-Ltc*25))/(1-Table1[[#This Row],[Irms Lf]]^2*Rdcr*Ltc*ThetaCa) -> 5.874221963 | W13: =ABS(7.759*10^-3*Fsw^0.9458*(0.00787*Table1[[#This Row],[Ripple Current pk-pk]])^2.304) -> 0.2211723605 | X13: =Table1[[#This Row],[DCR Loss]]+Table1[[#This Row],[Core Loss]] -> 6.095394323 | Y13: =IF(Table1[[#This Row],[Vin]]>Vout, Table1[[#This Row],[Ripple Current pk-pk]]/SQRT(12), SQRT(Table1[[#This Row],[Duty Cycle BOOST Leg]]/(1-Table1[[#This Row],[Duty Cycle BOOST Leg]]))*SQRT(Table1[[#This Row],[Iout]]^2+(Table1[[#This Row],[Ripple Current pk-pk]]^2)/12)) -> 15.46537824 | Z13: =RCoutEsr*Table1[[#This Row],[Irms Cout]]^2 -> 0.4484586078 | AA13: =Table1[[#This Row],[Cout ESR Loss]] -> 0.4484586078 | AB13: =IF(Table1[[#This Row],[Vin]]>Vout, SQRT(Table1[[#This Row],[Duty Cycle BUCK Leg]]*(1-Table1[[#This Row],[Duty Cycle BUCK Leg]]))*SQRT(Table1[[#This Row],[Iout]]^2+(Table1[[#This Row],[Ripple Current pk-pk]]^2)/12), Table1[[#This Row],[Ripple Current pk-pk]]/SQRT(12)) -> 1.046697853 | AC13: =RCinEsr*Table1[[#This Row],[Irms Cin]]^2 -> 0.002191152793 | AD13: =Table1[[#This Row],[Cin ESR Loss]] -> 0.002191152793 | AE13: =Table1[[#This Row],[Irms Lf]] -> 35.33871183 | AF13: =Rdson1*Table1[[#This Row],[Irms1]]^2 -> 6.119240313 | AG13: =CHOOSE(Table1[[#This Row],[Mode Digit]], (Table1[[#This Row],[Vin]]*Table1[[#This Row],[Iout]]/2)*(Fsw)*(Tr_buck+Tf_buck), 0, (Table1[[#This Row],[Vin]]*Table1[[#This Row],[Avg IL]]/2)*(Fsw/1)*(Tr_buck+Tf_buck)) -> 0 | AH13: =IF(Table1[[#This Row],[Vin]]>Vout, IF(Table1[[#This Row],[Iout]]>Table1[[#This Row],[Ripple Current pk-pk]]/2,0,ABS(Table1[[#This Row],[Iout]]-Table1[[#This Row],[Ripple Current pk-pk]]/2)*Vsd_Q1*Deadtime*Fsw),0) -> 0 | AI13: =(Table1[[#This Row],[Dead Time Loss ]]+Table1[[#This Row],[Transition Loss]]+Table1[[#This Row],[RDS(on) Loss]]*(1+RdsonTopTc*Ta-RdsonTopTc*25))/(1-Table1[[#This Row],[RDS(on) Loss]]*RdsonTopTc*ThetaJA_Q1) -> -27.33657929 | AJ13: =Table1[[#This Row],[Irms Lf]] -> 35.33871183 | AK13: =Rdson2*Table1[[#This Row],[Irms2]]^2 -> 6.119240313 | AL13: =CHOOSE(Table1[[#This Row],[Mode Digit]], IF(Table1[[#This Row],[Iout]]<Table1[[#This Row],[Ripple Current pk-pk]]/2,Deadtime*Fsw*IF(VfdSky_Q2>0,0,Vsd_Q2)*(Table1[[#This Row],[Iout]]+Table1[[#This Row],[Ripple Current pk-pk]]/2),2*Deadtime*Fsw*IF(VfdSky_Q2>0,0,Vsd_Q2)*Table1[[#This Row],[Iout]]),0, IF(Table1[[#This Row],[Iout]]<Table1[[#This Row],[Ripple Current pk-pk]]/2,Deadtime*Fsw*IF(VfdSky_Q2>0,0,Vsd_Q2)*(Table1[[#This Row],[Iout]]+Table1[[#This Row],[Ripple Current pk-pk]]/2),2*Deadtime*Fsw*IF(VfdSky_Q2>0,0,Vsd_Q2)*Table1[[#This Row],[Iout]])) -> 0 | AM13: =(Table1[[#This Row],[Deadtime Loss]]+Table1[[#This Row],[RDS(on) Loss3]]*(1+RdsonBotTc*Ta-RdsonBotTc*25))/(1-Table1[[#This Row],[RDS(on) Loss3]]*RdsonBotTc*ThetaJA_Q2) -> -27.33657929 | AN13: =Table1[[#This Row],[Irms Lf]] -> 35.33871183 | AO13: =Rdson4*Table1[[#This Row],[Irms4]]^2 -> 4.745533304 | AP13: =CHOOSE(Table1[[#This Row],[Mode Digit]], 0, (Vout*Table1[[#This Row],[Iin]]/2)*(Fsw)*(Tr_boost+Tf_boost), (Vout*Iout/2)*(Fsw/1)*(Tr_boost+Tf_boost)) -> 0.3704949428 | AQ13: =IF(Table1[[#This Row],[Vin]]>Vout, 0, IF(Table1[[#This Row],[Iin]]>Table1[[#This Row],[Ripple Current pk-pk]]/2,0,ABS(Table1[[#This Row],[Iin]]-Table1[[#This Row],[Ripple Current pk-pk]]/2)*Vsd_Q4*Deadtime*Fsw)) -> 0 | AR13: =(Table1[[#This Row],[Dead Time Loss 7]]+Table1[[#This Row],[Transition Loss6]]+Table1[[#This Row],[RDS(on) Loss5]]*(1+RdsonTopTc*Ta-RdsonTopTc*25))/(1-Table1[[#This Row],[RDS(on) Loss5]]*RdsonTopTc*ThetaJA_Q4) -> -21.87845358 | AS13: =Table1[[#This Row],[Irms Lf]] -> 35.33871183 | AT13: =Rdson3*Table1[[#This Row],[Irms9]]^2 -> 4.745533304 | AU13: =CHOOSE(Table1[[#This Row],[Mode Digit]], 0, IF(Table1[[#This Row],[Iin]]<Table1[[#This Row],[Ripple Current pk-pk]]/2,Deadtime*Fsw*IF(VfdSky_Q3>0,0,Vsd_Q3)*(Table1[[#This Row],[Iin]]+Table1[[#This Row],[Ripple Current pk-pk]]/2), 2*Deadtime*Fsw*IF(VfdSky_Q3>0,0,Vsd_Q3)*Table1[[#This Row],[Iin]]), IF(Table1[[#This Row],[Iin]]<Table1[[#This Row],[Ripple Current pk-pk]]/2,Deadtime*Fsw*IF(VfdSky_Q3>0,0,Vsd_Q3)*(Table1[[#This Row],[Iin]]+Table1[[#This Row],[Ripple Current pk-pk]]/2), 2*Deadtime*Fsw*IF(VfdSky_Q3>0,0,Vsd_Q3)*Table1[[#This Row],[Iin]])) -> 0.5651713176 | AV13: =(Table1[[#This Row],[Deadtime Loss11]]+Table1[[#This Row],[RDS(on) Loss10]]*(1+RdsonBotTc*Ta-RdsonBotTc*25))/(1-Table1[[#This Row],[RDS(on) Loss10]]*RdsonBotTc*ThetaJA_Q3) -> 76.00241456 | AW13: =CHOOSE(Table1[[#This Row],[Mode Digit]], Rdson3*Table1[[#This Row],[Irms Lf]]^2, Rdson1*Table1[[#This Row],[Irms Lf]]^2, 0) -> 6.119240313 | AX13: =CHOOSE(Table1[[#This Row],[Mode Digit]], 2*Deadtime*Fsw*IF(VfdSky_Q2>0,VfdSky_Q2,0)*Table1[[#This Row],[Iout]], 2*Deadtime*Fsw*IF(VfdSky_Q3>0,VfdSky_Q3,0)*Table1[[#This Row],[Iin]], 2*Deadtime*Fsw*IF(VfdSky_Q2>0,VfdSky_Q2,0)*Table1[[#This Row],[Iout]]+2*Deadtime*Fsw*IF(VfdSky_Q3>0,VfdSky_Q3,0)*Table1[[#This Row],[Iin]]) -> 0 | AY13: =CHOOSE(Table1[[#This Row],[Mode Digit]], IF(QrrSky_Q2>0,QrrSky_Q2,Qrr_Q2)*Fsw*(Table1[[#This Row],[Vin]]-Table1[[#This Row],[Iout]]*Rdson1), IF(QrrSky_Q3>0,QrrSky_Q3,Qrr_Q3)*Fsw*Vout, IF(QrrSky_Q2>0,QrrSky_Q2,Qrr_Q2)*Fsw*(Table1[[#This Row],[Vin]]-Table1[[#This Row],[Iout]]*Rdson1)+IF(QrrSky_Q3>0,QrrSky_Q3,Qrr_Q3)*Fsw*Vout) -> 0.0528 | AZ13: =CHOOSE(Table1[[#This Row],[Mode Digit]], Rs*Table1[[#This Row],[Irms2]]^2, Rs*Table1[[#This Row],[Irms4]]^2, Rs*(Table1[[#This Row],[Irms2]]^2+Table1[[#This Row],[Irms4]]^2)) -> 1.248824554 | BA13: 1.25 | BB13: =IF(Vout>8, Iq*Vout, Iq*Table1[[#This Row],[Vin]]) -> 0.036 | BC13: =CHOOSE(Table1[[#This Row],[Mode Digit]], (Qg_Q1+Qg_Q2)*Fsw, (Qg_Q3+Qg_Q4)*Fsw, (Qg_Q1+Qg_Q2+Qg_Q3+Qg_Q4)*Fsw)*IF(Vout>8, Vout, Table1[[#This Row],[Vin]]) -> 0.05568 | BD13: 0.7301853659 | BE13: =Table1[[#This Row],[IQ Loss]]+Table1[[#This Row],[Switching Current Loss]] -> 0.09168 | BF13: =SUM(Table1[[#This Row],[Total Inductor Loss]],Table1[[#This Row],[Total Cout Loss]],Table1[[#This Row],[Total Cin Loss]],Table1[[#This Row],[Total Control MOSFET Loss]],Table1[[#This Row],[Total Sync MOSFET Loss]],Table1[[#This Row],[Total Control MOSFET Loss8]],Table1[[#This Row],[Total Sync MOSFET Loss12]], Table1[[#This Row],[Deadtime Loss13]],Table1[[#This Row],[Reverse Recovery Loss]],Table1[[#This Row],[Total IC Loss]],Table1[[#This Row],[Isense Shunt Loss]],Table1[[#This Row],[Iout Shunt Loss]]) -> 8.640151033 | BG13: =Vout*Table1[[#This Row],[Iout]] -> 300 | BH13: =Table1[[#This Row],[Pout]]/(Table1[[#This Row],[Pout]]+Table1[[#This Row],[Total Loss]]) -> 0.9720057452 | BI13: =IF(Table1[[#This Row],[Vin]]>Vout,ThetaJA_Q1*(Table1[[#This Row],[Total Control MOSFET Loss]]+Table1[[#This Row],[Reverse Recovery Loss]]),ThetaJA_Q4*(Table1[[#This Row],[Total Control MOSFET Loss8]]+Table1[[#This Row],[Reverse Recovery Loss]])) -> -1418.667483 | BJ13: =IF(Table1[[#This Row],[Vin]]>Vout, Table1[[#This Row],[Total Sync MOSFET Loss]]*ThetaJA_Q2, ThetaJA_Q3*Table1[[#This Row],[Total Sync MOSFET Loss12]]) -> 3724.118313 | BL13: =Table1[[#This Row],[EFF, h]]*100 -> 97.20057452 | BM13: =Table1[[#This Row],[Total Inductor Loss]] -> 6.095394323 | BN13: =Table1[[#This Row],[Total Control MOSFET Loss]]+Table1[[#This Row],[Total Sync MOSFET Loss]]+Table1[[#This Row],[Total Control MOSFET Loss8]]+Table1[[#This Row],[Total Sync MOSFET Loss12]]+Table1[[#This Row],[Reverse Recovery Loss]] -> -0.4963976041 | BO13: =Table1[[#This Row],[Total Sync MOSFET Loss]]+Table1[[#This Row],[Reverse Recovery Loss]]*0.33 -> -27.31915529 | BP13: =Table1[[#This Row],[Isense Shunt Loss]] -> 1.248824554 | BT13: 500kHz / 5-1.2V / 15A | BU13: 30 | BV13: 30 | BW13: 30 | BX13: =500000*(5-Vdd)*BW13/1000000000+((500000*BW9/1000000000*Vdd)*2.5/(2*4)) -> 0.04453125 | BY13: 3.5625 | BZ13: 4.453125 | CA13: 5.34375 | CB13: 6.234375 | CC13: 7.125 | CD13: 8.015625 | CE13: 0.890625 | CF13: 1.3359375 | CG13: 1.78125 | CH13: 2.2265625
A14: Iout | B14: =Iout -> 25 | C14: A | D14: Max Output Current | G14: 5 | H14: =VIN_min+(VIN_max-VIN_min)*(Table1[[#This Row],[Step]]/200) -> 9.175 | I14: =IF(Table1[[#This Row],[Vin]]>VIN_BB_to_buck, "BUCK", IF(Table1[[#This Row],[Vin]]<=VIN_boost_to_BB,"BOOST","BUCK-BST")) -> BOOST | J14: =IF(Table1[[#This Row],[Mode]]="BOOST",2, IF(Table1[[#This Row],[Mode]]="BUCK", 1,3)) -> 2 | K14: 25 | L14: =Vout*Table1[[#This Row],[Iout]]/(Table1[[#This Row],[Vin]]*Efficiency) -> 34.41847125 | M14: =Iout/(1-Table1[[#This Row],[Duty Cycle BOOST Leg]]) -> 33.61249749 | N14: =CHOOSE(Table1[[#This Row],[Mode Digit]],(Vout+(Rdson2+Rs+Rdcr)*Table1[[#This Row],[Iout]])/(Table1[[#This Row],[Vin]]+(Rs+Rdson2-Rdson1)*Table1[[#This Row],[Iout]]),1,IF(Table1[[#This Row],[Vin]]<Vout,D_max_buck_BB,Vout/Table1[[#This Row],[Vin]]*(1-D_min_boost_exitBB_to_buck))) -> 1 | O14: =CHOOSE(Table1[[#This Row],[Mode Digit]],0,(Vout+(Rdson3+Rdcr)*Table1[[#This Row],[Iin]]-Table1[[#This Row],[Vin]])/(Vout+(Rdson3-Rdson4-Rs)*Table1[[#This Row],[Iin]]),IF(Table1[[#This Row],[Vin]]>Vout, (Vout-Table1[[#This Row],[Vin]]*D_max_exitBB_to_buck)/Vout, (Vout-Table1[[#This Row],[Vin]]*D_max_buck_BB)/Vout)) -> 0.2562290258 | P14: =CHOOSE(Table1[[#This Row],[Mode Digit]],0,0,1-((Table1[[#This Row],[Vin]]-Vout)+((VIN_BB_to_buck-VIN_BB_to_boost)/2))/((VIN_BB_to_buck-VIN_BB_to_boost))) -> 0 | Q14: =CHOOSE(Table1[[#This Row],[Mode Digit]],0,Table1[[#This Row],[Duty Cycle BOOST Leg]]/Fsw,(1/Fsw-Table1[[#This Row],[T BOD/BUE]])*Table1[[#This Row],[BOE/BUD BUBO ratio]]) -> 1.281145129e-06 | R14: =CHOOSE(Table1[[#This Row],[Mode Digit]],Table1[[#This Row],[Duty Cycle BUCK Leg]]/Fsw,(1-Table1[[#This Row],[Duty Cycle BOOST Leg]])/Fsw,TonBubo) -> 3.718854871e-06 | S14: =CHOOSE(Table1[[#This Row],[Mode Digit]],(1-Table1[[#This Row],[Duty Cycle BUCK Leg]])/Fsw,0,(1/Fsw-Table1[[#This Row],[T BOD/BUE]]-Table1[[#This Row],[T BOE]])) -> 0 | T14: =MAX(0, CHOOSE(Table1[[#This Row],[Mode Digit]], (Table1[[#This Row],[Vin]]-(Rdson1+Rdcr)*Table1[[#This Row],[Iout]]-Vout)*Table1[[#This Row],[Duty Cycle BUCK Leg]]/(Fsw*Lf), (Table1[[#This Row],[Vin]]-(Rdson4+Rdcr+Rs)*Table1[[#This Row],[Iin]])*Table1[[#This Row],[Duty Cycle BOOST Leg]]/(Fsw*Lf), IF(Table1[[#This Row],[Vin]]<Vout, (Table1[[#This Row],[Vin]]-(Rdson1+Rdson3+Rdcr+Rs)*Table1[[#This Row],[Iin]])*Table1[[#This Row],[T BOE]]/(Lf),(Vout-(Rdson2+Rdson4+Rdcr+Rs)*Table1[[#This Row],[Iout]])*Table1[[#This Row],[T BUD]]/(Lf)))) -> 3.455074578 | U14: =CHOOSE(Table1[[#This Row],[Mode Digit]], SQRT(Table1[[#This Row],[Iout]]^2+(Table1[[#This Row],[Ripple Current pk-pk]]^2)/12), SQRT(Table1[[#This Row],[Iin]]^2+(Table1[[#This Row],[Ripple Current pk-pk]]^2)/12), SQRT(Table1[[#This Row],[Avg IL]]^2+(Table1[[#This Row],[Ripple Current pk-pk]]^2)/12)) -> 34.43291968 | V14: =(Table1[[#This Row],[Irms Lf]]^2*Rdcr*(1+Ltc*Ta-Ltc*25))/(1-Table1[[#This Row],[Irms Lf]]^2*Rdcr*Ltc*ThetaCa) -> 5.447398922 | W14: =ABS(7.759*10^-3*Fsw^0.9458*(0.00787*Table1[[#This Row],[Ripple Current pk-pk]])^2.304) -> 0.1979026523 | X14: =Table1[[#This Row],[DCR Loss]]+Table1[[#This Row],[Core Loss]] -> 5.645301575 | Y14: =IF(Table1[[#This Row],[Vin]]>Vout, Table1[[#This Row],[Ripple Current pk-pk]]/SQRT(12), SQRT(Table1[[#This Row],[Duty Cycle BOOST Leg]]/(1-Table1[[#This Row],[Duty Cycle BOOST Leg]]))*SQRT(Table1[[#This Row],[Iout]]^2+(Table1[[#This Row],[Ripple Current pk-pk]]^2)/12)) -> 14.68520153 | Z14: =RCoutEsr*Table1[[#This Row],[Irms Cout]]^2 -> 0.4043533949 | AA14: =Table1[[#This Row],[Cout ESR Loss]] -> 0.4043533949 | AB14: =IF(Table1[[#This Row],[Vin]]>Vout, SQRT(Table1[[#This Row],[Duty Cycle BUCK Leg]]*(1-Table1[[#This Row],[Duty Cycle BUCK Leg]]))*SQRT(Table1[[#This Row],[Iout]]^2+(Table1[[#This Row],[Ripple Current pk-pk]]^2)/12), Table1[[#This Row],[Ripple Current pk-pk]]/SQRT(12)) -> 0.9973941187 | AC14: =RCinEsr*Table1[[#This Row],[Irms Cin]]^2 -> 0.001989590056 | AD14: =Table1[[#This Row],[Cin ESR Loss]] -> 0.001989590056 | AE14: =Table1[[#This Row],[Irms Lf]] -> 34.43291968 | AF14: =Rdson1*Table1[[#This Row],[Irms1]]^2 -> 5.809567194 | AG14: =CHOOSE(Table1[[#This Row],[Mode Digit]], (Table1[[#This Row],[Vin]]*Table1[[#This Row],[Iout]]/2)*(Fsw)*(Tr_buck+Tf_buck), 0, (Table1[[#This Row],[Vin]]*Table1[[#This Row],[Avg IL]]/2)*(Fsw/1)*(Tr_buck+Tf_buck)) -> 0 | AH14: =IF(Table1[[#This Row],[Vin]]>Vout, IF(Table1[[#This Row],[Iout]]>Table1[[#This Row],[Ripple Current pk-pk]]/2,0,ABS(Table1[[#This Row],[Iout]]-Table1[[#This Row],[Ripple Current pk-pk]]/2)*Vsd_Q1*Deadtime*Fsw),0) -> 0 | AI14: =(Table1[[#This Row],[Dead Time Loss ]]+Table1[[#This Row],[Transition Loss]]+Table1[[#This Row],[RDS(on) Loss]]*(1+RdsonTopTc*Ta-RdsonTopTc*25))/(1-Table1[[#This Row],[RDS(on) Loss]]*RdsonTopTc*ThetaJA_Q1) -> -35.88069797 | AJ14: =Table1[[#This Row],[Irms Lf]] -> 34.43291968 | AK14: =Rdson2*Table1[[#This Row],[Irms2]]^2 -> 5.809567194 | AL14: =CHOOSE(Table1[[#This Row],[Mode Digit]], IF(Table1[[#This Row],[Iout]]<Table1[[#This Row],[Ripple Current pk-pk]]/2,Deadtime*Fsw*IF(VfdSky_Q2>0,0,Vsd_Q2)*(Table1[[#This Row],[Iout]]+Table1[[#This Row],[Ripple Current pk-pk]]/2),2*Deadtime*Fsw*IF(VfdSky_Q2>0,0,Vsd_Q2)*Table1[[#This Row],[Iout]]),0, IF(Table1[[#This Row],[Iout]]<Table1[[#This Row],[Ripple Current pk-pk]]/2,Deadtime*Fsw*IF(VfdSky_Q2>0,0,Vsd_Q2)*(Table1[[#This Row],[Iout]]+Table1[[#This Row],[Ripple Current pk-pk]]/2),2*Deadtime*Fsw*IF(VfdSky_Q2>0,0,Vsd_Q2)*Table1[[#This Row],[Iout]])) -> 0 | AM14: =(Table1[[#This Row],[Deadtime Loss]]+Table1[[#This Row],[RDS(on) Loss3]]*(1+RdsonBotTc*Ta-RdsonBotTc*25))/(1-Table1[[#This Row],[RDS(on) Loss3]]*RdsonBotTc*ThetaJA_Q2) -> -35.88069797 | AN14: =Table1[[#This Row],[Irms Lf]] -> 34.43291968 | AO14: =Rdson4*Table1[[#This Row],[Irms4]]^2 -> 4.50537864 | AP14: =CHOOSE(Table1[[#This Row],[Mode Digit]], 0, (Vout*Table1[[#This Row],[Iin]]/2)*(Fsw)*(Tr_boost+Tf_boost), (Vout*Iout/2)*(Fsw/1)*(Tr_boost+Tf_boost)) -> 0.3610054266 | AQ14: =IF(Table1[[#This Row],[Vin]]>Vout, 0, IF(Table1[[#This Row],[Iin]]>Table1[[#This Row],[Ripple Current pk-pk]]/2,0,ABS(Table1[[#This Row],[Iin]]-Table1[[#This Row],[Ripple Current pk-pk]]/2)*Vsd_Q4*Deadtime*Fsw)) -> 0 | AR14: =(Table1[[#This Row],[Dead Time Loss 7]]+Table1[[#This Row],[Transition Loss6]]+Table1[[#This Row],[RDS(on) Loss5]]*(1+RdsonTopTc*Ta-RdsonTopTc*25))/(1-Table1[[#This Row],[RDS(on) Loss5]]*RdsonTopTc*ThetaJA_Q4) -> -28.39222973 | AS14: =Table1[[#This Row],[Irms Lf]] -> 34.43291968 | AT14: =Rdson3*Table1[[#This Row],[Irms9]]^2 -> 4.50537864 | AU14: =CHOOSE(Table1[[#This Row],[Mode Digit]], 0, IF(Table1[[#This Row],[Iin]]<Table1[[#This Row],[Ripple Current pk-pk]]/2,Deadtime*Fsw*IF(VfdSky_Q3>0,0,Vsd_Q3)*(Table1[[#This Row],[Iin]]+Table1[[#This Row],[Ripple Current pk-pk]]/2), 2*Deadtime*Fsw*IF(VfdSky_Q3>0,0,Vsd_Q3)*Table1[[#This Row],[Iin]]), IF(Table1[[#This Row],[Iin]]<Table1[[#This Row],[Ripple Current pk-pk]]/2,Deadtime*Fsw*IF(VfdSky_Q3>0,0,Vsd_Q3)*(Table1[[#This Row],[Iin]]+Table1[[#This Row],[Ripple Current pk-pk]]/2), 2*Deadtime*Fsw*IF(VfdSky_Q3>0,0,Vsd_Q3)*Table1[[#This Row],[Iin]])) -> 0.5506955399 | AV14: =(Table1[[#This Row],[Deadtime Loss11]]+Table1[[#This Row],[RDS(on) Loss10]]*(1+RdsonBotTc*Ta-RdsonBotTc*25))/(1-Table1[[#This Row],[RDS(on) Loss10]]*RdsonBotTc*ThetaJA_Q3) -> 43.23434243 | AW14: =CHOOSE(Table1[[#This Row],[Mode Digit]], Rdson3*Table1[[#This Row],[Irms Lf]]^2, Rdson1*Table1[[#This Row],[Irms Lf]]^2, 0) -> 5.809567194 | AX14: =CHOOSE(Table1[[#This Row],[Mode Digit]], 2*Deadtime*Fsw*IF(VfdSky_Q2>0,VfdSky_Q2,0)*Table1[[#This Row],[Iout]], 2*Deadtime*Fsw*IF(VfdSky_Q3>0,VfdSky_Q3,0)*Table1[[#This Row],[Iin]], 2*Deadtime*Fsw*IF(VfdSky_Q2>0,VfdSky_Q2,0)*Table1[[#This Row],[Iout]]+2*Deadtime*Fsw*IF(VfdSky_Q3>0,VfdSky_Q3,0)*Table1[[#This Row],[Iin]]) -> 0 | AY14: =CHOOSE(Table1[[#This Row],[Mode Digit]], IF(QrrSky_Q2>0,QrrSky_Q2,Qrr_Q2)*Fsw*(Table1[[#This Row],[Vin]]-Table1[[#This Row],[Iout]]*Rdson1), IF(QrrSky_Q3>0,QrrSky_Q3,Qrr_Q3)*Fsw*Vout, IF(QrrSky_Q2>0,QrrSky_Q2,Qrr_Q2)*Fsw*(Table1[[#This Row],[Vin]]-Table1[[#This Row],[Iout]]*Rdson1)+IF(QrrSky_Q3>0,QrrSky_Q3,Qrr_Q3)*Fsw*Vout) -> 0.0528 | AZ14: =CHOOSE(Table1[[#This Row],[Mode Digit]], Rs*Table1[[#This Row],[Irms2]]^2, Rs*Table1[[#This Row],[Irms4]]^2, Rs*(Table1[[#This Row],[Irms2]]^2+Table1[[#This Row],[Irms4]]^2)) -> 1.185625958 | BA14: 1.25 | BB14: =IF(Vout>8, Iq*Vout, Iq*Table1[[#This Row],[Vin]]) -> 0.036 | BC14: =CHOOSE(Table1[[#This Row],[Mode Digit]], (Qg_Q1+Qg_Q2)*Fsw, (Qg_Q3+Qg_Q4)*Fsw, (Qg_Q1+Qg_Q2+Qg_Q3+Qg_Q4)*Fsw)*IF(Vout>8, Vout, Table1[[#This Row],[Vin]]) -> 0.05568 | BD14: 0.7301853659 | BE14: =Table1[[#This Row],[IQ Loss]]+Table1[[#This Row],[Switching Current Loss]] -> 0.09168 | BF14: =SUM(Table1[[#This Row],[Total Inductor Loss]],Table1[[#This Row],[Total Cout Loss]],Table1[[#This Row],[Total Cin Loss]],Table1[[#This Row],[Total Control MOSFET Loss]],Table1[[#This Row],[Total Sync MOSFET Loss]],Table1[[#This Row],[Total Control MOSFET Loss8]],Table1[[#This Row],[Total Sync MOSFET Loss12]], Table1[[#This Row],[Deadtime Loss13]],Table1[[#This Row],[Reverse Recovery Loss]],Table1[[#This Row],[Total IC Loss]],Table1[[#This Row],[Isense Shunt Loss]],Table1[[#This Row],[Iout Shunt Loss]]) -> -48.28753271 | BG14: =Vout*Table1[[#This Row],[Iout]] -> 300 | BH14: =Table1[[#This Row],[Pout]]/(Table1[[#This Row],[Pout]]+Table1[[#This Row],[Total Loss]]) -> 1.191836079 | BI14: =IF(Table1[[#This Row],[Vin]]>Vout,ThetaJA_Q1*(Table1[[#This Row],[Total Control MOSFET Loss]]+Table1[[#This Row],[Reverse Recovery Loss]]),ThetaJA_Q4*(Table1[[#This Row],[Total Control MOSFET Loss8]]+Table1[[#This Row],[Reverse Recovery Loss]])) -> -1842.062932 | BJ14: =IF(Table1[[#This Row],[Vin]]>Vout, Table1[[#This Row],[Total Sync MOSFET Loss]]*ThetaJA_Q2, ThetaJA_Q3*Table1[[#This Row],[Total Sync MOSFET Loss12]]) -> 2118.482779 | BL14: =Table1[[#This Row],[EFF, h]]*100 -> 119.1836079 | BM14: =Table1[[#This Row],[Total Inductor Loss]] -> 5.645301575 | BN14: =Table1[[#This Row],[Total Control MOSFET Loss]]+Table1[[#This Row],[Total Sync MOSFET Loss]]+Table1[[#This Row],[Total Control MOSFET Loss8]]+Table1[[#This Row],[Total Sync MOSFET Loss12]]+Table1[[#This Row],[Reverse Recovery Loss]] -> -56.86648323 | BO14: =Table1[[#This Row],[Total Sync MOSFET Loss]]+Table1[[#This Row],[Reverse Recovery Loss]]*0.33 -> -35.86327397 | BP14: =Table1[[#This Row],[Isense Shunt Loss]] -> 1.185625958 | BT14: 500kHz / 12-5V / 15A | BU14: 45 | BV14: 45 | BW14: 45 | BX14: =500000*(12-Vdd)*BW14/1000000000+((500000*BW9/1000000000*Vdd)*2.5/(2*4)) -> 0.18328125 | BY14: 14.6625 | BZ14: 18.328125 | CA14: 21.99375 | CB14: 25.659375 | CC14: 29.325 | CD14: 32.990625 | CE14: 3.665625 | CF14: 5.4984375 | CG14: 7.33125 | CH14: 9.1640625
A15: Ta | B15: =Ta -> 25 | C15: °C | D15: Ambient Temperature | G15: 6 | H15: =VIN_min+(VIN_max-VIN_min)*(Table1[[#This Row],[Step]]/200) -> 9.41 | I15: =IF(Table1[[#This Row],[Vin]]>VIN_BB_to_buck, "BUCK", IF(Table1[[#This Row],[Vin]]<=VIN_boost_to_BB,"BOOST","BUCK-BST")) -> BOOST | J15: =IF(Table1[[#This Row],[Mode]]="BOOST",2, IF(Table1[[#This Row],[Mode]]="BUCK", 1,3)) -> 2 | K15: 25 | L15: =Vout*Table1[[#This Row],[Iout]]/(Table1[[#This Row],[Vin]]*Efficiency) -> 33.55892388 | M15: =Iout/(1-Table1[[#This Row],[Duty Cycle BOOST Leg]]) -> 32.72549261 | N15: =CHOOSE(Table1[[#This Row],[Mode Digit]],(Vout+(Rdson2+Rs+Rdcr)*Table1[[#This Row],[Iout]])/(Table1[[#This Row],[Vin]]+(Rs+Rdson2-Rdson1)*Table1[[#This Row],[Iout]]),1,IF(Table1[[#This Row],[Vin]]<Vout,D_max_buck_BB,Vout/Table1[[#This Row],[Vin]]*(1-D_min_boost_exitBB_to_buck))) -> 1 | O15: =CHOOSE(Table1[[#This Row],[Mode Digit]],0,(Vout+(Rdson3+Rdcr)*Table1[[#This Row],[Iin]]-Table1[[#This Row],[Vin]])/(Vout+(Rdson3-Rdson4-Rs)*Table1[[#This Row],[Iin]]),IF(Table1[[#This Row],[Vin]]>Vout, (Vout-Table1[[#This Row],[Vin]]*D_max_exitBB_to_buck)/Vout, (Vout-Table1[[#This Row],[Vin]]*D_max_buck_BB)/Vout)) -> 0.236069559 | P15: =CHOOSE(Table1[[#This Row],[Mode Digit]],0,0,1-((Table1[[#This Row],[Vin]]-Vout)+((VIN_BB_to_buck-VIN_BB_to_boost)/2))/((VIN_BB_to_buck-VIN_BB_to_boost))) -> 0 | Q15: =CHOOSE(Table1[[#This Row],[Mode Digit]],0,Table1[[#This Row],[Duty Cycle BOOST Leg]]/Fsw,(1/Fsw-Table1[[#This Row],[T BOD/BUE]])*Table1[[#This Row],[BOE/BUD BUBO ratio]]) -> 1.180347795e-06 | R15: =CHOOSE(Table1[[#This Row],[Mode Digit]],Table1[[#This Row],[Duty Cycle BUCK Leg]]/Fsw,(1-Table1[[#This Row],[Duty Cycle BOOST Leg]])/Fsw,TonBubo) -> 3.819652205e-06 | S15: =CHOOSE(Table1[[#This Row],[Mode Digit]],(1-Table1[[#This Row],[Duty Cycle BUCK Leg]])/Fsw,0,(1/Fsw-Table1[[#This Row],[T BOD/BUE]]-Table1[[#This Row],[T BOE]])) -> 0 | T15: =MAX(0, CHOOSE(Table1[[#This Row],[Mode Digit]], (Table1[[#This Row],[Vin]]-(Rdson1+Rdcr)*Table1[[#This Row],[Iout]]-Vout)*Table1[[#This Row],[Duty Cycle BUCK Leg]]/(Fsw*Lf), (Table1[[#This Row],[Vin]]-(Rdson4+Rdcr+Rs)*Table1[[#This Row],[Iin]])*Table1[[#This Row],[Duty Cycle BOOST Leg]]/(Fsw*Lf), IF(Table1[[#This Row],[Vin]]<Vout, (Table1[[#This Row],[Vin]]-(Rdson1+Rdson3+Rdcr+Rs)*Table1[[#This Row],[Iin]])*Table1[[#This Row],[T BOE]]/(Lf),(Vout-(Rdson2+Rdson4+Rdcr+Rs)*Table1[[#This Row],[Iout]])*Table1[[#This Row],[T BUD]]/(Lf)))) -> 3.269752465 | U15: =CHOOSE(Table1[[#This Row],[Mode Digit]], SQRT(Table1[[#This Row],[Iout]]^2+(Table1[[#This Row],[Ripple Current pk-pk]]^2)/12), SQRT(Table1[[#This Row],[Iin]]^2+(Table1[[#This Row],[Ripple Current pk-pk]]^2)/12), SQRT(Table1[[#This Row],[Avg IL]]^2+(Table1[[#This Row],[Ripple Current pk-pk]]^2)/12)) -> 33.57219552 | V15: =(Table1[[#This Row],[Irms Lf]]^2*Rdcr*(1+Ltc*Ta-Ltc*25))/(1-Table1[[#This Row],[Irms Lf]]^2*Rdcr*Ltc*ThetaCa) -> 5.069397091 | W15: =ABS(7.759*10^-3*Fsw^0.9458*(0.00787*Table1[[#This Row],[Ripple Current pk-pk]])^2.304) -> 0.1742962242 | X15: =Table1[[#This Row],[DCR Loss]]+Table1[[#This Row],[Core Loss]] -> 5.243693315 | Y15: =IF(Table1[[#This Row],[Vin]]>Vout, Table1[[#This Row],[Ripple Current pk-pk]]/SQRT(12), SQRT(Table1[[#This Row],[Duty Cycle BOOST Leg]]/(1-Table1[[#This Row],[Duty Cycle BOOST Leg]]))*SQRT(Table1[[#This Row],[Iout]]^2+(Table1[[#This Row],[Ripple Current pk-pk]]^2)/12)) -> 13.90728705 | Z15: =RCoutEsr*Table1[[#This Row],[Irms Cout]]^2 -> 0.3626486873 | AA15: =Table1[[#This Row],[Cout ESR Loss]] -> 0.3626486873 | AB15: =IF(Table1[[#This Row],[Vin]]>Vout, SQRT(Table1[[#This Row],[Duty Cycle BUCK Leg]]*(1-Table1[[#This Row],[Duty Cycle BUCK Leg]]))*SQRT(Table1[[#This Row],[Iout]]^2+(Table1[[#This Row],[Ripple Current pk-pk]]^2)/12), Table1[[#This Row],[Ripple Current pk-pk]]/SQRT(12)) -> 0.9438962329 | AC15: =RCinEsr*Table1[[#This Row],[Irms Cin]]^2 -> 0.001781880197 | AD15: =Table1[[#This Row],[Cin ESR Loss]] -> 0.001781880197 | AE15: =Table1[[#This Row],[Irms Lf]] -> 33.57219552 | AF15: =Rdson1*Table1[[#This Row],[Irms1]]^2 -> 5.522752328 | AG15: =CHOOSE(Table1[[#This Row],[Mode Digit]], (Table1[[#This Row],[Vin]]*Table1[[#This Row],[Iout]]/2)*(Fsw)*(Tr_buck+Tf_buck), 0, (Table1[[#This Row],[Vin]]*Table1[[#This Row],[Avg IL]]/2)*(Fsw/1)*(Tr_buck+Tf_buck)) -> 0 | AH15: =IF(Table1[[#This Row],[Vin]]>Vout, IF(Table1[[#This Row],[Iout]]>Table1[[#This Row],[Ripple Current pk-pk]]/2,0,ABS(Table1[[#This Row],[Iout]]-Table1[[#This Row],[Ripple Current pk-pk]]/2)*Vsd_Q1*Deadtime*Fsw),0) -> 0 | AI15: =(Table1[[#This Row],[Dead Time Loss ]]+Table1[[#This Row],[Transition Loss]]+Table1[[#This Row],[RDS(on) Loss]]*(1+RdsonTopTc*Ta-RdsonTopTc*25))/(1-Table1[[#This Row],[RDS(on) Loss]]*RdsonTopTc*ThetaJA_Q1) -> -52.82379465 | AJ15: =Table1[[#This Row],[Irms Lf]] -> 33.57219552 | AK15: =Rdson2*Table1[[#This Row],[Irms2]]^2 -> 5.522752328 | AL15: =CHOOSE(Table1[[#This Row],[Mode Digit]], IF(Table1[[#This Row],[Iout]]<Table1[[#This Row],[Ripple Current pk-pk]]/2,Deadtime*Fsw*IF(VfdSky_Q2>0,0,Vsd_Q2)*(Table1[[#This Row],[Iout]]+Table1[[#This Row],[Ripple Current pk-pk]]/2),2*Deadtime*Fsw*IF(VfdSky_Q2>0,0,Vsd_Q2)*Table1[[#This Row],[Iout]]),0, IF(Table1[[#This Row],[Iout]]<Table1[[#This Row],[Ripple Current pk-pk]]/2,Deadtime*Fsw*IF(VfdSky_Q2>0,0,Vsd_Q2)*(Table1[[#This Row],[Iout]]+Table1[[#This Row],[Ripple Current pk-pk]]/2),2*Deadtime*Fsw*IF(VfdSky_Q2>0,0,Vsd_Q2)*Table1[[#This Row],[Iout]])) -> 0 | AM15: =(Table1[[#This Row],[Deadtime Loss]]+Table1[[#This Row],[RDS(on) Loss3]]*(1+RdsonBotTc*Ta-RdsonBotTc*25))/(1-Table1[[#This Row],[RDS(on) Loss3]]*RdsonBotTc*ThetaJA_Q2) -> -52.82379465 | AN15: =Table1[[#This Row],[Irms Lf]] -> 33.57219552 | AO15: =Rdson4*Table1[[#This Row],[Irms4]]^2 -> 4.282950785 | AP15: =CHOOSE(Table1[[#This Row],[Mode Digit]], 0, (Vout*Table1[[#This Row],[Iin]]/2)*(Fsw)*(Tr_boost+Tf_boost), (Vout*Iout/2)*(Fsw/1)*(Tr_boost+Tf_boost)) -> 0.3519898819 | AQ15: =IF(Table1[[#This Row],[Vin]]>Vout, 0, IF(Table1[[#This Row],[Iin]]>Table1[[#This Row],[Ripple Current pk-pk]]/2,0,ABS(Table1[[#This Row],[Iin]]-Table1[[#This Row],[Ripple Current pk-pk]]/2)*Vsd_Q4*Deadtime*Fsw)) -> 0 | AR15: =(Table1[[#This Row],[Dead Time Loss 7]]+Table1[[#This Row],[Transition Loss6]]+Table1[[#This Row],[RDS(on) Loss5]]*(1+RdsonTopTc*Ta-RdsonTopTc*25))/(1-Table1[[#This Row],[RDS(on) Loss5]]*RdsonTopTc*ThetaJA_Q4) -> -40.81231639 | AS15: =Table1[[#This Row],[Irms Lf]] -> 33.57219552 | AT15: =Rdson3*Table1[[#This Row],[Irms9]]^2 -> 4.282950785 | AU15: =CHOOSE(Table1[[#This Row],[Mode Digit]], 0, IF(Table1[[#This Row],[Iin]]<Table1[[#This Row],[Ripple Current pk-pk]]/2,Deadtime*Fsw*IF(VfdSky_Q3>0,0,Vsd_Q3)*(Table1[[#This Row],[Iin]]+Table1[[#This Row],[Ripple Current pk-pk]]/2), 2*Deadtime*Fsw*IF(VfdSky_Q3>0,0,Vsd_Q3)*Table1[[#This Row],[Iin]]), IF(Table1[[#This Row],[Iin]]<Table1[[#This Row],[Ripple Current pk-pk]]/2,Deadtime*Fsw*IF(VfdSky_Q3>0,0,Vsd_Q3)*(Table1[[#This Row],[Iin]]+Table1[[#This Row],[Ripple Current pk-pk]]/2), 2*Deadtime*Fsw*IF(VfdSky_Q3>0,0,Vsd_Q3)*Table1[[#This Row],[Iin]])) -> 0.536942782 | AV15: =(Table1[[#This Row],[Deadtime Loss11]]+Table1[[#This Row],[RDS(on) Loss10]]*(1+RdsonBotTc*Ta-RdsonBotTc*25))/(1-Table1[[#This Row],[RDS(on) Loss10]]*RdsonBotTc*ThetaJA_Q3) -> 30.02269931 | AW15: =CHOOSE(Table1[[#This Row],[Mode Digit]], Rdson3*Table1[[#This Row],[Irms Lf]]^2, Rdson1*Table1[[#This Row],[Irms Lf]]^2, 0) -> 5.522752328 | AX15: =CHOOSE(Table1[[#This Row],[Mode Digit]], 2*Deadtime*Fsw*IF(VfdSky_Q2>0,VfdSky_Q2,0)*Table1[[#This Row],[Iout]], 2*Deadtime*Fsw*IF(VfdSky_Q3>0,VfdSky_Q3,0)*Table1[[#This Row],[Iin]], 2*Deadtime*Fsw*IF(VfdSky_Q2>0,VfdSky_Q2,0)*Table1[[#This Row],[Iout]]+2*Deadtime*Fsw*IF(VfdSky_Q3>0,VfdSky_Q3,0)*Table1[[#This Row],[Iin]]) -> 0 | AY15: =CHOOSE(Table1[[#This Row],[Mode Digit]], IF(QrrSky_Q2>0,QrrSky_Q2,Qrr_Q2)*Fsw*(Table1[[#This Row],[Vin]]-Table1[[#This Row],[Iout]]*Rdson1), IF(QrrSky_Q3>0,QrrSky_Q3,Qrr_Q3)*Fsw*Vout, IF(QrrSky_Q2>0,QrrSky_Q2,Qrr_Q2)*Fsw*(Table1[[#This Row],[Vin]]-Table1[[#This Row],[Iout]]*Rdson1)+IF(QrrSky_Q3>0,QrrSky_Q3,Qrr_Q3)*Fsw*Vout) -> 0.0528 | AZ15: =CHOOSE(Table1[[#This Row],[Mode Digit]], Rs*Table1[[#This Row],[Irms2]]^2, Rs*Table1[[#This Row],[Irms4]]^2, Rs*(Table1[[#This Row],[Irms2]]^2+Table1[[#This Row],[Irms4]]^2)) -> 1.127092312 | BA15: 1.25 | BB15: =IF(Vout>8, Iq*Vout, Iq*Table1[[#This Row],[Vin]]) -> 0.036 | BC15: =CHOOSE(Table1[[#This Row],[Mode Digit]], (Qg_Q1+Qg_Q2)*Fsw, (Qg_Q3+Qg_Q4)*Fsw, (Qg_Q1+Qg_Q2+Qg_Q3+Qg_Q4)*Fsw)*IF(Vout>8, Vout, Table1[[#This Row],[Vin]]) -> 0.05568 | BD15: 0.7301853659 | BE15: =Table1[[#This Row],[IQ Loss]]+Table1[[#This Row],[Switching Current Loss]] -> 0.09168 | BF15: =SUM(Table1[[#This Row],[Total Inductor Loss]],Table1[[#This Row],[Total Cout Loss]],Table1[[#This Row],[Total Cin Loss]],Table1[[#This Row],[Total Control MOSFET Loss]],Table1[[#This Row],[Total Sync MOSFET Loss]],Table1[[#This Row],[Total Control MOSFET Loss8]],Table1[[#This Row],[Total Sync MOSFET Loss12]], Table1[[#This Row],[Deadtime Loss13]],Table1[[#This Row],[Reverse Recovery Loss]],Table1[[#This Row],[Total IC Loss]],Table1[[#This Row],[Isense Shunt Loss]],Table1[[#This Row],[Iout Shunt Loss]]) -> -108.3075102 | BG15: =Vout*Table1[[#This Row],[Iout]] -> 300 | BH15: =Table1[[#This Row],[Pout]]/(Table1[[#This Row],[Pout]]+Table1[[#This Row],[Total Loss]]) -> 1.565006539 | BI15: =IF(Table1[[#This Row],[Vin]]>Vout,ThetaJA_Q1*(Table1[[#This Row],[Total Control MOSFET Loss]]+Table1[[#This Row],[Reverse Recovery Loss]]),ThetaJA_Q4*(Table1[[#This Row],[Total Control MOSFET Loss8]]+Table1[[#This Row],[Reverse Recovery Loss]])) -> -2649.368565 | BJ15: =IF(Table1[[#This Row],[Vin]]>Vout, Table1[[#This Row],[Total Sync MOSFET Loss]]*ThetaJA_Q2, ThetaJA_Q3*Table1[[#This Row],[Total Sync MOSFET Loss12]]) -> 1471.112266 | BL15: =Table1[[#This Row],[EFF, h]]*100 -> 156.5006539 | BM15: =Table1[[#This Row],[Total Inductor Loss]] -> 5.243693315 | BN15: =Table1[[#This Row],[Total Control MOSFET Loss]]+Table1[[#This Row],[Total Sync MOSFET Loss]]+Table1[[#This Row],[Total Control MOSFET Loss8]]+Table1[[#This Row],[Total Sync MOSFET Loss12]]+Table1[[#This Row],[Reverse Recovery Loss]] -> -116.3844064 | BO15: =Table1[[#This Row],[Total Sync MOSFET Loss]]+Table1[[#This Row],[Reverse Recovery Loss]]*0.33 -> -52.80637065 | BP15: =Table1[[#This Row],[Isense Shunt Loss]] -> 1.127092312 | BT15: 1Mhz / 5-1.2V / 10A | BU15: 20 | BV15: 20 | BW15: 20 | BX15: =1000000*(5-Vdd)*BW15/1000000000+((1000000*BW9/1000000000*Vdd)*2.5/(2*4)) -> 0.1140625 | BY15: 9.125 | BZ15: 11.40625 | CA15: 13.6875 | CB15: 15.96875 | CC15: 18.25 | CD15: 20.53125 | CE15: 2.28125 | CF15: 3.421875 | CG15: 4.5625 | CH15: 5.703125
A16: Vcc | B16: =Vdd -> 7.5 | C16: V | D16: Subregulated VCC Voltage | G16: 7 | H16: =VIN_min+(VIN_max-VIN_min)*(Table1[[#This Row],[Step]]/200) -> 9.645 | I16: =IF(Table1[[#This Row],[Vin]]>VIN_BB_to_buck, "BUCK", IF(Table1[[#This Row],[Vin]]<=VIN_boost_to_BB,"BOOST","BUCK-BST")) -> BOOST | J16: =IF(Table1[[#This Row],[Mode]]="BOOST",2, IF(Table1[[#This Row],[Mode]]="BUCK", 1,3)) -> 2 | K16: 25 | L16: =Vout*Table1[[#This Row],[Iout]]/(Table1[[#This Row],[Vin]]*Efficiency) -> 32.74126218 | M16: =Iout/(1-Table1[[#This Row],[Duty Cycle BOOST Leg]]) -> 31.88524348 | N16: =CHOOSE(Table1[[#This Row],[Mode Digit]],(Vout+(Rdson2+Rs+Rdcr)*Table1[[#This Row],[Iout]])/(Table1[[#This Row],[Vin]]+(Rs+Rdson2-Rdson1)*Table1[[#This Row],[Iout]]),1,IF(Table1[[#This Row],[Vin]]<Vout,D_max_buck_BB,Vout/Table1[[#This Row],[Vin]]*(1-D_min_boost_exitBB_to_buck))) -> 1 | O16: =CHOOSE(Table1[[#This Row],[Mode Digit]],0,(Vout+(Rdson3+Rdcr)*Table1[[#This Row],[Iin]]-Table1[[#This Row],[Vin]])/(Vout+(Rdson3-Rdson4-Rs)*Table1[[#This Row],[Iin]]),IF(Table1[[#This Row],[Vin]]>Vout, (Vout-Table1[[#This Row],[Vin]]*D_max_exitBB_to_buck)/Vout, (Vout-Table1[[#This Row],[Vin]]*D_max_buck_BB)/Vout)) -> 0.2159382438 | P16: =CHOOSE(Table1[[#This Row],[Mode Digit]],0,0,1-((Table1[[#This Row],[Vin]]-Vout)+((VIN_BB_to_buck-VIN_BB_to_boost)/2))/((VIN_BB_to_buck-VIN_BB_to_boost))) -> 0 | Q16: =CHOOSE(Table1[[#This Row],[Mode Digit]],0,Table1[[#This Row],[Duty Cycle BOOST Leg]]/Fsw,(1/Fsw-Table1[[#This Row],[T BOD/BUE]])*Table1[[#This Row],[BOE/BUD BUBO ratio]]) -> 1.079691219e-06 | R16: =CHOOSE(Table1[[#This Row],[Mode Digit]],Table1[[#This Row],[Duty Cycle BUCK Leg]]/Fsw,(1-Table1[[#This Row],[Duty Cycle BOOST Leg]])/Fsw,TonBubo) -> 3.920308781e-06 | S16: =CHOOSE(Table1[[#This Row],[Mode Digit]],(1-Table1[[#This Row],[Duty Cycle BUCK Leg]])/Fsw,0,(1/Fsw-Table1[[#This Row],[T BOD/BUE]]-Table1[[#This Row],[T BOE]])) -> 0 | T16: =MAX(0, CHOOSE(Table1[[#This Row],[Mode Digit]], (Table1[[#This Row],[Vin]]-(Rdson1+Rdcr)*Table1[[#This Row],[Iout]]-Vout)*Table1[[#This Row],[Duty Cycle BUCK Leg]]/(Fsw*Lf), (Table1[[#This Row],[Vin]]-(Rdson4+Rdcr+Rs)*Table1[[#This Row],[Iin]])*Table1[[#This Row],[Duty Cycle BOOST Leg]]/(Fsw*Lf), IF(Table1[[#This Row],[Vin]]<Vout, (Table1[[#This Row],[Vin]]-(Rdson1+Rdson3+Rdcr+Rs)*Table1[[#This Row],[Iin]])*Table1[[#This Row],[T BOE]]/(Lf),(Vout-(Rdson2+Rdson4+Rdcr+Rs)*Table1[[#This Row],[Iout]])*Table1[[#This Row],[T BUD]]/(Lf)))) -> 3.069944904 | U16: =CHOOSE(Table1[[#This Row],[Mode Digit]], SQRT(Table1[[#This Row],[Iout]]^2+(Table1[[#This Row],[Ripple Current pk-pk]]^2)/12), SQRT(Table1[[#This Row],[Iin]]^2+(Table1[[#This Row],[Ripple Current pk-pk]]^2)/12), SQRT(Table1[[#This Row],[Avg IL]]^2+(Table1[[#This Row],[Ripple Current pk-pk]]^2)/12)) -> 32.75325372 | V16: =(Table1[[#This Row],[Irms Lf]]^2*Rdcr*(1+Ltc*Ta-Ltc*25))/(1-Table1[[#This Row],[Irms Lf]]^2*Rdcr*Ltc*ThetaCa) -> 4.732598078 | W16: =ABS(7.759*10^-3*Fsw^0.9458*(0.00787*Table1[[#This Row],[Ripple Current pk-pk]])^2.304) -> 0.1507282179 | X16: =Table1[[#This Row],[DCR Loss]]+Table1[[#This Row],[Core Loss]] -> 4.883326296 | Y16: =IF(Table1[[#This Row],[Vin]]>Vout, Table1[[#This Row],[Ripple Current pk-pk]]/SQRT(12), SQRT(Table1[[#This Row],[Duty Cycle BOOST Leg]]/(1-Table1[[#This Row],[Duty Cycle BOOST Leg]]))*SQRT(Table1[[#This Row],[Iout]]^2+(Table1[[#This Row],[Ripple Current pk-pk]]^2)/12)) -> 13.12811443 | Z16: =RCoutEsr*Table1[[#This Row],[Irms Cout]]^2 -> 0.3231513532 | AA16: =Table1[[#This Row],[Cout ESR Loss]] -> 0.3231513532 | AB16: =IF(Table1[[#This Row],[Vin]]>Vout, SQRT(Table1[[#This Row],[Duty Cycle BUCK Leg]]*(1-Table1[[#This Row],[Duty Cycle BUCK Leg]]))*SQRT(Table1[[#This Row],[Iout]]^2+(Table1[[#This Row],[Ripple Current pk-pk]]^2)/12), Table1[[#This Row],[Ripple Current pk-pk]]/SQRT(12)) -> 0.8862167583 | AC16: =RCinEsr*Table1[[#This Row],[Irms Cin]]^2 -> 0.001570760285 | AD16: =Table1[[#This Row],[Cin ESR Loss]] -> 0.001570760285 | AE16: =Table1[[#This Row],[Irms Lf]] -> 32.75325372 | AF16: =Rdson1*Table1[[#This Row],[Irms1]]^2 -> 5.256600582 | AG16: =CHOOSE(Table1[[#This Row],[Mode Digit]], (Table1[[#This Row],[Vin]]*Table1[[#This Row],[Iout]]/2)*(Fsw)*(Tr_buck+Tf_buck), 0, (Table1[[#This Row],[Vin]]*Table1[[#This Row],[Avg IL]]/2)*(Fsw/1)*(Tr_buck+Tf_buck)) -> 0 | AH16: =IF(Table1[[#This Row],[Vin]]>Vout, IF(Table1[[#This Row],[Iout]]>Table1[[#This Row],[Ripple Current pk-pk]]/2,0,ABS(Table1[[#This Row],[Iout]]-Table1[[#This Row],[Ripple Current pk-pk]]/2)*Vsd_Q1*Deadtime*Fsw),0) -> 0 | AI16: =(Table1[[#This Row],[Dead Time Loss ]]+Table1[[#This Row],[Transition Loss]]+Table1[[#This Row],[RDS(on) Loss]]*(1+RdsonTopTc*Ta-RdsonTopTc*25))/(1-Table1[[#This Row],[RDS(on) Loss]]*RdsonTopTc*ThetaJA_Q1) -> -102.4276823 | AJ16: =Table1[[#This Row],[Irms Lf]] -> 32.75325372 | AK16: =Rdson2*Table1[[#This Row],[Irms2]]^2 -> 5.256600582 | AL16: =CHOOSE(Table1[[#This Row],[Mode Digit]], IF(Table1[[#This Row],[Iout]]<Table1[[#This Row],[Ripple Current pk-pk]]/2,Deadtime*Fsw*IF(VfdSky_Q2>0,0,Vsd_Q2)*(Table1[[#This Row],[Iout]]+Table1[[#This Row],[Ripple Current pk-pk]]/2),2*Deadtime*Fsw*IF(VfdSky_Q2>0,0,Vsd_Q2)*Table1[[#This Row],[Iout]]),0, IF(Table1[[#This Row],[Iout]]<Table1[[#This Row],[Ripple Current pk-pk]]/2,Deadtime*Fsw*IF(VfdSky_Q2>0,0,Vsd_Q2)*(Table1[[#This Row],[Iout]]+Table1[[#This Row],[Ripple Current pk-pk]]/2),2*Deadtime*Fsw*IF(VfdSky_Q2>0,0,Vsd_Q2)*Table1[[#This Row],[Iout]])) -> 0 | AM16: =(Table1[[#This Row],[Deadtime Loss]]+Table1[[#This Row],[RDS(on) Loss3]]*(1+RdsonBotTc*Ta-RdsonBotTc*25))/(1-Table1[[#This Row],[RDS(on) Loss3]]*RdsonBotTc*ThetaJA_Q2) -> -102.4276823 | AN16: =Table1[[#This Row],[Irms Lf]] -> 32.75325372 | AO16: =Rdson4*Table1[[#This Row],[Irms4]]^2 -> 4.07654739 | AP16: =CHOOSE(Table1[[#This Row],[Mode Digit]], 0, (Vout*Table1[[#This Row],[Iin]]/2)*(Fsw)*(Tr_boost+Tf_boost), (Vout*Iout/2)*(Fsw/1)*(Tr_boost+Tf_boost)) -> 0.3434136639 | AQ16: =IF(Table1[[#This Row],[Vin]]>Vout, 0, IF(Table1[[#This Row],[Iin]]>Table1[[#This Row],[Ripple Current pk-pk]]/2,0,ABS(Table1[[#This Row],[Iin]]-Table1[[#This Row],[Ripple Current pk-pk]]/2)*Vsd_Q4*Deadtime*Fsw)) -> 0 | AR16: =(Table1[[#This Row],[Dead Time Loss 7]]+Table1[[#This Row],[Transition Loss6]]+Table1[[#This Row],[RDS(on) Loss5]]*(1+RdsonTopTc*Ta-RdsonTopTc*25))/(1-Table1[[#This Row],[RDS(on) Loss5]]*RdsonTopTc*ThetaJA_Q4) -> -73.78613962 | AS16: =Table1[[#This Row],[Irms Lf]] -> 32.75325372 | AT16: =Rdson3*Table1[[#This Row],[Irms9]]^2 -> 4.07654739 | AU16: =CHOOSE(Table1[[#This Row],[Mode Digit]], 0, IF(Table1[[#This Row],[Iin]]<Table1[[#This Row],[Ripple Current pk-pk]]/2,Deadtime*Fsw*IF(VfdSky_Q3>0,0,Vsd_Q3)*(Table1[[#This Row],[Iin]]+Table1[[#This Row],[Ripple Current pk-pk]]/2), 2*Deadtime*Fsw*IF(VfdSky_Q3>0,0,Vsd_Q3)*Table1[[#This Row],[Iin]]), IF(Table1[[#This Row],[Iin]]<Table1[[#This Row],[Ripple Current pk-pk]]/2,Deadtime*Fsw*IF(VfdSky_Q3>0,0,Vsd_Q3)*(Table1[[#This Row],[Iin]]+Table1[[#This Row],[Ripple Current pk-pk]]/2), 2*Deadtime*Fsw*IF(VfdSky_Q3>0,0,Vsd_Q3)*Table1[[#This Row],[Iin]])) -> 0.5238601948 | AV16: =(Table1[[#This Row],[Deadtime Loss11]]+Table1[[#This Row],[RDS(on) Loss10]]*(1+RdsonBotTc*Ta-RdsonBotTc*25))/(1-Table1[[#This Row],[RDS(on) Loss10]]*RdsonBotTc*ThetaJA_Q3) -> 22.88797439 | AW16: =CHOOSE(Table1[[#This Row],[Mode Digit]], Rdson3*Table1[[#This Row],[Irms Lf]]^2, Rdson1*Table1[[#This Row],[Irms Lf]]^2, 0) -> 5.256600582 | AX16: =CHOOSE(Table1[[#This Row],[Mode Digit]], 2*Deadtime*Fsw*IF(VfdSky_Q2>0,VfdSky_Q2,0)*Table1[[#This Row],[Iout]], 2*Deadtime*Fsw*IF(VfdSky_Q3>0,VfdSky_Q3,0)*Table1[[#This Row],[Iin]], 2*Deadtime*Fsw*IF(VfdSky_Q2>0,VfdSky_Q2,0)*Table1[[#This Row],[Iout]]+2*Deadtime*Fsw*IF(VfdSky_Q3>0,VfdSky_Q3,0)*Table1[[#This Row],[Iin]]) -> 0 | AY16: =CHOOSE(Table1[[#This Row],[Mode Digit]], IF(QrrSky_Q2>0,QrrSky_Q2,Qrr_Q2)*Fsw*(Table1[[#This Row],[Vin]]-Table1[[#This Row],[Iout]]*Rdson1), IF(QrrSky_Q3>0,QrrSky_Q3,Qrr_Q3)*Fsw*Vout, IF(QrrSky_Q2>0,QrrSky_Q2,Qrr_Q2)*Fsw*(Table1[[#This Row],[Vin]]-Table1[[#This Row],[Iout]]*Rdson1)+IF(QrrSky_Q3>0,QrrSky_Q3,Qrr_Q3)*Fsw*Vout) -> 0.0528 | AZ16: =CHOOSE(Table1[[#This Row],[Mode Digit]], Rs*Table1[[#This Row],[Irms2]]^2, Rs*Table1[[#This Row],[Irms4]]^2, Rs*(Table1[[#This Row],[Irms2]]^2+Table1[[#This Row],[Irms4]]^2)) -> 1.072775629 | BA16: 1.25 | BB16: =IF(Vout>8, Iq*Vout, Iq*Table1[[#This Row],[Vin]]) -> 0.036 | BC16: =CHOOSE(Table1[[#This Row],[Mode Digit]], (Qg_Q1+Qg_Q2)*Fsw, (Qg_Q3+Qg_Q4)*Fsw, (Qg_Q1+Qg_Q2+Qg_Q3+Qg_Q4)*Fsw)*IF(Vout>8, Vout, Table1[[#This Row],[Vin]]) -> 0.05568 | BD16: 0.7301853659 | BE16: =Table1[[#This Row],[IQ Loss]]+Table1[[#This Row],[Switching Current Loss]] -> 0.09168 | BF16: =SUM(Table1[[#This Row],[Total Inductor Loss]],Table1[[#This Row],[Total Cout Loss]],Table1[[#This Row],[Total Cin Loss]],Table1[[#This Row],[Total Control MOSFET Loss]],Table1[[#This Row],[Total Sync MOSFET Loss]],Table1[[#This Row],[Total Control MOSFET Loss8]],Table1[[#This Row],[Total Sync MOSFET Loss12]], Table1[[#This Row],[Deadtime Loss13]],Table1[[#This Row],[Reverse Recovery Loss]],Table1[[#This Row],[Total IC Loss]],Table1[[#This Row],[Isense Shunt Loss]],Table1[[#This Row],[Iout Shunt Loss]]) -> -248.0782259 | BG16: =Vout*Table1[[#This Row],[Iout]] -> 300 | BH16: =Table1[[#This Row],[Pout]]/(Table1[[#This Row],[Pout]]+Table1[[#This Row],[Total Loss]]) -> 5.777922751 | BI16: =IF(Table1[[#This Row],[Vin]]>Vout,ThetaJA_Q1*(Table1[[#This Row],[Total Control MOSFET Loss]]+Table1[[#This Row],[Reverse Recovery Loss]]),ThetaJA_Q4*(Table1[[#This Row],[Total Control MOSFET Loss8]]+Table1[[#This Row],[Reverse Recovery Loss]])) -> -4792.667075 | BJ16: =IF(Table1[[#This Row],[Vin]]>Vout, Table1[[#This Row],[Total Sync MOSFET Loss]]*ThetaJA_Q2, ThetaJA_Q3*Table1[[#This Row],[Total Sync MOSFET Loss12]]) -> 1121.510745 | BL16: =Table1[[#This Row],[EFF, h]]*100 -> 577.7922751 | BM16: =Table1[[#This Row],[Total Inductor Loss]] -> 4.883326296 | BN16: =Table1[[#This Row],[Total Control MOSFET Loss]]+Table1[[#This Row],[Total Sync MOSFET Loss]]+Table1[[#This Row],[Total Control MOSFET Loss8]]+Table1[[#This Row],[Total Sync MOSFET Loss12]]+Table1[[#This Row],[Reverse Recovery Loss]] -> -255.7007299 | BO16: =Table1[[#This Row],[Total Sync MOSFET Loss]]+Table1[[#This Row],[Reverse Recovery Loss]]*0.33 -> -102.4102583 | BP16: =Table1[[#This Row],[Isense Shunt Loss]] -> 1.072775629 | BT16: 1Mhz / 12-1.2V/ 10A | BU16: 25 | BV16: 25 | BW16: 25 | BX16: =1000000*(12-Vdd)*BW16/1000000000+((1000000*BW9/1000000000*Vdd)*2.5/(2*4)) -> 0.2765625 | BY16: 22.125 | BZ16: 27.65625 | CA16: 33.1875 | CB16: 38.71875 | CC16: 44.25 | CD16: 49.78125 | CE16: 5.53125 | CF16: 8.296875 | CG16: 11.0625 | CH16: 13.828125
A17: Components | B17: Input Value | C17: Units | D17: Description | G17: 8 | H17: =VIN_min+(VIN_max-VIN_min)*(Table1[[#This Row],[Step]]/200) -> 9.88 | I17: =IF(Table1[[#This Row],[Vin]]>VIN_BB_to_buck, "BUCK", IF(Table1[[#This Row],[Vin]]<=VIN_boost_to_BB,"BOOST","BUCK-BST")) -> BOOST | J17: =IF(Table1[[#This Row],[Mode]]="BOOST",2, IF(Table1[[#This Row],[Mode]]="BUCK", 1,3)) -> 2 | K17: 25 | L17: =Vout*Table1[[#This Row],[Iout]]/(Table1[[#This Row],[Vin]]*Efficiency) -> 31.96249734 | M17: =Iout/(1-Table1[[#This Row],[Duty Cycle BOOST Leg]]) -> 31.08807258 | N17: =CHOOSE(Table1[[#This Row],[Mode Digit]],(Vout+(Rdson2+Rs+Rdcr)*Table1[[#This Row],[Iout]])/(Table1[[#This Row],[Vin]]+(Rs+Rdson2-Rdson1)*Table1[[#This Row],[Iout]]),1,IF(Table1[[#This Row],[Vin]]<Vout,D_max_buck_BB,Vout/Table1[[#This Row],[Vin]]*(1-D_min_boost_exitBB_to_buck))) -> 1 | O17: =CHOOSE(Table1[[#This Row],[Mode Digit]],0,(Vout+(Rdson3+Rdcr)*Table1[[#This Row],[Iin]]-Table1[[#This Row],[Vin]])/(Vout+(Rdson3-Rdson4-Rs)*Table1[[#This Row],[Iin]]),IF(Table1[[#This Row],[Vin]]>Vout, (Vout-Table1[[#This Row],[Vin]]*D_max_exitBB_to_buck)/Vout, (Vout-Table1[[#This Row],[Vin]]*D_max_buck_BB)/Vout)) -> 0.1958330663 | P17: =CHOOSE(Table1[[#This Row],[Mode Digit]],0,0,1-((Table1[[#This Row],[Vin]]-Vout)+((VIN_BB_to_buck-VIN_BB_to_boost)/2))/((VIN_BB_to_buck-VIN_BB_to_boost))) -> 0 | Q17: =CHOOSE(Table1[[#This Row],[Mode Digit]],0,Table1[[#This Row],[Duty Cycle BOOST Leg]]/Fsw,(1/Fsw-Table1[[#This Row],[T BOD/BUE]])*Table1[[#This Row],[BOE/BUD BUBO ratio]]) -> 9.791653313e-07 | R17: =CHOOSE(Table1[[#This Row],[Mode Digit]],Table1[[#This Row],[Duty Cycle BUCK Leg]]/Fsw,(1-Table1[[#This Row],[Duty Cycle BOOST Leg]])/Fsw,TonBubo) -> 4.020834669e-06 | S17: =CHOOSE(Table1[[#This Row],[Mode Digit]],(1-Table1[[#This Row],[Duty Cycle BUCK Leg]])/Fsw,0,(1/Fsw-Table1[[#This Row],[T BOD/BUE]]-Table1[[#This Row],[T BOE]])) -> 0 | T17: =MAX(0, CHOOSE(Table1[[#This Row],[Mode Digit]], (Table1[[#This Row],[Vin]]-(Rdson1+Rdcr)*Table1[[#This Row],[Iout]]-Vout)*Table1[[#This Row],[Duty Cycle BUCK Leg]]/(Fsw*Lf), (Table1[[#This Row],[Vin]]-(Rdson4+Rdcr+Rs)*Table1[[#This Row],[Iin]])*Table1[[#This Row],[Duty Cycle BOOST Leg]]/(Fsw*Lf), IF(Table1[[#This Row],[Vin]]<Vout, (Table1[[#This Row],[Vin]]-(Rdson1+Rdson3+Rdcr+Rs)*Table1[[#This Row],[Iin]])*Table1[[#This Row],[T BOE]]/(Lf),(Vout-(Rdson2+Rdson4+Rdcr+Rs)*Table1[[#This Row],[Iout]])*Table1[[#This Row],[T BUD]]/(Lf)))) -> 2.855691188 | U17: =CHOOSE(Table1[[#This Row],[Mode Digit]], SQRT(Table1[[#This Row],[Iout]]^2+(Table1[[#This Row],[Ripple Current pk-pk]]^2)/12), SQRT(Table1[[#This Row],[Iin]]^2+(Table1[[#This Row],[Ripple Current pk-pk]]^2)/12), SQRT(Table1[[#This Row],[Avg IL]]^2+(Table1[[#This Row],[Ripple Current pk-pk]]^2)/12)) -> 31.97312648 | V17: =(Table1[[#This Row],[Irms Lf]]^2*Rdcr*(1+Ltc*Ta-Ltc*25))/(1-Table1[[#This Row],[Irms Lf]]^2*Rdcr*Ltc*ThetaCa) -> 4.43087613 | W17: =ABS(7.759*10^-3*Fsw^0.9458*(0.00787*Table1[[#This Row],[Ripple Current pk-pk]])^2.304) -> 0.1275864064 | X17: =Table1[[#This Row],[DCR Loss]]+Table1[[#This Row],[Core Loss]] -> 4.558462536 | Y17: =IF(Table1[[#This Row],[Vin]]>Vout, Table1[[#This Row],[Ripple Current pk-pk]]/SQRT(12), SQRT(Table1[[#This Row],[Duty Cycle BOOST Leg]]/(1-Table1[[#This Row],[Duty Cycle BOOST Leg]]))*SQRT(Table1[[#This Row],[Iout]]^2+(Table1[[#This Row],[Ripple Current pk-pk]]^2)/12)) -> 12.34371532 | Z17: =RCoutEsr*Table1[[#This Row],[Irms Cout]]^2 -> 0.2856887024 | AA17: =Table1[[#This Row],[Cout ESR Loss]] -> 0.2856887024 | AB17: =IF(Table1[[#This Row],[Vin]]>Vout, SQRT(Table1[[#This Row],[Duty Cycle BUCK Leg]]*(1-Table1[[#This Row],[Duty Cycle BUCK Leg]]))*SQRT(Table1[[#This Row],[Iout]]^2+(Table1[[#This Row],[Ripple Current pk-pk]]^2)/12), Table1[[#This Row],[Ripple Current pk-pk]]/SQRT(12)) -> 0.824367038 | AC17: =RCinEsr*Table1[[#This Row],[Irms Cin]]^2 -> 0.001359162027 | AD17: =Table1[[#This Row],[Cin ESR Loss]] -> 0.001359162027 | AE17: =Table1[[#This Row],[Irms Lf]] -> 31.97312648 | AF17: =Rdson1*Table1[[#This Row],[Irms1]]^2 -> 5.009176003 | AG17: =CHOOSE(Table1[[#This Row],[Mode Digit]], (Table1[[#This Row],[Vin]]*Table1[[#This Row],[Iout]]/2)*(Fsw)*(Tr_buck+Tf_buck), 0, (Table1[[#This Row],[Vin]]*Table1[[#This Row],[Avg IL]]/2)*(Fsw/1)*(Tr_buck+Tf_buck)) -> 0 | AH17: =IF(Table1[[#This Row],[Vin]]>Vout, IF(Table1[[#This Row],[Iout]]>Table1[[#This Row],[Ripple Current pk-pk]]/2,0,ABS(Table1[[#This Row],[Iout]]-Table1[[#This Row],[Ripple Current pk-pk]]/2)*Vsd_Q1*Deadtime*Fsw),0) -> 0 | AI17: =(Table1[[#This Row],[Dead Time Loss ]]+Table1[[#This Row],[Transition Loss]]+Table1[[#This Row],[RDS(on) Loss]]*(1+RdsonTopTc*Ta-RdsonTopTc*25))/(1-Table1[[#This Row],[RDS(on) Loss]]*RdsonTopTc*ThetaJA_Q1) -> -2729.497718 | AJ17: =Table1[[#This Row],[Irms Lf]] -> 31.97312648 | AK17: =Rdson2*Table1[[#This Row],[Irms2]]^2 -> 5.009176003 | AL17: =CHOOSE(Table1[[#This Row],[Mode Digit]], IF(Table1[[#This Row],[Iout]]<Table1[[#This Row],[Ripple Current pk-pk]]/2,Deadtime*Fsw*IF(VfdSky_Q2>0,0,Vsd_Q2)*(Table1[[#This Row],[Iout]]+Table1[[#This Row],[Ripple Current pk-pk]]/2),2*Deadtime*Fsw*IF(VfdSky_Q2>0,0,Vsd_Q2)*Table1[[#This Row],[Iout]]),0, IF(Table1[[#This Row],[Iout]]<Table1[[#This Row],[Ripple Current pk-pk]]/2,Deadtime*Fsw*IF(VfdSky_Q2>0,0,Vsd_Q2)*(Table1[[#This Row],[Iout]]+Table1[[#This Row],[Ripple Current pk-pk]]/2),2*Deadtime*Fsw*IF(VfdSky_Q2>0,0,Vsd_Q2)*Table1[[#This Row],[Iout]])) -> 0 | AM17: =(Table1[[#This Row],[Deadtime Loss]]+Table1[[#This Row],[RDS(on) Loss3]]*(1+RdsonBotTc*Ta-RdsonBotTc*25))/(1-Table1[[#This Row],[RDS(on) Loss3]]*RdsonBotTc*ThetaJA_Q2) -> -2729.497718 | AN17: =Table1[[#This Row],[Irms Lf]] -> 31.97312648 | AO17: =Rdson4*Table1[[#This Row],[Irms4]]^2 -> 3.884667105 | AP17: =CHOOSE(Table1[[#This Row],[Mode Digit]], 0, (Vout*Table1[[#This Row],[Iin]]/2)*(Fsw)*(Tr_boost+Tf_boost), (Vout*Iout/2)*(Fsw/1)*(Tr_boost+Tf_boost)) -> 0.3352454239 | AQ17: =IF(Table1[[#This Row],[Vin]]>Vout, 0, IF(Table1[[#This Row],[Iin]]>Table1[[#This Row],[Ripple Current pk-pk]]/2,0,ABS(Table1[[#This Row],[Iin]]-Table1[[#This Row],[Ripple Current pk-pk]]/2)*Vsd_Q4*Deadtime*Fsw)) -> 0 | AR17: =(Table1[[#This Row],[Dead Time Loss 7]]+Table1[[#This Row],[Transition Loss6]]+Table1[[#This Row],[RDS(on) Loss5]]*(1+RdsonTopTc*Ta-RdsonTopTc*25))/(1-Table1[[#This Row],[RDS(on) Loss5]]*RdsonTopTc*ThetaJA_Q4) -> -421.4245551 | AS17: =Table1[[#This Row],[Irms Lf]] -> 31.97312648 | AT17: =Rdson3*Table1[[#This Row],[Irms9]]^2 -> 3.884667105 | AU17: =CHOOSE(Table1[[#This Row],[Mode Digit]], 0, IF(Table1[[#This Row],[Iin]]<Table1[[#This Row],[Ripple Current pk-pk]]/2,Deadtime*Fsw*IF(VfdSky_Q3>0,0,Vsd_Q3)*(Table1[[#This Row],[Iin]]+Table1[[#This Row],[Ripple Current pk-pk]]/2), 2*Deadtime*Fsw*IF(VfdSky_Q3>0,0,Vsd_Q3)*Table1[[#This Row],[Iin]]), IF(Table1[[#This Row],[Iin]]<Table1[[#This Row],[Ripple Current pk-pk]]/2,Deadtime*Fsw*IF(VfdSky_Q3>0,0,Vsd_Q3)*(Table1[[#This Row],[Iin]]+Table1[[#This Row],[Ripple Current pk-pk]]/2), 2*Deadtime*Fsw*IF(VfdSky_Q3>0,0,Vsd_Q3)*Table1[[#This Row],[Iin]])) -> 0.5113999574 | AV17: =(Table1[[#This Row],[Deadtime Loss11]]+Table1[[#This Row],[RDS(on) Loss10]]*(1+RdsonBotTc*Ta-RdsonBotTc*25))/(1-Table1[[#This Row],[RDS(on) Loss10]]*RdsonBotTc*ThetaJA_Q3) -> 18.42401669 | AW17: =CHOOSE(Table1[[#This Row],[Mode Digit]], Rdson3*Table1[[#This Row],[Irms Lf]]^2, Rdson1*Table1[[#This Row],[Irms Lf]]^2, 0) -> 5.009176003 | AX17: =CHOOSE(Table1[[#This Row],[Mode Digit]], 2*Deadtime*Fsw*IF(VfdSky_Q2>0,VfdSky_Q2,0)*Table1[[#This Row],[Iout]], 2*Deadtime*Fsw*IF(VfdSky_Q3>0,VfdSky_Q3,0)*Table1[[#This Row],[Iin]], 2*Deadtime*Fsw*IF(VfdSky_Q2>0,VfdSky_Q2,0)*Table1[[#This Row],[Iout]]+2*Deadtime*Fsw*IF(VfdSky_Q3>0,VfdSky_Q3,0)*Table1[[#This Row],[Iin]]) -> 0 | AY17: =CHOOSE(Table1[[#This Row],[Mode Digit]], IF(QrrSky_Q2>0,QrrSky_Q2,Qrr_Q2)*Fsw*(Table1[[#This Row],[Vin]]-Table1[[#This Row],[Iout]]*Rdson1), IF(QrrSky_Q3>0,QrrSky_Q3,Qrr_Q3)*Fsw*Vout, IF(QrrSky_Q2>0,QrrSky_Q2,Qrr_Q2)*Fsw*(Table1[[#This Row],[Vin]]-Table1[[#This Row],[Iout]]*Rdson1)+IF(QrrSky_Q3>0,QrrSky_Q3,Qrr_Q3)*Fsw*Vout) -> 0.0528 | AZ17: =CHOOSE(Table1[[#This Row],[Mode Digit]], Rs*Table1[[#This Row],[Irms2]]^2, Rs*Table1[[#This Row],[Irms4]]^2, Rs*(Table1[[#This Row],[Irms2]]^2+Table1[[#This Row],[Irms4]]^2)) -> 1.022280817 | BA17: 1.25 | BB17: =IF(Vout>8, Iq*Vout, Iq*Table1[[#This Row],[Vin]]) -> 0.036 | BC17: =CHOOSE(Table1[[#This Row],[Mode Digit]], (Qg_Q1+Qg_Q2)*Fsw, (Qg_Q3+Qg_Q4)*Fsw, (Qg_Q1+Qg_Q2+Qg_Q3+Qg_Q4)*Fsw)*IF(Vout>8, Vout, Table1[[#This Row],[Vin]]) -> 0.05568 | BD17: 0.7301853659 | BE17: =Table1[[#This Row],[IQ Loss]]+Table1[[#This Row],[Switching Current Loss]] -> 0.09168 | BF17: =SUM(Table1[[#This Row],[Total Inductor Loss]],Table1[[#This Row],[Total Cout Loss]],Table1[[#This Row],[Total Cin Loss]],Table1[[#This Row],[Total Control MOSFET Loss]],Table1[[#This Row],[Total Sync MOSFET Loss]],Table1[[#This Row],[Total Control MOSFET Loss8]],Table1[[#This Row],[Total Sync MOSFET Loss12]], Table1[[#This Row],[Deadtime Loss13]],Table1[[#This Row],[Reverse Recovery Loss]],Table1[[#This Row],[Total IC Loss]],Table1[[#This Row],[Isense Shunt Loss]],Table1[[#This Row],[Iout Shunt Loss]]) -> -5854.733703 | BG17: =Vout*Table1[[#This Row],[Iout]] -> 300 | BH17: =Table1[[#This Row],[Pout]]/(Table1[[#This Row],[Pout]]+Table1[[#This Row],[Total Loss]]) -> -0.05400798959 | BI17: =IF(Table1[[#This Row],[Vin]]>Vout,ThetaJA_Q1*(Table1[[#This Row],[Total Control MOSFET Loss]]+Table1[[#This Row],[Reverse Recovery Loss]]),ThetaJA_Q4*(Table1[[#This Row],[Total Control MOSFET Loss8]]+Table1[[#This Row],[Reverse Recovery Loss]])) -> -27389.16408 | BJ17: =IF(Table1[[#This Row],[Vin]]>Vout, Table1[[#This Row],[Total Sync MOSFET Loss]]*ThetaJA_Q2, ThetaJA_Q3*Table1[[#This Row],[Total Sync MOSFET Loss12]]) -> 902.7768177 | BL17: =Table1[[#This Row],[EFF, h]]*100 -> -5.400798959 | BM17: =Table1[[#This Row],[Total Inductor Loss]] -> 4.558462536 | BN17: =Table1[[#This Row],[Total Control MOSFET Loss]]+Table1[[#This Row],[Total Sync MOSFET Loss]]+Table1[[#This Row],[Total Control MOSFET Loss8]]+Table1[[#This Row],[Total Sync MOSFET Loss12]]+Table1[[#This Row],[Reverse Recovery Loss]] -> -5861.943174 | BO17: =Table1[[#This Row],[Total Sync MOSFET Loss]]+Table1[[#This Row],[Reverse Recovery Loss]]*0.33 -> -2729.480294 | BP17: =Table1[[#This Row],[Isense Shunt Loss]] -> 1.022280817 | BT17: 500kHz / 18-1.2V / 20A | BU17: 50 | BV17: 50 | BW17: 50 | BX17: =500000*(18-Vdd)*BW17/1000000000+((500000*BW15/1000000000*Vdd)*2.5/(2*4)) -> 0.2859375 | BY17: 22.875 | BZ17: 28.59375 | CA17: 34.3125 | CB17: 40.03125 | CC17: 45.75 | CD17: 51.46875 | CE17: 5.71875 | CF17: 8.578125 | CG17: 11.4375 | CH17: 14.296875
